Workbook

Sheet Financeiro (hidden)
U1: INSERÇÃO COM IMPOSTOS? | V1: ='Cad.TÉCNICO'!$M$31 -> FALSE | AE1: PERFIL DE CONSUMO
H2: ALIQUOTAS | U2: INSERÇÃO MANUAL? | V2: TRUE | AE2: RESIDENCIAL 1 | AF2: 0.87
H3: ICMS | I3: ='Cad.TÉCNICO'!E33 -> 0.29 | M3: CONFIGURAÇÃO DOS IMPOSTOS | AE3: RESIDENCIAL 2 | AF3: 0.69
H4: PIS | I4: ='Cad.TÉCNICO'!E34 -> 0.0087 | U4: ICMS NO FIO B | V4: ='Cad.TÉCNICO'!E37 -> TRUE | AE4: CONSUMO REMOTO | AF4: 1
H5: COFINS | I5: ='Cad.TÉCNICO'!E35 -> 0.0488 | U5: ICMS NA TUSD G | V5: ='Cad.TÉCNICO'!E38 -> TRUE | AE5: CONSUMO NOTURNO | AF5: 0.99
U6: ICMS NA TUSD DA TAXA DE DISPONIBILIDADE | V6: ='Cad.TÉCNICO'!E39 -> TRUE | AE6: COMERCIAL 1 | AF6: 0.33
H7: OPÇÕES DE INSERÇÃO DO CUSTO DO KWH | U7: ICMS NA TE DA TAXA DE DISPONIBILIDADE | V7: ='Cad.TÉCNICO'!E40 -> TRUE | AE7: PADARIAS/MERCADOS | AF7: 0.39
U8: ICMS NA TUSD DA ENERGIA COMPENSADA | V8: ='Cad.TÉCNICO'!E41 -> TRUE | AE8: 24H | AF8: 0.53
H9: CUSTO DO KWH MANUALMENTE | U9: ICMS NA TE DA ENERGIA COMPENSADA | V9: ='Cad.TÉCNICO'!E42 -> TRUE | AE9: PERSONALIZADO | AF9: =#REF! -> 
H10: INSERÇÃO DA TE | I10: ='Cad.TÉCNICO'!K29 -> 0.30214
H11: INSERÇÃO DA TUSD | I11: ='Cad.TÉCNICO'!K30 -> 0.32837 | U11: VALOR DO KWH
U12: TE (COM IMPOSTOS) | V12: =IF(V2,IF(V1,I10,I10/(1-SUM(I3:I5))),V14/(1-SUM(I3:I5))) -> 0.4630498084
U13: TUSD (COM IMPOSTOS) | V13: =IF(V2,IF(V1,I11,I11/(1-SUM(I3:I5))),V15/(1-SUM(I3:I5))) -> 0.5032490421
U14: TE (SEM IMPOSTOS) | V14: =IF(V2,IF(V1,I10*(1-SUM(I3:I5)),I10),'Base <=500'!$AB$5) -> 0.30214
U15: TUSD (SEM IMPOSTOS) | V15: =IF(V2,IF(V1,I11*(1-SUM(I3:I5)),I11),'Base <=500'!$AB$4) -> 0.32837
U16: (COM IMPOSTOS) | V16: =ROUND(V12+V13,6) -> 0.966299 | W16: ="R$ "&V16 -> R$ 0,966299
U17: (SEM IMPOSTOS) | V17: =ROUND(V14+V15,6) -> 0.63051 | W17: ="R$ "&V17 -> R$ 0,63051
AA23: PADRÃO | AB23: N FASES | AC23: TARIF MIN
U24: 1 | V24: JANEIRO | W24: 31 | X24: 1 | AA24: MONOFÁSICO | AB24: 1 | AC24: 30
U25: 2 | V25: FEVEREIRO | W25: 28 | X25: 2 | AA25: BIFÁSICO | AB25: 2 | AC25: 50
U26: 3 | V26: MARÇO | W26: 31 | X26: 3 | AA26: TRIFÁSICO | AB26: 3 | AC26: 100
U27: 4 | V27: ABRIL | W27: 30 | X27: 4
U28: 5 | V28: MAIO | W28: 31 | X28: 5
U29: 6 | V29: JUNHO | W29: 30 | X29: 6
G30: Custo da demanda | H30: 2000 | U30: 7 | V30: JULHO | W30: 31 | X30: 7
G31: Iluminação pública | H31: 50 | U31: 8 | V31: AGOSTO | W31: 31 | X31: 8
G32: Investimento | H32: 50000 | U32: 9 | V32: SETEMBRO | W32: 30 | X32: 9
U33: 10 | V33: OUTUBRO | W33: 31 | X33: 10
H34: Data de início da geração | U34: 11 | V34: NOVEMBRO | W34: 30 | X34: 11
H35: 2023-06-21 | U35: 12 | V35: DEZEMBRO | W35: 31 | X35: 12
X40: 1 | Y40: 2 | Z40: 3 | AA40: 4 | AB40: 5 | AC40: 6 | AD40: 7 | AE40: 8 | AF40: 9 | AG40: 10 | AH40: 11 | AI40: 12 | AJ40: 13 | AK40: 14 | AL40: 15 | AM40: 16 | AN40: 17 | AO40: 18 | AP40: 19 | AQ40: 20 | AR40: 21 | AS40: 22 | AT40: 23 | AU40: 24 | AV40: 25 | AW40: 26
U41: FLUXO DE CAIXA ANUAL | AI41: SEM IMPOSTOS | AK41: COM IMPOSTOS | AM41: CUSTO ENERGIA | AN41: TARIFA MINIMA | AO41: Valor TUSD G (AN) | AT41: COMPENSACAO REMOTA | BI41: RETORNO
U42: MÊS | V42: MÊS | W42: ANO | X42: CÓDIGO | Y42: FLUXO DE CAIXA | Z42: ECONOMIA | AA42: VALOR SEM SOLAR | AB42: VALOR COM SOLAR | AC42: ILUMINCACAO | AD42: APLICAÇÃO | AE42: INVESTINDO ECONOMIA | AF42: CONSUMO | AG42: GERACAO | AH42: VALOR kW | AI42: TE - S/ IMPOSTOS | AJ42: TUSD - S/ IMPOSTOS | AK42: te c/ imp | AL42: tusd c/ imp | AM42: te + tusd c/ imp | AN42: tarifa min c/ imp | AO42: tusd g 1 | AP42: tusd g 2 | AQ42: VALOR TUSD G | AR42: ger - consumo | AS42: TUSD G C/ IMP | AT42: ilum publica comp | AU42: tarifa minima mono | AV42: tarifa minima bi | AW42: tarifa minima tri | AX42: SOMA | AY42: Compensado | AZ42: icms te da compensacao | BA42: icms tusd da compensacao | BB42: ICMS COMPENSACAO | BC42: TRANSIÇÃO | BD42: FIO B INFLAÇÃO | BE42: VALOR FIO B | BF42: FIO B (ANO) | BG42: FIO B (MÊS) | BH42: fio com imp | BI42: ANO
U43: 0 | V43: =VLOOKUP(MONTH(H35),U24:V35,2,0) -> JUNHO | W43: =YEAR(H35) -> 2023 | X43: =V43&W43 -> JUNHO2023 | Y43: =-H32 -> -50000 | AA43: =AF43*AM43+AC43 ->  | AC43: =H31 -> 50 | AF43: ='[1]Calculos-Dim'!$Y$7 ->  | AI43: =$V$14 -> 0.30214 | AJ43: =$V$15 -> 0.32837 | AK43: =V12 -> 0.4630498084 | AL43: =V13 -> 0.5032490421 | AM43: =V16 -> 0.966299 | AN43: =AM43*VLOOKUP($E$49,$AA$24:$AC$26,3,) -> 48.31495 | AO43: ='[2]Base <=500'!AB2 -> 2.52 | AP43: ='[2]Base <=500'!AB3 -> 7.94 | AQ43: =IF(E50="sim",IF(E51="sim",AP43*AR43,AO43*AR43),0) -> 0 | AR43: =IF($E$52>$E$53,$E$52-$E$53,0) -> 0 | AS43: =(AQ43/(1-$I$3)-AQ43)*$J$7+(AQ43/(1-$I$4)-AQ43)+(AQ43/(1-$I$5)-AQ43)+AQ43 -> 0
U44: 1 | V44: =UPPER(TEXT(EDATE($H$35,U44),"MMMM")) -> JULHO | W44: =IF(V43=$V$35,W43+1,W43) -> 2023 | X44: =V44&W44 -> JULHO2023 | AA44: =AF44*AM44+AC44 -> 464.542271 | AC44: =IF(W44<>W43,AC43*(1+$E$46),AC43) -> 50 | AF44: ='[2]Calculos-Dim'!$Y$7 -> 429 | AI44: =IF($W44<>$W43,AI43*(1+$E$46),AI43) -> 0.30214 | AJ44: =IF($W44<>$W43,AJ43*(1+$E$46),AJ43) -> 0.32837 | AK44: 0.4630498084 | AL44: 0.5032490421 | AM44: 0.966299 | AN44: 48.31495 | AO44: =IF($W44<>$W43,AO43*(1+$E$46),AO43) -> 2.52 | AP44: 7.94 | AQ44: =IF(E51="sim",IF(E52="sim",AP44*AR44,AO44*AR44),0) -> 0 | AR44: =IF($E$52>$E$53,$E$52-$E$53,0) -> 0 | AS44: =(AQ44/(1-$I$3)-AQ44)*$J$7+(AQ44/(1-$I$4)-AQ44)+(AQ44/(1-$I$5)-AQ44)+AQ44 -> 0
D45: PARÂMETROS | U45: 2 | V45: AGOSTO | W45: 2023 | X45: AGOSTO2023 | AA45: =AF45*AM45+AC45 -> 464.542271 | AC45: =IF(W45<>W44,AC44*(1+$E$46),AC44) -> 50 | AF45: ='[2]Calculos-Dim'!$Y$7 -> 429 | AI45: =IF($W45<>$W44,AI44*(1+$E$46),AI44) -> 0.30214 | AJ45: 0.32837 | AK45: 0.4630498084 | AL45: 0.5032490421 | AM45: 0.966299 | AN45: 48.31495 | AO45: 2.52 | AP45: 7.94 | AQ45: 0 | AR45: 0 | AS45: 0
D46: REAJUSTE TARIFÁRIO ANUAL (%) | E46: 0.085 | U46: 3 | V46: SETEMBRO | W46: 2023 | X46: SETEMBRO2023 | AA46: 464.542271 | AC46: 50 | AF46: ='[2]Calculos-Dim'!$Y$7 -> 429 | AI46: 0.30214 | AJ46: 0.32837 | AK46: 0.4630498084 | AL46: 0.5032490421 | AM46: 0.966299 | AN46: 48.31495 | AO46: 2.52 | AP46: 7.94 | AQ46: 0 | AR46: 0 | AS46: 0
D47: JUROS DE APLICAÇÃO ANUAL (%) | E47: 0.1 | U47: 4 | V47: OUTUBRO | W47: 2023 | X47: OUTUBRO2023 | AA47: 464.542271 | AC47: 50 | AF47: ='[2]Calculos-Dim'!$Y$7 -> 429 | AI47: 0.30214 | AJ47: 0.32837 | AK47: 0.4630498084 | AL47: 0.5032490421 | AM47: 0.966299 | AN47: 48.31495 | AO47: 2.52 | AP47: 7.94 | AQ47: 0 | AR47: 0 | AS47: 0
D48: TAXA DE ILUMINAÇÃO PÚBLICA (R$) | E48: 60 | U48: 5 | V48: NOVEMBRO | W48: 2023 | X48: NOVEMBRO2023 | AA48: 464.542271 | AC48: 50 | AF48: ='[2]Calculos-Dim'!$Y$7 -> 429 | AI48: 0.30214 | AJ48: 0.32837 | AK48: 0.4630498084 | AL48: 0.5032490421 | AM48: 0.966299 | AN48: 48.31495 | AO48: 2.52 | AP48: 7.94 | AQ48: 0 | AR48: 0 | AS48: 0
D49: TIPO DE PADRÃO | E49: BIFÁSICO | U49: 6 | V49: DEZEMBRO | W49: 2023 | X49: DEZEMBRO2023 | AA49: 464.542271 | AC49: 50 | AF49: ='[2]Calculos-Dim'!$Y$7 -> 429 | AI49: 0.30214 | AJ49: 0.32837 | AK49: 0.4630498084 | AL49: 0.5032490421 | AM49: 0.966299 | AN49: 48.31495 | AO49: 2.52 | AP49: 7.94 | AQ49: 0 | AR49: 0 | AS49: 0
D50: CONSIDERAR TUSD G | E50: NÃO | U50: 7 | V50: JANEIRO | W50: 2024 | X50: JANEIRO2024 | AA50: 504.028364 | AC50: 54.25 | AF50: ='[2]Calculos-Dim'!$Y$7 -> 429 | AI50: 0.3278219 | AJ50: 0.35628145 | AK50: 0.5024090421 | AL50: 0.5460252107 | AM50: 1.048434415 | AN50: 52.42172075 | AO50: 2.7342 | AP50: 8.6149 | AQ50: 0 | AR50: 0 | AS50: 0
D51: MELHORIA NA REDE | E51: NÃO | U51: 8 | V51: FEVEREIRO | W51: 2024 | X51: FEVEREIRO2024 | AA51: 504.028364 | AC51: 54.25 | AF51: ='[2]Calculos-Dim'!$Y$7 -> 429 | AI51: 0.3278219 | AJ51: 0.35628145 | AK51: 0.5024090421 | AL51: 0.5460252107 | AM51: 1.048434415 | AN51: 52.42172075 | AO51: 2.7342 | AP51: 8.6149 | AQ51: 0 | AR51: 0 | AS51: 0
D52: POTÊNCIA DE GERAÇÃO (kW) | E52: 2000 | U52: 9 | V52: MARÇO | W52: 2024 | X52: MARÇO2024 | AA52: 504.028364 | AC52: 54.25 | AF52: ='[2]Calculos-Dim'!$Y$7 -> 429 | AI52: 0.3278219 | AJ52: 0.35628145 | AK52: 0.5024090421 | AL52: 0.5460252107 | AM52: 1.048434415 | AN52: 52.42172075 | AO52: 2.7342 | AP52: 8.6149 | AQ52: 0 | AR52: 0 | AS52: 0
D53: POTÊNCIA DE CONSUMO (kW) | E53: 2000 | U53: 10 | V53: ABRIL | W53: 2024 | X53: ABRIL2024 | AA53: 504.028364 | AC53: 54.25 | AF53: ='[2]Calculos-Dim'!$Y$7 -> 429 | AI53: 0.3278219 | AJ53: 0.35628145 | AK53: 0.5024090421 | AL53: 0.5460252107 | AM53: 1.048434415 | AN53: 52.42172075 | AO53: 2.7342 | AP53: 8.6149 | AQ53: 0 | AR53: 0 | AS53: 0
D54: PERFIL DE CONSUMO | E54: RESIDENCIAL 2 | U54: 11 | V54: MAIO | W54: 2024 | X54: MAIO2024 | AA54: 504.028364 | AC54: 54.25 | AF54: ='[2]Calculos-Dim'!$Y$7 -> 429 | AI54: 0.3278219 | AJ54: 0.35628145 | AK54: 0.5024090421 | AL54: 0.5460252107 | AM54: 1.048434415 | AN54: 52.42172075 | AO54: 2.7342 | AP54: 8.6149 | AQ54: 0 | AR54: 0 | AS54: 0
U55: 12 | V55: JUNHO | W55: 2024 | X55: JUNHO2024 | AA55: 504.028364 | AC55: 54.25 | AF55: ='[2]Calculos-Dim'!$Y$7 -> 429 | AI55: 0.3278219 | AJ55: 0.35628145 | AK55: 0.5024090421 | AL55: 0.5460252107 | AM55: 1.048434415 | AN55: 52.42172075 | AO55: 2.7342 | AP55: 8.6149 | AQ55: 0 | AR55: 0 | AS55: 0
U56: 13 | V56: JULHO | W56: 2024 | X56: JULHO2024 | AA56: 504.028364 | AC56: 54.25 | AF56: ='[2]Calculos-Dim'!$Y$7 -> 429 | AI56: 0.3278219 | AJ56: 0.35628145 | AK56: 0.5024090421 | AL56: 0.5460252107 | AM56: 1.048434415 | AN56: 52.42172075 | AO56: 2.7342 | AP56: 8.6149 | AQ56: 0 | AR56: 0 | AS56: 0
U57: 14 | V57: AGOSTO | W57: 2024 | X57: AGOSTO2024 | AA57: 504.028364 | AC57: 54.25 | AF57: ='[2]Calculos-Dim'!$Y$7 -> 429 | AI57: 0.3278219 | AJ57: 0.35628145 | AK57: 0.5024090421 | AL57: 0.5460252107 | AM57: 1.048434415 | AN57: 52.42172075 | AO57: 2.7342 | AP57: 8.6149 | AQ57: 0 | AR57: 0 | AS57: 0
D58: INSERÇÃO MANUAL DO % DE INJEÇÃO: | U58: 15 | V58: SETEMBRO | W58: 2024 | X58: SETEMBRO2024 | AA58: 504.028364 | AC58: 54.25 | AF58: ='[2]Calculos-Dim'!$Y$7 -> 429 | AI58: 0.3278219 | AJ58: 0.35628145 | AK58: 0.5024090421 | AL58: 0.5460252107 | AM58: 1.048434415 | AN58: 52.42172075 | AO58: 2.7342 | AP58: 8.6149 | AQ58: 0 | AR58: 0 | AS58: 0
U59: 16 | V59: OUTUBRO | W59: 2024 | X59: OUTUBRO2024 | AA59: 504.028364 | AC59: 54.25 | AF59: ='[2]Calculos-Dim'!$Y$7 -> 429 | AI59: 0.3278219 | AJ59: 0.35628145 | AK59: 0.5024090421 | AL59: 0.5460252107 | AM59: 1.048434415 | AN59: 52.42172075 | AO59: 2.7342 | AP59: 8.6149 | AQ59: 0 | AR59: 0 | AS59: 0
U60: 17 | V60: NOVEMBRO | W60: 2024 | X60: NOVEMBRO2024 | AA60: 504.028364 | AC60: 54.25 | AF60: ='[2]Calculos-Dim'!$Y$7 -> 429 | AI60: 0.3278219 | AJ60: 0.35628145 | AK60: 0.5024090421 | AL60: 0.5460252107 | AM60: 1.048434415 | AN60: 52.42172075 | AO60: =IF($W60<>$W59,AO59*(1+$E$46),AO59) -> 2.7342 | AP60: 8.6149 | AQ60: 0 | AR60: 0 | AS60: 0
U61: 18 | V61: DEZEMBRO | W61: 2024 | X61: DEZEMBRO2024 | AA61: 504.028364 | AC61: 54.25 | AF61: ='[2]Calculos-Dim'!$Y$7 -> 429 | AI61: =IF($W61<>$W60,AI60*(1+$E$46),AI60) -> 0.3278219 | AJ61: 0.35628145 | AK61: 0.5024090421 | AL61: 0.5460252107 | AM61: 1.048434415 | AN61: 52.42172075 | AO61: 2.7342 | AP61: 8.6149 | AQ61: 0 | AR61: 0 | AS61: 0
U62: 19 | V62: JANEIRO | W62: 2025 | X62: JANEIRO2025 | AA62: 546.870775 | AC62: 58.86125 | AF62: ='[2]Calculos-Dim'!$Y$7 -> 429 | AI62: 0.3556867615 | AJ62: 0.3865653733 | AK62: 0.5451138107 | AL62: 0.5924373536 | AM62: 1.13755134 | AN62: 56.87756701 | AO62: 2.966607 | AP62: 9.3471665 | AQ62: 0 | AR62: 0 | AS62: 0
D63: CONSUMO REMOTO | U63: 20 | V63: FEVEREIRO | W63: 2025 | X63: FEVEREIRO2025 | AA63: 546.870775 | AC63: 58.86125 | AF63: ='[2]Calculos-Dim'!$Y$7 -> 429 | AI63: 0.3556867615 | AJ63: 0.3865653733 | AK63: 0.5451138107 | AL63: 0.5924373536 | AM63: 1.13755134 | AN63: 56.87756701 | AO63: 2.966607 | AP63: 9.3471665 | AQ63: 0 | AR63: 0 | AS63: 0
D64: QUANTIDADE DE IMÓVEIS QUE VÃO RECEBER ENERGIA MONOFÁSICO | U64: 21 | V64: MARÇO | W64: 2025 | X64: MARÇO2025 | AA64: 546.870775 | AC64: 58.86125 | AF64: ='[2]Calculos-Dim'!$Y$7 -> 429 | AI64: 0.3556867615 | AJ64: 0.3865653733 | AK64: 0.5451138107 | AL64: 0.5924373536 | AM64: 1.13755134 | AN64: 56.87756701 | AO64: 2.966607 | AP64: 9.3471665 | AQ64: 0 | AR64: 0 | AS64: 0
U65: 22 | V65: ABRIL | W65: 2025 | X65: ABRIL2025 | AA65: 546.870775 | AC65: 58.86125 | AF65: ='[2]Calculos-Dim'!$Y$7 -> 429 | AI65: 0.3556867615 | AJ65: 0.3865653733 | AK65: 0.5451138107 | AL65: 0.5924373536 | AM65: 1.13755134 | AN65: 56.87756701 | AO65: 2.966607 | AP65: 9.3471665 | AQ65: 0 | AR65: 0 | AS65: 0
D66: QUANTIDADE DE IMÓVEIS QUE VÃO RECEBER ENERGIA BIFÁSICO | U66: 23 | V66: MAIO | W66: 2025 | X66: MAIO2025 | AA66: 546.870775 | AC66: 58.86125 | AF66: ='[2]Calculos-Dim'!$Y$7 -> 429 | AI66: 0.3556867615 | AJ66: 0.3865653733 | AK66: 0.5451138107 | AL66: 0.5924373536 | AM66: 1.13755134 | AN66: 56.87756701 | AO66: 2.966607 | AP66: 9.3471665 | AQ66: 0 | AR66: 0 | AS66: 0
U67: 24 | V67: JUNHO | W67: 2025 | X67: JUNHO2025 | AA67: 546.870775 | AC67: 58.86125 | AF67: ='[2]Calculos-Dim'!$Y$7 -> 429 | AI67: 0.3556867615 | AJ67: 0.3865653733 | AK67: 0.5451138107 | AL67: 0.5924373536 | AM67: 1.13755134 | AN67: 56.87756701 | AO67: 2.966607 | AP67: 9.3471665 | AQ67: 0 | AR67: 0 | AS67: 0
D68: QUANTIDADE DE IMÓVEIS QUE VÃO RECEBER ENERGIA TRIFÁSICO | U68: 25 | V68: JULHO | W68: 2025 | X68: JULHO2025 | AA68: 546.870775 | AC68: 58.86125 | AF68: ='[2]Calculos-Dim'!$Y$7 -> 429 | AI68: 0.3556867615 | AJ68: 0.3865653733 | AK68: 0.5451138107 | AL68: 0.5924373536 | AM68: 1.13755134 | AN68: 56.87756701 | AO68: 2.966607 | AP68: 9.3471665 | AQ68: 0 | AR68: 0 | AS68: 0
U69: 26 | V69: AGOSTO | W69: 2025 | X69: AGOSTO2025 | AA69: 546.870775 | AC69: 58.86125 | AF69: ='[2]Calculos-Dim'!$Y$7 -> 429 | AI69: 0.3556867615 | AJ69: 0.3865653733 | AK69: 0.5451138107 | AL69: 0.5924373536 | AM69: 1.13755134 | AN69: 56.87756701 | AO69: 2.966607 | AP69: 9.3471665 | AQ69: 0 | AR69: 0 | AS69: 0
U70: 27 | V70: SETEMBRO | W70: 2025 | X70: SETEMBRO2025 | AA70: 546.870775 | AC70: 58.86125 | AF70: ='[2]Calculos-Dim'!$Y$7 -> 429 | AI70: 0.3556867615 | AJ70: 0.3865653733 | AK70: 0.5451138107 | AL70: 0.5924373536 | AM70: 1.13755134 | AN70: 56.87756701 | AO70: 2.966607 | AP70: 9.3471665 | AQ70: 0 | AR70: 0 | AS70: 0
U71: 28 | V71: OUTUBRO | W71: 2025 | X71: OUTUBRO2025 | AA71: 546.870775 | AC71: 58.86125 | AF71: ='[2]Calculos-Dim'!$Y$7 -> 429 | AI71: 0.3556867615 | AJ71: 0.3865653733 | AK71: 0.5451138107 | AL71: 0.5924373536 | AM71: 1.13755134 | AN71: 56.87756701 | AO71: 2.966607 | AP71: 9.3471665 | AQ71: 0 | AR71: 0 | AS71: 0
U72: 29 | V72: NOVEMBRO | W72: 2025 | X72: NOVEMBRO2025 | AA72: 546.870775 | AC72: 58.86125 | AF72: ='[2]Calculos-Dim'!$Y$7 -> 429 | AI72: 0.3556867615 | AJ72: 0.3865653733 | AK72: 0.5451138107 | AL72: 0.5924373536 | AM72: 1.13755134 | AN72: 56.87756701 | AO72: 2.966607 | AP72: 9.3471665 | AQ72: 0 | AR72: 0 | AS72: 0
U73: 30 | V73: DEZEMBRO | W73: 2025 | X73: DEZEMBRO2025 | AA73: 546.870775 | AC73: 58.86125 | AF73: ='[2]Calculos-Dim'!$Y$7 -> 429 | AI73: 0.3556867615 | AJ73: 0.3865653733 | AK73: 0.5451138107 | AL73: 0.5924373536 | AM73: 1.13755134 | AN73: 56.87756701 | AO73: 2.966607 | AP73: 9.3471665 | AQ73: 0 | AR73: 0 | AS73: 0
U74: 31 | V74: JANEIRO | W74: 2026 | X74: JANEIRO2026 | AA74: 593.3547909 | AC74: 63.86445625 | AF74: ='[2]Calculos-Dim'!$Y$7 -> 429 | AI74: 0.3859201362 | AJ74: 0.41942343 | AK74: 0.5914484846 | AL74: 0.6427945287 | AM74: 1.234243204 | AN74: 61.71216021 | AO74: 3.218768595 | AP74: 10.14167565 | AQ74: 0 | AR74: 0 | AS74: 0
U75: 32 | V75: FEVEREIRO | W75: 2026 | X75: FEVEREIRO2026 | AA75: 593.3547909 | AC75: 63.86445625 | AF75: ='[2]Calculos-Dim'!$Y$7 -> 429 | AI75: 0.3859201362 | AJ75: 0.41942343 | AK75: 0.5914484846 | AL75: 0.6427945287 | AM75: 1.234243204 | AN75: 61.71216021 | AO75: 3.218768595 | AP75: 10.14167565 | AQ75: 0 | AR75: 0 | AS75: 0
U76: 33 | V76: MARÇO | W76: 2026 | X76: MARÇO2026 | AA76: 593.3547909 | AC76: 63.86445625 | AF76: ='[2]Calculos-Dim'!$Y$7 -> 429 | AI76: 0.3859201362 | AJ76: 0.41942343 | AK76: 0.5914484846 | AL76: 0.6427945287 | AM76: 1.234243204 | AN76: 61.71216021 | AO76: =IF($W76<>$W75,AO75*(1+$E$46),AO75) -> 3.218768595 | AP76: 10.14167565 | AQ76: 0 | AR76: 0 | AS76: 0
U77: 34 | V77: ABRIL | W77: 2026 | X77: ABRIL2026 | AA77: 593.3547909 | AC77: 63.86445625 | AF77: ='[2]Calculos-Dim'!$Y$7 -> 429 | AI77: =IF($W77<>$W76,AI76*(1+$E$46),AI76) -> 0.3859201362 | AJ77: 0.41942343 | AK77: 0.5914484846 | AL77: 0.6427945287 | AM77: 1.234243204 | AN77: 61.71216021 | AO77: 3.218768595 | AP77: 10.14167565 | AQ77: 0 | AR77: 0 | AS77: 0
U78: 35 | V78: MAIO | W78: 2026 | X78: MAIO2026 | AA78: 593.3547909 | AC78: 63.86445625 | AF78: ='[2]Calculos-Dim'!$Y$7 -> 429 | AI78: 0.3859201362 | AJ78: 0.41942343 | AK78: 0.5914484846 | AL78: 0.6427945287 | AM78: 1.234243204 | AN78: 61.71216021 | AO78: 3.218768595 | AP78: 10.14167565 | AQ78: 0 | AR78: 0 | AS78: 0
U79: 36 | V79: JUNHO | W79: 2026 | X79: JUNHO2026 | AA79: 593.3547909 | AC79: 63.86445625 | AF79: ='[2]Calculos-Dim'!$Y$7 -> 429 | AI79: 0.3859201362 | AJ79: 0.41942343 | AK79: 0.5914484846 | AL79: 0.6427945287 | AM79: 1.234243204 | AN79: 61.71216021 | AO79: 3.218768595 | AP79: 10.14167565 | AQ79: 0 | AR79: 0 | AS79: 0
U80: 37 | V80: JULHO | W80: 2026 | X80: JULHO2026 | AA80: 593.3547909 | AC80: 63.86445625 | AF80: ='[2]Calculos-Dim'!$Y$7 -> 429 | AI80: 0.3859201362 | AJ80: 0.41942343 | AK80: 0.5914484846 | AL80: 0.6427945287 | AM80: 1.234243204 | AN80: 61.71216021 | AO80: 3.218768595 | AP80: 10.14167565 | AQ80: 0 | AR80: 0 | AS80: 0
U81: 38 | V81: AGOSTO | W81: 2026 | X81: AGOSTO2026 | AA81: 593.3547909 | AC81: 63.86445625 | AF81: ='[2]Calculos-Dim'!$Y$7 -> 429 | AI81: 0.3859201362 | AJ81: 0.41942343 | AK81: 0.5914484846 | AL81: 0.6427945287 | AM81: 1.234243204 | AN81: 61.71216021 | AO81: 3.218768595 | AP81: 10.14167565 | AQ81: 0 | AR81: 0 | AS81: 0
U82: 39 | V82: SETEMBRO | W82: 2026 | X82: SETEMBRO2026 | AA82: 593.3547909 | AC82: 63.86445625 | AF82: ='[2]Calculos-Dim'!$Y$7 -> 429 | AI82: 0.3859201362 | AJ82: 0.41942343 | AK82: 0.5914484846 | AL82: 0.6427945287 | AM82: 1.234243204 | AN82: 61.71216021 | AO82: 3.218768595 | AP82: 10.14167565 | AQ82: 0 | AR82: 0 | AS82: 0
U83: 40 | V83: OUTUBRO | W83: 2026 | X83: OUTUBRO2026 | AA83: 593.3547909 | AC83: 63.86445625 | AF83: ='[2]Calculos-Dim'!$Y$7 -> 429 | AI83: 0.3859201362 | AJ83: 0.41942343 | AK83: 0.5914484846 | AL83: 0.6427945287 | AM83: 1.234243204 | AN83: 61.71216021 | AO83: 3.218768595 | AP83: 10.14167565 | AQ83: 0 | AR83: 0 | AS83: 0
U84: 41 | V84: NOVEMBRO | W84: 2026 | X84: NOVEMBRO2026 | AA84: 593.3547909 | AC84: 63.86445625 | AF84: ='[2]Calculos-Dim'!$Y$7 -> 429 | AI84: 0.3859201362 | AJ84: 0.41942343 | AK84: 0.5914484846 | AL84: 0.6427945287 | AM84: 1.234243204 | AN84: 61.71216021 | AO84: 3.218768595 | AP84: 10.14167565 | AQ84: 0 | AR84: 0 | AS84: 0
U85: 42 | V85: DEZEMBRO | W85: 2026 | X85: DEZEMBRO2026 | AA85: 593.3547909 | AC85: 63.86445625 | AF85: ='[2]Calculos-Dim'!$Y$7 -> 429 | AI85: 0.3859201362 | AJ85: 0.41942343 | AK85: 0.5914484846 | AL85: 0.6427945287 | AM85: 1.234243204 | AN85: 61.71216021 | AO85: 3.218768595 | AP85: 10.14167565 | AQ85: 0 | AR85: 0 | AS85: 0
U86: 43 | V86: JANEIRO | W86: 2027 | X86: JANEIRO2027 | AA86: 643.7899481 | AC86: 69.29293503 | AF86: ='[2]Calculos-Dim'!$Y$7 -> 429 | AI86: 0.4187233478 | AJ86: 0.4550744215 | AK86: 0.6417216058 | AL86: 0.6974320636 | AM86: 1.339153877 | AN86: 66.95769383 | AO86: 3.492363926 | AP86: 11.00371808 | AQ86: 0 | AR86: 0 | AS86: 0
U87: 44 | V87: FEVEREIRO | W87: 2027 | X87: FEVEREIRO2027 | AA87: 643.7899481 | AC87: 69.29293503 | AF87: ='[2]Calculos-Dim'!$Y$7 -> 429 | AI87: 0.4187233478 | AJ87: 0.4550744215 | AK87: 0.6417216058 | AL87: 0.6974320636 | AM87: 1.339153877 | AN87: 66.95769383 | AO87: 3.492363926 | AP87: 11.00371808 | AQ87: 0 | AR87: 0 | AS87: 0
U88: 45 | V88: MARÇO | W88: 2027 | X88: MARÇO2027 | AA88: 643.7899481 | AC88: 69.29293503 | AF88: ='[2]Calculos-Dim'!$Y$7 -> 429 | AI88: 0.4187233478 | AJ88: 0.4550744215 | AK88: 0.6417216058 | AL88: 0.6974320636 | AM88: 1.339153877 | AN88: 66.95769383 | AO88: 3.492363926 | AP88: 11.00371808 | AQ88: 0 | AR88: 0 | AS88: 0
U89: 46 | V89: ABRIL | W89: 2027 | X89: ABRIL2027 | AA89: 643.7899481 | AC89: 69.29293503 | AF89: ='[2]Calculos-Dim'!$Y$7 -> 429 | AI89: 0.4187233478 | AJ89: 0.4550744215 | AK89: 0.6417216058 | AL89: 0.6974320636 | AM89: 1.339153877 | AN89: 66.95769383 | AO89: 3.492363926 | AP89: 11.00371808 | AQ89: 0 | AR89: 0 | AS89: 0
U90: 47 | V90: MAIO | W90: 2027 | X90: MAIO2027 | AA90: 643.7899481 | AC90: 69.29293503 | AF90: ='[2]Calculos-Dim'!$Y$7 -> 429 | AI90: 0.4187233478 | AJ90: 0.4550744215 | AK90: 0.6417216058 | AL90: 0.6974320636 | AM90: 1.339153877 | AN90: 66.95769383 | AO90: 3.492363926 | AP90: 11.00371808 | AQ90: 0 | AR90: 0 | AS90: 0
U91: 48 | V91: JUNHO | W91: 2027 | X91: JUNHO2027 | AA91: 643.7899481 | AC91: 69.29293503 | AF91: ='[2]Calculos-Dim'!$Y$7 -> 429 | AI91: 0.4187233478 | AJ91: 0.4550744215 | AK91: 0.6417216058 | AL91: 0.6974320636 | AM91: 1.339153877 | AN91: 66.95769383 | AO91: 3.492363926 | AP91: 11.00371808 | AQ91: 0 | AR91: 0 | AS91: 0
U92: 49 | V92: JULHO | W92: 2027 | X92: JULHO2027 | AA92: 643.7899481 | AC92: 69.29293503 | AF92: ='[2]Calculos-Dim'!$Y$7 -> 429 | AI92: 0.4187233478 | AJ92: 0.4550744215 | AK92: 0.6417216058 | AL92: 0.6974320636 | AM92: 1.339153877 | AN92: 66.95769383 | AO92: =IF($W92<>$W91,AO91*(1+$E$46),AO91) -> 3.492363926 | AP92: 11.00371808 | AQ92: 0 | AR92: 0 | AS92: 0
U93: 50 | V93: AGOSTO | W93: 2027 | X93: AGOSTO2027 | AA93: 643.7899481 | AC93: 69.29293503 | AF93: ='[2]Calculos-Dim'!$Y$7 -> 429 | AI93: =IF($W93<>$W92,AI92*(1+$E$46),AI92) -> 0.4187233478 | AJ93: 0.4550744215 | AK93: 0.6417216058 | AL93: 0.6974320636 | AM93: 1.339153877 | AN93: 66.95769383 | AO93: 3.492363926 | AP93: 11.00371808 | AQ93: 0 | AR93: 0 | AS93: 0
U94: 51 | V94: SETEMBRO | W94: 2027 | X94: SETEMBRO2027 | AA94: 643.7899481 | AC94: 69.29293503 | AF94: ='[2]Calculos-Dim'!$Y$7 -> 429 | AI94: 0.4187233478 | AJ94: 0.4550744215 | AK94: 0.6417216058 | AL94: 0.6974320636 | AM94: 1.339153877 | AN94: 66.95769383 | AO94: 3.492363926 | AP94: 11.00371808 | AQ94: 0 | AR94: 0 | AS94: 0
U95: 52 | V95: OUTUBRO | W95: 2027 | X95: OUTUBRO2027 | AA95: 643.7899481 | AC95: 69.29293503 | AF95: ='[2]Calculos-Dim'!$Y$7 -> 429 | AI95: 0.4187233478 | AJ95: 0.4550744215 | AK95: 0.6417216058 | AL95: 0.6974320636 | AM95: 1.339153877 | AN95: 66.95769383 | AO95: 3.492363926 | AP95: 11.00371808 | AQ95: 0 | AR95: 0 | AS95: 0
U96: 53 | V96: NOVEMBRO | W96: 2027 | X96: NOVEMBRO2027 | AA96: 643.7899481 | AC96: 69.29293503 | AF96: ='[2]Calculos-Dim'!$Y$7 -> 429 | AI96: 0.4187233478 | AJ96: 0.4550744215 | AK96: 0.6417216058 | AL96: 0.6974320636 | AM96: 1.339153877 | AN96: 66.95769383 | AO96: 3.492363926 | AP96: 11.00371808 | AQ96: 0 | AR96: 0 | AS96: 0
U97: 54 | V97: DEZEMBRO | W97: 2027 | X97: DEZEMBRO2027 | AA97: 643.7899481 | AC97: 69.29293503 | AF97: ='[2]Calculos-Dim'!$Y$7 -> 429 | AI97: 0.4187233478 | AJ97: 0.4550744215 | AK97: 0.6417216058 | AL97: 0.6974320636 | AM97: 1.339153877 | AN97: 66.95769383 | AO97: 3.492363926 | AP97: 11.00371808 | AQ97: 0 | AR97: 0 | AS97: 0
U98: 55 | V98: JANEIRO | W98: 2028 | X98: JANEIRO2028 | AA98: 698.5120937 | AC98: 75.18283451 | AF98: ='[2]Calculos-Dim'!$Y$7 -> 429 | AI98: 0.4543148324 | AJ98: 0.4937557474 | AK98: 0.6962679423 | AL98: 0.756713789 | AM98: 1.452981956 | AN98: 72.6490978 | AO98: 3.789214859 | AP98: 11.93903412 | AQ98: 0 | AR98: 0 | AS98: 0
U99: 56 | V99: FEVEREIRO | W99: 2028 | X99: FEVEREIRO2028 | AA99: 698.5120937 | AC99: 75.18283451 | AF99: ='[2]Calculos-Dim'!$Y$7 -> 429 | AI99: 0.4543148324 | AJ99: 0.4937557474 | AK99: 0.6962679423 | AL99: 0.756713789 | AM99: 1.452981956 | AN99: 72.6490978 | AO99: 3.789214859 | AP99: 11.93903412 | AQ99: 0 | AR99: 0 | AS99: 0
U100: 57 | V100: MARÇO | W100: 2028 | X100: MARÇO2028 | AA100: 698.5120937 | AC100: 75.18283451 | AF100: ='[2]Calculos-Dim'!$Y$7 -> 429 | AI100: 0.4543148324 | AJ100: 0.4937557474 | AK100: 0.6962679423 | AL100: 0.756713789 | AM100: 1.452981956 | AN100: 72.6490978 | AO100: 3.789214859 | AP100: 11.93903412 | AQ100: 0 | AR100: 0 | AS100: 0
U101: 58 | V101: ABRIL | W101: 2028 | X101: ABRIL2028 | AA101: 698.5120937 | AC101: 75.18283451 | AF101: ='[2]Calculos-Dim'!$Y$7 -> 429 | AI101: 0.4543148324 | AJ101: 0.4937557474 | AK101: 0.6962679423 | AL101: 0.756713789 | AM101: 1.452981956 | AN101: 72.6490978 | AO101: 3.789214859 | AP101: 11.93903412 | AQ101: 0 | AR101: 0 | AS101: 0
U102: 59 | V102: MAIO | W102: 2028 | X102: MAIO2028 | AA102: 698.5120937 | AC102: 75.18283451 | AF102: ='[2]Calculos-Dim'!$Y$7 -> 429 | AI102: 0.4543148324 | AJ102: 0.4937557474 | AK102: 0.6962679423 | AL102: 0.756713789 | AM102: 1.452981956 | AN102: 72.6490978 | AO102: 3.789214859 | AP102: 11.93903412 | AQ102: 0 | AR102: 0 | AS102: 0
U103: 60 | V103: JUNHO | W103: 2028 | X103: JUNHO2028 | AA103: 698.5120937 | AC103: 75.18283451 | AF103: ='[2]Calculos-Dim'!$Y$7 -> 429 | AI103: 0.4543148324 | AJ103: 0.4937557474 | AK103: 0.6962679423 | AL103: 0.756713789 | AM103: 1.452981956 | AN103: 72.6490978 | AO103: 3.789214859 | AP103: 11.93903412 | AQ103: 0 | AR103: 0 | AS103: 0
U104: 61 | V104: JULHO | W104: 2028 | X104: JULHO2028 | AA104: 698.5120937 | AC104: 75.18283451 | AF104: ='[2]Calculos-Dim'!$Y$7 -> 429 | AI104: 0.4543148324 | AJ104: 0.4937557474 | AK104: 0.6962679423 | AL104: 0.756713789 | AM104: 1.452981956 | AN104: 72.6490978 | AO104: 3.789214859 | AP104: 11.93903412 | AQ104: 0 | AR104: 0 | AS104: 0
U105: 62 | V105: AGOSTO | W105: 2028 | X105: AGOSTO2028 | AA105: 698.5120937 | AC105: 75.18283451 | AF105: ='[2]Calculos-Dim'!$Y$7 -> 429 | AI105: 0.4543148324 | AJ105: 0.4937557474 | AK105: 0.6962679423 | AL105: 0.756713789 | AM105: 1.452981956 | AN105: 72.6490978 | AO105: 3.789214859 | AP105: 11.93903412 | AQ105: 0 | AR105: 0 | AS105: 0
U106: 63 | V106: SETEMBRO | W106: 2028 | X106: SETEMBRO2028 | AA106: 698.5120937 | AC106: 75.18283451 | AF106: ='[2]Calculos-Dim'!$Y$7 -> 429 | AI106: 0.4543148324 | AJ106: 0.4937557474 | AK106: 0.6962679423 | AL106: 0.756713789 | AM106: 1.452981956 | AN106: 72.6490978 | AO106: 3.789214859 | AP106: 11.93903412 | AQ106: 0 | AR106: 0 | AS106: 0
U107: 64 | V107: OUTUBRO | W107: 2028 | X107: OUTUBRO2028 | AA107: 698.5120937 | AC107: 75.18283451 | AF107: ='[2]Calculos-Dim'!$Y$7 -> 429 | AI107: 0.4543148324 | AJ107: 0.4937557474 | AK107: 0.6962679423 | AL107: 0.756713789 | AM107: 1.452981956 | AN107: =AM107*VLOOKUP($E$49,$AA$24:$AC$26,3,) -> 72.6490978 | AO107: 3.789214859 | AP107: 11.93903412 | AQ107: 0 | AR107: 0 | AS107: 0
U108: 65 | V108: =UPPER(TEXT(EDATE($H$35,U108),"MMMM")) -> NOVEMBRO | W108: =IF(V107=$V$35,W107+1,W107) -> 2028 | X108: =V108&W108 -> NOVEMBRO2028 | AA108: 698.5120937 | AC108: 75.18283451 | AF108: ='[2]Calculos-Dim'!$Y$7 -> 429 | AI108: 0.4543148324 | AJ108: 0.4937557474 | AK108: 0.6962679423 | AL108: 0.756713789 | AM108: 1.452981956 | AN108: 72.6490978 | AO108: =IF($W108<>$W107,AO107*(1+$E$46),AO107) -> 3.789214859 | AP108: 11.93903412 | AQ108: =IF(E115="sim",IF(E116="sim",AP108*AR108,AO108*AR108),0) -> 0 | AR108: =IF($E$52>$E$53,$E$52-$E$53,0) -> 0 | AS108: =(AQ108/(1-$I$3)-AQ108)*$J$7+(AQ108/(1-$I$4)-AQ108)+(AQ108/(1-$I$5)-AQ108)+AQ108 -> 0
U109: 66 | V109: DEZEMBRO | W109: 2028 | X109: DEZEMBRO2028 | AA109: =AF109*AM109+AC109 -> 698.5120937 | AC109: =IF(W109<>W108,AC108*(1+$E$46),AC108) -> 75.18283451 | AF109: ='[2]Calculos-Dim'!$Y$7 -> 429 | AI109: =IF($W109<>$W108,AI108*(1+$E$46),AI108) -> 0.4543148324 | AJ109: 0.4937557474 | AK109: 0.6962679423 | AL109: 0.756713789 | AM109: 1.452981956 | AN109: 72.6490978 | AO109: 3.789214859 | AP109: 11.93903412 | AQ109: 0 | AR109: 0 | AS109: 0
U110: 67 | V110: JANEIRO | W110: 2029 | X110: JANEIRO2029 | AA110: 757.8856216 | AC110: 81.57337544 | AF110: ='[2]Calculos-Dim'!$Y$7 -> 429 | AI110: 0.4929315931 | AJ110: 0.5357249859 | AK110: 0.7554507174 | AL110: 0.8210344611 | AM110: 1.576485422 | AN110: 78.82427112 | AO110: 4.111298122 | AP110: 12.95385202 | AQ110: 0 | AR110: 0 | AS110: 0
U111: 68 | V111: FEVEREIRO | W111: 2029 | X111: FEVEREIRO2029 | AA111: 757.8856216 | AC111: 81.57337544 | AF111: ='[2]Calculos-Dim'!$Y$7 -> 429 | AI111: 0.4929315931 | AJ111: 0.5357249859 | AK111: 0.7554507174 | AL111: 0.8210344611 | AM111: 1.576485422 | AN111: 78.82427112 | AO111: 4.111298122 | AP111: 12.95385202 | AQ111: 0 | AR111: 0 | AS111: 0
U112: 69 | V112: MARÇO | W112: 2029 | X112: MARÇO2029 | AA112: 757.8856216 | AC112: 81.57337544 | AF112: ='[2]Calculos-Dim'!$Y$7 -> 429 | AI112: 0.4929315931 | AJ112: 0.5357249859 | AK112: 0.7554507174 | AL112: 0.8210344611 | AM112: 1.576485422 | AN112: 78.82427112 | AO112: 4.111298122 | AP112: 12.95385202 | AQ112: 0 | AR112: 0 | AS112: 0
U113: 70 | V113: ABRIL | W113: 2029 | X113: ABRIL2029 | AA113: 757.8856216 | AC113: 81.57337544 | AF113: ='[2]Calculos-Dim'!$Y$7 -> 429 | AI113: 0.4929315931 | AJ113: 0.5357249859 | AK113: 0.7554507174 | AL113: 0.8210344611 | AM113: 1.576485422 | AN113: 78.82427112 | AO113: 4.111298122 | AP113: 12.95385202 | AQ113: 0 | AR113: 0 | AS113: 0
U114: 71 | V114: MAIO | W114: 2029 | X114: MAIO2029 | AA114: 757.8856216 | AC114: 81.57337544 | AF114: ='[2]Calculos-Dim'!$Y$7 -> 429 | AI114: 0.4929315931 | AJ114: 0.5357249859 | AK114: 0.7554507174 | AL114: 0.8210344611 | AM114: 1.576485422 | AN114: 78.82427112 | AO114: 4.111298122 | AP114: 12.95385202 | AQ114: 0 | AR114: 0 | AS114: 0
U115: 72 | V115: JUNHO | W115: 2029 | X115: JUNHO2029 | AA115: 757.8856216 | AC115: 81.57337544 | AF115: ='[2]Calculos-Dim'!$Y$7 -> 429 | AI115: 0.4929315931 | AJ115: 0.5357249859 | AK115: 0.7554507174 | AL115: 0.8210344611 | AM115: 1.576485422 | AN115: 78.82427112 | AO115: 4.111298122 | AP115: 12.95385202 | AQ115: 0 | AR115: 0 | AS115: 0
U116: 73 | V116: JULHO | W116: 2029 | X116: JULHO2029 | AA116: 757.8856216 | AC116: 81.57337544 | AF116: ='[2]Calculos-Dim'!$Y$7 -> 429 | AI116: 0.4929315931 | AJ116: 0.5357249859 | AK116: 0.7554507174 | AL116: 0.8210344611 | AM116: 1.576485422 | AN116: 78.82427112 | AO116: 4.111298122 | AP116: 12.95385202 | AQ116: 0 | AR116: 0 | AS116: 0
U117: 74 | V117: AGOSTO | W117: 2029 | X117: AGOSTO2029 | AA117: 757.8856216 | AC117: 81.57337544 | AF117: ='[2]Calculos-Dim'!$Y$7 -> 429 | AI117: 0.4929315931 | AJ117: 0.5357249859 | AK117: 0.7554507174 | AL117: 0.8210344611 | AM117: 1.576485422 | AN117: 78.82427112 | AO117: 4.111298122 | AP117: 12.95385202 | AQ117: 0 | AR117: 0 | AS117: 0
U118: 75 | V118: SETEMBRO | W118: 2029 | X118: SETEMBRO2029 | AA118: 757.8856216 | AC118: 81.57337544 | AF118: ='[2]Calculos-Dim'!$Y$7 -> 429 | AI118: 0.4929315931 | AJ118: 0.5357249859 | AK118: 0.7554507174 | AL118: 0.8210344611 | AM118: 1.576485422 | AN118: 78.82427112 | AO118: 4.111298122 | AP118: 12.95385202 | AQ118: 0 | AR118: 0 | AS118: 0
U119: 76 | V119: OUTUBRO | W119: 2029 | X119: OUTUBRO2029 | AA119: 757.8856216 | AC119: 81.57337544 | AF119: ='[2]Calculos-Dim'!$Y$7 -> 429 | AI119: 0.4929315931 | AJ119: 0.5357249859 | AK119: 0.7554507174 | AL119: 0.8210344611 | AM119: 1.576485422 | AN119: 78.82427112 | AO119: 4.111298122 | AP119: 12.95385202 | AQ119: 0 | AR119: 0 | AS119: 0
U120: 77 | V120: NOVEMBRO | W120: 2029 | X120: NOVEMBRO2029 | AA120: 757.8856216 | AC120: 81.57337544 | AF120: ='[2]Calculos-Dim'!$Y$7 -> 429 | AI120: 0.4929315931 | AJ120: 0.5357249859 | AK120: 0.7554507174 | AL120: 0.8210344611 | AM120: 1.576485422 | AN120: 78.82427112 | AO120: 4.111298122 | AP120: 12.95385202 | AQ120: 0 | AR120: 0 | AS120: 0
U121: 78 | V121: DEZEMBRO | W121: 2029 | X121: DEZEMBRO2029 | AA121: 757.8856216 | AC121: 81.57337544 | AF121: ='[2]Calculos-Dim'!$Y$7 -> 429 | AI121: 0.4929315931 | AJ121: 0.5357249859 | AK121: 0.7554507174 | AL121: 0.8210344611 | AM121: 1.576485422 | AN121: 78.82427112 | AO121: 4.111298122 | AP121: 12.95385202 | AQ121: 0 | AR121: 0 | AS121: 0
U122: 79 | V122: JANEIRO | W122: 2030 | X122: JANEIRO2030 | AA122: 822.3058995 | AC122: 88.50711235 | AF122: ='[2]Calculos-Dim'!$Y$7 -> 429 | AI122: 0.5348307785 | AJ122: 0.5812616097 | AK122: 0.8196640284 | AL122: 0.8908223903 | AM122: 1.710486683 | AN122: 85.52433416 | AO122: 4.460758463 | AP122: 14.05492944 | AQ122: 0 | AR122: 0 | AS122: 0
U123: 80 | V123: FEVEREIRO | W123: 2030 | X123: FEVEREIRO2030 | AA123: 822.3058995 | AC123: 88.50711235 | AF123: ='[2]Calculos-Dim'!$Y$7 -> 429 | AI123: 0.5348307785 | AJ123: 0.5812616097 | AK123: 0.8196640284 | AL123: 0.8908223903 | AM123: 1.710486683 | AN123: 85.52433416 | AO123: 4.460758463 | AP123: 14.05492944 | AQ123: 0 | AR123: 0 | AS123: 0
U124: 81 | V124: MARÇO | W124: 2030 | X124: MARÇO2030 | AA124: 822.3058995 | AC124: 88.50711235 | AF124: ='[2]Calculos-Dim'!$Y$7 -> 429 | AI124: 0.5348307785 | AJ124: 0.5812616097 | AK124: 0.8196640284 | AL124: 0.8908223903 | AM124: 1.710486683 | AN124: 85.52433416 | AO124: =IF($W124<>$W123,AO123*(1+$E$46),AO123) -> 4.460758463 | AP124: 14.05492944 | AQ124: 0 | AR124: 0 | AS124: 0
U125: 82 | V125: ABRIL | W125: 2030 | X125: ABRIL2030 | AA125: 822.3058995 | AC125: 88.50711235 | AF125: ='[2]Calculos-Dim'!$Y$7 -> 429 | AI125: =IF($W125<>$W124,AI124*(1+$E$46),AI124) -> 0.5348307785 | AJ125: 0.5812616097 | AK125: 0.8196640284 | AL125: 0.8908223903 | AM125: 1.710486683 | AN125: 85.52433416 | AO125: 4.460758463 | AP125: 14.05492944 | AQ125: 0 | AR125: 0 | AS125: 0
U126: 83 | V126: MAIO | W126: 2030 | X126: MAIO2030 | AA126: 822.3058995 | AC126: 88.50711235 | AF126: ='[2]Calculos-Dim'!$Y$7 -> 429 | AI126: 0.5348307785 | AJ126: 0.5812616097 | AK126: 0.8196640284 | AL126: 0.8908223903 | AM126: 1.710486683 | AN126: 85.52433416 | AO126: 4.460758463 | AP126: 14.05492944 | AQ126: 0 | AR126: 0 | AS126: 0
U127: 84 | V127: JUNHO | W127: 2030 | X127: JUNHO2030 | AA127: 822.3058995 | AC127: 88.50711235 | AF127: ='[2]Calculos-Dim'!$Y$7 -> 429 | AI127: 0.5348307785 | AJ127: 0.5812616097 | AK127: 0.8196640284 | AL127: 0.8908223903 | AM127: 1.710486683 | AN127: 85.52433416 | AO127: 4.460758463 | AP127: 14.05492944 | AQ127: 0 | AR127: 0 | AS127: 0
U128: 85 | V128: JULHO | W128: 2030 | X128: JULHO2030 | AA128: 822.3058995 | AC128: 88.50711235 | AF128: ='[2]Calculos-Dim'!$Y$7 -> 429 | AI128: 0.5348307785 | AJ128: 0.5812616097 | AK128: 0.8196640284 | AL128: 0.8908223903 | AM128: 1.710486683 | AN128: 85.52433416 | AO128: 4.460758463 | AP128: 14.05492944 | AQ128: 0 | AR128: 0 | AS128: 0
U129: 86 | V129: AGOSTO | W129: 2030 | X129: AGOSTO2030 | AA129: 822.3058995 | AC129: 88.50711235 | AF129: ='[2]Calculos-Dim'!$Y$7 -> 429 | AI129: 0.5348307785 | AJ129: 0.5812616097 | AK129: 0.8196640284 | AL129: 0.8908223903 | AM129: 1.710486683 | AN129: 85.52433416 | AO129: 4.460758463 | AP129: 14.05492944 | AQ129: 0 | AR129: 0 | AS129: 0
U130: 87 | V130: SETEMBRO | W130: 2030 | X130: SETEMBRO2030 | AA130: 822.3058995 | AC130: 88.50711235 | AF130: ='[2]Calculos-Dim'!$Y$7 -> 429 | AI130: 0.5348307785 | AJ130: 0.5812616097 | AK130: 0.8196640284 | AL130: 0.8908223903 | AM130: 1.710486683 | AN130: 85.52433416 | AO130: 4.460758463 | AP130: 14.05492944 | AQ130: 0 | AR130: 0 | AS130: 0
U131: 88 | V131: OUTUBRO | W131: 2030 | X131: OUTUBRO2030 | AA131: 822.3058995 | AC131: 88.50711235 | AF131: ='[2]Calculos-Dim'!$Y$7 -> 429 | AI131: 0.5348307785 | AJ131: 0.5812616097 | AK131: 0.8196640284 | AL131: 0.8908223903 | AM131: 1.710486683 | AN131: 85.52433416 | AO131: 4.460758463 | AP131: 14.05492944 | AQ131: 0 | AR131: 0 | AS131: 0
U132: 89 | V132: NOVEMBRO | W132: 2030 | X132: NOVEMBRO2030 | AA132: 822.3058995 | AC132: 88.50711235 | AF132: ='[2]Calculos-Dim'!$Y$7 -> 429 | AI132: 0.5348307785 | AJ132: 0.5812616097 | AK132: 0.8196640284 | AL132: 0.8908223903 | AM132: 1.710486683 | AN132: 85.52433416 | AO132: 4.460758463 | AP132: 14.05492944 | AQ132: 0 | AR132: 0 | AS132: 0
U133: 90 | V133: DEZEMBRO | W133: 2030 | X133: DEZEMBRO2030 | AA133: 822.3058995 | AC133: 88.50711235 | AF133: ='[2]Calculos-Dim'!$Y$7 -> 429 | AI133: 0.5348307785 | AJ133: 0.5812616097 | AK133: 0.8196640284 | AL133: 0.8908223903 | AM133: 1.710486683 | AN133: 85.52433416 | AO133: 4.460758463 | AP133: 14.05492944 | AQ133: 0 | AR133: 0 | AS133: 0
U134: 91 | V134: JANEIRO | W134: 2031 | X134: JANEIRO2031 | AA134: 892.2019009 | AC134: 96.0302169 | AF134: ='[2]Calculos-Dim'!$Y$7 -> 429 | AI134: 0.5802913947 | AJ134: 0.6306688465 | AK134: 0.8893354708 | AL134: 0.9665422935 | AM134: 1.855878051 | AN134: 92.79390256 | AO134: 4.839922932 | AP134: 15.24959844 | AQ134: 0 | AR134: 0 | AS134: 0
U135: 92 | V135: FEVEREIRO | W135: 2031 | X135: FEVEREIRO2031 | AA135: 892.2019009 | AC135: 96.0302169 | AF135: ='[2]Calculos-Dim'!$Y$7 -> 429 | AI135: 0.5802913947 | AJ135: 0.6306688465 | AK135: 0.8893354708 | AL135: 0.9665422935 | AM135: 1.855878051 | AN135: 92.79390256 | AO135: 4.839922932 | AP135: 15.24959844 | AQ135: 0 | AR135: 0 | AS135: 0
U136: 93 | V136: MARÇO | W136: 2031 | X136: MARÇO2031 | AA136: 892.2019009 | AC136: 96.0302169 | AF136: ='[2]Calculos-Dim'!$Y$7 -> 429 | AI136: 0.5802913947 | AJ136: 0.6306688465 | AK136: 0.8893354708 | AL136: 0.9665422935 | AM136: 1.855878051 | AN136: 92.79390256 | AO136: 4.839922932 | AP136: 15.24959844 | AQ136: 0 | AR136: 0 | AS136: 0
U137: 94 | V137: ABRIL | W137: 2031 | X137: ABRIL2031 | AA137: 892.2019009 | AC137: 96.0302169 | AF137: ='[2]Calculos-Dim'!$Y$7 -> 429 | AI137: 0.5802913947 | AJ137: 0.6306688465 | AK137: 0.8893354708 | AL137: 0.9665422935 | AM137: 1.855878051 | AN137: 92.79390256 | AO137: 4.839922932 | AP137: 15.24959844 | AQ137: 0 | AR137: 0 | AS137: 0
U138: 95 | V138: MAIO | W138: 2031 | X138: MAIO2031 | AA138: 892.2019009 | AC138: 96.0302169 | AF138: ='[2]Calculos-Dim'!$Y$7 -> 429 | AI138: 0.5802913947 | AJ138: 0.6306688465 | AK138: 0.8893354708 | AL138: 0.9665422935 | AM138: 1.855878051 | AN138: 92.79390256 | AO138: 4.839922932 | AP138: 15.24959844 | AQ138: 0 | AR138: 0 | AS138: 0
U139: 96 | V139: JUNHO | W139: 2031 | X139: JUNHO2031 | AA139: 892.2019009 | AC139: 96.0302169 | AF139: ='[2]Calculos-Dim'!$Y$7 -> 429 | AI139: 0.5802913947 | AJ139: 0.6306688465 | AK139: 0.8893354708 | AL139: 0.9665422935 | AM139: 1.855878051 | AN139: 92.79390256 | AO139: 4.839922932 | AP139: 15.24959844 | AQ139: 0 | AR139: 0 | AS139: 0
U140: 97 | V140: JULHO | W140: 2031 | X140: JULHO2031 | AA140: 892.2019009 | AC140: 96.0302169 | AF140: ='[2]Calculos-Dim'!$Y$7 -> 429 | AI140: 0.5802913947 | AJ140: 0.6306688465 | AK140: 0.8893354708 | AL140: 0.9665422935 | AM140: 1.855878051 | AN140: 92.79390256 | AO140: =IF($W140<>$W139,AO139*(1+$E$46),AO139) -> 4.839922932 | AP140: 15.24959844 | AQ140: 0 | AR140: 0 | AS140: 0
U141: 98 | V141: AGOSTO | W141: 2031 | X141: AGOSTO2031 | AA141: 892.2019009 | AC141: 96.0302169 | AF141: ='[2]Calculos-Dim'!$Y$7 -> 429 | AI141: =IF($W141<>$W140,AI140*(1+$E$46),AI140) -> 0.5802913947 | AJ141: 0.6306688465 | AK141: 0.8893354708 | AL141: 0.9665422935 | AM141: 1.855878051 | AN141: 92.79390256 | AO141: 4.839922932 | AP141: 15.24959844 | AQ141: 0 | AR141: 0 | AS141: 0
U142: 99 | V142: SETEMBRO | W142: 2031 | X142: SETEMBRO2031 | AA142: 892.2019009 | AC142: 96.0302169 | AF142: ='[2]Calculos-Dim'!$Y$7 -> 429 | AI142: 0.5802913947 | AJ142: 0.6306688465 | AK142: 0.8893354708 | AL142: 0.9665422935 | AM142: 1.855878051 | AN142: 92.79390256 | AO142: 4.839922932 | AP142: 15.24959844 | AQ142: 0 | AR142: 0 | AS142: 0
U143: 100 | V143: OUTUBRO | W143: 2031 | X143: OUTUBRO2031 | AA143: 892.2019009 | AC143: 96.0302169 | AF143: ='[2]Calculos-Dim'!$Y$7 -> 429 | AI143: 0.5802913947 | AJ143: 0.6306688465 | AK143: 0.8893354708 | AL143: 0.9665422935 | AM143: 1.855878051 | AN143: 92.79390256 | AO143: 4.839922932 | AP143: 15.24959844 | AQ143: 0 | AR143: 0 | AS143: 0
U144: 101 | V144: NOVEMBRO | W144: 2031 | X144: NOVEMBRO2031 | AA144: 892.2019009 | AC144: 96.0302169 | AF144: ='[2]Calculos-Dim'!$Y$7 -> 429 | AI144: 0.5802913947 | AJ144: 0.6306688465 | AK144: 0.8893354708 | AL144: 0.9665422935 | AM144: 1.855878051 | AN144: 92.79390256 | AO144: 4.839922932 | AP144: 15.24959844 | AQ144: 0 | AR144: 0 | AS144: 0
U145: 102 | V145: DEZEMBRO | W145: 2031 | X145: DEZEMBRO2031 | AA145: 892.2019009 | AC145: 96.0302169 | AF145: ='[2]Calculos-Dim'!$Y$7 -> 429 | AI145: 0.5802913947 | AJ145: 0.6306688465 | AK145: 0.8893354708 | AL145: 0.9665422935 | AM145: 1.855878051 | AN145: 92.79390256 | AO145: 4.839922932 | AP145: 15.24959844 | AQ145: 0 | AR145: 0 | AS145: 0
U146: 103 | V146: JANEIRO | W146: 2032 | X146: JANEIRO2032 | AA146: 968.0390625 | AC146: 104.1927853 | AF146: ='[2]Calculos-Dim'!$Y$7 -> 429 | AI146: 0.6296161633 | AJ146: 0.6842756985 | AK146: 0.9649289858 | AL146: 1.048698388 | AM146: 2.013627686 | AN146: 100.6813843 | AO146: 5.251316381 | AP146: 16.54581431 | AQ146: 0 | AR146: 0 | AS146: 0
U147: 104 | V147: FEVEREIRO | W147: 2032 | X147: FEVEREIRO2032 | AA147: 968.0390625 | AC147: 104.1927853 | AF147: ='[2]Calculos-Dim'!$Y$7 -> 429 | AI147: 0.6296161633 | AJ147: 0.6842756985 | AK147: 0.9649289858 | AL147: 1.048698388 | AM147: 2.013627686 | AN147: 100.6813843 | AO147: 5.251316381 | AP147: 16.54581431 | AQ147: 0 | AR147: 0 | AS147: 0
U148: 105 | V148: MARÇO | W148: 2032 | X148: MARÇO2032 | AA148: 968.0390625 | AC148: 104.1927853 | AF148: ='[2]Calculos-Dim'!$Y$7 -> 429 | AI148: 0.6296161633 | AJ148: 0.6842756985 | AK148: 0.9649289858 | AL148: 1.048698388 | AM148: 2.013627686 | AN148: 100.6813843 | AO148: 5.251316381 | AP148: 16.54581431 | AQ148: 0 | AR148: 0 | AS148: 0
U149: 106 | V149: ABRIL | W149: 2032 | X149: ABRIL2032 | AA149: 968.0390625 | AC149: 104.1927853 | AF149: ='[2]Calculos-Dim'!$Y$7 -> 429 | AI149: 0.6296161633 | AJ149: 0.6842756985 | AK149: 0.9649289858 | AL149: 1.048698388 | AM149: 2.013627686 | AN149: 100.6813843 | AO149: 5.251316381 | AP149: 16.54581431 | AQ149: 0 | AR149: 0 | AS149: 0
U150: 107 | V150: MAIO | W150: 2032 | X150: MAIO2032 | AA150: 968.0390625 | AC150: 104.1927853 | AF150: ='[2]Calculos-Dim'!$Y$7 -> 429 | AI150: 0.6296161633 | AJ150: 0.6842756985 | AK150: 0.9649289858 | AL150: 1.048698388 | AM150: 2.013627686 | AN150: 100.6813843 | AO150: 5.251316381 | AP150: 16.54581431 | AQ150: 0 | AR150: 0 | AS150: 0
U151: 108 | V151: JUNHO | W151: 2032 | X151: JUNHO2032 | AA151: 968.0390625 | AC151: 104.1927853 | AF151: ='[2]Calculos-Dim'!$Y$7 -> 429 | AI151: 0.6296161633 | AJ151: 0.6842756985 | AK151: 0.9649289858 | AL151: 1.048698388 | AM151: 2.013627686 | AN151: 100.6813843 | AO151: 5.251316381 | AP151: 16.54581431 | AQ151: 0 | AR151: 0 | AS151: 0
U152: 109 | V152: JULHO | W152: 2032 | X152: JULHO2032 | AA152: 968.0390625 | AC152: 104.1927853 | AF152: ='[2]Calculos-Dim'!$Y$7 -> 429 | AI152: 0.6296161633 | AJ152: 0.6842756985 | AK152: 0.9649289858 | AL152: 1.048698388 | AM152: 2.013627686 | AN152: 100.6813843 | AO152: 5.251316381 | AP152: 16.54581431 | AQ152: 0 | AR152: 0 | AS152: 0
U153: 110 | V153: AGOSTO | W153: 2032 | X153: AGOSTO2032 | AA153: 968.0390625 | AC153: 104.1927853 | AF153: ='[2]Calculos-Dim'!$Y$7 -> 429 | AI153: 0.6296161633 | AJ153: 0.6842756985 | AK153: 0.9649289858 | AL153: 1.048698388 | AM153: 2.013627686 | AN153: 100.6813843 | AO153: 5.251316381 | AP153: 16.54581431 | AQ153: 0 | AR153: 0 | AS153: 0
U154: 111 | V154: SETEMBRO | W154: 2032 | X154: SETEMBRO2032 | AA154: 968.0390625 | AC154: 104.1927853 | AF154: ='[2]Calculos-Dim'!$Y$7 -> 429 | AI154: 0.6296161633 | AJ154: 0.6842756985 | AK154: 0.9649289858 | AL154: 1.048698388 | AM154: 2.013627686 | AN154: 100.6813843 | AO154: 5.251316381 | AP154: 16.54581431 | AQ154: 0 | AR154: 0 | AS154: 0
U155: 112 | V155: OUTUBRO | W155: 2032 | X155: OUTUBRO2032 | AA155: 968.0390625 | AC155: 104.1927853 | AF155: ='[2]Calculos-Dim'!$Y$7 -> 429 | AI155: 0.6296161633 | AJ155: 0.6842756985 | AK155: 0.9649289858 | AL155: 1.048698388 | AM155: 2.013627686 | AN155: 100.6813843 | AO155: 5.251316381 | AP155: 16.54581431 | AQ155: 0 | AR155: 0 | AS155: 0
U156: 113 | V156: NOVEMBRO | W156: 2032 | X156: NOVEMBRO2032 | AA156: 968.0390625 | AC156: 104.1927853 | AF156: ='[2]Calculos-Dim'!$Y$7 -> 429 | AI156: 0.6296161633 | AJ156: 0.6842756985 | AK156: 0.9649289858 | AL156: 1.048698388 | AM156: 2.013627686 | AN156: 100.6813843 | AO156: =IF($W156<>$W155,AO155*(1+$E$46),AO155) -> 5.251316381 | AP156: 16.54581431 | AQ156: 0 | AR156: 0 | AS156: 0
U157: 114 | V157: DEZEMBRO | W157: 2032 | X157: DEZEMBRO2032 | AA157: 968.0390625 | AC157: 104.1927853 | AF157: ='[2]Calculos-Dim'!$Y$7 -> 429 | AI157: =IF($W157<>$W156,AI156*(1+$E$46),AI156) -> 0.6296161633 | AJ157: 0.6842756985 | AK157: 0.9649289858 | AL157: 1.048698388 | AM157: 2.013627686 | AN157: 100.6813843 | AO157: 5.251316381 | AP157: 16.54581431 | AQ157: 0 | AR157: 0 | AS157: 0
U158: 115 | V158: JANEIRO | W158: 2033 | X158: JANEIRO2033 | AA158: 1050.322383 | AC158: 113.0491721 | AF158: ='[2]Calculos-Dim'!$Y$7 -> 429 | AI158: 0.6831335371 | AJ158: 0.7424391328 | AK158: 1.04694795 | AL158: 1.137837751 | AM158: 2.184786039 | AN158: 109.2393019 | AO158: 5.697678274 | AP158: 17.95220853 | AQ158: 0 | AR158: 0 | AS158: 0
U159: 116 | V159: FEVEREIRO | W159: 2033 | X159: FEVEREIRO2033 | AA159: 1050.322383 | AC159: 113.0491721 | AF159: ='[2]Calculos-Dim'!$Y$7 -> 429 | AI159: 0.6831335371 | AJ159: 0.7424391328 | AK159: 1.04694795 | AL159: 1.137837751 | AM159: 2.184786039 | AN159: 109.2393019 | AO159: 5.697678274 | AP159: 17.95220853 | AQ159: 0 | AR159: 0 | AS159: 0
U160: 117 | V160: MARÇO | W160: 2033 | X160: MARÇO2033 | AA160: 1050.322383 | AC160: 113.0491721 | AF160: ='[2]Calculos-Dim'!$Y$7 -> 429 | AI160: 0.6831335371 | AJ160: 0.7424391328 | AK160: 1.04694795 | AL160: 1.137837751 | AM160: 2.184786039 | AN160: 109.2393019 | AO160: 5.697678274 | AP160: 17.95220853 | AQ160: 0 | AR160: 0 | AS160: 0
U161: 118 | V161: ABRIL | W161: 2033 | X161: ABRIL2033 | AA161: 1050.322383 | AC161: 113.0491721 | AF161: ='[2]Calculos-Dim'!$Y$7 -> 429 | AI161: 0.6831335371 | AJ161: 0.7424391328 | AK161: 1.04694795 | AL161: 1.137837751 | AM161: 2.184786039 | AN161: 109.2393019 | AO161: 5.697678274 | AP161: 17.95220853 | AQ161: 0 | AR161: 0 | AS161: 0
U162: 119 | V162: MAIO | W162: 2033 | X162: MAIO2033 | AA162: 1050.322383 | AC162: 113.0491721 | AF162: ='[2]Calculos-Dim'!$Y$7 -> 429 | AI162: 0.6831335371 | AJ162: 0.7424391328 | AK162: 1.04694795 | AL162: 1.137837751 | AM162: 2.184786039 | AN162: 109.2393019 | AO162: 5.697678274 | AP162: 17.95220853 | AQ162: 0 | AR162: 0 | AS162: 0
U163: 120 | V163: JUNHO | W163: 2033 | X163: JUNHO2033 | AA163: 1050.322383 | AC163: 113.0491721 | AF163: ='[2]Calculos-Dim'!$Y$7 -> 429 | AI163: 0.6831335371 | AJ163: 0.7424391328 | AK163: 1.04694795 | AL163: 1.137837751 | AM163: 2.184786039 | AN163: 109.2393019 | AO163: 5.697678274 | AP163: 17.95220853 | AQ163: 0 | AR163: 0 | AS163: 0
U164: 121 | V164: JULHO | W164: 2033 | X164: JULHO2033 | AA164: 1050.322383 | AC164: 113.0491721 | AF164: ='[2]Calculos-Dim'!$Y$7 -> 429 | AI164: 0.6831335371 | AJ164: 0.7424391328 | AK164: 1.04694795 | AL164: 1.137837751 | AM164: 2.184786039 | AN164: 109.2393019 | AO164: 5.697678274 | AP164: 17.95220853 | AQ164: 0 | AR164: 0 | AS164: 0
U165: 122 | V165: AGOSTO | W165: 2033 | X165: AGOSTO2033 | AA165: 1050.322383 | AC165: 113.0491721 | AF165: ='[2]Calculos-Dim'!$Y$7 -> 429 | AI165: 0.6831335371 | AJ165: 0.7424391328 | AK165: 1.04694795 | AL165: 1.137837751 | AM165: 2.184786039 | AN165: 109.2393019 | AO165: 5.697678274 | AP165: 17.95220853 | AQ165: 0 | AR165: 0 | AS165: 0
U166: 123 | V166: SETEMBRO | W166: 2033 | X166: SETEMBRO2033 | AA166: 1050.322383 | AC166: 113.0491721 | AF166: ='[2]Calculos-Dim'!$Y$7 -> 429 | AI166: 0.6831335371 | AJ166: 0.7424391328 | AK166: 1.04694795 | AL166: 1.137837751 | AM166: 2.184786039 | AN166: 109.2393019 | AO166: 5.697678274 | AP166: 17.95220853 | AQ166: 0 | AR166: 0 | AS166: 0
U167: 124 | V167: OUTUBRO | W167: 2033 | X167: OUTUBRO2033 | AA167: 1050.322383 | AC167: 113.0491721 | AF167: ='[2]Calculos-Dim'!$Y$7 -> 429 | AI167: 0.6831335371 | AJ167: 0.7424391328 | AK167: 1.04694795 | AL167: 1.137837751 | AM167: 2.184786039 | AN167: 109.2393019 | AO167: 5.697678274 | AP167: 17.95220853 | AQ167: 0 | AR167: 0 | AS167: 0
U168: 125 | V168: NOVEMBRO | W168: 2033 | X168: NOVEMBRO2033 | AA168: 1050.322383 | AC168: 113.0491721 | AF168: ='[2]Calculos-Dim'!$Y$7 -> 429 | AI168: 0.6831335371 | AJ168: 0.7424391328 | AK168: 1.04694795 | AL168: 1.137837751 | AM168: 2.184786039 | AN168: 109.2393019 | AO168: 5.697678274 | AP168: 17.95220853 | AQ168: 0 | AR168: 0 | AS168: 0
U169: 126 | V169: DEZEMBRO | W169: 2033 | X169: DEZEMBRO2033 | AA169: 1050.322383 | AC169: 113.0491721 | AF169: ='[2]Calculos-Dim'!$Y$7 -> 429 | AI169: 0.6831335371 | AJ169: 0.7424391328 | AK169: 1.04694795 | AL169: 1.137837751 | AM169: 2.184786039 | AN169: 109.2393019 | AO169: 5.697678274 | AP169: 17.95220853 | AQ169: 0 | AR169: 0 | AS169: 0
U170: 127 | V170: JANEIRO | W170: 2034 | X170: JANEIRO2034 | AA170: 1139.599785 | AC170: 122.6583517 | AF170: ='[2]Calculos-Dim'!$Y$7 -> 429 | AI170: 0.7411998878 | AJ170: 0.8055464591 | AK170: 1.135938525 | AL170: 1.23455396 | AM170: 2.370492852 | AN170: 118.5246426 | AO170: 6.181980927 | AP170: 19.47814625 | AQ170: 0 | AR170: 0 | AS170: 0
U171: 128 | V171: FEVEREIRO | W171: 2034 | X171: FEVEREIRO2034 | AA171: 1139.599785 | AC171: 122.6583517 | AF171: ='[2]Calculos-Dim'!$Y$7 -> 429 | AI171: 0.7411998878 | AJ171: 0.8055464591 | AK171: 1.135938525 | AL171: 1.23455396 | AM171: 2.370492852 | AN171: =AM171*VLOOKUP($E$49,$AA$24:$AC$26,3,) -> 118.5246426 | AO171: 6.181980927 | AP171: 19.47814625 | AQ171: 0 | AR171: 0 | AS171: 0
U172: 129 | V172: =UPPER(TEXT(EDATE($H$35,U172),"MMMM")) -> MARÇO | W172: =IF(V171=$V$35,W171+1,W171) -> 2034 | X172: =V172&W172 -> MARÇO2034 | AA172: 1139.599785 | AC172: 122.6583517 | AF172: ='[2]Calculos-Dim'!$Y$7 -> 429 | AI172: 0.7411998878 | AJ172: 0.8055464591 | AK172: 1.135938525 | AL172: 1.23455396 | AM172: 2.370492852 | AN172: 118.5246426 | AO172: =IF($W172<>$W171,AO171*(1+$E$46),AO171) -> 6.181980927 | AP172: 19.47814625 | AQ172: =IF(E179="sim",IF(E180="sim",AP172*AR172,AO172*AR172),0) -> 0 | AR172: =IF($E$52>$E$53,$E$52-$E$53,0) -> 0 | AS172: =(AQ172/(1-$I$3)-AQ172)*$J$7+(AQ172/(1-$I$4)-AQ172)+(AQ172/(1-$I$5)-AQ172)+AQ172 -> 0
U173: 130 | V173: ABRIL | W173: 2034 | X173: ABRIL2034 | AA173: =AF173*AM173+AC173 -> 1139.599785 | AC173: =IF(W173<>W172,AC172*(1+$E$46),AC172) -> 122.6583517 | AF173: ='[2]Calculos-Dim'!$Y$7 -> 429 | AI173: =IF($W173<>$W172,AI172*(1+$E$46),AI172) -> 0.7411998878 | AJ173: 0.8055464591 | AK173: 1.135938525 | AL173: 1.23455396 | AM173: 2.370492852 | AN173: 118.5246426 | AO173: 6.181980927 | AP173: 19.47814625 | AQ173: 0 | AR173: 0 | AS173: 0
U174: 131 | V174: MAIO | W174: 2034 | X174: MAIO2034 | AA174: 1139.599785 | AC174: 122.6583517 | AF174: ='[2]Calculos-Dim'!$Y$7 -> 429 | AI174: 0.7411998878 | AJ174: 0.8055464591 | AK174: 1.135938525 | AL174: 1.23455396 | AM174: 2.370492852 | AN174: 118.5246426 | AO174: 6.181980927 | AP174: 19.47814625 | AQ174: 0 | AR174: 0 | AS174: 0
U175: 132 | V175: JUNHO | W175: 2034 | X175: JUNHO2034 | AA175: 1139.599785 | AC175: 122.6583517 | AF175: ='[2]Calculos-Dim'!$Y$7 -> 429 | AI175: 0.7411998878 | AJ175: 0.8055464591 | AK175: 1.135938525 | AL175: 1.23455396 | AM175: 2.370492852 | AN175: 118.5246426 | AO175: 6.181980927 | AP175: 19.47814625 | AQ175: 0 | AR175: 0 | AS175: 0
U176: 133 | V176: JULHO | W176: 2034 | X176: JULHO2034 | AA176: 1139.599785 | AC176: 122.6583517 | AF176: ='[2]Calculos-Dim'!$Y$7 -> 429 | AI176: 0.7411998878 | AJ176: 0.8055464591 | AK176: 1.135938525 | AL176: 1.23455396 | AM176: 2.370492852 | AN176: 118.5246426 | AO176: 6.181980927 | AP176: 19.47814625 | AQ176: 0 | AR176: 0 | AS176: 0
U177: 134 | V177: AGOSTO | W177: 2034 | X177: AGOSTO2034 | AA177: 1139.599785 | AC177: 122.6583517 | AF177: ='[2]Calculos-Dim'!$Y$7 -> 429 | AI177: 0.7411998878 | AJ177: 0.8055464591 | AK177: 1.135938525 | AL177: 1.23455396 | AM177: 2.370492852 | AN177: 118.5246426 | AO177: 6.181980927 | AP177: 19.47814625 | AQ177: 0 | AR177: 0 | AS177: 0
U178: 135 | V178: SETEMBRO | W178: 2034 | X178: SETEMBRO2034 | AA178: 1139.599785 | AC178: 122.6583517 | AF178: ='[2]Calculos-Dim'!$Y$7 -> 429 | AI178: 0.7411998878 | AJ178: 0.8055464591 | AK178: 1.135938525 | AL178: 1.23455396 | AM178: 2.370492852 | AN178: 118.5246426 | AO178: 6.181980927 | AP178: 19.47814625 | AQ178: 0 | AR178: 0 | AS178: 0
U179: 136 | V179: OUTUBRO | W179: 2034 | X179: OUTUBRO2034 | AA179: 1139.599785 | AC179: 122.6583517 | AF179: ='[2]Calculos-Dim'!$Y$7 -> 429 | AI179: 0.7411998878 | AJ179: 0.8055464591 | AK179: 1.135938525 | AL179: 1.23455396 | AM179: 2.370492852 | AN179: 118.5246426 | AO179: 6.181980927 | AP179: 19.47814625 | AQ179: 0 | AR179: 0 | AS179: 0
U180: 137 | V180: NOVEMBRO | W180: 2034 | X180: NOVEMBRO2034 | AA180: 1139.599785 | AC180: 122.6583517 | AF180: ='[2]Calculos-Dim'!$Y$7 -> 429 | AI180: 0.7411998878 | AJ180: 0.8055464591 | AK180: 1.135938525 | AL180: 1.23455396 | AM180: 2.370492852 | AN180: 118.5246426 | AO180: 6.181980927 | AP180: 19.47814625 | AQ180: 0 | AR180: 0 | AS180: 0
U181: 138 | V181: DEZEMBRO | W181: 2034 | X181: DEZEMBRO2034 | AA181: 1139.599785 | AC181: 122.6583517 | AF181: ='[2]Calculos-Dim'!$Y$7 -> 429 | AI181: 0.7411998878 | AJ181: 0.8055464591 | AK181: 1.135938525 | AL181: 1.23455396 | AM181: 2.370492852 | AN181: 118.5246426 | AO181: 6.181980927 | AP181: 19.47814625 | AQ181: 0 | AR181: 0 | AS181: 0
U182: 139 | V182: JANEIRO | W182: 2035 | X182: JANEIRO2035 | AA182: 1236.465767 | AC182: 133.0843116 | AF182: ='[2]Calculos-Dim'!$Y$7 -> 429 | AI182: 0.8042018783 | AJ182: 0.8740179081 | AK182: 1.2324933 | AL182: 1.339491047 | AM182: 2.571984745 | AN182: 128.5992372 | AO182: 6.707449306 | AP182: 21.13378869 | AQ182: 0 | AR182: 0 | AS182: 0
U183: 140 | V183: FEVEREIRO | W183: 2035 | X183: FEVEREIRO2035 | AA183: 1236.465767 | AC183: 133.0843116 | AF183: ='[2]Calculos-Dim'!$Y$7 -> 429 | AI183: 0.8042018783 | AJ183: 0.8740179081 | AK183: 1.2324933 | AL183: 1.339491047 | AM183: 2.571984745 | AN183: 128.5992372 | AO183: 6.707449306 | AP183: 21.13378869 | AQ183: 0 | AR183: 0 | AS183: 0
U184: 141 | V184: MARÇO | W184: 2035 | X184: MARÇO2035 | AA184: 1236.465767 | AC184: 133.0843116 | AF184: ='[2]Calculos-Dim'!$Y$7 -> 429 | AI184: 0.8042018783 | AJ184: 0.8740179081 | AK184: 1.2324933 | AL184: 1.339491047 | AM184: 2.571984745 | AN184: 128.5992372 | AO184: 6.707449306 | AP184: 21.13378869 | AQ184: 0 | AR184: 0 | AS184: 0
U185: 142 | V185: ABRIL | W185: 2035 | X185: ABRIL2035 | AA185: 1236.465767 | AC185: 133.0843116 | AF185: ='[2]Calculos-Dim'!$Y$7 -> 429 | AI185: 0.8042018783 | AJ185: 0.8740179081 | AK185: 1.2324933 | AL185: 1.339491047 | AM185: 2.571984745 | AN185: 128.5992372 | AO185: 6.707449306 | AP185: 21.13378869 | AQ185: 0 | AR185: 0 | AS185: 0
U186: 143 | V186: MAIO | W186: 2035 | X186: MAIO2035 | AA186: 1236.465767 | AC186: 133.0843116 | AF186: ='[2]Calculos-Dim'!$Y$7 -> 429 | AI186: 0.8042018783 | AJ186: 0.8740179081 | AK186: 1.2324933 | AL186: 1.339491047 | AM186: 2.571984745 | AN186: 128.5992372 | AO186: 6.707449306 | AP186: 21.13378869 | AQ186: 0 | AR186: 0 | AS186: 0
U187: 144 | V187: JUNHO | W187: 2035 | X187: JUNHO2035 | AA187: 1236.465767 | AC187: 133.0843116 | AF187: ='[2]Calculos-Dim'!$Y$7 -> 429 | AI187: 0.8042018783 | AJ187: 0.8740179081 | AK187: 1.2324933 | AL187: 1.339491047 | AM187: 2.571984745 | AN187: 128.5992372 | AO187: 6.707449306 | AP187: 21.13378869 | AQ187: 0 | AR187: 0 | AS187: 0
U188: 145 | V188: JULHO | W188: 2035 | X188: JULHO2035 | AA188: 1236.465767 | AC188: 133.0843116 | AF188: ='[2]Calculos-Dim'!$Y$7 -> 429 | AI188: 0.8042018783 | AJ188: 0.8740179081 | AK188: 1.2324933 | AL188: 1.339491047 | AM188: 2.571984745 | AN188: 128.5992372 | AO188: =IF($W188<>$W187,AO187*(1+$E$46),AO187) -> 6.707449306 | AP188: 21.13378869 | AQ188: 0 | AR188: 0 | AS188: 0
U189: 146 | V189: AGOSTO | W189: 2035 | X189: AGOSTO2035 | AA189: 1236.465767 | AC189: 133.0843116 | AF189: ='[2]Calculos-Dim'!$Y$7 -> 429 | AI189: =IF($W189<>$W188,AI188*(1+$E$46),AI188) -> 0.8042018783 | AJ189: 0.8740179081 | AK189: 1.2324933 | AL189: 1.339491047 | AM189: 2.571984745 | AN189: 128.5992372 | AO189: 6.707449306 | AP189: 21.13378869 | AQ189: 0 | AR189: 0 | AS189: 0
U190: 147 | V190: SETEMBRO | W190: 2035 | X190: SETEMBRO2035 | AA190: 1236.465767 | AC190: 133.0843116 | AF190: ='[2]Calculos-Dim'!$Y$7 -> 429 | AI190: 0.8042018783 | AJ190: 0.8740179081 | AK190: 1.2324933 | AL190: 1.339491047 | AM190: 2.571984745 | AN190: 128.5992372 | AO190: 6.707449306 | AP190: 21.13378869 | AQ190: 0 | AR190: 0 | AS190: 0
U191: 148 | V191: OUTUBRO | W191: 2035 | X191: OUTUBRO2035 | AA191: 1236.465767 | AC191: 133.0843116 | AF191: ='[2]Calculos-Dim'!$Y$7 -> 429 | AI191: 0.8042018783 | AJ191: 0.8740179081 | AK191: 1.2324933 | AL191: 1.339491047 | AM191: 2.571984745 | AN191: 128.5992372 | AO191: 6.707449306 | AP191: 21.13378869 | AQ191: 0 | AR191: 0 | AS191: 0
U192: 149 | V192: NOVEMBRO | W192: 2035 | X192: NOVEMBRO2035 | AA192: 1236.465767 | AC192: 133.0843116 | AF192: ='[2]Calculos-Dim'!$Y$7 -> 429 | AI192: 0.8042018783 | AJ192: 0.8740179081 | AK192: 1.2324933 | AL192: 1.339491047 | AM192: 2.571984745 | AN192: 128.5992372 | AO192: 6.707449306 | AP192: 21.13378869 | AQ192: 0 | AR192: 0 | AS192: 0
U193: 150 | V193: DEZEMBRO | W193: 2035 | X193: DEZEMBRO2035 | AA193: 1236.465767 | AC193: 133.0843116 | AF193: ='[2]Calculos-Dim'!$Y$7 -> 429 | AI193: 0.8042018783 | AJ193: 0.8740179081 | AK193: 1.2324933 | AL193: 1.339491047 | AM193: 2.571984745 | AN193: 128.5992372 | AO193: 6.707449306 | AP193: 21.13378869 | AQ193: 0 | AR193: 0 | AS193: 0
U194: 151 | V194: JANEIRO | W194: 2036 | X194: JANEIRO2036 | AA194: 1341.565357 | AC194: 144.3964781 | AF194: ='[2]Calculos-Dim'!$Y$7 -> 429 | AI194: 0.8725590379 | AJ194: 0.9483094303 | AK194: 1.337255231 | AL194: 1.453347786 | AM194: 2.790603448 | AN194: 139.5301724 | AO194: 7.277582497 | AP194: 22.93016072 | AQ194: 0 | AR194: 0 | AS194: 0
U195: 152 | V195: FEVEREIRO | W195: 2036 | X195: FEVEREIRO2036 | AA195: 1341.565357 | AC195: 144.3964781 | AF195: ='[2]Calculos-Dim'!$Y$7 -> 429 | AI195: 0.8725590379 | AJ195: 0.9483094303 | AK195: 1.337255231 | AL195: 1.453347786 | AM195: 2.790603448 | AN195: 139.5301724 | AO195: 7.277582497 | AP195: 22.93016072 | AQ195: 0 | AR195: 0 | AS195: 0
U196: 153 | V196: MARÇO | W196: 2036 | X196: MARÇO2036 | AA196: 1341.565357 | AC196: 144.3964781 | AF196: ='[2]Calculos-Dim'!$Y$7 -> 429 | AI196: 0.8725590379 | AJ196: 0.9483094303 | AK196: 1.337255231 | AL196: 1.453347786 | AM196: 2.790603448 | AN196: 139.5301724 | AO196: 7.277582497 | AP196: 22.93016072 | AQ196: 0 | AR196: 0 | AS196: 0
U197: 154 | V197: ABRIL | W197: 2036 | X197: ABRIL2036 | AA197: 1341.565357 | AC197: 144.3964781 | AF197: ='[2]Calculos-Dim'!$Y$7 -> 429 | AI197: 0.8725590379 | AJ197: 0.9483094303 | AK197: 1.337255231 | AL197: 1.453347786 | AM197: 2.790603448 | AN197: 139.5301724 | AO197: 7.277582497 | AP197: 22.93016072 | AQ197: 0 | AR197: 0 | AS197: 0
U198: 155 | V198: MAIO | W198: 2036 | X198: MAIO2036 | AA198: 1341.565357 | AC198: 144.3964781 | AF198: ='[2]Calculos-Dim'!$Y$7 -> 429 | AI198: 0.8725590379 | AJ198: 0.9483094303 | AK198: 1.337255231 | AL198: 1.453347786 | AM198: 2.790603448 | AN198: 139.5301724 | AO198: 7.277582497 | AP198: 22.93016072 | AQ198: 0 | AR198: 0 | AS198: 0
U199: 156 | V199: JUNHO | W199: 2036 | X199: JUNHO2036 | AA199: 1341.565357 | AC199: 144.3964781 | AF199: ='[2]Calculos-Dim'!$Y$7 -> 429 | AI199: 0.8725590379 | AJ199: 0.9483094303 | AK199: 1.337255231 | AL199: 1.453347786 | AM199: 2.790603448 | AN199: 139.5301724 | AO199: 7.277582497 | AP199: 22.93016072 | AQ199: 0 | AR199: 0 | AS199: 0
U200: 157 | V200: JULHO | W200: 2036 | X200: JULHO2036 | AA200: 1341.565357 | AC200: 144.3964781 | AF200: ='[2]Calculos-Dim'!$Y$7 -> 429 | AI200: 0.8725590379 | AJ200: 0.9483094303 | AK200: 1.337255231 | AL200: 1.453347786 | AM200: 2.790603448 | AN200: 139.5301724 | AO200: 7.277582497 | AP200: 22.93016072 | AQ200: 0 | AR200: 0 | AS200: 0
U201: 158 | V201: AGOSTO | W201: 2036 | X201: AGOSTO2036 | AA201: 1341.565357 | AC201: 144.3964781 | AF201: ='[2]Calculos-Dim'!$Y$7 -> 429 | AI201: 0.8725590379 | AJ201: 0.9483094303 | AK201: 1.337255231 | AL201: 1.453347786 | AM201: 2.790603448 | AN201: 139.5301724 | AO201: 7.277582497 | AP201: 22.93016072 | AQ201: 0 | AR201: 0 | AS201: 0
U202: 159 | V202: SETEMBRO | W202: 2036 | X202: SETEMBRO2036 | AA202: 1341.565357 | AC202: 144.3964781 | AF202: ='[2]Calculos-Dim'!$Y$7 -> 429 | AI202: 0.8725590379 | AJ202: 0.9483094303 | AK202: 1.337255231 | AL202: 1.453347786 | AM202: 2.790603448 | AN202: 139.5301724 | AO202: 7.277582497 | AP202: 22.93016072 | AQ202: 0 | AR202: 0 | AS202: 0
U203: 160 | V203: OUTUBRO | W203: 2036 | X203: OUTUBRO2036 | AA203: 1341.565357 | AC203: 144.3964781 | AF203: ='[2]Calculos-Dim'!$Y$7 -> 429 | AI203: 0.8725590379 | AJ203: 0.9483094303 | AK203: 1.337255231 | AL203: 1.453347786 | AM203: 2.790603448 | AN203: 139.5301724 | AO203: 7.277582497 | AP203: 22.93016072 | AQ203: 0 | AR203: 0 | AS203: 0
U204: 161 | V204: NOVEMBRO | W204: 2036 | X204: NOVEMBRO2036 | AA204: 1341.565357 | AC204: 144.3964781 | AF204: ='[2]Calculos-Dim'!$Y$7 -> 429 | AI204: 0.8725590379 | AJ204: 0.9483094303 | AK204: 1.337255231 | AL204: 1.453347786 | AM204: 2.790603448 | AN204: 139.5301724 | AO204: =IF($W204<>$W203,AO203*(1+$E$46),AO203) -> 7.277582497 | AP204: 22.93016072 | AQ204: 0 | AR204: 0 | AS204: 0
U205: 162 | V205: DEZEMBRO | W205: 2036 | X205: DEZEMBRO2036 | AA205: 1341.565357 | AC205: 144.3964781 | AF205: ='[2]Calculos-Dim'!$Y$7 -> 429 | AI205: =IF($W205<>$W204,AI204*(1+$E$46),AI204) -> 0.8725590379 | AJ205: 0.9483094303 | AK205: 1.337255231 | AL205: 1.453347786 | AM205: 2.790603448 | AN205: 139.5301724 | AO205: 7.277582497 | AP205: 22.93016072 | AQ205: 0 | AR205: 0 | AS205: 0
U206: 163 | V206: JANEIRO | W206: 2037 | X206: JANEIRO2037 | AA206: 1455.598413 | AC206: 156.6701787 | AF206: ='[2]Calculos-Dim'!$Y$7 -> 429 | AI206: 0.9467265561 | AJ206: 1.028915732 | AK206: 1.450921925 | AL206: 1.576882348 | AM206: 3.027804741 | AN206: 151.3902371 | AO206: 7.896177009 | AP206: 24.87922439 | AQ206: 0 | AR206: 0 | AS206: 0
U207: 164 | V207: FEVEREIRO | W207: 2037 | X207: FEVEREIRO2037 | AA207: 1455.598413 | AC207: 156.6701787 | AF207: ='[2]Calculos-Dim'!$Y$7 -> 429 | AI207: 0.9467265561 | AJ207: 1.028915732 | AK207: 1.450921925 | AL207: 1.576882348 | AM207: 3.027804741 | AN207: 151.3902371 | AO207: 7.896177009 | AP207: 24.87922439 | AQ207: 0 | AR207: 0 | AS207: 0
U208: 165 | V208: MARÇO | W208: 2037 | X208: MARÇO2037 | AA208: 1455.598413 | AC208: 156.6701787 | AF208: ='[2]Calculos-Dim'!$Y$7 -> 429 | AI208: 0.9467265561 | AJ208: 1.028915732 | AK208: 1.450921925 | AL208: 1.576882348 | AM208: 3.027804741 | AN208: 151.3902371 | AO208: 7.896177009 | AP208: 24.87922439 | AQ208: 0 | AR208: 0 | AS208: 0
U209: 166 | V209: ABRIL | W209: 2037 | X209: ABRIL2037 | AA209: 1455.598413 | AC209: 156.6701787 | AF209: ='[2]Calculos-Dim'!$Y$7 -> 429 | AI209: 0.9467265561 | AJ209: 1.028915732 | AK209: 1.450921925 | AL209: 1.576882348 | AM209: 3.027804741 | AN209: 151.3902371 | AO209: 7.896177009 | AP209: 24.87922439 | AQ209: 0 | AR209: 0 | AS209: 0
... 134 more rows

Sheet Base <=500 (hidden)
A1: Estado | B1: Concessionária | C1: Fim Vigência | D1: Subgrupo | E1: Classe | F1: Unidade | G1: TUSD_SUBSIDIO | H1: TUSD_FioB | I1: TUSD | J1: TE | K1: Fio B | L1: % FioBc -> TUSD | M1: % FioBc -> TUSD+TE | N1: VALOR FIO B | O1: VALOR KWH | P1: TUSD G TIPO 1 | Q1: TUSD G TIPO 2 | R1: Rótulos de Linha | T1: Concessionária | U1: Copel-DIS | V1: Rótulos de Linha | X1: Rótulos de Linha | AA1: VALOR FIOB | AB1: =SUMIFS(N:N,A:A,R2,B:B,U1,D:D,V2,E:E,X2) -> 0.1434142447
A2: Acre | B2: Energisa AC | C2: 2023-12-12 | D2: B1 | E2: Residencial | F2: MWh | G2: -46.80409077 | H2: 341.1662394 | I2: 502.22 | J2: 230.68 | K2: 309.3714569 | L2: 0.616007839 | M2: 0.4655017593 | N2: 0.3411662394 | O2: =((I2+J2)/1000)/0.7876 -> 0.9305485018 | P2: =VLOOKUP(AF2,[3]ANEEL!AW:AY,2,0) -> 14.07 | Q2: =VLOOKUP(AF2,[3]ANEEL!AW:AY,3,0) -> 31.29 | R2: Paraná | V2: B1 | X2: Residencial | AA2: VALOR KWH | AB2: =[3]Cálculo!H220 -> 0.7210116363 | AF2: =A2&B2&D2&E2 -> AcreEnergisa ACB1Residencial
A3: Acre | B3: Energisa AC | C3: 2023-12-12 | D3: B2 | E3: Rural | F3: MWh | G3: -43.99584533 | H3: 320.696265 | I3: 472.09 | J3: 216.84 | K3: 290.8093721 | L3: 0.6160040926 | M3: 0.4654990565 | N3: 0.320696265 | O3: 0.8747206704 | P3: =VLOOKUP(AF3,[3]ANEEL!AW:AY,2,0) -> 14.07 | Q3: =VLOOKUP(AF3,[3]ANEEL!AW:AY,3,0) -> 31.29 | R3: Total Geral | V3: Total Geral | X3: Total Geral | AA3: VALOR TUSD G TIPO 1 | AB3: =SUMIFS(P:P,A:A,R2,B:B,U1,D:D,V2,E:E,X2) -> 2.52 | AF3: =A3&B3&D3&E3 -> AcreEnergisa ACB2Rural
A4: Acre | B4: Energisa AC | C4: 2023-12-12 | D4: B3 | E4: Comercial | F4: MWh | G4: -40.27599654 | H4: 341.1662394 | I4: 502.22 | J4: 230.68 | K4: 313.8060978 | L4: 0.6248379153 | M4: 0.4655017593 | N4: 0.3411662394 | O4: 0.9305485018 | P4: =VLOOKUP(AF4,[3]ANEEL!AW:AY,2,0) -> 14.07 | Q4: =VLOOKUP(AF4,[3]ANEEL!AW:AY,3,0) -> 31.29 | AA4: VALOR TUSD G TIPO 2 | AB4: =SUMIFS(Q:Q,A:A,R2,B:B,U1,D:D,V2,E:E,X2) -> 7.94 | AF4: AcreEnergisa ACB3Comercial
A5: Alagoas | B5: Equatorial (Ceal) | C5: 2023-05-02 | D5: B1 | E5: Residencial | F5: MWh | G5: -0.5948822007 | H5: 258.2735688 | I5: 466.62 | J5: 283.87 | K5: 257.9443022 | L5: 0.5527930698 | M5: 0.3441399203 | N5: 0.2582735688 | O5: 0.9528821737 | P5: =VLOOKUP(AF5,[3]ANEEL!AW:AY,2,0) -> 8.53 | Q5: =VLOOKUP(AF5,[3]ANEEL!AW:AY,3,0) -> 21.61 | AA5: TUSD | AB5: =IF(AND(OR([3]Cálculo!F18=0,[3]Cálculo!F18=""),OR([3]Cálculo!F17=0,[3]Cálculo!F17="")),SUMIFS(I:I,A:A,R2,B:B,U1,D:D,V2,E:E,X2)/1000/(1-SUM([3]Cálculo!I3:I5)),[3]Cálculo!F18) -> 0.4007954009 | AF5: AlagoasEquatorial (Ceal)B1Residencial
A6: Alagoas | B6: Equatorial (Ceal) | C6: 2023-05-02 | D6: B2 | E6: Rural | F6: MWh | G6: -0.5591892687 | H6: 242.7771546 | I6: 438.62 | J6: 266.84 | K6: 242.4676421 | L6: 0.5527965942 | M6: 0.344140213 | N6: 0.2427771546 | O6: 0.8957084815 | P6: =VLOOKUP(AF6,[3]ANEEL!AW:AY,2,0) -> 8.53 | Q6: =VLOOKUP(AF6,[3]ANEEL!AW:AY,3,0) -> 21.61 | AA6: TE | AB6: =IF(AND(OR([3]Cálculo!F18=0,[3]Cálculo!F18=""),OR([3]Cálculo!F17=0,[3]Cálculo!F17="")),SUMIFS(J:J,A:A,R2,B:B,U1,D:D,V2,E:E,X2)/1000/(1-SUM([3]Cálculo!I3:I5)),[3]Cálculo!F17) -> 0.3339187938 | AF6: AlagoasEquatorial (Ceal)B2Rural
A7: Alagoas | B7: Equatorial (Ceal) | C7: 2023-05-02 | D7: B3 | E7: Comercial | F7: MWh | G7: -0.5948822007 | H7: 258.2735688 | I7: 466.62 | J7: 283.87 | K7: 257.9443022 | L7: 0.5527930698 | M7: 0.3441399203 | N7: 0.2582735688 | O7: 0.9528821737 | P7: =VLOOKUP(AF7,[3]ANEEL!AW:AY,2,0) -> 8.53 | Q7: =VLOOKUP(AF7,[3]ANEEL!AW:AY,3,0) -> 21.61 | AA7: tusd sem imp | AB7: =IF(AND(OR([3]Cálculo!F18=0,[3]Cálculo!F18=""),OR([3]Cálculo!F17=0,[3]Cálculo!F17="")),(SUMIFS(I:I,A:A,R2,B:B,U1,D:D,V2,E:E,X2)/1000),[3]Cálculo!F18*(1-SUM([3]Cálculo!I3:I5))) -> 0.3108 | AF7: AlagoasEquatorial (Ceal)B3Comercial
A8: Amapá | B8: CEA Equatorial | C8: 2023-12-12 | D8: B1 | E8: Residencial | F8: MWh | G8: -29.62344385 | H8: 280.9142399 | I8: 497.19 | J8: 224.48 | K8: 264.1768816 | L8: 0.5313398933 | M8: 0.3892558094 | N8: 0.2809142399 | O8: 0.9162899949 | P8: =VLOOKUP(AF8,[3]ANEEL!AW:AY,2,0) -> 10.33 | Q8: =VLOOKUP(AF8,[3]ANEEL!AW:AY,3,0) -> 23.4 | AA8: te sem imp | AB8: =IF(AND(OR([3]Cálculo!F18=0,[3]Cálculo!F18=""),OR([3]Cálculo!F17=0,[3]Cálculo!F17="")),(SUMIFS(J:J,A:A,R2,B:B,U1,D:D,V2,E:E,X2)/1000),[3]Cálculo!F17*(1-SUM([3]Cálculo!I3:I5))) -> 0.25894 | AF8: AmapáCEA EquatorialB1Residencial
A9: Amapá | B9: CEA Equatorial | C9: 2023-12-12 | D9: B2 | E9: Rural | F9: MWh | G9: -32.14399677 | H9: 280.9142399 | I9: 467.36 | J9: 211.01 | K9: 261.593574 | L9: 0.5597260656 | M9: 0.4141018028 | N9: 0.2809142399 | O9: 0.8613128492 | P9: =VLOOKUP(AF9,[3]ANEEL!AW:AY,2,0) -> 10.33 | Q9: =VLOOKUP(AF9,[3]ANEEL!AW:AY,3,0) -> 23.4 | AF9: AmapáCEA EquatorialB2Rural
A10: Amapá | B10: CEA Equatorial | C10: 2023-12-12 | D10: B3 | E10: Comercial | F10: MWh | G10: -34.93912693 | H10: 280.9142399 | I10: 497.19 | J10: 224.48 | K10: 261.1735004 | L10: 0.5252991822 | M10: 0.3892558094 | N10: 0.2809142399 | O10: 0.9162899949 | P10: =VLOOKUP(AF10,[3]ANEEL!AW:AY,2,0) -> 10.33 | Q10: =VLOOKUP(AF10,[3]ANEEL!AW:AY,3,0) -> 23.4 | AF10: AmapáCEA EquatorialB3Comercial
A11: Amazonas | B11: Amazonas Energia | C11: 2023-10-31 | D11: B1 | E11: Residencial | F11: MWh | H11: 239.3274553 | I11: 546.81 | J11: 288.04 | K11: 239.3274553 | L11: 0.4376793682 | M11: 0.2866712048 | N11: 0.2393274553 | O11: 1.059992382 | P11: =VLOOKUP(AF11,[3]ANEEL!AW:AY,2,0) -> 2.45 | Q11: =VLOOKUP(AF11,[3]ANEEL!AW:AY,3,0) -> 20.24 | AF11: AmazonasAmazonas EnergiaB1Residencial
A12: Amazonas | B12: Amazonas Energia | C12: 2023-10-31 | D12: B2 | E12: Rural | F12: MWh | H12: 224.967808 | I12: 514 | J12: 270.76 | K12: 224.967808 | L12: 0.4376805603 | M12: 0.2866708395 | N12: 0.224967808 | O12: 0.9963941087 | P12: =VLOOKUP(AF12,[3]ANEEL!AW:AY,2,0) -> 2.45 | Q12: =VLOOKUP(AF12,[3]ANEEL!AW:AY,3,0) -> 20.24 | AF12: AmazonasAmazonas EnergiaB2Rural
A13: Amazonas | B13: Amazonas Energia | C13: 2023-10-31 | D13: B3 | E13: Comercial | F13: MWh | H13: 239.3274553 | I13: 546.81 | J13: 288.04 | K13: 239.3274553 | L13: 0.4376793682 | M13: 0.2866712048 | N13: 0.2393274553 | O13: 1.059992382 | P13: =VLOOKUP(AF13,[3]ANEEL!AW:AY,2,0) -> 2.45 | Q13: =VLOOKUP(AF13,[3]ANEEL!AW:AY,3,0) -> 20.24 | AF13: AmazonasAmazonas EnergiaB3Comercial
A14: Bahia | B14: Coelba | C14: 2023-04-21 | D14: B1 | E14: Residencial | F14: MWh | G14: -33.3511566 | H14: 329.3836368 | I14: 475.6 | J14: 270.16 | K14: 306.2858124 | L14: 0.6439987646 | M14: 0.441675119 | N14: 0.3293836368 | O14: 0.9468765871 | P14: =VLOOKUP(AF14,[3]ANEEL!AW:AY,2,0) -> 8.06 | Q14: =VLOOKUP(AF14,[3]ANEEL!AW:AY,3,0) -> 23.2 | AF14: BahiaCoelbaB1Residencial
A15: Bahia | B15: Coelba | C15: 2023-04-21 | D15: B2 | E15: Rural | F15: MWh | G15: -31.3500872 | H15: 309.6206186 | I15: 447.06 | J15: 253.95 | K15: 287.9084694 | L15: 0.6440040921 | M15: 0.4416778913 | N15: 0.3096206186 | O15: 0.8900584053 | P15: =VLOOKUP(AF15,[3]ANEEL!AW:AY,2,0) -> 8.06 | Q15: =VLOOKUP(AF15,[3]ANEEL!AW:AY,3,0) -> 23.2 | AF15: BahiaCoelbaB2Rural
A16: Bahia | B16: Coelba | C16: 2023-04-21 | D16: B3 | E16: Comercial | F16: MWh | G16: -33.3511566 | H16: 329.3836368 | I16: 475.6 | J16: 270.16 | K16: 306.2858124 | L16: 0.6439987646 | M16: 0.441675119 | N16: 0.3293836368 | O16: 0.9468765871 | P16: =VLOOKUP(AF16,[3]ANEEL!AW:AY,2,0) -> 8.06 | Q16: =VLOOKUP(AF16,[3]ANEEL!AW:AY,3,0) -> 23.2 | AF16: BahiaCoelbaB3Comercial
A17: Ceará | B17: Enel CE | C17: 2023-04-21 | D17: B1 | E17: Residencial | F17: MWh | G17: -22.94260962 | H17: 283.1468061 | I17: 413.73 | J17: 295.61 | K17: 267.445439 | L17: 0.6464250573 | M17: 0.3991693774 | N17: 0.2831468061 | O17: 0.90063484 | P17: =VLOOKUP(AF17,[3]ANEEL!AW:AY,2,0) -> 10.27 | Q17: =VLOOKUP(AF17,[3]ANEEL!AW:AY,3,0) -> 24.3 | AF17: CearáEnel CEB1Residencial
A18: Ceará | B18: Enel CE | C18: 2023-04-21 | D18: B2 | E18: Rural | F18: MWh | G18: -21.56605304 | H18: 266.1579978 | I18: 388.91 | J18: 277.87 | K18: 251.3988568 | L18: 0.646419112 | M18: 0.3991691379 | N18: 0.2661579978 | O18: 0.8465972575 | P18: =VLOOKUP(AF18,[3]ANEEL!AW:AY,2,0) -> 10.27 | Q18: =VLOOKUP(AF18,[3]ANEEL!AW:AY,3,0) -> 24.3 | AF18: CearáEnel CEB2Rural
A19: Ceará | B19: Enel CE | C19: 2023-04-21 | D19: B3 | E19: Comercial | F19: MWh | G19: -22.94260962 | H19: 283.1468061 | I19: 413.73 | J19: 295.61 | K19: 267.445439 | L19: 0.6464250573 | M19: 0.3991693774 | N19: 0.2831468061 | O19: 0.90063484 | P19: =VLOOKUP(AF19,[3]ANEEL!AW:AY,2,0) -> 10.27 | Q19: =VLOOKUP(AF19,[3]ANEEL!AW:AY,3,0) -> 24.3 | AF19: CearáEnel CEB3Comercial
A20: Distrito Federal | B20: Neoenergia Brasília | C20: 2023-10-21 | D20: B1 | E20: Residencial | F20: MWh | G20: -9.620023588 | H20: 111.483868 | I20: 345.68 | J20: 353.03 | K20: 108.3813528 | L20: 0.3135308749 | M20: 0.1595567088 | N20: 0.111483868 | O20: 0.8871381412 | P20: =VLOOKUP(AF20,[3]ANEEL!AW:AY,2,0) -> 1.63 | Q20: =VLOOKUP(AF20,[3]ANEEL!AW:AY,3,0) -> 5.95 | AF20: Distrito Federal Neoenergia BrasíliaB1Residencial
A21: Distrito Federal | B21: Neoenergia Brasília | C21: 2023-10-21 | D21: B2 | E21: Rural | F21: MWh | G21: -13.46182937 | H21: 104.7948359 | I21: 324.93 | J21: 331.85 | K21: 100.4531925 | L21: 0.3091533331 | M21: 0.1595585066 | N21: 0.1047948359 | O21: 0.8339004571 | P21: =VLOOKUP(AF21,[3]ANEEL!AW:AY,2,0) -> 1.63 | Q21: =VLOOKUP(AF21,[3]ANEEL!AW:AY,3,0) -> 5.95 | AF21: Distrito Federal Neoenergia BrasíliaB2Rural
A22: Distrito Federal | B22: Neoenergia Brasília | C22: 2023-10-21 | D22: B3 | E22: Comercial | F22: MWh | G22: -14.63242323 | H22: 111.483868 | I22: 345.68 | J22: 353.03 | K22: 106.764824 | L22: 0.3088545013 | M22: 0.1595567088 | N22: 0.111483868 | O22: 0.8871381412 | P22: =VLOOKUP(AF22,[3]ANEEL!AW:AY,2,0) -> 1.63 | Q22: =VLOOKUP(AF22,[3]ANEEL!AW:AY,3,0) -> 5.95 | AF22: Distrito Federal Neoenergia BrasíliaB3Comercial
A23: Espírito Santo | B23: EDP ES | C23: 2023-08-06 | D23: B1 | E23: Residencial | F23: MWh | G23: -37.83755573 | H23: 192.0464759 | I23: 396.81 | J23: 277.03 | K23: 173.7340109 | L23: 0.4378266952 | M23: 0.2850030807 | N23: 0.1920464759 | O23: 0.8555611986 | P23: =VLOOKUP(AF23,[3]ANEEL!AW:AY,2,0) -> 2.09 | Q23: =VLOOKUP(AF23,[3]ANEEL!AW:AY,3,0) -> 9.16 | AF23: Espírito SantoEDP ESB1Residencial
A24: Espírito Santo | B24: EDP ES | C24: 2023-08-06 | D24: B2 | E24: Rural | F24: MWh | G24: -35.56730238 | H24: 180.5236874 | I24: 373 | J24: 260.41 | K24: 163.3099057 | L24: 0.4378281653 | M24: 0.2850029007 | N24: 0.1805236874 | O24: 0.8042280345 | P24: =VLOOKUP(AF24,[3]ANEEL!AW:AY,2,0) -> 2.09 | Q24: =VLOOKUP(AF24,[3]ANEEL!AW:AY,3,0) -> 9.16 | AF24: Espírito SantoEDP ESB2Rural
A25: Espírito Santo | B25: EDP ES | C25: 2023-08-06 | D25: B3 | E25: Comercial | F25: MWh | G25: -37.83755573 | H25: 192.0464759 | I25: 396.81 | J25: 277.03 | K25: 173.7340109 | L25: 0.4378266952 | M25: 0.2850030807 | N25: 0.1920464759 | O25: 0.8555611986 | P25: =VLOOKUP(AF25,[3]ANEEL!AW:AY,2,0) -> 2.09 | Q25: =VLOOKUP(AF25,[3]ANEEL!AW:AY,3,0) -> 9.16 | AF25: Espírito SantoEDP ESB3Comercial
A26: Espírito Santo | B26: ELFSM | C26: 2023-09-21 | D26: B1 | E26: Residencial | F26: MWh | G26: -12.01485424 | H26: 181.956827 | I26: 434.8 | J26: 319.95 | K26: 176.9288032 | L26: 0.4069199705 | M26: 0.2410822484 | N26: 0.181956827 | O26: 0.9582910107 | P26: =VLOOKUP(AF26,[3]ANEEL!AW:AY,2,0) -> 1.7 | Q26: =VLOOKUP(AF26,[3]ANEEL!AW:AY,3,0) -> 15.21 | AF26: Espírito SantoELFSMB1Residencial
A27: Espírito Santo | B27: ELFSM | C27: 2023-09-21 | D27: B2 | E27: Rural | F27: MWh | G27: -11.29396298 | H27: 171.0394174 | I27: 408.71 | J27: 300.76 | K27: 166.3130519 | L27: 0.4069219052 | M27: 0.2410805494 | N27: 0.1710394174 | O27: 0.9007998984 | P27: =VLOOKUP(AF27,[3]ANEEL!AW:AY,2,0) -> 1.7 | Q27: =VLOOKUP(AF27,[3]ANEEL!AW:AY,3,0) -> 15.21 | AF27: Espírito SantoELFSMB2Rural
A28: Espírito Santo | B28: ELFSM | C28: 2023-09-21 | D28: B3 | E28: Comercial | F28: MWh | G28: -12.01485424 | H28: 181.956827 | I28: 434.8 | J28: 319.95 | K28: 176.9288032 | L28: 0.4069199705 | M28: 0.2410822484 | N28: 0.181956827 | O28: 0.9582910107 | P28: =VLOOKUP(AF28,[3]ANEEL!AW:AY,2,0) -> 1.7 | Q28: =VLOOKUP(AF28,[3]ANEEL!AW:AY,3,0) -> 15.21 | AF28: Espírito SantoELFSMB3Comercial
A29: Espírito Santo | B29: EPB | C29: 2023-08-27 | D29: B1 | E29: Residencial | F29: MWh | G29: -34.63630916 | H29: 227.2457642 | I29: 356.61 | J29: 242.47 | K29: 205.1741606 | L29: 0.5753460661 | M29: 0.3793245713 | N29: 0.2272457642 | O29: 0.7606399187 | P29: =VLOOKUP(AF29,[3]ANEEL!AW:AY,2,0) -> 2.09 | Q29: =VLOOKUP(AF29,[3]ANEEL!AW:AY,3,0) -> 16.91 | AF29: Espírito SantoEPBB1Residencial
A30: Espírito Santo | B30: EPB | C30: 2023-08-27 | D30: B2 | E30: Rural | F30: MWh | G30: -32.55813061 | H30: 213.6110183 | I30: 335.21 | J30: 227.92 | K30: 192.8635006 | L30: 0.575351274 | M30: 0.379328074 | N30: 0.2136110183 | O30: 0.7149949213 | P30: =VLOOKUP(AF30,[3]ANEEL!AW:AY,2,0) -> 2.09 | Q30: =VLOOKUP(AF30,[3]ANEEL!AW:AY,3,0) -> 16.91 | AF30: Espírito SantoEPBB2Rural
A31: Espírito Santo | B31: EPB | C31: 2023-08-27 | D31: B3 | E31: Comercial | F31: MWh | G31: -34.63630916 | H31: 227.2457642 | I31: 356.61 | J31: 242.47 | K31: 205.1741606 | L31: 0.5753460661 | M31: 0.3793245713 | N31: 0.2272457642 | O31: 0.7606399187 | P31: =VLOOKUP(AF31,[3]ANEEL!AW:AY,2,0) -> 2.09 | Q31: =VLOOKUP(AF31,[3]ANEEL!AW:AY,3,0) -> 16.91 | AF31: Espírito SantoEPBB3Comercial
A32: Goiás | B32: Equatorial GO | C32: 2023-10-21 | D32: B1 | E32: Residencial | F32: MWh | G32: -21.18599281 | H32: 174.5720234 | I32: 384.48 | J32: 286.51 | K32: 164.9525851 | L32: 0.4290277392 | M32: 0.2601708273 | N32: 0.1745720234 | O32: 0.8519426105 | P32: =VLOOKUP(AF32,[3]ANEEL!AW:AY,2,0) -> 2.16 | Q32: =VLOOKUP(AF32,[3]ANEEL!AW:AY,3,0) -> 10.94 | AF32: GoiásEquatorial GOB1Residencial
A33: Goiás | B33: Equatorial GO | C33: 2023-10-21 | D33: B2 | E33: Rural | F33: MWh | G33: -27.70063452 | H33: 164.097702 | I33: 361.42 | J33: 269.32 | K33: 151.5206159 | L33: 0.4192369429 | M33: 0.26016695 | N33: 0.164097702 | O33: 0.8008379888 | P33: =VLOOKUP(AF33,[3]ANEEL!AW:AY,2,0) -> 2.16 | Q33: =VLOOKUP(AF33,[3]ANEEL!AW:AY,3,0) -> 10.94 | AF33: GoiásEquatorial GOB2Rural
A34: Goiás | B34: Equatorial GO | C34: 2023-10-21 | D34: B3 | E34: Comercial | F34: MWh | G34: -30.10938535 | H34: 174.5720234 | I34: 384.48 | J34: 286.51 | K34: 160.9009448 | L34: 0.4184897648 | M34: 0.2601708273 | N34: 0.1745720234 | O34: 0.8519426105 | P34: =VLOOKUP(AF34,[3]ANEEL!AW:AY,2,0) -> 2.16 | Q34: =VLOOKUP(AF34,[3]ANEEL!AW:AY,3,0) -> 10.94 | AF34: GoiásEquatorial GOB3Comercial
A35: Maranhão | B35: Equatorial (Cemar) | C35: 2023-08-27 | D35: B1 | E35: Residencial | F35: MWh | G35: -77.23190626 | H35: 286.7799406 | I35: 409.03 | J35: 241.87 | K35: 232.6309503 | L35: 0.5687381129 | M35: 0.4405898611 | N35: 0.2867799406 | O35: 0.8264347384 | P35: =VLOOKUP(AF35,[3]ANEEL!AW:AY,2,0) -> 7 | Q35: =VLOOKUP(AF35,[3]ANEEL!AW:AY,3,0) -> 20.81 | AF35: MaranhãoEquatorial (Cemar)B1Residencial
A36: Maranhão | B36: Equatorial (Cemar) | C36: 2023-08-27 | D36: B2 | E36: Rural | F36: MWh | G36: -72.59799189 | H36: 269.5731442 | I36: 384.49 | J36: 227.36 | K36: 218.6733316 | L36: 0.5687360701 | M36: 0.4405869807 | N36: 0.2695731442 | O36: 0.7768537329 | P36: =VLOOKUP(AF36,[3]ANEEL!AW:AY,2,0) -> 7 | Q36: =VLOOKUP(AF36,[3]ANEEL!AW:AY,3,0) -> 20.81 | AF36: MaranhãoEquatorial (Cemar)B2Rural
A37: Maranhão | B37: Equatorial (Cemar) | C37: 2023-08-27 | D37: B3 | E37: Comercial | F37: MWh | G37: -77.23190626 | H37: 286.7799406 | I37: 409.03 | J37: 241.87 | K37: 232.6309503 | L37: 0.5687381129 | M37: 0.4405898611 | N37: 0.2867799406 | O37: 0.8264347384 | P37: =VLOOKUP(AF37,[3]ANEEL!AW:AY,2,0) -> 7 | Q37: =VLOOKUP(AF37,[3]ANEEL!AW:AY,3,0) -> 20.81 | AF37: MaranhãoEquatorial (Cemar)B3Comercial
A38: Mato Grosso | B38: Energisa (EMT) | C38: 2023-04-07 | D38: B1 | E38: Residencial | F38: MWh | G38: -25.85738693 | H38: 356.117936 | I38: 545.06 | J38: 268.55 | K38: 339.2238707 | L38: 0.6223606037 | M38: 0.4377010313 | N38: 0.356117936 | O38: 1.033024378 | P38: =VLOOKUP(AF38,[3]ANEEL!AW:AY,2,0) -> 6.52 | Q38: =VLOOKUP(AF38,[3]ANEEL!AW:AY,3,0) -> 29.84 | AF38: Mato GrossoEnergisa (EMT)B1Residencial
A39: Mato Grosso | B39: Energisa (EMT) | C39: 2023-04-07 | D39: B2 | E39: Rural | F39: MWh | G39: -24.30594372 | H39: 334.7508599 | I39: 512.35 | J39: 252.44 | K39: 318.8702401 | L39: 0.6223679908 | M39: 0.4377029771 | N39: 0.3347508599 | O39: 0.9710385983 | P39: =VLOOKUP(AF39,[3]ANEEL!AW:AY,2,0) -> 6.52 | Q39: =VLOOKUP(AF39,[3]ANEEL!AW:AY,3,0) -> 29.84 | AF39: Mato GrossoEnergisa (EMT)B2Rural
A40: Mato Grosso | B40: Energisa (EMT) | C40: 2023-04-07 | D40: B3 | E40: Comercial | F40: MWh | G40: -25.85738693 | H40: 356.117936 | I40: 545.06 | J40: 268.55 | K40: 339.2238707 | L40: 0.6223606037 | M40: 0.4377010313 | N40: 0.356117936 | O40: 1.033024378 | P40: =VLOOKUP(AF40,[3]ANEEL!AW:AY,2,0) -> 6.52 | Q40: =VLOOKUP(AF40,[3]ANEEL!AW:AY,3,0) -> 29.84 | AF40: Mato GrossoEnergisa (EMT)B3Comercial
A41: Mato Grosso do Sul | B41: Energisa (EMS) | C41: 2023-04-07 | D41: B1 | E41: Residencial | F41: MWh | G41: -20.37646945 | H41: 329.1802823 | I41: 529.14 | J41: 272.77 | K41: 316.5039925 | L41: 0.5981479241 | M41: 0.4104952954 | N41: 0.3291802823 | O41: 1.018169121 | P41: =VLOOKUP(AF41,[3]ANEEL!AW:AY,2,0) -> 6.59 | Q41: =VLOOKUP(AF41,[3]ANEEL!AW:AY,3,0) -> 19.18 | AF41: Mato Grosso do SulEnergisa (EMS)B1Residencial
A42: Mato Grosso do Sul | B42: Energisa (EMS) | C42: 2023-04-07 | D42: B2 | E42: Rural | F42: MWh | G42: -19.15388128 | H42: 309.4294654 | I42: 497.39 | J42: 256.4 | K42: 297.5137147 | L42: 0.5981497711 | M42: 0.4104982361 | N42: 0.3094294654 | O42: 0.9570721178 | P42: =VLOOKUP(AF42,[3]ANEEL!AW:AY,2,0) -> 6.59 | Q42: =VLOOKUP(AF42,[3]ANEEL!AW:AY,3,0) -> 19.18 | AF42: Mato Grosso do SulEnergisa (EMS)B2Rural
A43: Mato Grosso do Sul | B43: Energisa (EMS) | C43: 2023-04-07 | D43: B3 | E43: Comercial | F43: MWh | G43: -20.37646945 | H43: 329.1802823 | I43: 529.14 | J43: 272.77 | K43: 316.5039925 | L43: 0.5981479241 | M43: 0.4104952954 | N43: 0.3291802823 | O43: 1.018169121 | P43: =VLOOKUP(AF43,[3]ANEEL!AW:AY,2,0) -> 6.59 | Q43: =VLOOKUP(AF43,[3]ANEEL!AW:AY,3,0) -> 19.18 | AF43: Mato Grosso do SulEnergisa (EMS)B3Comercial
A44: Minas Gerais | B44: Cemig-D | C44: 2023-06-21 | D44: B1 | E44: Residencial | F44: MWh | G44: -62.93365129 | H44: 232.7572023 | I44: 409.13 | J44: 244 | K44: 196.9537643 | L44: 0.4813965348 | M44: 0.3563719356 | N44: 0.2327572023 | O44: 0.8292661249 | P44: =VLOOKUP(AF44,[3]ANEEL!AW:AY,2,0) -> 2.43 | Q44: =VLOOKUP(AF44,[3]ANEEL!AW:AY,3,0) -> 12.34 | AF44: Minas GeraisCemig-DB1Residencial
A45: Minas Gerais | B45: Cemig-D | C45: 2023-06-21 | D45: B2 | E45: Rural | F45: MWh | G45: -59.15763222 | H45: 218.7917702 | I45: 384.58 | J45: 229.36 | K45: 185.1363459 | L45: 0.481398788 | M45: 0.3563732127 | N45: 0.2187917702 | O45: 0.7795073641 | P45: =VLOOKUP(AF45,[3]ANEEL!AW:AY,2,0) -> 2.43 | Q45: =VLOOKUP(AF45,[3]ANEEL!AW:AY,3,0) -> 12.34 | AF45: Minas GeraisCemig-DB2Rural
A46: Minas Gerais | B46: Cemig-D | C46: 2023-06-21 | D46: B3 | E46: Comercial | F46: MWh | G46: -62.93365129 | H46: 232.7572023 | I46: 409.13 | J46: 244 | K46: 196.9537643 | L46: 0.4813965348 | M46: 0.3563719356 | N46: 0.2327572023 | O46: 0.8292661249 | P46: =VLOOKUP(AF46,[3]ANEEL!AW:AY,2,0) -> 244 | Q46: =VLOOKUP(AF46,[3]ANEEL!AW:AY,3,0) -> 12.34 | AF46: Minas GeraisCemig-DB3Comercial
A47: Minas Gerais | B47: CPFL Santa Cruz | C47: 2023-03-21 | D47: B1 | E47: Residencial | F47: MWh | G47: -34.9262679 | H47: 176.2481554 | I47: 342.55 | J47: 249.33 | K47: 158.2779604 | L47: 0.4620579782 | M47: 0.2977768389 | N47: 0.1762481554 | O47: 0.7514982224 | P47: =VLOOKUP(AF47,[3]ANEEL!AW:AY,2,0) -> 2.99 | Q47: =VLOOKUP(AF47,[3]ANEEL!AW:AY,3,0) -> 8.56 | AF47: Minas GeraisCPFL Santa CruzB1Residencial
A48: Minas Gerais | B48: CPFL Santa Cruz | C48: 2023-03-21 | D48: B2 | E48: Rural | F48: MWh | G48: -32.83069183 | H48: 165.6732661 | I48: 322 | J48: 234.37 | K48: 148.7814402 | L48: 0.4620541621 | M48: 0.2977753403 | N48: 0.1656732661 | O48: 0.7064118842 | P48: =VLOOKUP(AF48,[3]ANEEL!AW:AY,2,0) -> 2.99 | Q48: =VLOOKUP(AF48,[3]ANEEL!AW:AY,3,0) -> 8.56 | AF48: Minas GeraisCPFL Santa CruzB2Rural
A49: Minas Gerais | B49: CPFL Santa Cruz | C49: 2023-03-21 | D49: B3 | E49: Comercial | F49: MWh | G49: -34.9262679 | H49: 176.2481554 | I49: 342.55 | J49: 249.33 | K49: 158.2779604 | L49: 0.4620579782 | M49: 0.2977768389 | N49: 0.1762481554 | O49: 0.7514982224 | P49: =VLOOKUP(AF49,[3]ANEEL!AW:AY,2,0) -> 2.99 | Q49: =VLOOKUP(AF49,[3]ANEEL!AW:AY,3,0) -> 8.56 | AF49: Minas GeraisCPFL Santa CruzB3Comercial
A50: Minas Gerais | B50: DMED | C50: 2023-11-21 | D50: B1 | E50: Residencial | F50: MWh | H50: 185.8327768 | I50: 409.13 | J50: 244 | K50: 185.8327768 | L50: 0.4542144962 | M50: 0.2845264753 | N50: 0.1858327768 | O50: 0.8292661249 | P50: =VLOOKUP(AF50,[3]ANEEL!AW:AY,2,0) -> 2.92 | Q50: =VLOOKUP(AF50,[3]ANEEL!AW:AY,3,0) -> 7.78 | AF50: Minas GeraisDMEDB1Residencial
A51: Minas Gerais | B51: DMED | C51: 2023-11-21 | D51: B2 | E51: Rural | F51: MWh | H51: 174.6828102 | I51: 384.58 | J51: 229.36 | K51: 174.6828102 | L51: 0.4542170945 | M51: 0.2845274949 | N51: 0.1746828102 | O51: 0.7795073641 | P51: =VLOOKUP(AF51,[3]ANEEL!AW:AY,2,0) -> 2.92 | Q51: =VLOOKUP(AF51,[3]ANEEL!AW:AY,3,0) -> 7.78 | AF51: Minas GeraisDMEDB2Rural
A52: Minas Gerais | B52: DMED | C52: 2023-11-21 | D52: B3 | E52: Comercial | F52: MWh | H52: 185.8327768 | I52: 409.13 | J52: 244 | K52: 185.8327768 | L52: 0.4542144962 | M52: 0.2845264753 | N52: 0.1858327768 | O52: 0.8292661249 | P52: =VLOOKUP(AF52,[3]ANEEL!AW:AY,2,0) -> 2.92 | Q52: =VLOOKUP(AF52,[3]ANEEL!AW:AY,3,0) -> 7.78 | AF52: Minas GeraisDMEDB3Comercial
A53: Minas Gerais | B53: Energisa (EMG) | C53: 2023-06-21 | D53: B1 | E53: Residencial | F53: MWh | H53: 197.031403 | I53: 436.78 | J53: 329.63 | K53: 197.031403 | L53: 0.4510998741 | M53: 0.2570835493 | N53: 0.197031403 | O53: 0.9730954799 | P53: =VLOOKUP(AF53,[3]ANEEL!AW:AY,2,0) -> 1.17 | Q53: =VLOOKUP(AF53,[3]ANEEL!AW:AY,3,0) -> 11.07 | AF53: Minas GeraisEnergisa (EMG)B1Residencial
A54: Minas Gerais | B54: Energisa (EMG) | C54: 2023-06-21 | D54: B2 | E54: Rural | F54: MWh | H54: 185.2095188 | I54: 410.58 | J54: 309.85 | K54: 185.2095188 | L54: 0.451092403 | M54: 0.2570819078 | N54: 0.1852095188 | O54: 0.9147155917 | P54: =VLOOKUP(AF54,[3]ANEEL!AW:AY,2,0) -> 1.17 | Q54: =VLOOKUP(AF54,[3]ANEEL!AW:AY,3,0) -> 11.07 | AF54: Minas GeraisEnergisa (EMG)B2Rural
A55: Minas Gerais | B55: Energisa (EMG) | C55: 2023-06-21 | D55: B3 | E55: Comercial | F55: MWh | H55: 197.031403 | I55: 436.78 | J55: 329.63 | K55: 197.031403 | L55: 0.4510998741 | M55: 0.2570835493 | N55: 0.197031403 | O55: 0.9730954799 | P55: =VLOOKUP(AF55,[3]ANEEL!AW:AY,2,0) -> 1.17 | Q55: =VLOOKUP(AF55,[3]ANEEL!AW:AY,3,0) -> 11.07 | AF55: Minas GeraisEnergisa (EMG)B3Comercial
A56: Pará | B56: Equatorial (Celpa) | C56: 2023-08-06 | D56: B1 | E56: Residencial | F56: MWh | G56: -33.15747243 | H56: 425.6338372 | I56: 656.44 | J56: 222.46 | K56: 404.134626 | L56: 0.6156459478 | M56: 0.4842801652 | N56: 0.4256338372 | O56: 1.115921788 | P56: =VLOOKUP(AF56,[3]ANEEL!AW:AY,2,0) -> 5.91 | Q56: =VLOOKUP(AF56,[3]ANEEL!AW:AY,3,0) -> 33.73 | AF56: ParáEquatorial (Celpa)B1Residencial
A57: Pará | B57: Equatorial (Celpa) | C57: 2023-08-06 | D57: B2 | E57: Rural | F57: MWh | G57: -31.16802408 | H57: 400.095807 | I57: 617.05 | J57: 209.11 | K57: 379.8864305 | L57: 0.6156493486 | M57: 0.4842836823 | N57: 0.400095807 | O57: 1.048958862 | P57: =VLOOKUP(AF57,[3]ANEEL!AW:AY,2,0) -> 5.91 | Q57: =VLOOKUP(AF57,[3]ANEEL!AW:AY,3,0) -> 33.73 | AF57: ParáEquatorial (Celpa)B2Rural
A58: Pará | B58: Equatorial (Celpa) | C58: 2023-08-06 | D58: B3 | E58: Comercial | F58: MWh | G58: -33.15747243 | H58: 425.6338372 | I58: 656.44 | J58: 222.46 | K58: 404.134626 | L58: 0.6156459478 | M58: 0.4842801652 | N58: 0.4256338372 | O58: 1.115921788 | P58: =VLOOKUP(AF58,[3]ANEEL!AW:AY,2,0) -> 5.91 | Q58: =VLOOKUP(AF58,[3]ANEEL!AW:AY,3,0) -> 33.73 | AF58: ParáEquatorial (Celpa)B3Comercial
A59: Paraíba | B59: Energisa (EBO) | C59: 2023-02-03 | D59: B1 | E59: Residencial | F59: MWh | G59: -26.37229839 | H59: 194.4540996 | I59: 285.65 | J59: 250.79 | K59: 176.5013548 | L59: 0.617893768 | M59: 0.3624899328 | N59: 0.1944540996 | O59: 0.681107161 | P59: =VLOOKUP(AF59,[3]ANEEL!AW:AY,2,0) -> 9.64 | Q59: =VLOOKUP(AF59,[3]ANEEL!AW:AY,3,0) -> 16.61 | AF59: ParaíbaEnergisa (EBO)B1Residencial
A60: Paraíba | B60: Energisa (EBO) | C60: 2023-02-03 | D60: B2 | E60: Rural | F60: MWh | G60: -24.78996049 | H60: 182.7868536 | I60: 268.51 | J60: 235.75 | K60: 165.9112107 | L60: 0.6178958351 | M60: 0.3624853322 | N60: 0.1827868536 | O60: 0.6402488573 | P60: =VLOOKUP(AF60,[3]ANEEL!AW:AY,2,0) -> 9.64 | Q60: =VLOOKUP(AF60,[3]ANEEL!AW:AY,3,0) -> 16.61 | AF60: ParaíbaEnergisa (EBO)B2Rural
A61: Paraíba | B61: Energisa (EBO) | C61: 2023-02-03 | D61: B3 | E61: Comercial | F61: MWh | G61: -26.37229839 | H61: 194.4540996 | I61: 285.65 | J61: 250.79 | K61: 176.5013548 | L61: 0.617893768 | M61: 0.3624899328 | N61: 0.1944540996 | O61: 0.681107161 | P61: =VLOOKUP(AF61,[3]ANEEL!AW:AY,2,0) -> 9.64 | Q61: =VLOOKUP(AF61,[3]ANEEL!AW:AY,3,0) -> 16.61 | AF61: ParaíbaEnergisa (EBO)B3Comercial
A62: Paraíba | B62: Energisa Paraiba (EPB) | C62: 2023-08-27 | D62: B1 | E62: Residencial | F62: MWh | G62: -29.46183362 | H62: 227.2457642 | I62: 356.61 | J62: 242.47 | K62: 208.4715377 | L62: 0.5845925177 | M62: 0.3793245713 | N62: 0.2272457642 | O62: 0.7606399187 | P62: =VLOOKUP(AF62,[3]ANEEL!AW:AY,2,0) -> 6.08 | Q62: =VLOOKUP(AF62,[3]ANEEL!AW:AY,3,0) -> 16.91 | AF62: ParaíbaEnergisa Paraiba (EPB)B1Residencial
A63: Paraíba | B63: Energisa Paraiba (EPB) | C63: 2023-08-27 | D63: B2 | E63: Rural | F63: MWh | G63: -31.86540442 | H63: 213.6110183 | I63: 335.21 | J63: 227.92 | K63: 193.3049371 | L63: 0.5766681695 | M63: 0.379328074 | N63: 0.2136110183 | O63: 0.7149949213 | P63: =VLOOKUP(AF63,[3]ANEEL!AW:AY,2,0) -> 6.08 | Q63: =VLOOKUP(AF63,[3]ANEEL!AW:AY,3,0) -> 16.91 | AF63: ParaíbaEnergisa Paraiba (EPB)B2Rural
A64: Paraíba | B64: Energisa Paraiba (EPB) | C64: 2023-08-27 | D64: B3 | E64: Comercial | F64: MWh | G64: -29.46183362 | H64: 227.2457642 | I64: 356.61 | J64: 242.47 | K64: 208.4715377 | L64: 0.5845925177 | M64: 0.3793245713 | N64: 0.2272457642 | O64: 0.7606399187 | P64: =VLOOKUP(AF64,[3]ANEEL!AW:AY,2,0) -> 6.08 | Q64: =VLOOKUP(AF64,[3]ANEEL!AW:AY,3,0) -> 16.91 | AF64: ParaíbaEnergisa Paraiba (EPB)B3Comercial
A65: Paraná | B65: Castro-DIS | C65: 2023-07-29 | D65: B1 | E65: Residencial | F65: MWh | G65: -0.03742444861 | H65: 151.4490602 | I65: 254.85 | J65: 201.63 | K65: 151.4268201 | L65: 0.5941801846 | M65: 0.3317758942 | N65: 0.1514490602 | O65: 0.5795835449 | P65: 2.52 | Q65: 7.94 | AF65: ParanáCastro-DISB1Residencial
A66: Paraná | B66: Castro-DIS | C66: 2023-07-29 | D66: B2 | E66: Rural | F66: MWh | G66: -0.03517898169 | H66: 142.3621166 | I66: 239.56 | J66: 189.53 | K66: 142.3412109 | L66: 0.5941777047 | M66: 0.3317768221 | N66: 0.1423621166 | O66: =((I66+J66)/1000)/0.7876 -> 0.5448070086 | P66: 2.52 | Q66: 7.94 | AF66: ParanáCastro-DISB2Rural
A67: Paraná | B67: Castro-DIS | C67: 2023-07-29 | D67: B3 | E67: Comercial | F67: MWh | G67: -0.03742444861 | H67: 151.4490602 | I67: 254.85 | J67: 201.63 | K67: 151.4268201 | L67: 0.5941801846 | M67: 0.3317758942 | N67: 0.1514490602 | O67: 0.5795835449 | P67: 2.52 | Q67: 7.94 | AF67: =A67&B67&D67&E67 -> ParanáCastro-DISB3Comercial
A68: Paraná | B68: Ceral DIS | C68: 2023-07-29 | D68: B1 | E68: Residencial | F68: MWh | H68: 181.3456989 | I68: 415.71 | J68: 233.16 | K68: 181.3456989 | L68: 0.4362312642 | M68: 0.2794792468 | N68: 0.1813456989 | O68: 0.823857288 | P68: 2.52 | Q68: 7.94 | AF68: ParanáCeral DISB1Residencial
A69: Paraná | B69: Ceral DIS | C69: 2023-07-29 | D69: B2 | E69: Rural | F69: MWh | H69: 170.4649569 | I69: 390.77 | J69: 219.17 | K69: 170.4649569 | L69: 0.4362283618 | M69: 0.2794782387 | N69: 0.1704649569 | O69: 0.774428644 | P69: 2.52 | Q69: 7.94 | AF69: ParanáCeral DISB2Rural
A70: Paraná | B70: Ceral DIS | C70: 2023-07-29 | D70: B3 | E70: Comercial | F70: MWh | H70: 181.3456989 | I70: 415.71 | J70: 233.16 | K70: 181.3456989 | L70: 0.4362312642 | M70: 0.2794792468 | N70: 0.1813456989 | O70: 0.823857288 | P70: 2.52 | Q70: 7.94 | AF70: ParanáCeral DISB3Comercial
A71: Paraná | B71: Cocel | C71: 2023-06-28 | D71: B1 | E71: Residencial | F71: MWh | H71: 134.4127093 | I71: 362.49 | J71: 272.04 | K71: 134.4127093 | L71: 0.3708039098 | M71: 0.2118303457 | N71: 0.1344127093 | O71: 0.8056500762 | P71: =VLOOKUP(AF71,[3]ANEEL!AW:AY,2,0) -> 3.21 | Q71: =VLOOKUP(AF71,[3]ANEEL!AW:AY,3,0) -> 10.48 | AF71: ParanáCocelB1Residencial
A72: Paraná | B72: Cocel | C72: 2023-06-28 | D72: B2 | E72: Rural | F72: MWh | H72: 126.3479467 | I72: 340.74 | J72: 255.72 | K72: 126.3479467 | L72: 0.3708045628 | M72: 0.2118297065 | N72: 0.1263479467 | O72: 0.757313357 | P72: =VLOOKUP(AF72,[3]ANEEL!AW:AY,2,0) -> 3.21 | Q72: =VLOOKUP(AF72,[3]ANEEL!AW:AY,3,0) -> 10.48 | AF72: ParanáCocelB2Rural
A73: Paraná | B73: Cocel | C73: 2023-06-28 | D73: B3 | E73: Comercial | F73: MWh | H73: 134.4127093 | I73: 362.49 | J73: 272.04 | K73: 134.4127093 | L73: 0.3708039098 | M73: 0.2118303457 | N73: 0.1344127093 | O73: 0.8056500762 | P73: =VLOOKUP(AF73,[3]ANEEL!AW:AY,2,0) -> 3.21 | Q73: =VLOOKUP(AF73,[3]ANEEL!AW:AY,3,0) -> 10.48 | AF73: ParanáCocelB3Comercial
A74: Paraná | B74: Copel-DIS | C74: 2023-06-23 | D74: B1 | E74: Residencial | F74: MWh | G74: -40.52031188 | H74: 143.4142447 | I74: 310.8 | J74: 258.94 | K74: 124.7167225 | L74: 0.4012764558 | M74: 0.2517187572 | N74: 0.1434142447 | O74: 0.7233875063 | P74: =VLOOKUP(AF74,[3]ANEEL!AW:AY,2,0) -> 2.52 | Q74: =VLOOKUP(AF74,[3]ANEEL!AW:AY,3,0) -> 7.94 | AF74: ParanáCopel-DISB1Residencial
A75: Paraná | B75: Copel-DIS | C75: 2023-06-23 | D75: B2 | E75: Rural | F75: MWh | G75: -38.08909317 | H75: 134.8093901 | I75: 292.15 | J75: 243.4 | K75: 117.2335988 | L75: 0.401278791 | M75: 0.2517213893 | N75: 0.1348093901 | O75: 0.6799771458 | P75: =VLOOKUP(AF75,[3]ANEEL!AW:AY,2,0) -> 2.52 | Q75: =VLOOKUP(AF75,[3]ANEEL!AW:AY,3,0) -> 7.94 | AF75: ParanáCopel-DISB2Rural
A76: Paraná | B76: Copel-DIS | C76: 2023-06-23 | D76: B3 | E76: Comercial | F76: MWh | G76: -40.52031188 | H76: 143.4142447 | I76: 310.8 | J76: 258.94 | K76: 124.7167225 | L76: 0.4012764558 | M76: 0.2517187572 | N76: 0.1434142447 | O76: 0.7233875063 | P76: =VLOOKUP(AF76,[3]ANEEL!AW:AY,2,0) -> 2.52 | Q76: =VLOOKUP(AF76,[3]ANEEL!AW:AY,3,0) -> 7.94 | AF76: ParanáCopel-DISB3Comercial
A77: Paraná | B77: CPFL Santa Cruz | C77: 2023-03-21 | D77: B1 | E77: Residencial | F77: MWh | G77: -34.9262679 | H77: 176.2481554 | I77: 342.55 | J77: 249.33 | K77: 158.2779604 | L77: 0.4620579782 | M77: 0.2977768389 | N77: 0.1762481554 | O77: 0.7514982224 | P77: =VLOOKUP(AF77,[3]ANEEL!AW:AY,2,0) -> 2.99 | Q77: =VLOOKUP(AF77,[3]ANEEL!AW:AY,3,0) -> 8.56 | AF77: ParanáCPFL Santa CruzB1Residencial
A78: Paraná | B78: CPFL Santa Cruz | C78: 2023-03-21 | D78: B2 | E78: Rural | F78: MWh | G78: -32.83069183 | H78: 165.6732661 | I78: 322 | J78: 234.37 | K78: 148.7814402 | L78: 0.4620541621 | M78: 0.2977753403 | N78: 0.1656732661 | O78: 0.7064118842 | P78: =VLOOKUP(AF78,[3]ANEEL!AW:AY,2,0) -> 2.99 | Q78: =VLOOKUP(AF78,[3]ANEEL!AW:AY,3,0) -> 8.56 | AF78: ParanáCPFL Santa CruzB2Rural
A79: Paraná | B79: CPFL Santa Cruz | C79: 2023-03-21 | D79: B3 | E79: Comercial | F79: MWh | G79: -34.9262679 | H79: 176.2481554 | I79: 342.55 | J79: 249.33 | K79: 158.2779604 | L79: 0.4620579782 | M79: 0.2977768389 | N79: 0.1762481554 | O79: 0.7514982224 | P79: =VLOOKUP(AF79,[3]ANEEL!AW:AY,2,0) -> 2.99 | Q79: =VLOOKUP(AF79,[3]ANEEL!AW:AY,3,0) -> 8.56 | AF79: ParanáCPFL Santa CruzB3Comercial
A80: Paraná | B80: Forcel | C80: 2023-08-25 | D80: B1 | E80: Residencial | F80: MWh | G80: -125.4133783 | H80: 194.8314717 | I80: 350.41 | J80: 207.63 | K80: 125.1003765 | L80: 0.3570114338 | M80: 0.3491353159 | N80: 0.1948314717 | O80: 0.7085322499 | P80: =VLOOKUP(AF80,[3]ANEEL!AW:AY,2,0) -> 4.36 | Q80: =VLOOKUP(AF80,[3]ANEEL!AW:AY,3,0) -> 10.42 | AF80: ParanáForcelB1Residencial
A81: Paraná | B81: Forcel | C81: 2023-08-25 | D81: B2 | E81: Rural | F81: MWh | G81: -117.8885756 | H81: 183.1415834 | I81: 329.39 | J81: 195.17 | K81: 117.5952693 | L81: 0.3570092271 | M81: 0.3491337185 | N81: 0.1831415834 | O81: 0.6660233621 | P81: =VLOOKUP(AF81,[3]ANEEL!AW:AY,2,0) -> 4.36 | Q81: =VLOOKUP(AF81,[3]ANEEL!AW:AY,3,0) -> 10.42 | AF81: ParanáForcelB2Rural
A82: Paraná | B82: Forcel | C82: 2023-08-25 | D82: B3 | E82: Comercial | F82: MWh | G82: -125.4133783 | H82: 194.8314717 | I82: 350.41 | J82: 207.63 | K82: 125.1003765 | L82: 0.3570114338 | M82: 0.3491353159 | N82: 0.1948314717 | O82: 0.7085322499 | P82: =VLOOKUP(AF82,[3]ANEEL!AW:AY,2,0) -> 4.36 | Q82: =VLOOKUP(AF82,[3]ANEEL!AW:AY,3,0) -> 10.42 | AF82: ParanáForcelB3Comercial
A83: Pernambuco | B83: Celpe | C83: 2023-04-28 | D83: B1 | E83: Residencial | F83: MWh | G83: -25.60806329 | H83: 227.9035119 | I83: 384.84 | J83: 320.82 | K83: 212.7383328 | L83: 0.5527968318 | M83: 0.3229650426 | N83: 0.2279035119 | O83: 0.8959624175 | P83: =VLOOKUP(AF83,[3]ANEEL!AW:AY,2,0) -> 9.11 | Q83: =VLOOKUP(AF83,[3]ANEEL!AW:AY,3,0) -> 18.04 | AF83: Pernambuco CelpeB1Residencial
A84: Pernambuco | B84: Celpe | C84: 2023-04-28 | D84: B2 | E84: Rural | F84: MWh | G84: -24.07157949 | H84: 214.2293012 | I84: 361.75 | J84: 301.57 | K84: 199.9740486 | L84: 0.5527962641 | M84: 0.3229652373 | N84: 0.2142293012 | O84: 0.8422041646 | P84: =VLOOKUP(AF84,[3]ANEEL!AW:AY,2,0) -> 9.11 | Q84: =VLOOKUP(AF84,[3]ANEEL!AW:AY,3,0) -> 18.04 | AF84: Pernambuco CelpeB2Rural
A85: Pernambuco | B85: Celpe | C85: 2023-04-28 | D85: B3 | E85: Comercial | F85: MWh | G85: -25.60806329 | H85: 227.9035119 | I85: 384.84 | J85: 320.82 | K85: 212.7383328 | L85: 0.5527968318 | M85: 0.3229650426 | N85: 0.2279035119 | O85: 0.8959624175 | P85: =VLOOKUP(AF85,[3]ANEEL!AW:AY,2,0) -> 9.11 | Q85: =VLOOKUP(AF85,[3]ANEEL!AW:AY,3,0) -> 18.04 | AF85: Pernambuco CelpeB3Comercial
A86: Piauí | B86: Equatorial PI | C86: 2023-12-01 | D86: B1 | E86: Residencial | F86: MWh | G86: -47.38394661 | H86: 281.919503 | I86: 494 | J86: 249.1 | K86: 254.8780886 | L86: 0.5159475479 | M86: 0.3793829942 | N86: 0.281919503 | O86: 0.9434992382 | P86: =VLOOKUP(AF86,[3]ANEEL!AW:AY,2,0) -> 5.82 | Q86: =VLOOKUP(AF86,[3]ANEEL!AW:AY,3,0) -> 19.6 | AF86: PiauíEquatorial PIB1Residencial
A87: Piauí | B87: Equatorial PI | C87: 2023-12-01 | D87: B2 | E87: Rural | F87: MWh | G87: -50.80001558 | H87: 265.0043328 | I87: 464.36 | J87: 234.16 | K87: 236.0134115 | L87: 0.5082552577 | M87: 0.3793797354 | N87: 0.2650043328 | O87: 0.886896902 | P87: =VLOOKUP(AF87,[3]ANEEL!AW:AY,2,0) -> 5.82 | Q87: =VLOOKUP(AF87,[3]ANEEL!AW:AY,3,0) -> 19.6 | AF87: PiauíEquatorial PIB2Rural
A88: Piauí | B88: Equatorial PI | C88: 2023-12-01 | D88: B3 | E88: Comercial | F88: MWh | G88: -51.90436375 | H88: 281.919503 | I88: 494 | J88: 249.1 | K88: 252.2983442 | L88: 0.5107253931 | M88: 0.3793829942 | N88: 0.281919503 | O88: 0.9434992382 | P88: =VLOOKUP(AF88,[3]ANEEL!AW:AY,2,0) -> 5.82 | Q88: =VLOOKUP(AF88,[3]ANEEL!AW:AY,3,0) -> 19.6 | AF88: PiauíEquatorial PIB3Comercial
A89: Rio de Janeiro | B89: Ceral Araruama | C89: 2023-04-28 | D89: B1 | E89: Residencial | F89: MWh | H89: 546.6700631 | I89: 982.06 | J89: 330.73 | K89: 546.6700631 | L89: 0.5566564804 | M89: 0.4164185156 | N89: 0.5466700631 | O89: 1.666823261 | P89: =VLOOKUP(AF89,[3]ANEEL!AW:AY,2,0) -> 7.28 | Q89: =VLOOKUP(AF89,[3]ANEEL!AW:AY,3,0) -> 23.45 | AF89: Rio de JaneiroCeral AraruamaB1Residencial
A90: Rio de Janeiro | B90: Ceral Araruama | C90: 2023-04-28 | D90: B2 | E90: Rural | F90: MWh | H90: 513.8698593 | I90: 923.13 | J90: 310.89 | K90: 513.8698593 | L90: 0.5566603396 | M90: 0.416419393 | N90: 0.5138698593 | O90: 1.566810564 | P90: =VLOOKUP(AF90,[3]ANEEL!AW:AY,2,0) -> 7.28 | Q90: =VLOOKUP(AF90,[3]ANEEL!AW:AY,3,0) -> 23.45 | AF90: Rio de JaneiroCeral AraruamaB2Rural
A91: Rio de Janeiro | B91: Ceral Araruama | C91: 2023-04-28 | D91: B3 | E91: Comercial | F91: MWh | H91: 546.6700631 | I91: 982.06 | J91: 330.73 | K91: 546.6700631 | L91: 0.5566564804 | M91: 0.4164185156 | N91: 0.5466700631 | O91: 1.666823261 | P91: =VLOOKUP(AF91,[3]ANEEL!AW:AY,2,0) -> 7.28 | Q91: =VLOOKUP(AF91,[3]ANEEL!AW:AY,3,0) -> 23.45 | AF91: Rio de JaneiroCeral AraruamaB3Comercial
A92: Rio de Janeiro | B92: CERCI | C92: 2023-04-28 | D92: B1 | E92: Residencial | F92: MWh | H92: 536.4194382 | I92: 969.52 | J92: 260.8 | K92: 536.4194382 | L92: 0.5532835198 | M92: 0.4359999335 | N92: 0.5364194382 | O92: 1.562112748 | P92: =VLOOKUP(AF92,[3]ANEEL!AW:AY,2,0) -> 7.15 | Q92: =VLOOKUP(AF92,[3]ANEEL!AW:AY,3,0) -> 23.01 | AF92: Rio de JaneiroCERCIB1Residencial
A93: Rio de Janeiro | B93: CERCI | C93: 2023-04-28 | D93: B2 | E93: Rural | F93: MWh | H93: 504.2342719 | I93: 911.35 | J93: 245.15 | K93: 504.2342719 | L93: 0.5532827913 | M93: 0.4360002351 | N93: 0.5042342719 | O93: 1.468384967 | P93: =VLOOKUP(AF93,[3]ANEEL!AW:AY,2,0) -> 7.15 | Q93: =VLOOKUP(AF93,[3]ANEEL!AW:AY,3,0) -> 23.01 | AF93: Rio de JaneiroCERCIB2Rural
A94: Rio de Janeiro | B94: CERCI | C94: 2023-04-28 | D94: B3 | E94: Comercial | F94: MWh | G94: -8.51010487 | H94: 536.4194382 | I94: 969.52 | J94: 260.8 | K94: 531.7109374 | L94: 0.5484269921 | M94: 0.4359999335 | N94: 0.5364194382 | O94: 1.562112748 | P94: =VLOOKUP(AF94,[3]ANEEL!AW:AY,2,0) -> 7.15 | Q94: =VLOOKUP(AF94,[3]ANEEL!AW:AY,3,0) -> 23.01 | AF94: Rio de JaneiroCERCIB3Comercial
A95: Rio de Janeiro | B95: Ceres | C95: 2023-04-28 | D95: B1 | E95: Residencial | F95: MWh | H95: 491.1023072 | I95: 1046.47 | J95: 225.79 | K95: 491.1023072 | L95: 0.4692942055 | M95: 0.3860078186 | N95: 0.4911023072 | O95: 1.615363128 | P95: =VLOOKUP(AF95,[3]ANEEL!AW:AY,2,0) -> 3.47 | Q95: =VLOOKUP(AF95,[3]ANEEL!AW:AY,3,0) -> 11.17 | AF95: Rio de JaneiroCeresB1Residencial
A96: Rio de Janeiro | B96: Ceres | C96: 2023-04-28 | D96: B2 | E96: Rural | F96: MWh | H96: 461.6361688 | I96: 983.68 | J96: 212.25 | K96: 461.6361688 | L96: 0.4692950643 | M96: 0.3860060111 | N96: 0.4616361688 | O96: 1.518448451 | P96: =VLOOKUP(AF96,[3]ANEEL!AW:AY,2,0) -> 3.47 | Q96: =VLOOKUP(AF96,[3]ANEEL!AW:AY,3,0) -> 11.17 | AF96: Rio de JaneiroCeresB2Rural
A97: Rio de Janeiro | B97: Ceres | C97: 2023-04-28 | D97: B3 | E97: Comercial | F97: MWh | H97: 491.1023072 | I97: 1046.47 | J97: 225.79 | K97: 491.1023072 | L97: 0.4692942055 | M97: 0.3860078186 | N97: 0.4911023072 | O97: 1.615363128 | P97: =VLOOKUP(AF97,[3]ANEEL!AW:AY,2,0) -> 3.47 | Q97: =VLOOKUP(AF97,[3]ANEEL!AW:AY,3,0) -> 11.17 | AF97: Rio de JaneiroCeresB3Comercial
A98: Rio de Janeiro | B98: Enel RJ | C98: 2023-03-14 | D98: B1 | E98: Residencial | F98: MWh | G98: -39.37411734 | H98: 248.1640322 | I98: 496.79 | J98: 304.85 | K98: 228.4952793 | L98: 0.4599433952 | M98: 0.3095704208 | N98: 0.2481640322 | O98: 1.017826308 | P98: =VLOOKUP(AF98,[3]ANEEL!AW:AY,2,0) -> 3.09 | Q98: =VLOOKUP(AF98,[3]ANEEL!AW:AY,3,0) -> 9.87 | AF98: Rio de JaneiroEnel RJB1Residencial
A99: Rio de Janeiro | B99: Enel RJ | C99: 2023-03-14 | D99: B2 | E99: Rural | F99: MWh | G99: -37.0116703 | H99: 233.2741902 | I99: 466.99 | J99: 286.56 | K99: 214.7858555 | L99: 0.4599367343 | M99: 0.30956697 | N99: 0.2332741902 | O99: 0.9567673946 | P99: =VLOOKUP(AF99,[3]ANEEL!AW:AY,2,0) -> 3.09 | Q99: =VLOOKUP(AF99,[3]ANEEL!AW:AY,3,0) -> 9.87 | AF99: Rio de JaneiroEnel RJB2Rural
A100: Rio de Janeiro | B100: Enel RJ | C100: 2023-03-14 | D100: B3 | E100: Comercial | F100: MWh | G100: -39.37411734 | H100: 248.1640322 | I100: 496.79 | J100: 304.85 | K100: 228.4952793 | L100: 0.4599433952 | M100: 0.3095704208 | N100: 0.2481640322 | O100: 1.017826308 | P100: =VLOOKUP(AF100,[3]ANEEL!AW:AY,2,0) -> 3.09 | Q100: =VLOOKUP(AF100,[3]ANEEL!AW:AY,3,0) -> 9.87 | AF100: Rio de JaneiroEnel RJB3Comercial
A101: Rio de Janeiro | B101: Energisa (ENF) | C101: 2023-06-21 | D101: B1 | E101: Residencial | F101: MWh | G101: -19.53377221 | H101: 197.465802 | I101: 476.19 | J101: 345.74 | K101: 189.3655647 | L101: 0.3976680836 | M101: 0.2402464955 | N101: 0.197465802 | O101: 1.043588116 | P101: =VLOOKUP(AF101,[3]ANEEL!AW:AY,2,0) -> 3.15 | Q101: =VLOOKUP(AF101,[3]ANEEL!AW:AY,3,0) -> 9.24 | AF101: Rio de JaneiroEnergisa (ENF)B1Residencial
A102: Rio de Janeiro | B102: Energisa (ENF) | C102: 2023-06-21 | D102: B2 | E102: Rural | F102: MWh | G102: -18.36174588 | H102: 185.6178539 | I102: 447.62 | J102: 325 | K102: 178.0036547 | L102: 0.397666893 | M102: 0.240244692 | N102: 0.1856178539 | O102: 0.980980193 | P102: =VLOOKUP(AF102,[3]ANEEL!AW:AY,2,0) -> 3.15 | Q102: =VLOOKUP(AF102,[3]ANEEL!AW:AY,3,0) -> 9.24 | AF102: Rio de JaneiroEnergisa (ENF)B2Rural
A103: Rio de Janeiro | B103: Energisa (ENF) | C103: 2023-06-21 | D103: B3 | E103: Comercial | F103: MWh | G103: -19.53377221 | H103: 197.465802 | I103: 476.19 | J103: 345.74 | K103: 189.3655647 | L103: 0.3976680836 | M103: 0.2402464955 | N103: 0.197465802 | O103: 1.043588116 | P103: =VLOOKUP(AF103,[3]ANEEL!AW:AY,2,0) -> 3.15 | Q103: =VLOOKUP(AF103,[3]ANEEL!AW:AY,3,0) -> 9.24 | AF103: Rio de JaneiroEnergisa (ENF)B3Comercial
A104: Rio de Janeiro | B104: Light | C104: 2023-03-14 | D104: B1 | E104: Residencial | F104: MWh | G104: -35.77505026 | H104: 166.5878917 | I104: 447.38 | J104: 354.82 | K104: 153.2665761 | L104: 0.342587009 | M104: 0.2076637892 | N104: 0.1665878917 | O104: 1.018537329 | P104: =VLOOKUP(AF104,[3]ANEEL!AW:AY,2,0) -> 7.83 | Q104: =VLOOKUP(AF104,[3]ANEEL!AW:AY,3,0) -> 12.13 | AF104: Rio de JaneiroLightB1Residencial
A105: Rio de Janeiro | B105: Light | C105: 2023-03-14 | D105: B2 | E105: Rural | F105: MWh | G105: -33.62854725 | H105: 156.5926182 | I105: 420.54 | J105: 333.53 | K105: 144.0706649 | L105: 0.3425849262 | M105: 0.2076632385 | N105: 0.1565926182 | O105: 0.9574276282 | P105: =VLOOKUP(AF105,[3]ANEEL!AW:AY,2,0) -> 7.83 | Q105: =VLOOKUP(AF105,[3]ANEEL!AW:AY,3,0) -> 12.13 | AF105: Rio de JaneiroLightB2Rural
A106: Rio de Janeiro | B106: Light | C106: 2023-03-14 | D106: B3 | E106: Comercial | F106: MWh | G106: -35.77505026 | H106: 166.5878917 | I106: 447.38 | J106: 354.82 | K106: 153.2665761 | L106: 0.342587009 | M106: 0.2076637892 | N106: 0.1665878917 | O106: 1.018537329 | P106: =VLOOKUP(AF106,[3]ANEEL!AW:AY,2,0) -> 7.83 | Q106: =VLOOKUP(AF106,[3]ANEEL!AW:AY,3,0) -> 12.13 | AF106: Rio de JaneiroLightB3Comercial
A107: Rio Grande do Norte | B107: Cosern | C107: 2023-04-21 | D107: B1 | E107: Residencial | F107: MWh | G107: -25.88317063 | H107: 254.1366387 | I107: 379.54 | J107: 282.32 | K107: 236.8054958 | L107: 0.6239276382 | M107: 0.3839734064 | N107: 0.2541366387 | O107: 0.8403504317 | P107: =VLOOKUP(AF107,[3]ANEEL!AW:AY,2,0) -> 9.99 | Q107: =VLOOKUP(AF107,[3]ANEEL!AW:AY,3,0) -> 19.69 | AF107: Rio Grande do NorteCosernB1Residencial
A108: Rio Grande do Norte | B108: Cosern | C108: 2023-04-21 | D108: B2 | E108: Rural | F108: MWh | G108: -24.33018039 | H108: 238.8884404 | I108: 356.77 | J108: 265.38 | K108: 222.5972757 | L108: 0.6239237482 | M108: 0.3839724189 | N108: 0.2388884404 | O108: 0.7899314373 | P108: =VLOOKUP(AF108,[3]ANEEL!AW:AY,2,0) -> 9.99 | Q108: =VLOOKUP(AF108,[3]ANEEL!AW:AY,3,0) -> 19.69 | AF108: Rio Grande do NorteCosernB2Rural
A109: Rio Grande do Norte | B109: Cosern | C109: 2023-04-21 | D109: B3 | E109: Comercial | F109: MWh | G109: -25.88317063 | H109: 254.1366387 | I109: 379.54 | J109: 282.32 | K109: 236.8054958 | L109: 0.6239276382 | M109: 0.3839734064 | N109: 0.2541366387 | O109: 0.8403504317 | P109: =VLOOKUP(AF109,[3]ANEEL!AW:AY,2,0) -> 9.99 | Q109: =VLOOKUP(AF109,[3]ANEEL!AW:AY,3,0) -> 19.69 | AF109: Rio Grande do NorteCosernB3Comercial
A110: Rio Grande do Sul | B110: CEEE Equatorial | C110: 2023-11-21 | D110: B1 | E110: Residencial | F110: MWh | G110: -19.67807616 | H110: 148.8001723 | I110: 377.12 | J110: 278.44 | K110: 141.0357973 | L110: 0.3739812189 | M110: 0.2269817749 | N110: 0.1488001723 | O110: 0.8323514474 | P110: =VLOOKUP(AF110,[3]ANEEL!AW:AY,2,0) -> 3.85 | Q110: =VLOOKUP(AF110,[3]ANEEL!AW:AY,3,0) -> 9.9 | AF110: Rio Grande do SulCEEE EquatorialB1Residencial
A111: Rio Grande do Sul | B111: CEEE Equatorial | C111: 2023-11-21 | D111: B2 | E111: Rural | F111: MWh | G111: -25.63676494 | H111: 139.872162 | I111: 354.49 | J111: 261.74 | K111: 129.7565882 | L111: 0.3660373727 | M111: 0.2269804489 | N111: 0.139872162 | O111: 0.7824149314 | P111: =VLOOKUP(AF111,[3]ANEEL!AW:AY,2,0) -> 3.85 | Q111: =VLOOKUP(AF111,[3]ANEEL!AW:AY,3,0) -> 9.9 | AF111: Rio Grande do SulCEEE EquatorialB2Rural
A112: Rio Grande do Sul | B112: CEEE Equatorial | C112: 2023-11-21 | D112: B3 | E112: Comercial | F112: MWh | G112: -27.86604884 | H112: 148.8001723 | I112: 377.12 | J112: 278.44 | K112: 137.8050703 | L112: 0.3654143782 | M112: 0.2269817749 | N112: 0.1488001723 | O112: 0.8323514474 | P112: =VLOOKUP(AF112,[3]ANEEL!AW:AY,2,0) -> 3.85 | Q112: =VLOOKUP(AF112,[3]ANEEL!AW:AY,3,0) -> 9.9 | AF112: Rio Grande do SulCEEE EquatorialB3Comercial
A113: Rio Grande do Sul | B113: CELETRO | C113: 2023-07-29 | D113: B1 | E113: Residencial | F113: MWh | H113: 209.2194495 | I113: 487.86 | J113: 251.92 | K113: 209.2194495 | L113: 0.4288514113 | M113: 0.2828130654 | N113: 0.2092194495 | O113: 0.9392839005 | P113: =VLOOKUP(AF113,[3]ANEEL!AW:AY,2,0) -> 4.55 | Q113: =VLOOKUP(AF113,[3]ANEEL!AW:AY,3,0) -> 11.8 | AF113: Rio Grande do SulCELETROB1Residencial
A114: Rio Grande do Sul | B114: CELETRO | C114: 2023-07-29 | D114: B2 | E114: Rural | F114: MWh | H114: 196.6662825 | I114: 458.59 | J114: 236.81 | K114: 196.6662825 | L114: 0.428849915 | M114: 0.2828102999 | N114: 0.1966662825 | O114: 0.8829355003 | P114: =VLOOKUP(AF114,[3]ANEEL!AW:AY,2,0) -> 4.55 | Q114: =VLOOKUP(AF114,[3]ANEEL!AW:AY,3,0) -> 11.8 | AF114: Rio Grande do SulCELETROB2Rural
A115: Rio Grande do Sul | B115: CELETRO | C115: 2023-07-29 | D115: B3 | E115: Comercial | F115: MWh | H115: 209.2194495 | I115: 487.86 | J115: 251.92 | K115: 209.2194495 | L115: 0.4288514113 | M115: 0.2828130654 | N115: 0.2092194495 | O115: 0.9392839005 | P115: =VLOOKUP(AF115,[3]ANEEL!AW:AY,2,0) -> 4.55 | Q115: =VLOOKUP(AF115,[3]ANEEL!AW:AY,3,0) -> 11.8 | AF115: Rio Grande do SulCELETROB3Comercial
A116: Rio Grande do Sul | B116: Cerfox | C116: 2023-07-29 | D116: B1 | E116: Residencial | F116: MWh | H116: 205.3609675 | I116: 482.61 | J116: 243.99 | K116: 205.3609675 | L116: 0.4255215755 | M116: 0.2826327657 | N116: 0.2053609675 | O116: 0.9225495175 | P116: =VLOOKUP(AF116,[3]ANEEL!AW:AY,2,0) -> 9.34 | Q116: =VLOOKUP(AF116,[3]ANEEL!AW:AY,3,0) -> 25.07 | AF116: Rio Grande do SulCerfoxB1Residencial
A117: Rio Grande do Sul | B117: Cerfox | C117: 2023-07-29 | D117: B2 | E117: Rural | F117: MWh | H117: 193.0393095 | I117: 453.66 | J117: 229.35 | K117: 193.0393095 | L117: 0.4255153848 | M117: 0.2826302829 | N117: 0.1930393095 | O117: 0.8672041646 | P117: =VLOOKUP(AF117,[3]ANEEL!AW:AY,2,0) -> 9.34 | Q117: =VLOOKUP(AF117,[3]ANEEL!AW:AY,3,0) -> 25.07 | AF117: Rio Grande do SulCerfoxB2Rural
A118: Rio Grande do Sul | B118: Cerfox | C118: 2023-07-29 | D118: B3 | E118: Comercial | F118: MWh | H118: 205.3609675 | I118: 482.61 | J118: 243.99 | K118: 205.3609675 | L118: 0.4255215755 | M118: 0.2826327657 | N118: 0.2053609675 | O118: 0.9225495175 | P118: =VLOOKUP(AF118,[3]ANEEL!AW:AY,2,0) -> 9.34 | Q118: =VLOOKUP(AF118,[3]ANEEL!AW:AY,3,0) -> 25.07 | AF118: Rio Grande do SulCerfoxB3Comercial
A119: Rio Grande do Sul | B119: Ceriluz | C119: 2023-07-29 | D119: B1 | E119: Residencial | F119: MWh | G119: -16.82550403 | H119: 175.4085526 | I119: 389.1 | J119: 206.82 | K119: 167.8235171 | L119: 0.431312046 | M119: 0.294349162 | N119: 0.1754085526 | O119: 0.7566277298 | P119: =VLOOKUP(AF119,[3]ANEEL!AW:AY,2,0) -> 3.6 | Q119: =VLOOKUP(AF119,[3]ANEEL!AW:AY,3,0) -> 9.35 | AF119: Rio Grande do SulCeriluzB1Residencial
A120: Rio Grande do Sul | B120: Ceriluz | C120: 2023-07-29 | D120: B2 | E120: Rural | F120: MWh | G120: -15.81597379 | H120: 164.8840394 | I120: 365.75 | J120: 194.41 | K120: 157.7540281 | L120: 0.4313165498 | M120: 0.2943516842 | N120: 0.1648840394 | O120: 0.7112239716 | P120: =VLOOKUP(AF120,[3]ANEEL!AW:AY,2,0) -> 3.6 | Q120: =VLOOKUP(AF120,[3]ANEEL!AW:AY,3,0) -> 9.35 | AF120: Rio Grande do SulCeriluzB2Rural
A121: Rio Grande do Sul | B121: Ceriluz | C121: 2023-07-29 | D121: B3 | E121: Comercial | F121: MWh | G121: -16.82550403 | H121: 175.4085526 | I121: 389.1 | J121: 206.82 | K121: 167.8235171 | L121: 0.431312046 | M121: 0.294349162 | N121: 0.1754085526 | O121: 0.7566277298 | P121: =VLOOKUP(AF121,[3]ANEEL!AW:AY,2,0) -> 3.6 | Q121: =VLOOKUP(AF121,[3]ANEEL!AW:AY,3,0) -> 9.35 | AF121: Rio Grande do SulCeriluzB3Comercial
A122: Rio Grande do Sul | B122: Cermissões | C122: 2023-07-29 | D122: B1 | E122: Residencial | F122: MWh | H122: 260.2828067 | I122: 496.98 | J122: 216.8 | K122: 260.2828067 | L122: 0.5237289361 | M122: 0.3646541044 | N122: 0.2602828067 | O122: 0.9062722194 | P122: =VLOOKUP(AF122,[3]ANEEL!AW:AY,2,0) -> 5.65 | Q122: =VLOOKUP(AF122,[3]ANEEL!AW:AY,3,0) -> 14.68 | AF122: Rio Grande do SulCermissõesB1Residencial
A123: Rio Grande do Sul | B123: Cermissões | C123: 2023-07-29 | D123: B2 | E123: Rural | F123: MWh | H123: 244.6658383 | I123: 467.16 | J123: 203.8 | K123: 244.6658383 | L123: 0.5237302814 | M123: 0.3646504088 | N123: 0.2446658383 | O123: 0.8519045201 | P123: =VLOOKUP(AF123,[3]ANEEL!AW:AY,2,0) -> 5.65 | Q123: =VLOOKUP(AF123,[3]ANEEL!AW:AY,3,0) -> 14.68 | AF123: Rio Grande do SulCermissõesB2Rural
A124: Rio Grande do Sul | B124: Cermissões | C124: 2023-07-29 | D124: B3 | E124: Comercial | F124: MWh | H124: 260.2828067 | I124: 496.98 | J124: 216.8 | K124: 260.2828067 | L124: 0.5237289361 | M124: 0.3646541044 | N124: 0.2602828067 | O124: 0.9062722194 | P124: =VLOOKUP(AF124,[3]ANEEL!AW:AY,2,0) -> 5.65 | Q124: =VLOOKUP(AF124,[3]ANEEL!AW:AY,3,0) -> 14.68 | AF124: Rio Grande do SulCermissõesB3Comercial
A125: Rio Grande do Sul | B125: Certaja | C125: 2023-07-29 | D125: B1 | E125: Residencial | F125: MWh | G125: -25.74111299 | H125: 175.6646134 | I125: 352.54 | J125: 198.07 | K125: 162.8382599 | L125: 0.4619000961 | M125: 0.3190363658 | N125: 0.1756646134 | O125: 0.6990985272 | P125: =VLOOKUP(AF125,[3]ANEEL!AW:AY,2,0) -> 5.66 | Q125: =VLOOKUP(AF125,[3]ANEEL!AW:AY,3,0) -> 16.97 | AF125: Rio Grande do SulCertajaB1Residencial
A126: Rio Grande do Sul | B126: Certaja | C126: 2023-07-29 | D126: B2 | E126: Rural | F126: MWh | G126: -24.19664621 | H126: 165.1247366 | I126: 331.38 | J126: 186.19 | K126: 153.0676878 | L126: 0.461909855 | M126: 0.3190384616 | N126: 0.1651247366 | O126: 0.6571482986 | P126: =VLOOKUP(AF126,[3]ANEEL!AW:AY,2,0) -> 5.66 | Q126: =VLOOKUP(AF126,[3]ANEEL!AW:AY,3,0) -> 16.97 | AF126: Rio Grande do SulCertajaB2Rural
A127: Rio Grande do Sul | B127: Certaja | C127: 2023-07-29 | D127: B3 | E127: Comercial | F127: MWh | G127: -25.74111299 | H127: 175.6646134 | I127: 352.54 | J127: 198.07 | K127: 162.8382599 | L127: 0.4619000961 | M127: 0.3190363658 | N127: 0.1756646134 | O127: 0.6990985272 | P127: =VLOOKUP(AF127,[3]ANEEL!AW:AY,2,0) -> 5.66 | Q127: =VLOOKUP(AF127,[3]ANEEL!AW:AY,3,0) -> 16.97 | AF127: Rio Grande do SulCertajaB3Comercial
A128: Rio Grande do Sul | B128: Certel | C128: 2023-07-29 | D128: B1 | E128: Residencial | F128: MWh | H128: 194.5785884 | I128: 385.32 | J128: 197.64 | K128: 194.5785884 | L128: 0.5049792078 | M128: 0.3337769116 | N128: 0.1945785884 | O128: 0.7401726765 | P128: =VLOOKUP(AF128,[3]ANEEL!AW:AY,2,0) -> 7.15 | Q128: =VLOOKUP(AF128,[3]ANEEL!AW:AY,3,0) -> 19.57 | AF128: Rio Grande do SulCertelB1Residencial
A129: Rio Grande do Sul | B129: Certel | C129: 2023-07-29 | D129: B2 | E129: Rural | F129: MWh | H129: 182.9038731 | I129: 362.2 | J129: 185.78 | K129: 182.9038731 | L129: 0.5049803232 | M129: 0.3337783734 | N129: 0.1829038731 | O129: 0.6957592687 | P129: =VLOOKUP(AF129,[3]ANEEL!AW:AY,2,0) -> 7.15 | Q129: =VLOOKUP(AF129,[3]ANEEL!AW:AY,3,0) -> 19.57 | AF129: Rio Grande do SulCertelB2Rural
A130: Rio Grande do Sul | B130: Certel | C130: 2023-07-29 | D130: B3 | E130: Comercial | F130: MWh | H130: 194.5785884 | I130: 385.32 | J130: 197.64 | K130: 194.5785884 | L130: 0.5049792078 | M130: 0.3337769116 | N130: 0.1945785884 | O130: =((I130+J130)/1000)/0.7876 -> 0.7401726765 | P130: =VLOOKUP(AF130,[3]ANEEL!AW:AY,2,0) -> 7.15 | Q130: =VLOOKUP(AF130,[3]ANEEL!AW:AY,3,0) -> 19.57 | AF130: Rio Grande do SulCertelB3Comercial
A131: Rio Grande do Sul | B131: Certhil | C131: 2023-07-29 | D131: B1 | E131: Residencial | F131: MWh | H131: 186.3576179 | I131: 403.12 | J131: 196 | K131: 186.3576179 | L131: 0.4622881968 | M131: 0.3110522398 | N131: 0.1863576179 | O131: 0.7606907059 | P131: =VLOOKUP(AF131,[3]ANEEL!AW:AY,2,0) -> 4.05 | Q131: =VLOOKUP(AF131,[3]ANEEL!AW:AY,3,0) -> 10.51 | AF131: =A131&B131&D131&E131 -> Rio Grande do SulCerthilB1Residencial
A132: Rio Grande do Sul | B132: Certhil | C132: 2023-07-29 | D132: B2 | E132: Rural | F132: MWh | H132: 175.1761608 | I132: 378.93 | J132: 184.24 | K132: 175.1761608 | L132: 0.4622916128 | M132: 0.3110537863 | N132: 0.1751761608 | O132: 0.7150457085 | P132: =VLOOKUP(AF132,[3]ANEEL!AW:AY,2,0) -> 4.05 | Q132: =VLOOKUP(AF132,[3]ANEEL!AW:AY,3,0) -> 10.51 | AF132: Rio Grande do SulCerthilB2Rural
A133: Rio Grande do Sul | B133: Certhil | C133: 2023-07-29 | D133: B3 | E133: Comercial | F133: MWh | H133: 186.3576179 | I133: 403.12 | J133: 196 | K133: 186.3576179 | L133: 0.4622881968 | M133: 0.3110522398 | N133: 0.1863576179 | O133: 0.7606907059 | P133: =VLOOKUP(AF133,[3]ANEEL!AW:AY,2,0) -> 4.05 | Q133: =VLOOKUP(AF133,[3]ANEEL!AW:AY,3,0) -> 10.51 | AF133: Rio Grande do SulCerthilB3Comercial
A134: Rio Grande do Sul | B134: Cooperluz | C134: 2023-07-29 | D134: B1 | E134: Residencial | F134: MWh | G134: -10.28819211 | H134: 107.0813603 | I134: 283.72 | J134: 220.93 | K134: 103.1983997 | L134: 0.3637332569 | M134: 0.2121893597 | N134: 0.1070813603 | O134: 0.6407440325 | P134: =VLOOKUP(AF134,[3]ANEEL!AW:AY,2,0) -> 1.61 | Q134: =VLOOKUP(AF134,[3]ANEEL!AW:AY,3,0) -> 7.6 | AF134: Rio Grande do SulCooperluzB1Residencial
A135: Rio Grande do Sul | B135: Cooperluz | C135: 2023-07-29 | D135: B2 | E135: Rural | F135: MWh | G135: -9.670900584 | H135: 100.6564787 | I135: 266.7 | J135: 207.67 | K135: 97.00653948 | L135: 0.3637290569 | M135: 0.212189807 | N135: 0.1006564787 | O135: 0.6022981209 | P135: =VLOOKUP(AF135,[3]ANEEL!AW:AY,2,0) -> 1.61 | Q135: =VLOOKUP(AF135,[3]ANEEL!AW:AY,3,0) -> 7.6 | AF135: Rio Grande do SulCooperluzB2Rural
A136: Rio Grande do Sul | B136: Cooperluz | C136: 2023-07-29 | D136: B3 | E136: Comercial | F136: MWh | G136: -10.28819211 | H136: 107.0813603 | I136: 283.72 | J136: 220.93 | K136: 103.1983997 | L136: 0.3637332569 | M136: 0.2121893597 | N136: 0.1070813603 | O136: 0.6407440325 | P136: =VLOOKUP(AF136,[3]ANEEL!AW:AY,2,0) -> 1.61 | Q136: =VLOOKUP(AF136,[3]ANEEL!AW:AY,3,0) -> 7.6 | AF136: Rio Grande do SulCooperluzB3Comercial
A137: Rio Grande do Sul | B137: Coopernorte | C137: 2022-12-21 | D137: B1 | E137: Residencial | F137: MWh | H137: 374.5750989 | I137: 617.48 | J137: 198.21 | K137: 374.5750989 | L137: 0.606618998 | M137: 0.4592125672 | N137: 0.3745750989 | O137: 1.035665312 | P137: =VLOOKUP(AF137,[3]ANEEL!AW:AY,2,0) -> 9.53 | Q137: =VLOOKUP(AF137,[3]ANEEL!AW:AY,3,0) -> 24.66 | AF137: Rio Grande do SulCoopernorteB1Residencial
A138: Rio Grande do Sul | B138: Coopernorte | C138: 2022-12-21 | D138: B2 | E138: Rural | F138: MWh | H138: 329.626087 | I138: 543.38 | J138: 174.43 | K138: 329.626087 | L138: 0.6066216773 | M138: 0.4592107759 | N138: 0.329626087 | O138: 0.91138903 | P138: =VLOOKUP(AF138,[3]ANEEL!AW:AY,2,0) -> 9.53 | Q138: =VLOOKUP(AF138,[3]ANEEL!AW:AY,3,0) -> 24.66 | AF138: Rio Grande do SulCoopernorteB2Rural
A139: Rio Grande do Sul | B139: Coopernorte | C139: 2022-12-21 | D139: B3 | E139: Comercial | F139: MWh | H139: 374.5750989 | I139: 617.48 | J139: 198.21 | K139: 374.5750989 | L139: 0.606618998 | M139: 0.4592125672 | N139: 0.3745750989 | O139: 1.035665312 | P139: =VLOOKUP(AF139,[3]ANEEL!AW:AY,2,0) -> 9.53 | Q139: =VLOOKUP(AF139,[3]ANEEL!AW:AY,3,0) -> 24.66 | AF139: Rio Grande do SulCoopernorteB3Comercial
A140: Rio Grande do Sul | B140: Coprel | C140: 2023-07-29 | D140: B1 | E140: Residencial | F140: MWh | G140: -1.187346342 | H140: 73.74451572 | I140: 292.17 | J140: 198.18 | K140: 73.44482622 | L140: 0.2513770278 | M140: 0.1503915891 | N140: 0.07374451572 | O140: 0.6225876079 | P140: =VLOOKUP(AF140,[3]ANEEL!AW:AY,2,0) -> 1.61 | Q140: =VLOOKUP(AF140,[3]ANEEL!AW:AY,3,0) -> 6.34 | AF140: Rio Grande do SulCoprelB1Residencial
A141: Rio Grande do Sul | B141: Coprel | C141: 2023-07-29 | D141: B2 | E141: Rural | F141: MWh | G141: -1.116105562 | H141: 69.31984477 | I141: 274.64 | J141: 186.29 | K141: 69.03813685 | L141: 0.2513768455 | M141: 0.1503912628 | N141: 0.06931984477 | O141: 0.5852336211 | P141: =VLOOKUP(AF141,[3]ANEEL!AW:AY,2,0) -> 1.61 | Q141: =VLOOKUP(AF141,[3]ANEEL!AW:AY,3,0) -> 6.34 | AF141: Rio Grande do SulCoprelB2Rural
A142: Rio Grande do Sul | B142: Coprel | C142: 2023-07-29 | D142: B3 | E142: Comercial | F142: MWh | G142: -1.187346342 | H142: 73.74451572 | I142: 292.17 | J142: 198.18 | K142: 73.44482622 | L142: 0.2513770278 | M142: 0.1503915891 | N142: 0.07374451572 | O142: 0.6225876079 | P142: =VLOOKUP(AF142,[3]ANEEL!AW:AY,2,0) -> 1.61 | Q142: =VLOOKUP(AF142,[3]ANEEL!AW:AY,3,0) -> 6.34 | AF142: Rio Grande do SulCoprelB3Comercial
A143: Rio Grande do Sul | B143: Creluz-D | C143: 2023-07-29 | D143: B1 | E143: Residencial | F143: MWh | G143: -0.4392912639 | H143: 270.2654147 | I143: 542.67 | J143: 190.82 | K143: 270.0466348 | L143: 0.4976258773 | M143: 0.3684650297 | N143: 0.2702654147 | O143: 0.931297613 | P143: =VLOOKUP(AF143,[3]ANEEL!AW:AY,2,0) -> 12.16 | Q143: =VLOOKUP(AF143,[3]ANEEL!AW:AY,3,0) -> 23.93 | AF143: Rio Grande do SulCreluz-DB1Residencial
A144: Rio Grande do Sul | B144: Creluz-D | C144: 2023-07-29 | D144: B2 | E144: Rural | F144: MWh | G144: -0.4129337881 | H144: 254.0494898 | I144: 510.11 | J144: 179.37 | K144: 253.8438368 | L144: 0.4976256824 | M144: 0.3684653504 | N144: 0.2540494898 | O144: 0.8754189944 | P144: =VLOOKUP(AF144,[3]ANEEL!AW:AY,2,0) -> 12.16 | Q144: =VLOOKUP(AF144,[3]ANEEL!AW:AY,3,0) -> 23.93 | AF144: Rio Grande do SulCreluz-DB2Rural
A145: Rio Grande do Sul | B145: Creluz-D | C145: 2023-07-29 | D145: B3 | E145: Comercial | F145: MWh | G145: -0.4392912639 | H145: 270.2654147 | I145: 542.67 | J145: 190.82 | K145: 270.0466348 | L145: 0.4976258773 | M145: 0.3684650297 | N145: 0.2702654147 | O145: 0.931297613 | P145: =VLOOKUP(AF145,[3]ANEEL!AW:AY,2,0) -> 12.16 | Q145: =VLOOKUP(AF145,[3]ANEEL!AW:AY,3,0) -> 23.93 | AF145: Rio Grande do SulCreluz-DB3Comercial
A146: Rio Grande do Sul | B146: Creral | C146: 2023-07-29 | D146: B1 | E146: Residencial | F146: MWh | H146: 290.4784155 | I146: 570.89 | J146: 196.57 | K146: 290.4784155 | L146: 0.508816787 | M146: 0.3784932316 | N146: 0.2904784155 | O146: 0.974428644 | P146: =VLOOKUP(AF146,[3]ANEEL!AW:AY,2,0) -> 10.81 | Q146: =VLOOKUP(AF146,[3]ANEEL!AW:AY,3,0) -> 26.75 | AF146: Rio Grande do SulCreralB1Residencial
A147: Rio Grande do Sul | B147: Creral | C147: 2023-07-29 | D147: B2 | E147: Rural | F147: MWh | H147: 273.0497106 | I147: 536.63 | J147: 184.77 | K147: 273.0497106 | L147: 0.5088230449 | M147: 0.3784997374 | N147: 0.2730497106 | O147: 0.9159471813 | P147: =VLOOKUP(AF147,[3]ANEEL!AW:AY,2,0) -> 10.81 | Q147: =VLOOKUP(AF147,[3]ANEEL!AW:AY,3,0) -> 26.75 | AF147: Rio Grande do SulCreralB2Rural
A148: Rio Grande do Sul | B148: Creral | C148: 2023-07-29 | D148: B3 | E148: Comercial | F148: MWh | H148: 290.4784155 | I148: 570.89 | J148: 196.57 | K148: 290.4784155 | L148: 0.508816787 | M148: 0.3784932316 | N148: 0.2904784155 | O148: 0.974428644 | P148: =VLOOKUP(AF148,[3]ANEEL!AW:AY,2,0) -> 10.81 | Q148: =VLOOKUP(AF148,[3]ANEEL!AW:AY,3,0) -> 26.75 | AF148: Rio Grande do SulCreralB3Comercial
A149: Rio Grande do Sul | B149: Demei | C149: 2023-07-21 | D149: B1 | E149: Residencial | F149: MWh | H149: 116.6544703 | I149: 421.12 | J149: 259.99 | K149: 116.6544703 | L149: 0.2770100453 | M149: 0.1712711166 | N149: 0.1166544703 | O149: 0.8647917725 | P149: =VLOOKUP(AF149,[3]ANEEL!AW:AY,2,0) -> 3.52 | Q149: =VLOOKUP(AF149,[3]ANEEL!AW:AY,3,0) -> 6.87 | AF149: Rio Grande do SulDemeiB1Residencial
A150: Rio Grande do Sul | B150: Demei | C150: 2023-07-21 | D150: B2 | E150: Rural | F150: MWh | H150: 109.655202 | I150: 395.85 | J150: 244.39 | K150: 109.655202 | L150: 0.2770120047 | M150: 0.1712720262 | N150: 0.109655202 | O150: 0.8128999492 | P150: =VLOOKUP(AF150,[3]ANEEL!AW:AY,2,0) -> 3.52 | Q150: =VLOOKUP(AF150,[3]ANEEL!AW:AY,3,0) -> 6.87 | AF150: Rio Grande do SulDemeiB2Rural
A151: Rio Grande do Sul | B151: Demei | C151: 2023-07-21 | D151: B3 | E151: Comercial | F151: MWh | H151: 116.6544703 | I151: 421.12 | J151: 259.99 | K151: 116.6544703 | L151: 0.2770100453 | M151: 0.1712711166 | N151: 0.1166544703 | O151: 0.8647917725 | P151: =VLOOKUP(AF151,[3]ANEEL!AW:AY,2,0) -> 3.52 | Q151: =VLOOKUP(AF151,[3]ANEEL!AW:AY,3,0) -> 6.87 | AF151: Rio Grande do SulDemeiB3Comercial
A152: Rio Grande do Sul | B152: Eletrocar | C152: 2023-07-21 | D152: B1 | E152: Residencial | F152: MWh | G152: -71.26012992 | H152: 185.4401654 | I152: 330.16 | J152: 230.58 | K152: 145.4156613 | L152: 0.4404399724 | M152: 0.330706148 | N152: 0.1854401654 | O152: 0.711960386 | P152: =VLOOKUP(AF152,[3]ANEEL!AW:AY,2,0) -> 2.94 | Q152: =VLOOKUP(AF152,[3]ANEEL!AW:AY,3,0) -> 9 | AF152: Rio Grande do SulEletrocarB1Residencial
A153: Rio Grande do Sul | B153: Eletrocar | C153: 2023-07-21 | D153: B2 | E153: Rural | F153: MWh | G153: -66.98452213 | H153: 174.3137555 | I153: 310.35 | J153: 216.75 | K153: 136.6906731 | L153: 0.4404403838 | M153: 0.3307033874 | N153: 0.1743137555 | O153: 0.6692483494 | P153: =VLOOKUP(AF153,[3]ANEEL!AW:AY,2,0) -> 2.94 | Q153: =VLOOKUP(AF153,[3]ANEEL!AW:AY,3,0) -> 9 | AF153: Rio Grande do SulEletrocarB2Rural
A154: Rio Grande do Sul | B154: Eletrocar | C154: 2023-07-21 | D154: B3 | E154: Comercial | F154: MWh | G154: -71.26012992 | H154: 185.4401654 | I154: 330.16 | J154: 230.58 | K154: 145.4156613 | L154: 0.4404399724 | M154: 0.330706148 | N154: 0.1854401654 | O154: 0.711960386 | P154: =VLOOKUP(AF154,[3]ANEEL!AW:AY,2,0) -> 2.94 | Q154: =VLOOKUP(AF154,[3]ANEEL!AW:AY,3,0) -> 9 | AF154: Rio Grande do SulEletrocarB3Comercial
A155: Rio Grande do Sul | B155: Hidropan | C155: 2023-07-21 | D155: B1 | E155: Residencial | F155: MWh | G155: -65.35276165 | H155: 169.0154836 | I155: 313.91 | J155: 248.9 | K155: 133.8282369 | L155: 0.4263267717 | M155: 0.3003064687 | N155: 0.1690154836 | O155: 0.7145886237 | P155: =VLOOKUP(AF155,[3]ANEEL!AW:AY,2,0) -> 4.71 | Q155: =VLOOKUP(AF155,[3]ANEEL!AW:AY,3,0) -> 7.84 | AF155: Rio Grande do SulHidropanB1Residencial
A156: Rio Grande do Sul | B156: Hidropan | C156: 2023-07-21 | D156: B2 | E156: Rural | F156: MWh | G156: -61.43159595 | H156: 158.8745546 | I156: 295.08 | J156: 233.96 | K156: 125.7990583 | L156: 0.4263218731 | M156: 0.3003072634 | N156: 0.1588745546 | O156: 0.6717115287 | P156: =VLOOKUP(AF156,[3]ANEEL!AW:AY,2,0) -> 4.71 | Q156: =VLOOKUP(AF156,[3]ANEEL!AW:AY,3,0) -> 7.84 | AF156: Rio Grande do SulHidropanB2Rural
A157: Rio Grande do Sul | B157: Hidropan | C157: 2023-07-21 | D157: B3 | E157: Comercial | F157: MWh | G157: -65.35276165 | H157: 169.0154836 | I157: 313.91 | J157: 248.9 | K157: 133.8282369 | L157: 0.4263267717 | M157: 0.3003064687 | N157: 0.1690154836 | O157: 0.7145886237 | P157: =VLOOKUP(AF157,[3]ANEEL!AW:AY,2,0) -> 4.71 | Q157: =VLOOKUP(AF157,[3]ANEEL!AW:AY,3,0) -> 7.84 | AF157: Rio Grande do SulHidropanB3Comercial
A158: Rio Grande do Sul | B158: MuxEnergia | C158: 2023-07-21 | D158: B1 | E158: Residencial | F158: MWh | G158: -41.54862395 | H158: 135.8823385 | I158: 376.13 | J158: 227.55 | K158: 120.8723042 | L158: 0.3213577865 | M158: 0.225090012 | N158: 0.1358823385 | O158: 0.7664804469 | P158: =VLOOKUP(AF158,[3]ANEEL!AW:AY,2,0) -> 4.61 | Q158: =VLOOKUP(AF158,[3]ANEEL!AW:AY,3,0) -> 7.88 | AF158: Rio Grande do SulMuxEnergiaB1Residencial
A159: Rio Grande do Sul | B159: MuxEnergia | C159: 2023-07-21 | D159: B2 | E159: Rural | F159: MWh | G159: -39.05570651 | H159: 127.7293982 | I159: 353.57 | J159: 213.9 | K159: 113.6202772 | L159: 0.3213515774 | M159: 0.2250857282 | N159: 0.1277293982 | O159: 0.7205053327 | P159: =VLOOKUP(AF159,[3]ANEEL!AW:AY,2,0) -> 4.61 | Q159: =VLOOKUP(AF159,[3]ANEEL!AW:AY,3,0) -> 7.88 | AF159: Rio Grande do SulMuxEnergiaB2Rural
A160: Rio Grande do Sul | B160: MuxEnergia | C160: 2023-07-21 | D160: B3 | E160: Comercial | F160: MWh | G160: -41.54862395 | H160: 135.8823385 | I160: 376.13 | J160: 227.55 | K160: 120.8723042 | L160: 0.3213577865 | M160: 0.225090012 | N160: 0.1358823385 | O160: 0.7664804469 | P160: =VLOOKUP(AF160,[3]ANEEL!AW:AY,2,0) -> 4.61 | Q160: =VLOOKUP(AF160,[3]ANEEL!AW:AY,3,0) -> 7.88 | AF160: Rio Grande do SulMuxEnergiaB3Comercial
A161: Rio Grande do Sul | B161: RGE | C161: 2023-06-21 | D161: B1 | E161: Residencial | F161: MWh | G161: -21.91438495 | H161: 250.8164957 | I161: 437.54 | J161: 261.62 | K161: 238.2542403 | L161: 0.5445313349 | M161: 0.3587397673 | N161: 0.2508164957 | O161: 0.8877094972 | P161: =VLOOKUP(AF161,[3]ANEEL!AW:AY,2,0) -> 5.23 | Q161: =VLOOKUP(AF161,[3]ANEEL!AW:AY,3,0) -> 13.5 | AF161: Rio Grande do SulRGEB1Residencial
A162: Rio Grande do Sul | B162: RGE | C162: 2023-06-21 | D162: B2 | E162: Rural | F162: MWh | G162: -20.59952185 | H162: 235.767506 | I162: 437.54 | J162: 261.62 | K162: 224.6674971 | L162: 0.5134787609 | M162: 0.3372153813 | N162: 0.235767506 | O162: 0.8877094972 | P162: =VLOOKUP(AF162,[3]ANEEL!AW:AY,2,0) -> 5.23 | Q162: =VLOOKUP(AF162,[3]ANEEL!AW:AY,3,0) -> 13.5 | AF162: Rio Grande do SulRGEB2Rural
A163: Rio Grande do Sul | B163: RGE | C163: 2023-06-21 | D163: B3 | E163: Comercial | F163: MWh | G163: -21.91438495 | H163: 250.8164957 | I163: 411.29 | J163: 245.92 | K163: 237.4524722 | L163: 0.5773358753 | M163: 0.3816382826 | N163: 0.2508164957 | O163: 0.8344464195 | P163: =VLOOKUP(AF163,[3]ANEEL!AW:AY,2,0) -> 5.23 | Q163: =VLOOKUP(AF163,[3]ANEEL!AW:AY,3,0) -> 13.5 | AF163: Rio Grande do SulRGEB3Comercial
A164: Rio Grande do Sul | B164: Uhenpal | C164: 2023-07-21 | D164: B1 | E164: Residencial | F164: MWh | G164: -61.54589089 | H164: 232.3566362 | I164: 446.02 | J164: 205.52 | K164: 200.293957 | L164: 0.449069452 | M164: 0.3566268168 | N164: 0.2323566362 | O164: 0.8272473337 | P164: =VLOOKUP(AF164,[3]ANEEL!AW:AY,2,0) -> 6.1 | Q164: =VLOOKUP(AF164,[3]ANEEL!AW:AY,3,0) -> 15.64 | AF164: Rio Grande do SulUhenpalB1Residencial
A165: Rio Grande do Sul | B165: Uhenpal | C165: 2023-07-21 | D165: B2 | E165: Rural | F165: MWh | G165: -57.85313744 | H165: 218.415238 | I165: 419.26 | J165: 193.19 | K165: 188.2764058 | L165: 0.4490683725 | M165: 0.3566254193 | N165: 0.218415238 | O165: 0.7776155409 | P165: =VLOOKUP(AF165,[3]ANEEL!AW:AY,2,0) -> 6.1 | Q165: =VLOOKUP(AF165,[3]ANEEL!AW:AY,3,0) -> 15.64 | AF165: Rio Grande do SulUhenpalB2Rural
A166: Rio Grande do Sul | B166: Uhenpal | C166: 2023-07-21 | D166: B3 | E166: Comercial | F166: MWh | G166: -61.54589089 | H166: 232.3566362 | I166: 446.02 | J166: 205.52 | K166: 200.293957 | L166: 0.449069452 | M166: 0.3566268168 | N166: 0.2323566362 | O166: 0.8272473337 | P166: =VLOOKUP(AF166,[3]ANEEL!AW:AY,2,0) -> 6.1 | Q166: =VLOOKUP(AF166,[3]ANEEL!AW:AY,3,0) -> 15.64 | AF166: Rio Grande do SulUhenpalB3Comercial
A167: Rondônia | B167: Energisa RO | C167: 2023-12-12 | D167: B1 | E167: Residencial | F167: MWh | G167: -25.53910921 | H167: 252.7794024 | I167: 423.34 | J167: 233.95 | K167: 237.529814 | L167: 0.5610852128 | M167: 0.384578196 | N167: 0.2527794024 | O167: 0.8345479939 | P167: =VLOOKUP(AF167,[3]ANEEL!AW:AY,2,0) -> 2.43 | Q167: =VLOOKUP(AF167,[3]ANEEL!AW:AY,3,0) -> 20.68 | AF167: RondôniaEnergisa ROB1Residencial
A168: Rondônia | B168: Energisa RO | C168: 2023-12-12 | D168: B2 | E168: Rural | F168: MWh | G168: -27.93033872 | H168: 232.5570502 | I168: 397.94 | J168: 219.91 | K168: 216.2344961 | L168: 0.5433846714 | M168: 0.3763972651 | N168: 0.2325570502 | O168: 0.7844718131 | P168: =VLOOKUP(AF168,[3]ANEEL!AW:AY,2,0) -> 2.43 | Q168: =VLOOKUP(AF168,[3]ANEEL!AW:AY,3,0) -> 20.68 | AF168: RondôniaEnergisa ROB2Rural
A169: Rondônia | B169: Energisa RO | C169: 2023-12-12 | D169: B3 | E169: Comercial | F169: MWh | G169: -25.53910921 | H169: 252.7794024 | I169: 423.34 | J169: 233.95 | K169: 237.529814 | L169: 0.5610852128 | M169: 0.384578196 | N169: 0.2527794024 | O169: 0.8345479939 | P169: =VLOOKUP(AF169,[3]ANEEL!AW:AY,2,0) -> 2.43 | Q169: =VLOOKUP(AF169,[3]ANEEL!AW:AY,3,0) -> 20.68 | AF169: RondôniaEnergisa ROB3Comercial
A170: Roraima | B170: Roraima Energia | C170: 2023-10-31 | D170: B1 | E170: Residencial | F170: MWh | H170: 247.7371496 | I170: 398.95 | J170: 336.18 | K170: 247.7371496 | L170: 0.6209729279 | M170: 0.3369977413 | N170: 0.2477371496 | O170: 0.9333798883 | P170: =VLOOKUP(AF170,[3]ANEEL!AW:AY,2,0) -> 4.35 | Q170: =VLOOKUP(AF170,[3]ANEEL!AW:AY,3,0) -> 21.45 | AF170: RoraimaRoraima EnergiaB1Residencial
A171: Roraima | B171: Roraima Energia | C171: 2023-10-31 | D171: B2 | E171: Rural | F171: MWh | H171: 232.8729206 | I171: 375.02 | J171: 316 | K171: 232.8729206 | L171: 0.620961337 | M171: 0.3369988142 | N171: 0.2328729206 | O171: 0.8773743017 | P171: =VLOOKUP(AF171,[3]ANEEL!AW:AY,2,0) -> 4.35 | Q171: =VLOOKUP(AF171,[3]ANEEL!AW:AY,3,0) -> 21.45 | AF171: RoraimaRoraima EnergiaB2Rural
A172: Roraima | B172: Roraima Energia | C172: 2023-10-31 | D172: B3 | E172: Comercial | F172: MWh | H172: 247.7371496 | I172: 398.95 | J172: 336.18 | K172: 247.7371496 | L172: 0.6209729279 | M172: 0.3369977413 | N172: 0.2477371496 | O172: 0.9333798883 | P172: =VLOOKUP(AF172,[3]ANEEL!AW:AY,2,0) -> 4.35 | Q172: =VLOOKUP(AF172,[3]ANEEL!AW:AY,3,0) -> 21.45 | AF172: RoraimaRoraima EnergiaB3Comercial
A173: Santa Catarina | B173: Cegero | C173: 2023-09-29 | D173: B1 | E173: Residencial | F173: MWh | H173: 104.4095079 | I173: 290.13 | J173: 194.01 | K173: 104.4095079 | L173: 0.3598714641 | M173: 0.2156597428 | N173: 0.1044095079 | O173: 0.6147028949 | P173: =VLOOKUP(AF173,[3]ANEEL!AW:AY,2,0) -> 1.87 | Q173: =VLOOKUP(AF173,[3]ANEEL!AW:AY,3,0) -> 5.56 | AF173: Santa CatarinaCegeroB1Residencial
A174: Santa Catarina | B174: Cegero | C174: 2023-09-29 | D174: B2 | E174: Rural | F174: MWh | H174: 98.14493739 | I174: 272.72 | J174: 182.37 | K174: 98.14493739 | L174: 0.3598743671 | M174: 0.215660501 | N174: 0.09814493739 | O174: 0.5778186897 | P174: =VLOOKUP(AF174,[3]ANEEL!AW:AY,2,0) -> 1.87 | Q174: =VLOOKUP(AF174,[3]ANEEL!AW:AY,3,0) -> 5.56 | AF174: Santa CatarinaCegeroB2Rural
A175: Santa Catarina | B175: Cegero | C175: 2023-09-29 | D175: B3 | E175: Comercial | F175: MWh | H175: 104.4095079 | I175: 290.13 | J175: 194.01 | K175: 104.4095079 | L175: 0.3598714641 | M175: 0.2156597428 | N175: 0.1044095079 | O175: 0.6147028949 | P175: =VLOOKUP(AF175,[3]ANEEL!AW:AY,2,0) -> 1.87 | Q175: =VLOOKUP(AF175,[3]ANEEL!AW:AY,3,0) -> 5.56 | AF175: Santa CatarinaCegeroB3Comercial
A176: Santa Catarina | B176: Cejama | C176: 2023-09-29 | D176: B1 | E176: Residencial | F176: MWh | H176: 224.5323212 | I176: 448.02 | J176: 191.01 | K176: 224.5323212 | L176: 0.5011658435 | M176: 0.3513642884 | N176: 0.2245323212 | O176: 0.8113636364 | P176: =VLOOKUP(AF176,[3]ANEEL!AW:AY,2,0) -> 7.05 | Q176: =VLOOKUP(AF176,[3]ANEEL!AW:AY,3,0) -> 14.32 | AF176: Santa CatarinaCejamaB1Residencial
A177: Santa Catarina | B177: Cejama | C177: 2023-09-29 | D177: B2 | E177: Rural | F177: MWh | H177: 211.0603819 | I177: 421.14 | J177: 179.55 | K177: 211.0603819 | L177: 0.5011644154 | M177: 0.3513632355 | N177: 0.2110603819 | O177: 0.7626841036 | P177: =VLOOKUP(AF177,[3]ANEEL!AW:AY,2,0) -> 7.05 | Q177: =VLOOKUP(AF177,[3]ANEEL!AW:AY,3,0) -> 14.32 | AF177: Santa CatarinaCejamaB2Rural
A178: Santa Catarina | B178: Cejama | C178: 2023-09-29 | D178: B3 | E178: Comercial | F178: MWh | H178: 224.5323212 | I178: 448.02 | J178: 191.01 | K178: 224.5323212 | L178: 0.5011658435 | M178: 0.3513642884 | N178: 0.2245323212 | O178: 0.8113636364 | P178: =VLOOKUP(AF178,[3]ANEEL!AW:AY,2,0) -> 7.05 | Q178: =VLOOKUP(AF178,[3]ANEEL!AW:AY,3,0) -> 14.32 | AF178: Santa CatarinaCejamaB3Comercial
A179: Santa Catarina | B179: Celesc-DIS | C179: 2023-08-21 | D179: B1 | E179: Residencial | F179: MWh | G179: -21.89147547 | H179: 118.0768535 | I179: 310.49 | J179: 262.53 | K179: 109.7517012 | L179: 0.3534790209 | M179: 0.2060606148 | N179: 0.1180768535 | O179: 0.7275520569 | P179: =VLOOKUP(AF179,[3]ANEEL!AW:AY,2,0) -> 1.99 | Q179: =VLOOKUP(AF179,[3]ANEEL!AW:AY,3,0) -> 5.86 | AF179: Santa CatarinaCelesc-DISB1Residencial
A180: Santa Catarina | B180: Celesc-DIS | C180: 2023-08-21 | D180: B2 | E180: Rural | F180: MWh | G180: -20.57798694 | H180: 110.9922423 | I180: 291.86 | J180: 246.77 | K180: 103.166583 | L180: 0.3534796924 | M180: 0.2060639814 | N180: 0.1109922423 | O180: 0.6838877603 | P180: =VLOOKUP(AF180,[3]ANEEL!AW:AY,2,0) -> 1.99 | Q180: =VLOOKUP(AF180,[3]ANEEL!AW:AY,3,0) -> 5.86 | AF180: Santa CatarinaCelesc-DISB2Rural
A181: Santa Catarina | B181: Celesc-DIS | C181: 2023-08-21 | D181: B3 | E181: Comercial | F181: MWh | G181: -21.89147547 | H181: 118.0768535 | I181: 310.49 | J181: 262.53 | K181: 109.7517012 | L181: 0.3534790209 | M181: 0.2060606148 | N181: 0.1180768535 | O181: 0.7275520569 | P181: =VLOOKUP(AF181,[3]ANEEL!AW:AY,2,0) -> 1.99 | Q181: =VLOOKUP(AF181,[3]ANEEL!AW:AY,3,0) -> 5.86 | AF181: Santa CatarinaCelesc-DISB3Comercial
A182: Santa Catarina | B182: Ceprag | C182: 2022-12-21 | D182: B1 | E182: Residencial | F182: MWh | H182: 191.9407165 | I182: 384.51 | J182: 248.29 | K182: 191.9407165 | L182: 0.4991826389 | M182: 0.3033197163 | N182: 0.1919407165 | O182: 0.8034535297 | P182: =VLOOKUP(AF182,[3]ANEEL!AW:AY,2,0) -> 4.98 | Q182: =VLOOKUP(AF182,[3]ANEEL!AW:AY,3,0) -> 14.81 | AF182: Santa CatarinaCepragB1Residencial
A183: Santa Catarina | B183: Ceprag | C183: 2022-12-21 | D183: B2 | E183: Rural | F183: MWh | H183: 168.9078305 | I183: 338.37 | J183: 218.49 | K183: 168.9078305 | L183: 0.4991808686 | M183: 0.3033218951 | N183: 0.1689078305 | O183: 0.7070340274 | P183: =VLOOKUP(AF183,[3]ANEEL!AW:AY,2,0) -> 4.98 | Q183: =VLOOKUP(AF183,[3]ANEEL!AW:AY,3,0) -> 14.81 | AF183: Santa CatarinaCepragB2Rural
A184: Santa Catarina | B184: Ceprag | C184: 2022-12-21 | D184: B3 | E184: Comercial | F184: MWh | H184: 191.9407165 | I184: 384.51 | J184: 248.29 | K184: 191.9407165 | L184: 0.4991826389 | M184: 0.3033197163 | N184: 0.1919407165 | O184: 0.8034535297 | P184: =VLOOKUP(AF184,[3]ANEEL!AW:AY,2,0) -> 4.98 | Q184: =VLOOKUP(AF184,[3]ANEEL!AW:AY,3,0) -> 14.81 | AF184: Santa CatarinaCepragB3Comercial
A185: Santa Catarina | B185: Ceraça | C185: 2023-09-29 | D185: B1 | E185: Residencial | F185: MWh | H185: 186.541857 | I185: 415.67 | J185: 135.81 | K185: 186.541857 | L185: 0.4487739241 | M185: 0.3382567945 | N185: 0.186541857 | O185: 0.7002031488 | P185: =VLOOKUP(AF185,[3]ANEEL!AW:AY,2,0) -> 5.86 | Q185: =VLOOKUP(AF185,[3]ANEEL!AW:AY,3,0) -> 11.9 | AF185: Santa CatarinaCeraçaB1Residencial
A186: Santa Catarina | B186: Ceraça | C186: 2023-09-29 | D186: B2 | E186: Rural | F186: MWh | H186: 175.3493456 | I186: 390.73 | J186: 127.66 | K186: 175.3493456 | L186: 0.4487736943 | M186: 0.3382575775 | N186: 0.1753493456 | O186: 0.6581894363 | P186: =VLOOKUP(AF186,[3]ANEEL!AW:AY,2,0) -> 5.86 | Q186: =VLOOKUP(AF186,[3]ANEEL!AW:AY,3,0) -> 11.9 | AF186: Santa CatarinaCeraçaB2Rural
A187: Santa Catarina | B187: Ceraça | C187: 2023-09-29 | D187: B3 | E187: Comercial | F187: MWh | H187: 186.541857 | I187: 415.67 | J187: 135.81 | K187: 186.541857 | L187: 0.4487739241 | M187: 0.3382567945 | N187: 0.186541857 | O187: 0.7002031488 | P187: =VLOOKUP(AF187,[3]ANEEL!AW:AY,2,0) -> 5.86 | Q187: =VLOOKUP(AF187,[3]ANEEL!AW:AY,3,0) -> 11.9 | AF187: Santa CatarinaCeraçaB3Comercial
A188: Santa Catarina | B188: Ceral Anitápolis | C188: 2023-11-29 | D188: B1 | E188: Residencial | F188: MWh | H188: 180.571129 | I188: 486.09 | J188: 192.1 | K188: 180.571129 | L188: 0.3714767409 | M188: 0.2662544847 | N188: 0.180571129 | O188: 0.8610843068 | P188: =VLOOKUP(AF188,[3]ANEEL!AW:AY,2,0) -> 5.67 | Q188: =VLOOKUP(AF188,[3]ANEEL!AW:AY,3,0) -> 11.52 | AF188: Santa CatarinaCeral AnitápolisB1Residencial
A189: Santa Catarina | B189: Ceral Anitápolis | C189: 2023-11-29 | D189: B2 | E189: Rural | F189: MWh | H189: 169.7368613 | I189: 456.93 | J189: 180.57 | K189: 169.7368613 | L189: 0.3714723508 | M189: 0.2662539 | N189: 0.1697368613 | O189: 0.8094210259 | P189: =VLOOKUP(AF189,[3]ANEEL!AW:AY,2,0) -> 5.67 | Q189: =VLOOKUP(AF189,[3]ANEEL!AW:AY,3,0) -> 11.52 | AF189: Santa CatarinaCeral AnitápolisB2Rural
A190: Santa Catarina | B190: Ceral Anitápolis | C190: 2023-11-29 | D190: B3 | E190: Comercial | F190: MWh | H190: 180.571129 | I190: 486.09 | J190: 192.1 | K190: 180.571129 | L190: 0.3714767409 | M190: 0.2662544847 | N190: 0.180571129 | O190: 0.8610843068 | P190: =VLOOKUP(AF190,[3]ANEEL!AW:AY,2,0) -> 5.67 | Q190: =VLOOKUP(AF190,[3]ANEEL!AW:AY,3,0) -> 11.52 | AF190: Santa CatarinaCeral AnitápolisB3Comercial
A191: Santa Catarina | B191: Cerbranorte | C191: 2023-09-29 | D191: B1 | E191: Residencial | F191: MWh | H191: 183.0072635 | I191: 387.74 | J191: 203.38 | K191: 183.0072635 | L191: 0.4719844831 | M191: 0.3095940985 | N191: 0.1830072635 | O191: 0.7505332656 | P191: =VLOOKUP(AF191,[3]ANEEL!AW:AY,2,0) -> 5.75 | Q191: =VLOOKUP(AF191,[3]ANEEL!AW:AY,3,0) -> 11.68 | AF191: Santa CatarinaCerbranorteB1Residencial
A192: Santa Catarina | B192: Cerbranorte | C192: 2023-09-29 | D192: B2 | E192: Rural | F192: MWh | H192: 172.0268277 | I192: 364.47 | J192: 191.18 | K192: 172.0268277 | L192: 0.4719917351 | M192: 0.3095956586 | N192: 0.1720268277 | O192: 0.7054977146 | P192: =VLOOKUP(AF192,[3]ANEEL!AW:AY,2,0) -> 5.75 | Q192: =VLOOKUP(AF192,[3]ANEEL!AW:AY,3,0) -> 11.68 | AF192: Santa CatarinaCerbranorteB2Rural
A193: Santa Catarina | B193: Cerbranorte | C193: 2023-09-29 | D193: B3 | E193: Comercial | F193: MWh | H193: 183.0072635 | I193: 387.74 | J193: 203.38 | K193: 183.0072635 | L193: 0.4719844831 | M193: 0.3095940985 | N193: 0.1830072635 | O193: 0.7505332656 | P193: =VLOOKUP(AF193,[3]ANEEL!AW:AY,2,0) -> 5.75 | Q193: =VLOOKUP(AF193,[3]ANEEL!AW:AY,3,0) -> 11.68 | AF193: Santa CatarinaCerbranorteB3Comercial
A194: Santa Catarina | B194: Cerej | C194: 2023-09-29 | D194: B1 | E194: Residencial | F194: MWh | H194: 253.199051 | I194: 519.26 | J194: 166.76 | K194: 253.199051 | L194: 0.4876151658 | M194: 0.369084066 | N194: 0.253199051 | O194: =((I194+J194)/1000)/0.7876 -> 0.8710259015 | P194: =VLOOKUP(AF194,[3]ANEEL!AW:AY,2,0) -> 7.94 | Q194: =VLOOKUP(AF194,[3]ANEEL!AW:AY,3,0) -> 16.15 | AF194: Santa CatarinaCerejB1Residencial
A195: Santa Catarina | B195: Cerej | C195: 2023-09-29 | D195: B2 | E195: Rural | F195: MWh | H195: 238.0071079 | I195: 488.1 | J195: 156.76 | K195: 238.0071079 | L195: 0.4876195614 | M195: 0.3690833792 | N195: 0.2380071079 | O195: 0.818765871 | P195: =VLOOKUP(AF195,[3]ANEEL!AW:AY,2,0) -> 7.94 | Q195: =VLOOKUP(AF195,[3]ANEEL!AW:AY,3,0) -> 16.15 | AF195: =A195&B195&D195&E195 -> Santa CatarinaCerejB2Rural
A196: Santa Catarina | B196: Cerej | C196: 2023-09-29 | D196: B3 | E196: Comercial | F196: MWh | H196: 253.199051 | I196: 519.26 | J196: 166.76 | K196: 253.199051 | L196: 0.4876151658 | M196: 0.369084066 | N196: 0.253199051 | O196: 0.8710259015 | P196: =VLOOKUP(AF196,[3]ANEEL!AW:AY,2,0) -> 7.94 | Q196: =VLOOKUP(AF196,[3]ANEEL!AW:AY,3,0) -> 16.15 | AF196: Santa CatarinaCerejB3Comercial
A197: Santa Catarina | B197: Cergal | C197: 2023-09-29 | D197: B1 | E197: Residencial | F197: MWh | G197: -1.269720047 | H197: 353.2616706 | I197: 589.61 | J197: 195.8 | K197: 352.5009246 | L197: 0.5978543862 | M197: 0.4497799501 | N197: 0.3532616706 | O197: 0.9972194007 | P197: =VLOOKUP(AF197,[3]ANEEL!AW:AY,2,0) -> 11.05 | Q197: =VLOOKUP(AF197,[3]ANEEL!AW:AY,3,0) -> 22.47 | AF197: Santa CatarinaCergalB1Residencial
A198: Santa Catarina | B198: Cergal | C198: 2023-09-29 | D198: B2 | E198: Rural | F198: MWh | G198: -1.476177155 | H198: 332.0659704 | I198: 554.23 | J198: 184.05 | K198: 331.1815213 | L198: 0.5975524986 | M198: 0.4497832399 | N198: 0.3320659704 | O198: 0.9373793804 | P198: =VLOOKUP(AF198,[3]ANEEL!AW:AY,2,0) -> 11.05 | Q198: =VLOOKUP(AF198,[3]ANEEL!AW:AY,3,0) -> 22.47 | AF198: Santa CatarinaCergalB2Rural
A199: Santa Catarina | B199: Cergal | C199: 2023-09-29 | D199: B3 | E199: Comercial | F199: MWh | G199: -1.508267963 | H199: 353.2616706 | I199: 589.61 | J199: 195.8 | K199: 352.3579999 | L199: 0.5976119807 | M199: 0.4497799501 | N199: 0.3532616706 | O199: 0.9972194007 | P199: =VLOOKUP(AF199,[3]ANEEL!AW:AY,2,0) -> 11.05 | Q199: =VLOOKUP(AF199,[3]ANEEL!AW:AY,3,0) -> 22.47 | AF199: Santa CatarinaCergalB3Comercial
A200: Santa Catarina | B200: Cergapa | C200: 2023-09-29 | D200: B1 | E200: Residencial | F200: MWh | H200: 164.8400643 | I200: 421.81 | J200: 173.79 | K200: 164.8400643 | L200: 0.3907922153 | M200: 0.2767630361 | N200: 0.1648400643 | O200: 0.7562214322 | P200: =VLOOKUP(AF200,[3]ANEEL!AW:AY,2,0) -> 2.95 | Q200: =VLOOKUP(AF200,[3]ANEEL!AW:AY,3,0) -> 18.27 | AF200: Santa CatarinaCergapaB1Residencial
... 131 more rows

Sheet Cad.CLIENTE
D2: Cadastro Cliente
C3: DISTRIBUIDOR VERTYS | D3: SUA EMPRESA
C4: VERTYS SOLAR | D4: xx.xxx.xxx/YYYY-ZZ
C7: NOME/RAZÃO SOCIAL | D7: NOME DO CLIENTE
C8: ENDEREÇO/Nº/BAIRRO | D8: RUA DO CLIENTE, NÚMERO 0001, BAIRRO
C9: CIDADE/ESTADO/CEP | D9: SANTA TEREZA DO OESTE / PR
C10: CEP | D10: 511511111
C11: CPF/CNPJ
C12: RG/INSCRIÇÃO ESTADUAL
C13: NÚMERO DA UC:
C14: CONTATO TELEFÔNICO
C15: E-MAIL
C16: SOLICITO O SERVIÇO DE | D16: SISTEMA SOLAR FOTOVOLTAICO ON-GRID
C17: VALOR | D17: ='PEDIDO DE COMPRA'!M8 -> 15000
C18: EMPRESA | D18: =D3 -> SUA EMPRESA
C19: OBSERVAÇÕES DOS PAINÉIS:
C23: OBSERVAÇÕES DOS INVERSORES E DO SISTEMA:
C27: O Serviço compreende: | D27: FALSE
D28: FALSE
D29: FALSE
C31: Garantias: | D31: Os equipamentos têm garantia de defeitos de fabricação:
C32: Observação: | D32: Painel fotovoltaico: 15 anos
C33: Inserir as garantias dos equipamentos de acordo com seus fabricantes | D33: Garantia contra perda de eficiência: 30 anos.
D34: Garantia dos Inversores: 10 anos
D35: Garantia do Transformador: 1 ano.
D36: Garantia dos Stringbox: 2 anos.
C37: Observações gerais do projeto: | D37: O orçamento fotovoltaico NÃO compreende alterações no padrão de entrada/carga instalada ou sistema de medição. A estimativa de geração desconsidera sombreamentos. A distância máxima considerada do ponto de conexão ao inversor é de 30 metros. O prazo para homologação e troca do medidor é de responsabilidade da concessionária de energia.
C41: Dados Bancários: | D41: Banco: Agência: Conta: Titular/CPF/CNPJ:
C45: Técnico Responsável: | D45: TÉCNICO RESPONSÁVEL
C46: Atribuição: | D46: Engenheiro Eletricista
C47: Número de Registro: | D47: CREA:
C49: Local: | D49: =D9 -> SANTA TEREZA DO OESTE / PR
C50: Data: | D50: =TODAY() -> 2023-08-17
C52: Autorização | D52: ____________________________________________
D53: Assinatura

Sheet Cad.TÉCNICO
B1: CADASTRO TÉCNICO | AZ1: % consumo simultaneo | BA1: =1-BA2 -> 0.13
AV2: 1 | AW2: =VLOOKUP(AV2,$AU$5:$AW$12,3,) -> 0.87 | AZ2: % consumo compensado | BA2: =AW2 -> 0.87
B4: DADOS DO CONSUMO | E4: DADOS DA UNIDADE CONSUMIDORA | I4: DADOS DA USINA | O4: DISJUNTOR | R4: TIPO DE LIGAÇÃO | V4: INVERSOR | Y4: TEMPERATURA | AB4: MÓDULOS | AD4: ÁREA | AJ4: MÉDIA CONS. | AL4: MÉDIA HSP
B5: MÊS | C5: CONSUMO KWh | R5: 1 | S5: MONOFÁSICO | T5: 30 | U5: 1 | V5: INVERSOR ON-GRID | Y5: 1 | Z5: 0° | AA5: 0 | AB5: MONOCRISTALINO | AD5: =ROUNDUP(IF(AD11<401,D24*2,D24*(AD11/1000/21%)),0) -> 31 | AJ5: =C18 -> 596.6666667 | AK5: =AJ5*1000 -> 596666.6667 | AL5: =AL30 -> 4.915833333 | AU5: 1 | AV5: RESIDENCIAL 1 | AW5: 0.87
B6: JANEIRO | C6: 500 | E6: DISJUNTOR | I6: POTÊNCIA DOS MÓDULOS (W) | K6: 580 | P6: 1x 30 | Q6: =VLOOKUP(P47,O6:P46,2,FALSE) -> 2x 63 | R6: 2 | S6: BIFÁSICO | T6: 50 | U6: 2 | V6: INVERSOR OFF-GRID | Y6: 2 | Z6: 10° | AA6: 10 | AB6: POLICRISTALINO | AJ6: POT. MOD. | AL6: PERDAS | AO6: PERDA TOTAL % | AQ6: GRAFICO DE GERAÇÃO | AU6: 2 | AV6: RESIDENCIAL 2 | AW6: 0.69
B7: FEVEREIRO | C7: 550 | O7: 2 | P7: 1x 40 | R7: 3 | S7: TRIFÁSICO | T7: 100 | U7: 3 | V7: INVERSOR HÍBRIDO | Y7: 3 | Z7: 15° | AA7: 15 | AB7: 1 | AJ7: =AD11 -> 580 | AL7: MOD. | AM7: =-ABS(K8) -> -0.3 | AN7: =V40 -> 0.97 | AO7: =AN7*AN9*(1-G18%)*(1-1.5%)*(1-5%)*(1-5%)*(1-1%) -> 0.7896453871 | AQ7: =AJ9*AO8 -> 457.9943245 | AU7: 3 | AV7: CONSUMO REMOTO | AW7: 1
B8: MARÇO | C8: 650 | E8: TIPO DE LIGAÇÃO | I8: COEFICIENTE DE TEMPERATURA %/°C | K8: -0.3 | O8: 3 | P8: 1x 50 | S8: 2 | U8: 4 | V8: INVERSOR STRING ON-GRID | Y8: 4 | Z8: 20° | AA8: 20 | AF8: POTÊNCIA | AL8: TEMP. LOC. | AM8: =VLOOKUP(Z19,Y5:AA18,3,FALSE) -> 50 | AO8: =AO7 -> 0.7896453871 | AQ8: =AQ7*30 -> 13739.82974 | AU8: 4 | AV8: CONSUMO NOTURNO | AW8: 0.99
B9: ABRIL | C9: 600 | O9: 4 | P9: 1x 60 | U9: 5 | V9: MICRO-INVERSOR | Y9: 5 | Z9: 25° | AA9: 25 | AB9: POTÊNCIA | AF9: 1 | AG9: 500W | AH9: 0.5 | AJ9: =AJ7 -> 580 | AM9: =ABS((AM8-25)*AM7/100) -> 0.075 | AN9: =1-AM9 -> 0.925 | AQ9: =(AQ8*AK15)/1000 -> 151.1381271 | AU9: 5 | AV9: COMERCIAL 1 | AW9: 0.33
B10: MAIO | C10: 480 | E10: TENSÃO DE ATENDIMENTO | I10: DEGRADAÇÃO ANUAL DO SISTEMA % | K10: 0.4 | O10: 5 | P10: 1x 63 | U10: 6 | V10: 1 | Y10: 6 | Z10: 28° | AA10: 28 | AB10: 1 | AC10: 330 | AD10: 31 | AF10: 2 | AG10: 600W | AH10: 0.6 | AJ10: =(AJ9*AL5) -> 2851.183333 | AK10: =((AJ10*30)*AO8) -> 67542.71301 | AL10: INCLINAÇÃO | AU10: 6 | AV10: PADARIAS/MERCADOS | AW10: 0.39
B11: JUNHO | C11: 450 | O11: 6 | P11: 1x 70 | R11: TENSÃO DE ATENDIMENTO | U11: 7 | V11: =VLOOKUP(V10,U5:V9,2,FALSE) -> INVERSOR ON-GRID | Y11: 7 | Z11: 30° | AA11: 30 | AB11: 2 | AC11: 335 | AD11: =K6 -> 580 | AF11: 3 | AG11: 800W | AH11: 0.8 | AJ11: =AJ5/AJ10 -> 0.2092698353 | AK11: =ROUNDUP(AK10,0) -> 67543 | AU11: 7 | AV11: 24H | AW11: 0.53
B12: JULHO | C12: 430 | E12: TIPO DE TELHADO | I12: POTÊNCIA GERAÇÃO - CONSUMO (KW) | K12: 0 | O12: 7 | P12: 1x 80 | R12: 1 | S12: 127 | T12: 3 | U12: 8 | Y12: 8 | Z12: 32° | AA12: 32 | AB12: 3 | AC12: 340 | AF12: 4 | AG12: 900W | AH12: 0.9 | AM12: MÉDIA DE GERAÇÃO MENSAL | AQ12: conf | AU12: 8 | AV12: PERSONALIZADO | AW12: =G22 -> 1
B13: AGOSTO | C13: 700 | O13: 8 | P13: 1x 100 | R13: 2 | S13: 127/220 | U13: 9 | Y13: 9 | Z13: 33° | AA13: 33 | AB13: 4 | AC13: 345 | AF13: 5 | AG13: 1KW | AH13: 1 | AJ13: =ROUNDUP(AJ5,0) -> 597 | AK13: =AM21*1000 -> 697000 | AN13: =((AO13*AL30*30)*AO8)*AO14 -> 742.9698431 | AO13: =AJ9/1000 -> 0.58 | AQ13: -0.35
B14: SETEMBRO | C14: 650 | E14: INCLINAÇÃO DO TELHADO | I14: TIPO DE INVERSOR | O14: 9 | P14: 2x 30 | R14: 3 | S14: 220 | U14: 10 | Y14: 10 | Z14: 34° | AA14: 34 | AB14: 5 | AC14: 370 | AF14: 6 | AG14: 1,2KW | AH14: 1.2 | AK14: =AK13/AK11 -> 10.31935212 | AN14: =ROUNDDOWN(AN13,2) -> 742.96 | AO14: =AK15 -> 11 | AQ14: 0.55
B15: OUTUBRO | C15: 700 | O15: 10 | P15: 2x 32 | R15: 4 | S15: 220/380 | U15: 11 | Y15: 11 | Z15: 35° | AA15: 35 | AB15: 6 | AC15: 380 | AF15: 7 | AG15: 1,3KW | AH15: 1.3 | AK15: =ROUNDUP(AK14,0) -> 11 | AN15: =AN14*12 -> 8915.52 | AQ15: =F.CAIXA!C29 -> 990940.9088
B16: NOVEMBRO | C16: 600 | E16: ORIENTAÇÃO DO TELHADO | I16: QUANTIDADE DE INVERSORES | O16: 11 | P16: 2x 40 | U16: 12 | Y16: 12 | Z16: 40° | AA16: 40 | AB16: 7 | AC16: 400 | AF16: 8 | AG16: 1,4KW | AH16: 1.4
B17: DEZEMBRO | C17: 850 | O17: 12 | P17: 2x 50 | R17: TIPO DE TELHADO | U17: 13 | Y17: 13 | Z17: 45° | AA17: 45 | AB17: 8 | AC17: 405 | AF17: 9 | AG17: 1,5KW | AH17: 1.5 | AJ17: TARIFA | AL17: CONSUMO
B18: MÉDIA | C18: =AVERAGE(C6:C17) -> 596.6666667 | E18: FATOR DE SEGURANÇA: | I18: POTÊNCIA DOS INVERSORES | O18: 13 | P18: 2x 60 | R18: 1 | S18: CERÂMICO/COLONIAL | T18: =VLOOKUP(S24,R18:S23,2,FALSE) -> FIBROCIMENTO | U18: 14 | Y18: 14 | Z18: 50° | AA18: 50 | AB18: 9 | AC18: 410 | AF18: 10 | AG18: 1,6KW | AH18: 1.6 | AI18: 1 | AJ18: 30 | AL18: MÉDIA | AM18: =AJ13+AK23 -> 597
O19: 14 | P19: 2x 63 | R19: 2 | S19: FIBROCIMENTO | U19: 15 | Z19: 14 | AB19: 10 | AC19: 415 | AF19: 11 | AG19: 1,7KW | AH19: 1.7 | AI19: 2 | AJ19: 50 | AL19: TARIFA
E20: PERFIL DE INJEÇÃO | I20: INCLUIR A TARIFA MÍNIMA | K20: =AK22 -> 0 | O20: 15 | P20: 2x 70 | R20: 3 | S20: METÁLICO | U20: 16 | AB20: 11 | AC20: 420 | AF20: 12 | AG20: 1,8KW | AH20: 1.8 | AI20: 3 | AJ20: 100 | AL20: AUMENTO | AM20: =K22 -> 100
O21: 16 | P21: 2x 80 | R21: 4 | S21: ESTRUTURA PARA LAJE | U21: 17 | AB21: 12 | AC21: 425 | AF21: 13 | AG21: 1,9KW | AH21: 1.9 | AJ21: FALSE | AK21: =VLOOKUP(S8,AI18:AJ20,2,FALSE) -> 50 | AL21: TOTAL | AM21: =AM18+AM19+AM20 -> 697
E22: PERFIL DE INJEÇÃO PERSONALIZADO | G22: 1 | I22: AUMENTO DE CONSUMO MENSAL | K22: 100 | O22: 17 | P22: 2x90 | R22: 5 | S22: ESTRUTURA PARA SOLO | U22: 18 | AB22: 13 | AC22: 430 | AF22: 14 | AG22: 2KW | AH22: 2 | AK22: =IF(AJ21=FALSE,0,AK21) -> 0
O23: 18 | P23: 2x100 | R23: 6 | S23: SEM ESTRUTURA | U23: 19 | AB23: 14 | AC23: 435 | AF23: 15 | AG23: 2,2KW | AH23: 2.2 | AK23: =AK22*(-1) -> 0
B24: QUANTIDADES DE MÓDULOS | D24: =AK15 -> 11 | G24: POTÊNCIA DE PICO DO SISTEMA | I24: =(AK15*AD11)/1000 -> 6.38 | K24: USO DE TRAFO REBAIXADOR | O24: 19 | P24: 3x30 | S24: 2 | U24: 20 | AB24: 15 | AC24: 440 | AF24: 16 | AG24: 2,5KW | AH24: 2.5
O25: 20 | P25: 3x40 | R25: INCLINAÇÃO DO TELHADO | U25: 1 | AB25: 16 | AC25: 445 | AF25: 17 | AG25: 2,8KW | AH25: 2.8
O26: 21 | P26: 3x50 | T26: NORTE | U26: NOROESTE | V26: OESTE | W26: SUDOESTE | X26: SUL | Y26: SUDESTE | Z26: LESTE | AA26: NORDESTE | AB26: 17 | AC26: 450 | AF26: 18 | AG26: 3KW | AH26: 3
O27: 22 | P27: 3x60 | R27: 1 | S27: 0° | T27: 0.93 | U27: 0.93 | V27: 0.93 | W27: 0.93 | X27: 0.93 | Y27: 0.93 | Z27: 0.93 | AA27: 0.93 | AB27: 18 | AC27: 455 | AF27: 19 | AG27: 3,3KW | AH27: 3.3 | AJ27: HSP
B28: SUGESTÃO DA POTÊNCIA DO INVERSOR | D28: =O55 -> DIMENSIONADO | I28: PARA O USO DO FLUXO DE CAIXA | O28: 23 | P28: 3x63 | R28: 2 | S28: 5° | T28: 0.96 | U28: 0.95 | V28: 0.9 | W28: 0.89 | X28: 0.9 | Y28: 0.9 | Z28: 0.9 | AA28: 0.93 | AB28: 19 | AC28: 460 | AF28: 20 | AG28: 4,0KW | AH28: 4 | AJ28: ='Cad.CLIENTE'!D9 -> SANTA TEREZA DO OESTE / PR | AK28: =AJ28&","&AJ29 -> SANTA TEREZA DO OESTE / PR,Horas de Sol Pico no Local (HSP)
I29: VALOR DA TE (R$/KWH) | K29: 0.30214 | M29: =Financeiro!W16 -> R$ 0,966299 | O29: 24 | P29: 3x70 | R29: 3 | S29: 10° | T29: 0.97 | U29: 0.99 | V29: 0.89 | W29: 0.87 | X29: 0.86 | Y29: 0.88 | Z29: 0.89 | AA29: 0.95 | AB29: 20 | AC29: 470 | AF29: 21 | AG29: 5KW | AH29: 5 | AJ29: Horas de Sol Pico no Local (HSP) | AN29: GERAÇÃO | AO29: =(AJ9*AP29*30)/1000 -> 191.4 | AP29: =AK15 -> 11
I30: VALOR DA TUSD (R$/KWH) | K30: 0.32837 | M30: =Financeiro!W17 -> R$ 0,63051 | O30: 25 | P30: 3x80 | R30: 4 | S30: 15° | T30: 1 | U30: 0.98 | V30: 0.88 | W30: 0.84 | X30: 0.83 | Y30: 0.87 | Z30: 0.88 | AA30: 0.96 | AB30: 21 | AC30: 480 | AF30: 22 | AG30: 6kW | AH30: 6 | AJ30: Jan | AK30: =VLOOKUP($AJ$28,'Cad.HSP'!$A:$M,2,0) -> 5.63 | AL30: =AVERAGE(AK30:AK41) -> 4.915833333 | AN30: =AQ9*AK30 -> 850.9076555 | AP30: =C6 -> 500
M31: FALSE | O31: 26 | P31: 3x90 | R31: 5 | S31: 20° | T31: 0.99 | U31: 0.97 | V31: 0.87 | W31: 0.81 | X31: 0.8 | Y31: 0.85 | Z31: 0.87 | AA31: 0.97 | AB31: 22 | AC31: 490 | AF31: 23 | AG31: 7KW | AH31: 7 | AJ31: Fev | AK31: =VLOOKUP($AJ$28,'Cad.HSP'!$A:$M,3,0) -> 5.41 | AN31: =AQ9*AK31 -> 817.6572676 | AP31: =C7 -> 550
B32: IMPOSTOS | O32: 27 | P32: 3x100 | R32: 6 | S32: 25° | T32: 0.97 | U32: 0.96 | V32: 0.86 | W32: 0.8 | X32: 0.75 | Y32: 0.83 | Z32: 0.86 | AA32: 0.98 | AB32: 23 | AC32: 495 | AF32: 24 | AG32: 8KW | AH32: 8 | AJ32: Mar | AK32: =VLOOKUP($AJ$28,'Cad.HSP'!$A:$M,4,0) -> 5.29 | AN32: =AQ9*AK32 -> 799.5206923 | AP32: 650
B33: CONFIG. IMPOSTOS | C33: ICMS | E33: 0.29 | O33: 28 | P33: 3x125 | R33: 7 | S33: 30° | T33: 0.95 | U33: 0.96 | V33: 0.85 | W33: 0.79 | X33: 0.73 | Y33: 0.81 | Z33: 0.85 | AA33: 0.96 | AB33: 24 | AC33: 500 | AF33: 25 | AG33: 10kW | AH33: 10 | AJ33: Abr | AK33: =VLOOKUP($AJ$28,'Cad.HSP'!$A:$M,5,0) -> 4.81 | AN33: =AQ9*AK33 -> 726.9743913 | AP33: 600
C34: PIS | E34: 0.0087 | O34: 29 | P34: 3x135 | R34: 8 | S34: 35° | T34: 0.9 | U34: 0.95 | V34: 0.84 | W34: 0.77 | X34: 0.7 | Y34: 0.78 | Z34: 0.84 | AA34: 0.95 | AB34: 25 | AC34: 530 | AF34: 26 | AG34: 10,5kW | AH34: 10.5 | AJ34: Mai | AK34: =VLOOKUP($AJ$28,'Cad.HSP'!$A:$M,6,0) -> 4.04 | AN34: =AQ9*AK34 -> 610.5980334 | AP34: 480
C35: COFINS | E35: 0.0488 | O35: 30 | P35: 3x150 | AB35: 26 | AC35: 540 | AF35: 27 | AG35: 12KW | AH35: 12 | AJ35: Jun | AK35: =VLOOKUP($AJ$28,'Cad.HSP'!$A:$M,7,0) -> 3.78 | AN35: =AQ9*AK35 -> 571.3021204 | AP35: 450
I36: VALOR DO FIO B SEM IMPOSTOS (R$) | K36: 0.14619 | O36: 31 | P36: 3x175 | AB36: 27 | AC36: 545 | AF36: 28 | AG36: 13KW | AH36: 13 | AJ36: Jul | AK36: =VLOOKUP($AJ$28,'Cad.HSP'!$A:$M,8,0) -> 3.99 | AN36: =AQ9*AK36 -> 603.0411271 | AP36: 430
E37: TRUE | I37: TUSD-G SEM IMPOSTOS (R$) | K37: 2.52 | O37: 32 | P37: 3x180 | AB37: 28 | AC37: 550 | AF37: 29 | AG37: 15KW | AH37: 15 | AJ37: Ago | AK37: =VLOOKUP($AJ$28,'Cad.HSP'!$A:$M,9,0) -> 4.97 | AN37: =AQ9*AK37 -> 751.1564916 | AP37: 700
E38: TRUE | I38: ILUMINAÇÃO PÚBLICA - CIF (R$/MÊS) | K38: 50 | O38: 33 | P38: 3x200 | AB38: 29 | AC38: 555 | AF38: 30 | AG38: 16KW | AH38: 16 | AJ38: Set | AK38: =VLOOKUP($AJ$28,'Cad.HSP'!$A:$M,10,0) -> 4.65 | AN38: =AQ9*AK38 -> 702.792291 | AP38: 650
E39: TRUE | I39: REAJUSTE TARIFÁRIO ANUAL % | K39: 8 | O39: 34 | P39: 3x225 | S39: INCLINAÇÃO | T39: ORIENTAÇÃO | V39: FATOR PERDA | AB39: 30 | AC39: 570 | AF39: 31 | AG39: 18KW | AH39: 18 | AJ39: Out | AK39: =VLOOKUP($AJ$28,'Cad.HSP'!$A:$M,11,0) -> 5.13 | AN39: =AQ9*AK39 -> 775.338592 | AP39: 700
E40: TRUE | I40: JUROS DE APLICAÇÃO ANUAL % | K40: 9 | O40: 35 | P40: 3x250 | S40: 3 | T40: =S63+2 -> 3 | V40: =VLOOKUP(S40,R27:AA34,T40,FALSE) -> 0.97 | AB40: 31 | AC40: 580 | AF40: 32 | AG40: 20KW | AH40: 20 | AJ40: Nov | AK40: =VLOOKUP($AJ$28,'Cad.HSP'!$A:$M,12,0) -> 5.54 | AN40: =AQ9*AK40 -> 837.3052241 | AP40: 600
E41: TRUE | O41: 36 | P41: 3x270 | AB41: 32 | AC41: 590 | AF41: 33 | AG41: 22KW | AH41: 22 | AJ41: Dez | AK41: =VLOOKUP($AJ$28,'Cad.HSP'!$A:$M,13,0) -> 5.75 | AN41: =AQ9*AK41 -> 869.0442308 | AP41: 850
E42: TRUE | O42: 37 | P42: 3x300 | AB42: 33 | AC42: 600 | AF42: 34 | AG42: 25KW | AH42: 25 | AN42: POTÊNCIA GERADA | AP42: POTÊNCIA CONSUMIDA
O43: 38 | P43: 3x325 | AB43: 34 | AC43: 605 | AF43: 35 | AG43: 28KW | AH43: 28 | AK43: EMM: | AN43: PRODUÇÃO | AO43: =SUM(AN30:AN41)/1000 -> 8.915638117
O44: 39 | P44: 3x350 | AB44: 35 | AC44: 620 | AF44: 36 | AG44: 30KW | AH44: 30 | AK44: =AVERAGE(AN30:AN41) -> 742.9698431 | AO44: =ROUNDUP(AO43,2) -> 8.92
O45: 40 | P45: 3x400 | AB45: 36 | AC45: 625 | AF45: 37 | AG45: 32KW | AH45: 32 | AK45: =F.CAIXA!D4/12 -> 485.5725045
O46: 41 | P46: 3x450 | AB46: 37 | AC46: 630 | AF46: 38 | AG46: 33KW | AH46: 33
P47: 14 | AB47: 38 | AC47: 635 | AF47: 39 | AG47: 36KW | AH47: 36
AB48: 39 | AC48: 640 | AF48: 40 | AG48: 38KW | AH48: 38
B49: INVESTIMENTO | O49: INVERSOR | V49: calculo da N-S-L-O | AB49: 40 | AC49: 650 | AF49: 41 | AG49: 40KW | AH49: 40
B50: CUSTO DO SISTEMA | C50: ='Cad.CLIENTE'!D17 -> 15000 | F50: ENERGIA GERADA | G50: =SUM(AN30:AN41) -> 8915.638117 | N50: PICO | O50: =I24 -> 6.38 | P50: =O50*1.35 -> 8.613 | Q50: =O50*0.65 -> 4.147 | W50: perdas | X50: =AO8*(1/V40)*W51 -> 0.7896453871 | AB50: 41 | AC50: 660 | AF50: 42 | AG50: 42KW | AH50: 42
B51: POT. SISTEMA | C51: =I24*1000 -> 6380 | F51: VALOR | G51: =G50*K29 -> 2693.770901 | N51: ARRED | O51: =ROUNDUP(P50,0) -> 9 | R51: 1 | S51: NORTE | V51: NORTE | W51: =VLOOKUP(S40,R27:AA34,1+2,FALSE) -> 0.97 | X51: =$AO$8*(1/$V$40)*W51 -> 0.7896453871 | Y51: =((AO13*AL30*30)*X51)*AO14 -> 742.9698431 | AC51: 670 | AF51: 43 | AG51: 44KW | AH51: 44
B52: CUSTO WP | C52: =C50/C51 -> 2.351097179 | N52: QUANT | O52: =U25 -> 1 | R52: 2 | S52: NOROESTE | V52: SUL | W52: =VLOOKUP(S40,R27:AA34,5+2,FALSE) -> 0.86 | X52: =$AO$8*(1/$V$40)*W52 -> 0.7000979721 | Y52: =((AO13*AL30*30)*X52)*AO14 -> 658.715531 | AC52: 680 | AF52: 44 | AG52: 45KW | AH52: 45
B53: ARREDONDADO | C53: =ROUNDUP(C52,2) -> 2.36 | N53: POT | O53: =VLOOKUP(AG80,AF9:AH79,3,FALSE) -> 6 | R53: 3 | S53: OESTE | V53: LESTE | W53: =VLOOKUP(S40,R27:AA34,7+2,FALSE) -> 0.89 | X53: 0.7245199943 | Y53: =((AO13*AL30*30)*X53)*AO14 -> 681.6939797 | AC53: 690 | AF53: 45 | AG53: 48KW | AH53: 48
N54: POT TOT. | O54: =O52*O53 -> 6 | R54: 4 | S54: SUDOESTE | V54: OESTE | W54: =VLOOKUP(S40,R27:AA34,3+2,FALSE) -> 0.89 | X54: 0.7245199943 | Y54: =((AO13*AL30*30)*X54)*AO14 -> 681.6939797 | AF54: 46 | AG54: 50KW | AH54: 50
B55: Para uso do Fluxo de Caixa: | N55: SUGEST. | O55: =IF(AND(O54<=P50,O54>=Q50),"DIMENSIONADO",IF(AND(O54<Q50),"SUBDIMENSIONADO",IF(AND(O54>P50),"SOBREDIMENSIONADO"))) -> DIMENSIONADO | R55: 5 | S55: SUL | AF55: 47 | AG55: 55KW | AH55: 55
B56: DEGRADAÇÃO DO SISTEMA ANUAL % | D56: 0.9 | R56: 6 | S56: SUDESTE | AF56: 48 | AG56: 60KW | AH56: 60
B57: INFLAÇÃO % | D57: 4.5 | N57: trafo rebaixador | R57: 7 | S57: LESTE | AF57: 49 | AG57: 70KW | AH57: 70
B58: REAJUSTE TARIFA % ANUAL | D58: 9 | R58: 8 | S58: NORDESTE | AF58: 50 | AG58: 75KW | AH58: 75
B59: JUROS APLICAÇÃO % | D59: 0.5 | N59: FALSE | AF59: 51 | AG59: 80KW | AH59: 80
N60: =IF(N59,"SIM","NÃO") -> NÃO | AF60: 52 | AG60: 90KW | AH60: 90
AF61: 53 | AG61: 100KW | AH61: 100
AF62: 54 | AG62: 110KW | AH62: 110
S63: 1 | T63: =VLOOKUP(S63,R51:S58,2,) -> NORTE | AF63: 55 | AG63: 112KW | AH63: 112
AF64: 56 | AG64: 120KW | AH64: 120
AF65: 57 | AG65: 125KW | AH65: 125
AF66: 58 | AG66: 130KW | AH66: 130
AF67: 59 | AG67: 135KW | AH67: 135
AF68: 60 | AG68: 140KW | AH68: 140
AF69: 61 | AG69: 145KW | AH69: 145
AF70: 62 | AG70: 150KW | AH70: 150
AF71: 63 | AG71: 155KW | AH71: 155
AF72: 64 | AG72: 160KW | AH72: 160
AF73: 65 | AG73: 165KW | AH73: 165
AF74: 66 | AG74: 170KW | AH74: 170
AF75: 67 | AG75: 175KW | AH75: 175
AF76: 68 | AG76: 180KW | AH76: 180
AF77: 69 | AG77: 185KW | AH77: 185
AF78: 70 | AG78: 190KW | AH78: 190
AF79: 71 | AG79: 195KW | AH79: 195
AG80: 22
AG81: =VLOOKUP(AG80,AF9:AH79,2,) -> 6kW
B114: SISTEMA SOLAR FOTOVOLTAICO ON-GRID

Sheet Cad.HSP
A2: CIDADE/ESTADO | B2: Janeiro | C2: Fevereiro | D2: Março | E2: Abril | F2: Maio | G2: Junho | H2: Julho | I2: Agosto | J2: Setembro | K2: Outubro | L2: Novembro | M2: Dezembro
A3: ASSIS CHATEAUBRIAND | B3: 5.5 | C3: 5.64 | D3: 5.2 | E3: 4.3 | F3: 3.3 | G3: 2.98 | H3: 3.19 | I3: 4.2 | J3: 4.4 | K3: 5.23 | L3: 6.1 | M3: 6.5
A4: ASTORGA/PR | B4: 5.5 | C4: 5.64 | D4: 5.2 | E4: 4.3 | F4: 3.3 | G4: 2.98 | H4: 3.19 | I4: 4.2 | J4: 4.4 | K4: 5.23 | L4: 6.1 | M4: 6.5
A5: CACOAL/RO | B5: 4.44 | C5: 4.38 | D5: 4.5 | E5: 4.53 | F5: 4.15 | G5: 4.51 | H5: 4.63 | I5: 5.05 | J5: 5.04 | K5: 5.12 | L5: 5 | M5: 4.78
A6: CAMPO GRANDE/MS | B6: 5.13 | C6: 5.46 | D6: 5.46 | E6: 5.34 | F6: 4.78 | G6: 4.68 | H6: 4.79 | I6: 5.49 | J6: 5.2 | K6: 5.28 | L6: 5.41 | M6: 5.56
A7: CASCAVEL/PR | B7: 5.5 | C7: 5.64 | D7: 5.2 | E7: 4.3 | F7: 3.3 | G7: 2.98 | H7: 3.19 | I7: 4.2 | J7: 4.4 | K7: 5.23 | L7: 6.1 | M7: 6.5
A8: CATOLE DO ROCHA/PB | B8: 5.82 | C8: 5.96 | D8: 6.06 | E8: 5.87 | F8: 5.54 | G8: 5.2 | H8: 5.57 | I8: 6.24 | J8: 6.6 | K8: 6.49 | L8: 6.34 | M8: 5.93
A9: CHAPADA DOS GUIMARÃES/MT | B9: 4.82 | C9: 4.9 | D9: 4.95 | E9: 5.17 | F9: 5.15 | G9: 5.34 | H9: 5.52 | I9: 6.11 | J9: 5.36 | K9: 5.06 | L9: 4.95 | M9: 4.95
A10: CUIABA/MT | B10: 5.43 | C10: 5.32 | D10: 5.16 | E10: 4.91 | F10: 4.48 | G10: 4.45 | H10: 4.59 | I10: 5.42 | J10: 5.13 | K10: 5.26 | L10: 5.55 | M10: 5.72
A11: EXTREMOZ/RN | B11: 5.77 | C11: 5.92 | D11: 6.01 | E11: 5.71 | F11: 5.33 | G11: 4.95 | H11: 5.11 | I11: 5.8 | J11: 6.06 | K11: 5.99 | L11: 6.03 | M11: 5.72
A12: GOIANIA/GO | B12: 5.51 | C12: 5.58 | D12: 5.22 | E12: 5.1 | F12: 4.81 | G12: 4.58 | H12: 4.74 | I12: 5.63 | J12: 5.52 | K12: 5.56 | L12: 5.4 | M12: 5.52
A13: IPORÂ/PR | B13: 5.5 | C13: 5.64 | D13: 5.2 | E13: 4.3 | F13: 3.3 | G13: 2.98 | H13: 3.19 | I13: 4.2 | J13: 4.4 | K13: 5.23 | L13: 6.1 | M13: 6.5
A14: LONDRINA/PR | B14: 5.5 | C14: 5.64 | D14: 5.2 | E14: 4.3 | F14: 3.3 | G14: 2.98 | H14: 3.19 | I14: 4.2 | J14: 4.4 | K14: 5.23 | L14: 6.1 | M14: 6.5
A15: MARIALVA/PR | B15: 5.36 | C15: 5.6 | D15: 5.41 | E15: 5.13 | F15: 4.44 | G15: 4.23 | H15: 4.42 | I15: 5.25 | J15: 4.98 | K15: 5.24 | L15: 5.55 | M15: 5.65
A16: MARIPA / PR | B16: 5.5 | C16: 5.64 | D16: 5.2 | E16: 4.3 | F16: 3.3 | G16: 2.98 | H16: 3.19 | I16: 4.2 | J16: 4.4 | K16: 5.23 | L16: 6.1 | M16: 6.5
A17: NOVA CONQUISTA/RO | B17: 4.04 | C17: 4.27 | D17: 4.35 | E17: 4.44 | F17: 4.21 | G17: 4.67 | H17: 4.78 | I17: 5.01 | J17: 4.93 | K17: 4.84 | L17: 4.48 | M17: 4.25
A18: NOVA FRIBURGO/RJ | B18: 4.96 | C18: 5.57 | D18: 4.82 | E18: 4.64 | F18: 4.28 | G18: 4.19 | H18: 4.36 | I18: 4.9 | J18: 4.77 | K18: 4.72 | L18: 4.29 | M18: 4.83
A19: PALOTINA/PR | B19: 5.5 | C19: 5.64 | D19: 5.2 | E19: 4.3 | F19: 3.3 | G19: 2.98 | H19: 3.19 | I19: 4.2 | J19: 4.4 | K19: 5.23 | L19: 6.1 | M19: 6.5
A20: PORTO VELHO/ RO | B20: 4.04 | C20: 4.27 | D20: 4.35 | E20: 4.44 | F20: 4.21 | G20: 4.67 | H20: 4.78 | I20: 5.01 | J20: 4.93 | K20: 4.84 | L20: 4.48 | M20: 4.25
A21: RIO BRILHANTE/MS | B21: 5.36 | C21: 5.48 | D21: 5.47 | E21: 5.18 | F21: 4.59 | G21: 4.39 | H21: 4.47 | I21: 5.31 | J21: 5.04 | K21: 5.24 | L21: 5.45 | M21: 5.67
A22: RIO BRILHANTE/MS | B22: 5.36 | C22: 5.48 | D22: 5.47 | E22: 5.18 | F22: 4.59 | G22: 4.39 | H22: 4.47 | I22: 5.31 | J22: 5.04 | K22: 5.24 | L22: 5.45 | M22: 5.67
A23: RIO GRANDE/RS | B23: 5.64 | C23: 5.5 | D23: 5.23 | E23: 4.48 | F23: 3.68 | G23: 3.28 | H23: 3.42 | I23: 3.85 | J23: 4.02 | K23: 4.88 | L23: 5.62 | M23: 5.86
A24: SÃO MIGUEL DO IGUAÇU/PR | B24: 5.71 | C24: 5.54 | D24: 5.53 | E24: 4.91 | F24: 4.13 | G24: 3.74 | H24: 3.96 | I24: 4.86 | J24: 4.63 | K24: 5.15 | L24: 5.59 | M24: 5.84
A25: TOLEDO/PR | B25: 5.5 | C25: 5.64 | D25: 5.2 | E25: 4.3 | F25: 3.3 | G25: 2.98 | H25: 3.19 | I25: 4.2 | J25: 4.4 | K25: 5.23 | L25: 6.1 | M25: 6.5
A26: TUPÃSSI/PR | B26: 5.5 | C26: 5.64 | D26: 5.2 | E26: 4.3 | F26: 3.3 | G26: 2.98 | H26: 3.19 | I26: 4.2 | J26: 4.4 | K26: 5.23 | L26: 6.1 | M26: 6.5
A27: UMUARAMA/PR | B27: 5.5 | C27: 5.64 | D27: 5.2 | E27: 4.3 | F27: 3.3 | G27: 2.98 | H27: 3.19 | I27: 4.2 | J27: 4.4 | K27: 5.23 | L27: 6.1 | M27: 6.5
A28: VILHENA/RO | B28: 4.44 | C28: 4.38 | D28: 4.5 | E28: 4.53 | F28: 4.15 | G28: 4.51 | H28: 4.63 | I28: 5.05 | J28: 5.04 | K28: 5.12 | L28: 5 | M28: 4.78
A29: ANDIRA/PR | B29: 5.39 | C29: 5.72 | D29: 5.41 | E29: 5.3 | F29: 4.51 | G29: 4.54 | H29: 5.39 | I29: 5.33 | J29: 5.32 | K29: 5.5 | L29: 5.5 | M29: 5.8
A30: FLORIANOPOLIS/SC | B30: 5.44 | C30: 5.32 | D30: 4.95 | E30: 4.34 | F30: 3.84 | G30: 3.37 | H30: 3.45 | I30: 4.06 | J30: 3.82 | K30: 4.34 | L30: 5.2 | M30: 5.49
A31: TERRA ROXA/PR | B31: 5.5 | C31: 5.64 | D31: 5.2 | E31: 4.3 | F31: 3.3 | G31: 2.98 | H31: 3.19 | I31: 4.2 | J31: 4.4 | K31: 5.23 | L31: 6.1 | M31: 6.5
A32: CAMPINAS/SP | B32: 5.14 | C32: 5.53 | D32: 5.24 | E32: 5.22 | F32: 4.65 | G32: 4.54 | H32: 4.67 | I32: 5.44 | J32: 5.16 | K32: 5.39 | L32: 5.26 | M32: 5.52
A33: ITUPORANGA/SC | B33: 5.09 | C33: 5.11 | D33: 4.84 | E33: 4.24 | F33: 3.67 | G33: 3.11 | H33: 3.31 | I33: 4.04 | J33: 3.77 | K33: 4.04 | L33: 4.95 | M33: 5.11
A34: SÃO LUIZ DO MARANHAO/MA | B34: 4.9 | C34: 4.95 | D34: 4.78 | E34: 4.68 | F34: 4.75 | G34: 4.92 | H34: 5.15 | I34: 5.71 | J34: 6.01 | K34: 5.71 | L34: 5.57 | M34: 5.4
A35: LEME/SP | B35: 5.12 | C35: 5.61 | D35: 5.28 | E35: 5.27 | F35: 4.79 | G35: 4.73 | H35: 4.8 | I35: 5.64 | J35: 5.27 | K35: 5.4 | L35: 5.28 | M35: 5.42
A36: MOCOCA/SP | B36: 5.14 | C36: 5.57 | D36: 5.25 | E36: 5.4 | F36: 4.96 | G36: 4.89 | H36: 5.07 | I36: 5.75 | J36: 5.28 | K36: 5.41 | L36: 5.29 | M36: 5.31
A37: Ananindeua/PA | B37: 4.2 | C37: 4.18 | D37: 4.18 | E37: 4.29 | F37: 4.57 | G37: 4.95 | H37: 5.05 | I37: 5.22 | J37: 5.27 | K37: 5 | L37: 4.84 | M37: 4.43
A38: Nova Tebas / PR | B38: 5.51 | C38: 5.5 | D38: 5.49 | E38: 5.24 | F38: 4.42 | G38: 4.12 | H38: 4.32 | I38: 5.21 | J38: 4.9 | K38: 5.18 | L38: 5.63 | M38: 5.65
A39: João Pessoa / PB | B39: 5.84 | C39: 5.96 | D39: 5.99 | E39: 5.33 | F39: 4.78 | G39: 4.33 | H39: 4.44 | I39: 5.22 | J39: 5.61 | K39: 5.9 | L39: 6.12 | M39: 6.02
A40: FORTALEZA / CE | B40: 5.58 | C40: 5.57 | D40: 5.35 | E40: 4.71 | F40: 5.09 | G40: 5.11 | H40: 5.42 | I40: 6.01 | J40: 6.17 | K40: 6.3 | L40: 6.25 | M40: 5.82
A41: Rio Verde / GO | B41: 5.08 | C41: 5.18 | D41: 5.14 | E41: 5.45 | F41: 5.44 | G41: 5.24 | H41: 5.34 | I41: 6.06 | J41: 5.43 | K41: 5.07 | L41: 5.05 | M41: 5.18
A42: CHAPECÓ / SC | B42: 5.55 | C42: 5.49 | D42: 5.4 | E42: 4.82 | F42: 4.07 | G42: 3.61 | H42: 3.94 | I42: 4.66 | J42: 4.35 | K42: 5.04 | L42: 5.58 | M42: 5.7
A43: Sorocaba / SP | B43: 5.01 | C43: 5.47 | D43: 5.19 | E43: 5.03 | F43: 4.48 | G43: 4.39 | H43: 4.41 | I43: 5.33 | J43: 4.92 | K43: 5.08 | L43: 5.14 | M43: 5.4
A44: MACEIÓ / AL | B44: 5.66 | C44: 5.81 | D44: 5.93 | E44: 5.24 | F44: 4.56 | G44: 4.37 | H44: 4.5 | I44: 5.04 | J44: 5.61 | K44: 5.76 | L44: 5.96 | M44: 5.9
A45: Anapolis / GO | B45: 5.04 | C45: 5.29 | D45: 5.21 | E45: 5.55 | F45: 5.61 | G45: 5.56 | H45: 5.69 | I45: 6.5 | J45: 5.74 | K45: 5.39 | L45: 4.92 | M45: 4.99
A46: MESSIAS / AL | B46: 5.57 | C46: 5.67 | D46: 5.85 | E46: 5.24 | F46: 4.5 | G46: 4.19 | H46: 4.28 | I46: 4.79 | J46: 5.47 | K46: 5.56 | L46: 5.87 | M46: 5.75
A47: ITARARE / SP | B47: 5.03 | C47: 5.41 | D47: 5.15 | E47: 4.95 | F47: 4.32 | G47: 4.08 | H47: 4.33 | I47: 5.21 | J47: 4.85 | K47: 4.96 | L47: 5.27 | M47: 5.48
A48: APARECIDA DE GOIANIA / GO | B48: 5.04 | C48: 5.28 | D48: 5.26 | E48: 5.5 | F48: 5.55 | G48: 5.49 | H48: 5.64 | I48: 6.38 | J48: 5.77 | K48: 5.45 | L48: 5.03 | M48: 5.01
A49: IPORA / GO | B49: 5.09 | C49: 5.32 | D49: 5.28 | E49: 5.69 | F49: 5.59 | G49: 5.49 | H49: 5.57 | I49: 6.17 | J49: 5.58 | K49: 5.37 | L49: 5.04 | M49: 5.07
A50: NEOROPOLIS / GO | B50: 5.11 | C50: 5.31 | D50: 5.2 | E50: 5.53 | F50: 5.59 | G50: 5.5 | H50: 5.72 | I50: 6.46 | J50: 5.75 | K50: 5.41 | L50: 4.92 | M50: 4.98
A51: GUARAMIRIM / SC | B51: 4.77 | C51: 4.8 | D51: 4.59 | E51: 4.12 | F51: 3.77 | G51: 3.23 | H51: 3.28 | I51: 3.86 | J51: 3.46 | K51: 3.71 | L51: 4.47 | M51: 4.66
A52: JARAGUA DO SUL / SC | B52: 4.75 | C52: 4.83 | D52: 4.6 | E52: 4.17 | F52: 3.78 | G52: 3.27 | H52: 3.32 | I52: 3.91 | J52: 3.52 | K52: 3.76 | L52: 4.52 | M52: 4.72
A53: PARAUAPEBAS PA | B53: 4.36 | C53: 4.48 | D53: 4.48 | E53: 4.58 | F53: 4.9 | G53: 5.22 | H53: 5.4 | I53: 5.78 | J53: 5.26 | K53: 4.74 | L53: 4.37 | M53: 4.18
A54: SÃO LUIS DE MONTES BELOS / GO | B54: 5.62 | C54: 5.64 | D54: 5.28 | E54: 5.21 | F54: 4.86 | G54: 4.54 | H54: 4.76 | I54: 5.56 | J54: 5.45 | K54: 5.58 | L54: 5.6 | M54: 5.56
A55: ANGELINA / SC | B55: 4.83 | C55: 4.9 | D55: 4.6 | E55: 4.24 | F55: 3.82 | G55: 3.4 | H55: 3.54 | I55: 4.13 | J55: 3.69 | K55: 3.87 | L55: 4.67 | M55: 4.89
A56: ITAIÇABA / CE | B56: 5.8 | C56: 5.9 | D56: 5.86 | E56: 5.32 | F56: 5.32 | G56: 5.07 | H56: 5.36 | I56: 6.01 | J56: 6.33 | K56: 6.37 | L56: 6.4 | M56: 6.07
A57: JOINVILLE / SC | B57: 4.93 | C57: 4.74 | D57: 4.16 | E57: 3.48 | F57: 2.9 | G57: 2.52 | H57: 2.67 | I57: 3.46 | J57: 3.37 | K57: 3.82 | L57: 4.75 | M57: 5.06
A58: TRINDADE / GO | B58: 5.5 | C58: 5.57 | D58: 5.26 | E58: 5.17 | F58: 4.82 | G58: 4.59 | H58: 4.76 | I58: 5.64 | J58: 5.5 | K58: 5.53 | L58: 5.38 | M58: 5.55
A59: PEREIRAS / SP | B59: 5.63 | C59: 5.84 | D59: 5.16 | E59: 4.62 | F59: 3.7 | G59: 3.47 | H59: 3.58 | I59: 4.58 | J59: 4.75 | K59: 5.35 | L59: 5.79 | M59: 6.18
A60: ORIZONA / GO | B60: 5.65 | C60: 5.82 | D60: 5.12 | E60: 5.07 | F60: 4.76 | G60: 4.58 | H60: 4.82 | I60: 5.67 | J60: 5.61 | K60: 5.65 | L60: 5.29 | M60: 5.67
A61: BRASILIA / DF | B61: 5.33 | C61: 5.57 | D61: 4.98 | E61: 4.88 | F61: 4.8 | G61: 4.77 | H61: 5.08 | I61: 5.99 | J61: 5.68 | K61: 5.46 | L61: 4.94 | M61: 5.35
A62: RECIFE / PE | B62: 5.84 | C62: 5.94 | D62: 5.88 | E62: 5.15 | F62: 4.47 | G62: 4.18 | H62: 4.3 | I62: 5.03 | J62: 5.45 | K62: 5.78 | L62: 6.05 | M62: 6.06
A63: TEOTONIO VILELA / AL | B63: 5.96 | C63: 5.81 | D63: 5.81 | E63: 5.04 | F63: 4.28 | G63: 3.93 | H63: 3.99 | I63: 4.58 | J63: 5.31 | K63: 5.66 | L63: 6.2 | M63: 6.19
A64: GAMELEIRA DE GOIAS / GO | B64: 5.48 | C64: 5.73 | D64: 5.08 | E64: 5.06 | F64: 4.77 | G64: 4.65 | H64: 4.91 | I64: 5.78 | J64: 5.55 | K64: 5.56 | L64: 5.1 | M64: 5.52
A65: PETROPOLIS/RJ | B65: 5.08 | C65: 5.59 | D65: 4.82 | E65: 4.64 | F65: 4.18 | G65: 4.22 | H65: 4.26 | I65: 4.94 | J65: 4.75 | K65: 4.74 | L65: 4.43 | M65: 4.89
A66: BELEM / PA | B66: 4.24 | C66: 4.17 | D66: 4.25 | E66: 4.35 | F66: 4.64 | G66: 4.98 | H66: 5.04 | I66: 5.2 | J66: 5.21 | K66: 5 | L66: 4.81 | M66: 4.43
A67: SANTA TEREZA DO OESTE / PR | B67: 5.63 | C67: 5.41 | D67: 5.29 | E67: 4.81 | F67: 4.04 | G67: 3.78 | H67: 3.99 | I67: 4.97 | J67: 4.65 | K67: 5.13 | L67: 5.54 | M67: 5.75

Sheet F.CAIXA (hidden)
B2: Fluxo de caixa acumulado
B3: Ano | C3: Valor Acumulado | D3: Valor Economia | F3: Aplicação Econ. | G3: =(C4/D4)*-1 -> 2.574280851 | L3: Geração Ano a Ano | M3: Consumo | N3: KWH | O3: te | P3: tusd | Q3: Ilum. Pública | R3: Sem solar | S3: Com Solar | T3: ECONOMIA | U3: consumo instantaneo | V3: consumo não simultaneo | W3: Injetado | X3: Compensado | Y3: Créditos | Z3: Venc | AA3: acumulo | AB3: icms te comp | AC3: icms tusd comp | AD3: Valor ICMS te comp | AE3: Valor ICMS tusd comp | AF3: icms compensação | AG3: tarifa min TE | AH3: tarifa min TUSD | AI3: Tarifa Min | AJ3: Fio B | AK3: Fio B s/ imp | AL3: Fio B c/ imp | AM3: Fio B | AN3: Considera fio b? | AO3: Tusd-G | AP3: Tusd-G + se icms | AQ3: Tusd-G
B4: =YEAR(TODAY()) -> 2023 | C4: ='Cad.TÉCNICO'!C50*(-1) -> -15000 | D4: =T4 -> 5826.870054 | F4: =(D4+C4-$C$4)*('Cad.TÉCNICO'!$K$40/100) -> 524.4183048 | G4: =IF(C4>0,0,IF(H4>0,H4+K4,1)) -> 1 | H4: =IF(G5=0,K4+1,0) -> 0 | I4: =D4/12 -> 485.5725045 | J4: =(C4/I4)*-1 -> 30.89137021 | K4: =J4*0.1 -> 3.089137021 | L4: ='Cad.TÉCNICO'!G50 -> 8915.638117 | M4: ='Cad.TÉCNICO'!$C$18*12+'Cad.TÉCNICO'!$K$22*12 -> 8360 | N4: ='Cad.TÉCNICO'!M29 -> R$ 0,966299 | O4: =Financeiro!V14 -> 0.30214 | P4: =Financeiro!V15 -> 0.32837 | Q4: ='Cad.TÉCNICO'!$K$38*12 -> 600 | R4: =M4*N4+Q4 -> 8678.25964 | S4: =IF(L4>(M4-VLOOKUP('Cad.TÉCNICO'!$S$8,'Cad.TÉCNICO'!$R$5:$T$7,3,)*12),AF4+AN4+AQ4+Q4,AF4+AN4+AQ4+Q4+(M4-VLOOKUP('Cad.TÉCNICO'!$S$8,'Cad.TÉCNICO'!$R$5:$T$7,3,)*12-L4)*N4) -> 2851.389586 | T4: =R4-S4 -> 5826.870054 | U4: =M4*(1-'Cad.TÉCNICO'!$AW$2) -> 1086.8 | V4: =M4*('Cad.TÉCNICO'!$AW$2) -> 7273.2 | W4: =L4-U4 -> 7828.838117 | X4: =IF(Y4>0,V4-$F$37,V4+Y4-$F$37) -> 6673.2 | Y4: =W4-V4+$F$37 -> 1155.638117 | Z4: 0 | AA4: =IF(Y4+Z4>0,Y4+Z4,0) -> 1155.638117 | AB4: =O4/(1-'Cad.TÉCNICO'!$E$33)-O4 -> 0.1234092958 | AC4: =P4/(1-'Cad.TÉCNICO'!$E$33)-P4 -> 0.1341229577 | AD4: =IF('Cad.TÉCNICO'!$E$42,AB4*X4,0) -> 823.5349126 | AE4: =IF('Cad.TÉCNICO'!$E$41,AC4*X4,0) -> 895.0293216 | AF4: =AD4+AE4 -> 1718.564234 | AG4: =IF('Cad.TÉCNICO'!$E$40,O4*$F$34,O4) -> 0.4255492958 | AH4: =IF('Cad.TÉCNICO'!$E$39,P4*$F$34,P4) -> 0.4624929577 | AI4: =VLOOKUP('Cad.TÉCNICO'!$S$8,'Cad.TÉCNICO'!$R$5:$T$7,3,)*AH4*12+VLOOKUP('Cad.TÉCNICO'!$S$8,'Cad.TÉCNICO'!$R$5:$T$7,3,)*AG4*12 -> 532.8253521 | AJ4: =IFERROR(VLOOKUP(B4,$B$33:$C$38,2,),100%) -> 0.15 | AK4: ='Cad.TÉCNICO'!$K$36 -> 0.14619 | AL4: =IF('Cad.TÉCNICO'!$E$42,AK4*$E$34,AK4) -> 0.224045977 | AM4: =AL4*AJ4*'Cad.TÉCNICO'!$AW$2*X4 -> 195.1110216 | AN4: =IF(AM4>AI4,AM4,AI4) -> 532.8253521 | AO4: ='Cad.TÉCNICO'!K37 -> 2.52 | AP4: =IF('Cad.TÉCNICO'!$E$38,AO4*$F$34,AO4) -> 3.549295775 | AQ4: =AP4*'Cad.TÉCNICO'!$K$12*12 -> 0
B5: =B4+1 -> 2024 | C5: =C4+D4+E4+F4 -> -8648.711641 | D5: =T5 -> 6293.019658 | F5: =(D5+C5-$C$4)*('Cad.TÉCNICO'!$K$40/100) -> 1137.987721 | G5: =IF(C5>0,0,IF(H5>0,H5+K5,1)) -> 1 | H5: =IF(G6=0,K5+1,0) -> 0 | I5: =D5/12 -> 524.4183048 | J5: =(C5/I5)*-1 -> 16.49200945 | K5: =J5*0.1 -> 1.649200945 | L5: =L4*(1-'Cad.TÉCNICO'!$K$10%) -> 8879.975565 | M5: ='Cad.TÉCNICO'!$C$18*12+'Cad.TÉCNICO'!$K$22*12 -> 8360 | N5: =N4*(1+'Cad.TÉCNICO'!$K$39%) -> 1.04360292 | O5: =O4*(1+'Cad.TÉCNICO'!$K$39%) -> 0.3263112 | P5: =P4*(1+'Cad.TÉCNICO'!$K$39%) -> 0.3546396 | Q5: =$Q$4*N5/$N$4 -> 648 | R5: 9372.520411 | S5: =IF(L5>(M5-VLOOKUP('Cad.TÉCNICO'!$S$8,'Cad.TÉCNICO'!$R$5:$T$7,3,)*12),AF5+AN5+AQ5+Q5,AF5+AN5+AQ5+Q5+(M5-VLOOKUP('Cad.TÉCNICO'!$S$8,'Cad.TÉCNICO'!$R$5:$T$7,3,)*12-L5)*N5) -> 3079.500753 | T5: =R5-S5 -> 6293.019658 | U5: =M5*(1-'Cad.TÉCNICO'!$AW$2) -> 1086.8 | V5: =M5*('Cad.TÉCNICO'!$AW$2) -> 7273.2 | W5: 7793.175565 | X5: =IF(Y5>0,V5-$F$37,V5+Y5-$F$37) -> 6673.2 | Y5: =W5-V5+$F$37 -> 1119.975565 | Z5: 0 | AA5: =IF(AA4+Y5+Z5>0,AA4+Y5+Z5,0) -> 2275.613682 | AB5: =O5/(1-'Cad.TÉCNICO'!$E$33)-O5 -> 0.1332820394 | AC5: =P5/(1-'Cad.TÉCNICO'!$E$33)-P5 -> 0.1448527944 | AD5: =IF('Cad.TÉCNICO'!$E$42,AB5*X5,0) -> 889.4177056 | AE5: =IF('Cad.TÉCNICO'!$E$41,AC5*X5,0) -> 966.6316674 | AF5: =AD5+AE5 -> 1856.049373 | AG5: =IF('Cad.TÉCNICO'!$E$40,O5*$F$34,O5) -> 0.4595932394 | AH5: =IF('Cad.TÉCNICO'!$E$39,P5*$F$34,P5) -> 0.4994923944 | AI5: =VLOOKUP('Cad.TÉCNICO'!$S$8,'Cad.TÉCNICO'!$R$5:$T$7,3,)*AH5*12+VLOOKUP('Cad.TÉCNICO'!$S$8,'Cad.TÉCNICO'!$R$5:$T$7,3,)*AG5*12 -> 575.4513803 | AJ5: 0.3 | AK5: =AK4*(1+'Cad.TÉCNICO'!$K$39%) -> 0.1578852 | AL5: =IF('Cad.TÉCNICO'!$E$42,AK5*$E$34,AK5) -> 0.2419696552 | AM5: =AL5*AJ5*'Cad.TÉCNICO'!$AW$2*X5 -> 421.4398067 | AN5: 575.4513803 | AO5: =AO4*(1+'Cad.TÉCNICO'!$K$39%) -> 2.7216 | AP5: =IF('Cad.TÉCNICO'!$E$38,AO5*$F$34,AO5) -> 3.833239437 | AQ5: =AP5*'Cad.TÉCNICO'!$K$12*12 -> 0
B6: =B5+1 -> 2025 | C6: =C5+D5+E5+F5 -> -1217.704262 | D6: 6735.216235 | F6: =(D6+C6-$C$4)*('Cad.TÉCNICO'!$K$40/100) -> 1846.576078 | G6: 1.433911864 | H6: =IF(G7=0,K6+1,0) -> 1.216955932 | I6: =D6/12 -> 561.2680195 | J6: =(C6/I6)*-1 -> 2.169559319 | K6: =J6*0.1 -> 0.2169559319 | L6: =L5*(1-'Cad.TÉCNICO'!$K$10%) -> 8844.455662 | M6: ='Cad.TÉCNICO'!$C$18*12+'Cad.TÉCNICO'!$K$22*12 -> 8360 | N6: =N5*(1+'Cad.TÉCNICO'!$K$39%) -> 1.127091154 | O6: =O5*(1+'Cad.TÉCNICO'!$K$39%) -> 0.352416096 | P6: =P5*(1+'Cad.TÉCNICO'!$K$39%) -> 0.383010768 | Q6: 699.84 | R6: 10122.32204 | S6: =IF(L6>(M6-VLOOKUP('Cad.TÉCNICO'!$S$8,'Cad.TÉCNICO'!$R$5:$T$7,3,)*12),AF6+AN6+AQ6+Q6,AF6+AN6+AQ6+Q6+(M6-VLOOKUP('Cad.TÉCNICO'!$S$8,'Cad.TÉCNICO'!$R$5:$T$7,3,)*12-L6)*N6) -> 3387.10581 | T6: 6735.216235 | U6: =M6*(1-'Cad.TÉCNICO'!$AW$2) -> 1086.8 | V6: =M6*('Cad.TÉCNICO'!$AW$2) -> 7273.2 | W6: 7757.655662 | X6: 6673.2 | Y6: 1084.455662 | Z6: 0 | AA6: =IF(AA5+Y6+Z6>0,AA5+Y6+Z6,0) -> 3360.069344 | AB6: =O6/(1-'Cad.TÉCNICO'!$E$33)-O6 -> 0.1439446026 | AC6: =P6/(1-'Cad.TÉCNICO'!$E$33)-P6 -> 0.1564410179 | AD6: =IF('Cad.TÉCNICO'!$E$42,AB6*X6,0) -> 960.571122 | AE6: =IF('Cad.TÉCNICO'!$E$41,AC6*X6,0) -> 1043.962201 | AF6: 2004.533323 | AG6: =IF('Cad.TÉCNICO'!$E$40,O6*$F$34,O6) -> 0.4963606986 | AH6: =IF('Cad.TÉCNICO'!$E$39,P6*$F$34,P6) -> 0.5394517859 | AI6: =VLOOKUP('Cad.TÉCNICO'!$S$8,'Cad.TÉCNICO'!$R$5:$T$7,3,)*AH6*12+VLOOKUP('Cad.TÉCNICO'!$S$8,'Cad.TÉCNICO'!$R$5:$T$7,3,)*AG6*12 -> 621.4874907 | AJ6: 0.45 | AK6: =AK5*(1+'Cad.TÉCNICO'!$K$39%) -> 0.170516016 | AL6: =IF('Cad.TÉCNICO'!$E$42,AK6*$E$34,AK6) -> 0.2613272276 | AM6: =AL6*AJ6*'Cad.TÉCNICO'!$AW$2*X6 -> 682.7324868 | AN6: 682.7324868 | AO6: =AO5*(1+'Cad.TÉCNICO'!$K$39%) -> 2.939328 | AP6: =IF('Cad.TÉCNICO'!$E$38,AO6*$F$34,AO6) -> 4.139898592 | AQ6: =AP6*'Cad.TÉCNICO'!$K$12*12 -> 0
B7: 2026 | C7: =C6+D6+E6+F6 -> 7364.08805 | D7: 7028.249838 | F7: =(D7+C7-$C$4)*('Cad.TÉCNICO'!$K$40/100) -> 2645.31041 | G7: 0 | H7: =IF(G8=0,K7+1,0) -> -0.2573408549 | I7: 585.6874865 | J7: -12.57340855 | K7: =J7*0.1 -> -1.257340855 | L7: =L6*(1-'Cad.TÉCNICO'!$K$10%) -> 8809.07784 | M7: ='Cad.TÉCNICO'!$C$18*12+'Cad.TÉCNICO'!$K$22*12 -> 8360 | N7: =N6*(1+'Cad.TÉCNICO'!$K$39%) -> 1.217258446 | O7: =O6*(1+'Cad.TÉCNICO'!$K$39%) -> 0.3806093837 | P7: =P6*(1+'Cad.TÉCNICO'!$K$39%) -> 0.4136516294 | Q7: 755.8272 | R7: 10932.10781 | S7: =IF(L7>(M7-VLOOKUP('Cad.TÉCNICO'!$S$8,'Cad.TÉCNICO'!$R$5:$T$7,3,)*12),AF7+AN7+AQ7+Q7,AF7+AN7+AQ7+Q7+(M7-VLOOKUP('Cad.TÉCNICO'!$S$8,'Cad.TÉCNICO'!$R$5:$T$7,3,)*12-L7)*N7) -> 3903.85797 | T7: =R7-S7 -> 7028.249838 | U7: =M7*(1-'Cad.TÉCNICO'!$AW$2) -> 1086.8 | V7: =M7*('Cad.TÉCNICO'!$AW$2) -> 7273.2 | W7: 7722.27784 | X7: 6673.2 | Y7: 1049.07784 | Z7: 0 | AA7: 4409.147184 | AB7: =O7/(1-'Cad.TÉCNICO'!$E$33)-O7 -> 0.1554601708 | AC7: =P7/(1-'Cad.TÉCNICO'!$E$33)-P7 -> 0.1689562993 | AD7: =IF('Cad.TÉCNICO'!$E$42,AB7*X7,0) -> 1037.416812 | AE7: =IF('Cad.TÉCNICO'!$E$41,AC7*X7,0) -> 1127.479177 | AF7: 2164.895989 | AG7: =IF('Cad.TÉCNICO'!$E$40,O7*$F$34,O7) -> 0.5360695545 | AH7: =IF('Cad.TÉCNICO'!$E$39,P7*$F$34,P7) -> 0.5826079288 | AI7: =VLOOKUP('Cad.TÉCNICO'!$S$8,'Cad.TÉCNICO'!$R$5:$T$7,3,)*AH7*12+VLOOKUP('Cad.TÉCNICO'!$S$8,'Cad.TÉCNICO'!$R$5:$T$7,3,)*AG7*12 -> 671.20649 | AJ7: 0.6 | AK7: =AK6*(1+'Cad.TÉCNICO'!$K$39%) -> 0.1841572973 | AL7: =IF('Cad.TÉCNICO'!$E$42,AK7*$E$34,AK7) -> 0.2822334058 | AM7: =AL7*AJ7*'Cad.TÉCNICO'!$AW$2*X7 -> 983.134781 | AN7: 983.134781 | AO7: =AO6*(1+'Cad.TÉCNICO'!$K$39%) -> 3.17447424 | AP7: =IF('Cad.TÉCNICO'!$E$38,AO7*$F$34,AO7) -> 4.471090479 | AQ7: =AP7*'Cad.TÉCNICO'!$K$12*12 -> 0
B8: 2027 | C8: 17037.6483 | D8: 7325.063434 | F8: =(D8+C8-$C$4)*('Cad.TÉCNICO'!$K$40/100) -> 3542.644056 | G8: 0 | H8: -1.791126403 | I8: 610.4219529 | J8: -27.91126403 | K8: -2.791126403 | L8: =L7*(1-'Cad.TÉCNICO'!$K$10%) -> 8773.841528 | M8: ='Cad.TÉCNICO'!$C$18*12+'Cad.TÉCNICO'!$K$22*12 -> 8360 | N8: =N7*(1+'Cad.TÉCNICO'!$K$39%) -> 1.314639122 | O8: =O7*(1+'Cad.TÉCNICO'!$K$39%) -> 0.4110581344 | P8: =P7*(1+'Cad.TÉCNICO'!$K$39%) -> 0.4467437598 | Q8: 816.293376 | R8: 11806.67643 | S8: =IF(L8>(M8-VLOOKUP('Cad.TÉCNICO'!$S$8,'Cad.TÉCNICO'!$R$5:$T$7,3,)*12),AF8+AN8+AQ8+Q8,AF8+AN8+AQ8+Q8+(M8-VLOOKUP('Cad.TÉCNICO'!$S$8,'Cad.TÉCNICO'!$R$5:$T$7,3,)*12-L8)*N8) -> 4481.612998 | T8: =R8-S8 -> 7325.063434 | U8: =M8*(1-'Cad.TÉCNICO'!$AW$2) -> 1086.8 | V8: =M8*('Cad.TÉCNICO'!$AW$2) -> 7273.2 | W8: 7687.041528 | X8: 6673.2 | Y8: 1013.841528 | Z8: 0 | AA8: 5422.988712 | AB8: =O8/(1-'Cad.TÉCNICO'!$E$33)-O8 -> 0.1678969845 | AC8: =P8/(1-'Cad.TÉCNICO'!$E$33)-P8 -> 0.1824728033 | AD8: =IF('Cad.TÉCNICO'!$E$42,AB8*X8,0) -> 1120.410157 | AE8: =IF('Cad.TÉCNICO'!$E$41,AC8*X8,0) -> 1217.677511 | AF8: 2338.087668 | AG8: =IF('Cad.TÉCNICO'!$E$40,O8*$F$34,O8) -> 0.5789551188 | AH8: =IF('Cad.TÉCNICO'!$E$39,P8*$F$34,P8) -> 0.6292165631 | AI8: =VLOOKUP('Cad.TÉCNICO'!$S$8,'Cad.TÉCNICO'!$R$5:$T$7,3,)*AH8*12+VLOOKUP('Cad.TÉCNICO'!$S$8,'Cad.TÉCNICO'!$R$5:$T$7,3,)*AG8*12 -> 724.9030092 | AJ8: 0.75 | AK8: =AK7*(1+'Cad.TÉCNICO'!$K$39%) -> 0.1988898811 | AL8: =IF('Cad.TÉCNICO'!$E$42,AK8*$E$34,AK8) -> 0.3048120783 | AM8: =AL8*AJ8*'Cad.TÉCNICO'!$AW$2*X8 -> 1327.231954 | AN8: 1327.231954 | AO8: =AO7*(1+'Cad.TÉCNICO'!$K$39%) -> 3.428432179 | AP8: =IF('Cad.TÉCNICO'!$E$38,AO8*$F$34,AO8) -> 4.828777717 | AQ8: =AP8*'Cad.TÉCNICO'!$K$12*12 -> 0
B9: 2028 | C9: 27905.35579 | D9: 7624.386407 | F9: =(D9+C9-$C$4)*('Cad.TÉCNICO'!$K$40/100) -> 4547.676798 | G9: 0 | H9: -3.392015981 | I9: 635.3655339 | J9: -43.92015981 | K9: -4.392015981 | L9: =L8*(1-'Cad.TÉCNICO'!$K$10%) -> 8738.746162 | M9: ='Cad.TÉCNICO'!$C$18*12+'Cad.TÉCNICO'!$K$22*12 -> 8360 | N9: =N8*(1+'Cad.TÉCNICO'!$K$39%) -> 1.419810251 | O9: =O8*(1+'Cad.TÉCNICO'!$K$39%) -> 0.4439427851 | P9: =P8*(1+'Cad.TÉCNICO'!$K$39%) -> 0.4824832606 | Q9: 881.5968461 | R9: 12751.21055 | S9: =IF(L9>(M9-VLOOKUP('Cad.TÉCNICO'!$S$8,'Cad.TÉCNICO'!$R$5:$T$7,3,)*12),AF9+AN9+AQ9+Q9,AF9+AN9+AQ9+Q9+(M9-VLOOKUP('Cad.TÉCNICO'!$S$8,'Cad.TÉCNICO'!$R$5:$T$7,3,)*12-L9)*N9) -> 5126.82414 | T9: 7624.386407 | U9: =M9*(1-'Cad.TÉCNICO'!$AW$2) -> 1086.8 | V9: =M9*('Cad.TÉCNICO'!$AW$2) -> 7273.2 | W9: 7651.946162 | X9: 6673.2 | Y9: 978.7461622 | Z9: =IF(IF(Y9>0,-Y4,-Y4-Y9)>0,0,IF(Y9>0,-Y4,-Y4-Y9)) -> -1155.638117 | AA9: 5246.096757 | AB9: =O9/(1-'Cad.TÉCNICO'!$E$33)-O9 -> 0.1813287432 | AC9: =P9/(1-'Cad.TÉCNICO'!$E$33)-P9 -> 0.1970706276 | AD9: =IF('Cad.TÉCNICO'!$E$42,AB9*X9,0) -> 1210.042969 | AE9: =IF('Cad.TÉCNICO'!$E$41,AC9*X9,0) -> 1315.091712 | AF9: 2525.134681 | AG9: =IF('Cad.TÉCNICO'!$E$40,O9*$F$34,O9) -> 0.6252715283 | AH9: =IF('Cad.TÉCNICO'!$E$39,P9*$F$34,P9) -> 0.6795538881 | AI9: =VLOOKUP('Cad.TÉCNICO'!$S$8,'Cad.TÉCNICO'!$R$5:$T$7,3,)*AH9*12+VLOOKUP('Cad.TÉCNICO'!$S$8,'Cad.TÉCNICO'!$R$5:$T$7,3,)*AG9*12 -> 782.8952499 | AJ9: 0.9 | AK9: =AK8*(1+'Cad.TÉCNICO'!$K$39%) -> 0.2148010715 | AL9: =IF('Cad.TÉCNICO'!$E$42,AK9*$E$34,AK9) -> 0.3291970445 | AM9: =AL9*AJ9*'Cad.TÉCNICO'!$AW$2*X9 -> 1720.092613 | AN9: 1720.092613 | AO9: =AO8*(1+'Cad.TÉCNICO'!$K$39%) -> 3.702706754 | AP9: =IF('Cad.TÉCNICO'!$E$38,AO9*$F$34,AO9) -> 5.215079935 | AQ9: =AP9*'Cad.TÉCNICO'!$K$12*12 -> 0
B10: 2029 | C10: 40077.41899 | D10: 8027.926206 | F10: =(D10+C10-$C$4)*('Cad.TÉCNICO'!$K$40/100) -> 5679.481068 | G10: 0 | H10: -4.990700656 | I10: 668.9938505 | J10: -59.90700656 | K10: -5.990700656 | L10: =L9*(1-'Cad.TÉCNICO'!$K$10%) -> 8703.791178 | M10: ='Cad.TÉCNICO'!$C$18*12+'Cad.TÉCNICO'!$K$22*12 -> 8360 | N10: =N9*(1+'Cad.TÉCNICO'!$K$39%) -> 1.533395071 | O10: =O9*(1+'Cad.TÉCNICO'!$K$39%) -> 0.4794582079 | P10: =P9*(1+'Cad.TÉCNICO'!$K$39%) -> 0.5210819214 | Q10: 952.1245938 | R10: 13771.30739 | S10: =IF(L10>(M10-VLOOKUP('Cad.TÉCNICO'!$S$8,'Cad.TÉCNICO'!$R$5:$T$7,3,)*12),AF10+AN10+AQ10+Q10,AF10+AN10+AQ10+Q10+(M10-VLOOKUP('Cad.TÉCNICO'!$S$8,'Cad.TÉCNICO'!$R$5:$T$7,3,)*12-L10)*N10) -> 5743.381185 | T10: 8027.926206 | U10: =M10*(1-'Cad.TÉCNICO'!$AW$2) -> 1086.8 | V10: =M10*('Cad.TÉCNICO'!$AW$2) -> 7273.2 | W10: 7616.991178 | X10: 6673.2 | Y10: 943.7911775 | Z10: =IF(IF(Y10>0,-Y5,-Y5-Y10)>0,0,IF(Y10>0,-Y5,-Y5-Y10)) -> -1119.975565 | AA10: 5069.91237 | AB10: =O10/(1-'Cad.TÉCNICO'!$E$33)-O10 -> 0.1958350427 | AC10: =P10/(1-'Cad.TÉCNICO'!$E$33)-P10 -> 0.2128362778 | AD10: =IF('Cad.TÉCNICO'!$E$42,AB10*X10,0) -> 1306.846407 | AE10: =IF('Cad.TÉCNICO'!$E$41,AC10*X10,0) -> 1420.299049 | AF10: 2727.145456 | AG10: =IF('Cad.TÉCNICO'!$E$40,O10*$F$34,O10) -> 0.6752932506 | AH10: =IF('Cad.TÉCNICO'!$E$39,P10*$F$34,P10) -> 0.7339181992 | AI10: =VLOOKUP('Cad.TÉCNICO'!$S$8,'Cad.TÉCNICO'!$R$5:$T$7,3,)*AH10*12+VLOOKUP('Cad.TÉCNICO'!$S$8,'Cad.TÉCNICO'!$R$5:$T$7,3,)*AG10*12 -> 845.5268699 | AJ10: 1 | AK10: =AK9*(1+'Cad.TÉCNICO'!$K$39%) -> 0.2319851573 | AL10: =IF('Cad.TÉCNICO'!$E$42,AK10*$E$34,AK10) -> 0.3555328081 | AM10: =AL10*AJ10*'Cad.TÉCNICO'!$AW$2*X10 -> 2064.111135 | AN10: 2064.111135 | AO10: =AO9*(1+'Cad.TÉCNICO'!$K$39%) -> 3.998923294 | AP10: =IF('Cad.TÉCNICO'!$E$38,AO10*$F$34,AO10) -> 5.632286329 | AQ10: =AP10*'Cad.TÉCNICO'!$K$12*12 -> 0
B11: 2030 | C11: 53784.82627 | D11: 8670.160302 | F11: =(D11+C11-$C$4)*('Cad.TÉCNICO'!$K$40/100) -> 6970.948791 | G11: 0 | H11: -6.444128974 | I11: 722.5133585 | J11: -74.44128974 | K11: -7.444128974 | L11: =L10*(1-'Cad.TÉCNICO'!$K$10%) -> 8668.976013 | M11: ='Cad.TÉCNICO'!$C$18*12+'Cad.TÉCNICO'!$K$22*12 -> 8360 | N11: =N10*(1+'Cad.TÉCNICO'!$K$39%) -> 1.656066677 | O11: =O10*(1+'Cad.TÉCNICO'!$K$39%) -> 0.5178148646 | P11: =P10*(1+'Cad.TÉCNICO'!$K$39%) -> 0.5627684751 | Q11: 1028.294561 | R11: 14873.01198 | S11: =IF(L11>(M11-VLOOKUP('Cad.TÉCNICO'!$S$8,'Cad.TÉCNICO'!$R$5:$T$7,3,)*12),AF11+AN11+AQ11+Q11,AF11+AN11+AQ11+Q11+(M11-VLOOKUP('Cad.TÉCNICO'!$S$8,'Cad.TÉCNICO'!$R$5:$T$7,3,)*12-L11)*N11) -> 6202.851679 | T11: 8670.160302 | U11: =M11*(1-'Cad.TÉCNICO'!$AW$2) -> 1086.8 | V11: =M11*('Cad.TÉCNICO'!$AW$2) -> 7273.2 | W11: 7582.176013 | X11: 6673.2 | Y11: 908.9760128 | Z11: -1084.455662 | AA11: 4894.43272 | AB11: =O11/(1-'Cad.TÉCNICO'!$E$33)-O11 -> 0.2115018461 | AC11: =P11/(1-'Cad.TÉCNICO'!$E$33)-P11 -> 0.22986318 | AD11: =IF('Cad.TÉCNICO'!$E$42,AB11*X11,0) -> 1411.394119 | AE11: =IF('Cad.TÉCNICO'!$E$41,AC11*X11,0) -> 1533.922973 | AF11: 2945.317092 | AG11: =IF('Cad.TÉCNICO'!$E$40,O11*$F$34,O11) -> 0.7293167107 | AH11: =IF('Cad.TÉCNICO'!$E$39,P11*$F$34,P11) -> 0.7926316551 | AI11: =VLOOKUP('Cad.TÉCNICO'!$S$8,'Cad.TÉCNICO'!$R$5:$T$7,3,)*AH11*12+VLOOKUP('Cad.TÉCNICO'!$S$8,'Cad.TÉCNICO'!$R$5:$T$7,3,)*AG11*12 -> 913.1690195 | AJ11: 1 | AK11: =AK10*(1+'Cad.TÉCNICO'!$K$39%) -> 0.2505439699 | AL11: =IF('Cad.TÉCNICO'!$E$42,AK11*$E$34,AK11) -> 0.3839754327 | AM11: =AL11*AJ11*'Cad.TÉCNICO'!$AW$2*X11 -> 2229.240026 | AN11: 2229.240026 | AO11: =AO10*(1+'Cad.TÉCNICO'!$K$39%) -> 4.318837157 | AP11: =IF('Cad.TÉCNICO'!$E$38,AO11*$F$34,AO11) -> 6.082869236 | AQ11: =AP11*'Cad.TÉCNICO'!$K$12*12 -> 0
B12: 2031 | C12: 69425.93536 | D12: 9363.773127 | F12: =(D12+C12-$C$4)*('Cad.TÉCNICO'!$K$40/100) -> 8441.073764 | G12: 0 | H12: -7.897174388 | I12: 780.3144272 | J12: -88.97174388 | K12: -8.897174388 | L12: =L11*(1-'Cad.TÉCNICO'!$K$10%) -> 8634.300109 | M12: ='Cad.TÉCNICO'!$C$18*12+'Cad.TÉCNICO'!$K$22*12 -> 8360 | N12: =N11*(1+'Cad.TÉCNICO'!$K$39%) -> 1.788552011 | O12: =O11*(1+'Cad.TÉCNICO'!$K$39%) -> 0.5592400537 | P12: =P11*(1+'Cad.TÉCNICO'!$K$39%) -> 0.6077899532 | Q12: 1110.558126 | R12: 16062.85294 | S12: =IF(L12>(M12-VLOOKUP('Cad.TÉCNICO'!$S$8,'Cad.TÉCNICO'!$R$5:$T$7,3,)*12),AF12+AN12+AQ12+Q12,AF12+AN12+AQ12+Q12+(M12-VLOOKUP('Cad.TÉCNICO'!$S$8,'Cad.TÉCNICO'!$R$5:$T$7,3,)*12-L12)*N12) -> 6699.079814 | T12: 9363.773127 | U12: =M12*(1-'Cad.TÉCNICO'!$AW$2) -> 1086.8 | V12: =M12*('Cad.TÉCNICO'!$AW$2) -> 7273.2 | W12: 7547.500109 | X12: 6673.2 | Y12: 874.3001088 | Z12: -1049.07784 | AA12: 4719.65499 | AB12: =O12/(1-'Cad.TÉCNICO'!$E$33)-O12 -> 0.2284219938 | AC12: =P12/(1-'Cad.TÉCNICO'!$E$33)-P12 -> 0.2482522344 | AD12: =IF('Cad.TÉCNICO'!$E$42,AB12*X12,0) -> 1524.305649 | AE12: =IF('Cad.TÉCNICO'!$E$41,AC12*X12,0) -> 1656.636811 | AF12: 3180.942459 | AG12: =IF('Cad.TÉCNICO'!$E$40,O12*$F$34,O12) -> 0.7876620475 | AH12: =IF('Cad.TÉCNICO'!$E$39,P12*$F$34,P12) -> 0.8560421875 | AI12: =VLOOKUP('Cad.TÉCNICO'!$S$8,'Cad.TÉCNICO'!$R$5:$T$7,3,)*AH12*12+VLOOKUP('Cad.TÉCNICO'!$S$8,'Cad.TÉCNICO'!$R$5:$T$7,3,)*AG12*12 -> 986.222541 | AJ12: 1 | AK12: =AK11*(1+'Cad.TÉCNICO'!$K$39%) -> 0.2705874874 | AL12: =IF('Cad.TÉCNICO'!$E$42,AK12*$E$34,AK12) -> 0.4146934673 | AM12: =AL12*AJ12*'Cad.TÉCNICO'!$AW$2*X12 -> 2407.579228 | AN12: 2407.579228 | AO12: =AO11*(1+'Cad.TÉCNICO'!$K$39%) -> 4.66434413 | AP12: =IF('Cad.TÉCNICO'!$E$38,AO12*$F$34,AO12) -> 6.569498775 | AQ12: =AP12*'Cad.TÉCNICO'!$K$12*12 -> 0
B13: 2032 | C13: 87230.78225 | D13: 10112.87498 | F13: =(D13+C13-$C$4)*('Cad.TÉCNICO'!$K$40/100) -> 10110.92915 | G13: 0 | H13: -9.350858578 | I13: 842.7395814 | J13: -103.5085858 | K13: -10.35085858 | L13: =L12*(1-'Cad.TÉCNICO'!$K$10%) -> 8599.762908 | M13: ='Cad.TÉCNICO'!$C$18*12+'Cad.TÉCNICO'!$K$22*12 -> 8360 | N13: =N12*(1+'Cad.TÉCNICO'!$K$39%) -> 1.931636172 | O13: =O12*(1+'Cad.TÉCNICO'!$K$39%) -> 0.603979258 | P13: =P12*(1+'Cad.TÉCNICO'!$K$39%) -> 0.6564131494 | Q13: 1199.402776 | R13: 17347.88118 | S13: =IF(L13>(M13-VLOOKUP('Cad.TÉCNICO'!$S$8,'Cad.TÉCNICO'!$R$5:$T$7,3,)*12),AF13+AN13+AQ13+Q13,AF13+AN13+AQ13+Q13+(M13-VLOOKUP('Cad.TÉCNICO'!$S$8,'Cad.TÉCNICO'!$R$5:$T$7,3,)*12-L13)*N13) -> 7235.006199 | T13: 10112.87498 | U13: =M13*(1-'Cad.TÉCNICO'!$AW$2) -> 1086.8 | V13: =M13*('Cad.TÉCNICO'!$AW$2) -> 7273.2 | W13: 7512.962908 | X13: 6673.2 | Y13: 839.7629083 | Z13: -1013.841528 | AA13: 4545.57637 | AB13: =O13/(1-'Cad.TÉCNICO'!$E$33)-O13 -> 0.2466957533 | AC13: =P13/(1-'Cad.TÉCNICO'!$E$33)-P13 -> 0.2681124131 | AD13: =IF('Cad.TÉCNICO'!$E$42,AB13*X13,0) -> 1646.250101 | AE13: =IF('Cad.TÉCNICO'!$E$41,AC13*X13,0) -> 1789.167755 | AF13: 3435.417856 | AG13: =IF('Cad.TÉCNICO'!$E$40,O13*$F$34,O13) -> 0.8506750113 | AH13: =IF('Cad.TÉCNICO'!$E$39,P13*$F$34,P13) -> 0.9245255625 | AI13: =VLOOKUP('Cad.TÉCNICO'!$S$8,'Cad.TÉCNICO'!$R$5:$T$7,3,)*AH13*12+VLOOKUP('Cad.TÉCNICO'!$S$8,'Cad.TÉCNICO'!$R$5:$T$7,3,)*AG13*12 -> 1065.120344 | AJ13: 1 | AK13: =AK12*(1+'Cad.TÉCNICO'!$K$39%) -> 0.2922344864 | AL13: =IF('Cad.TÉCNICO'!$E$42,AK13*$E$34,AK13) -> 0.4478689447 | AM13: =AL13*AJ13*'Cad.TÉCNICO'!$AW$2*X13 -> 2600.185567 | AN13: 2600.185567 | AO13: =AO12*(1+'Cad.TÉCNICO'!$K$39%) -> 5.03749166 | AP13: =IF('Cad.TÉCNICO'!$E$38,AO13*$F$34,AO13) -> 7.095058676 | AQ13: =AP13*'Cad.TÉCNICO'!$K$12*12 -> 0
B14: 2033 | C14: 107454.5864 | D14: 10921.90497 | F14: =(D14+C14-$C$4)*('Cad.TÉCNICO'!$K$40/100) -> 12003.88422 | G14: 0 | H14: -10.80613675 | I14: 910.1587479 | J14: -118.0613675 | K14: -11.80613675 | L14: =L13*(1-'Cad.TÉCNICO'!$K$10%) -> 8565.363857 | M14: ='Cad.TÉCNICO'!$C$18*12+'Cad.TÉCNICO'!$K$22*12 -> 8360 | N14: =N13*(1+'Cad.TÉCNICO'!$K$39%) -> 2.086167066 | O14: =O13*(1+'Cad.TÉCNICO'!$K$39%) -> 0.6522975987 | P14: =P13*(1+'Cad.TÉCNICO'!$K$39%) -> 0.7089262014 | Q14: 1295.354998 | R14: 18735.71167 | S14: =IF(L14>(M14-VLOOKUP('Cad.TÉCNICO'!$S$8,'Cad.TÉCNICO'!$R$5:$T$7,3,)*12),AF14+AN14+AQ14+Q14,AF14+AN14+AQ14+Q14+(M14-VLOOKUP('Cad.TÉCNICO'!$S$8,'Cad.TÉCNICO'!$R$5:$T$7,3,)*12-L14)*N14) -> 7813.806695 | T14: 10921.90497 | U14: =M14*(1-'Cad.TÉCNICO'!$AW$2) -> 1086.8 | V14: =M14*('Cad.TÉCNICO'!$AW$2) -> 7273.2 | W14: 7478.563857 | X14: 6673.2 | Y14: 805.3638567 | Z14: -978.7461622 | AA14: 4372.194064 | AB14: =O14/(1-'Cad.TÉCNICO'!$E$33)-O14 -> 0.2664314135 | AC14: =P14/(1-'Cad.TÉCNICO'!$E$33)-P14 -> 0.2895614062 | AD14: =IF('Cad.TÉCNICO'!$E$42,AB14*X14,0) -> 1777.950109 | AE14: =IF('Cad.TÉCNICO'!$E$41,AC14*X14,0) -> 1932.301176 | AF14: 3710.251285 | AG14: =IF('Cad.TÉCNICO'!$E$40,O14*$F$34,O14) -> 0.9187290122 | AH14: =IF('Cad.TÉCNICO'!$E$39,P14*$F$34,P14) -> 0.9984876075 | AI14: =VLOOKUP('Cad.TÉCNICO'!$S$8,'Cad.TÉCNICO'!$R$5:$T$7,3,)*AH14*12+VLOOKUP('Cad.TÉCNICO'!$S$8,'Cad.TÉCNICO'!$R$5:$T$7,3,)*AG14*12 -> 1150.329972 | AJ14: 1 | AK14: =AK13*(1+'Cad.TÉCNICO'!$K$39%) -> 0.3156132454 | AL14: =IF('Cad.TÉCNICO'!$E$42,AK14*$E$34,AK14) -> 0.4836984603 | AM14: =AL14*AJ14*'Cad.TÉCNICO'!$AW$2*X14 -> 2808.200412 | AN14: 2808.200412 | AO14: =AO13*(1+'Cad.TÉCNICO'!$K$39%) -> 5.440490993 | AP14: =IF('Cad.TÉCNICO'!$E$38,AO14*$F$34,AO14) -> 7.662663371 | AQ14: =AP14*'Cad.TÉCNICO'!$K$12*12 -> 0
B15: 2034 | C15: 130380.3756 | D15: 11795.65737 | F15: =(D15+C15-$C$4)*('Cad.TÉCNICO'!$K$40/100) -> 14145.84297 | G15: 0 | H15: -12.26390262 | I15: 982.9714477 | J15: -132.6390262 | K15: -13.26390262 | L15: =L14*(1-'Cad.TÉCNICO'!$K$10%) -> 8531.102401 | M15: ='Cad.TÉCNICO'!$C$18*12+'Cad.TÉCNICO'!$K$22*12 -> 8360 | N15: =N14*(1+'Cad.TÉCNICO'!$K$39%) -> 2.253060431 | O15: =O14*(1+'Cad.TÉCNICO'!$K$39%) -> 0.7044814066 | P15: =P14*(1+'Cad.TÉCNICO'!$K$39%) -> 0.7656402975 | Q15: 1398.983398 | R15: 20234.5686 | S15: =IF(L15>(M15-VLOOKUP('Cad.TÉCNICO'!$S$8,'Cad.TÉCNICO'!$R$5:$T$7,3,)*12),AF15+AN15+AQ15+Q15,AF15+AN15+AQ15+Q15+(M15-VLOOKUP('Cad.TÉCNICO'!$S$8,'Cad.TÉCNICO'!$R$5:$T$7,3,)*12-L15)*N15) -> 8438.91123 | T15: 11795.65737 | U15: =M15*(1-'Cad.TÉCNICO'!$AW$2) -> 1086.8 | V15: =M15*('Cad.TÉCNICO'!$AW$2) -> 7273.2 | W15: 7444.302401 | X15: 6673.2 | Y15: 771.1024013 | Z15: -943.7911775 | AA15: 4199.505288 | AB15: =O15/(1-'Cad.TÉCNICO'!$E$33)-O15 -> 0.2877459266 | AC15: =P15/(1-'Cad.TÉCNICO'!$E$33)-P15 -> 0.3127263187 | AD15: =IF('Cad.TÉCNICO'!$E$42,AB15*X15,0) -> 1920.186118 | AE15: =IF('Cad.TÉCNICO'!$E$41,AC15*X15,0) -> 2086.88527 | AF15: 4007.071387 | AG15: =IF('Cad.TÉCNICO'!$E$40,O15*$F$34,O15) -> 0.9922273332 | AH15: =IF('Cad.TÉCNICO'!$E$39,P15*$F$34,P15) -> 1.078366616 | AI15: =VLOOKUP('Cad.TÉCNICO'!$S$8,'Cad.TÉCNICO'!$R$5:$T$7,3,)*AH15*12+VLOOKUP('Cad.TÉCNICO'!$S$8,'Cad.TÉCNICO'!$R$5:$T$7,3,)*AG15*12 -> 1242.35637 | AJ15: 1 | AK15: =AK14*(1+'Cad.TÉCNICO'!$K$39%) -> 0.340862305 | AL15: =IF('Cad.TÉCNICO'!$E$42,AK15*$E$34,AK15) -> 0.5223943371 | AM15: =AL15*AJ15*'Cad.TÉCNICO'!$AW$2*X15 -> 3032.856445 | AN15: 3032.856445 | AO15: =AO14*(1+'Cad.TÉCNICO'!$K$39%) -> 5.875730273 | AP15: =IF('Cad.TÉCNICO'!$E$38,AO15*$F$34,AO15) -> 8.27567644 | AQ15: =AP15*'Cad.TÉCNICO'!$K$12*12 -> 0
B16: 2035 | C16: 156321.8759 | D16: 12739.30996 | F16: =(D16+C16-$C$4)*('Cad.TÉCNICO'!$K$40/100) -> 16565.50673 | G16: 0 | H16: -13.72499308 | I16: 1061.609164 | J16: -147.2499308 | K16: -14.72499308 | L16: =L15*(1-'Cad.TÉCNICO'!$K$10%) -> 8496.977992 | M16: ='Cad.TÉCNICO'!$C$18*12+'Cad.TÉCNICO'!$K$22*12 -> 8360 | N16: =N15*(1+'Cad.TÉCNICO'!$K$39%) -> 2.433305266 | O16: =O15*(1+'Cad.TÉCNICO'!$K$39%) -> 0.7608399191 | P16: =P15*(1+'Cad.TÉCNICO'!$K$39%) -> 0.8268915213 | Q16: 1510.90207 | R16: 21853.33409 | S16: =IF(L16>(M16-VLOOKUP('Cad.TÉCNICO'!$S$8,'Cad.TÉCNICO'!$R$5:$T$7,3,)*12),AF16+AN16+AQ16+Q16,AF16+AN16+AQ16+Q16+(M16-VLOOKUP('Cad.TÉCNICO'!$S$8,'Cad.TÉCNICO'!$R$5:$T$7,3,)*12-L16)*N16) -> 9114.024129 | T16: 12739.30996 | U16: =M16*(1-'Cad.TÉCNICO'!$AW$2) -> 1086.8 | V16: =M16*('Cad.TÉCNICO'!$AW$2) -> 7273.2 | W16: 7410.177992 | X16: 6673.2 | Y16: 736.9779917 | Z16: -908.9760128 | AA16: 4027.507267 | AB16: =O16/(1-'Cad.TÉCNICO'!$E$33)-O16 -> 0.3107656008 | AC16: =P16/(1-'Cad.TÉCNICO'!$E$33)-P16 -> 0.3377444242 | AD16: =IF('Cad.TÉCNICO'!$E$42,AB16*X16,0) -> 2073.801007 | AE16: =IF('Cad.TÉCNICO'!$E$41,AC16*X16,0) -> 2253.836091 | AF16: 4327.637098 | AG16: =IF('Cad.TÉCNICO'!$E$40,O16*$F$34,O16) -> 1.07160552 | AH16: =IF('Cad.TÉCNICO'!$E$39,P16*$F$34,P16) -> 1.164635945 | AI16: =VLOOKUP('Cad.TÉCNICO'!$S$8,'Cad.TÉCNICO'!$R$5:$T$7,3,)*AH16*12+VLOOKUP('Cad.TÉCNICO'!$S$8,'Cad.TÉCNICO'!$R$5:$T$7,3,)*AG16*12 -> 1341.744879 | AJ16: 1 | AK16: =AK15*(1+'Cad.TÉCNICO'!$K$39%) -> 0.3681312894 | AL16: =IF('Cad.TÉCNICO'!$E$42,AK16*$E$34,AK16) -> 0.5641858841 | AM16: =AL16*AJ16*'Cad.TÉCNICO'!$AW$2*X16 -> 3275.48496 | AN16: 3275.48496 | AO16: =AO15*(1+'Cad.TÉCNICO'!$K$39%) -> 6.345788694 | AP16: =IF('Cad.TÉCNICO'!$E$38,AO16*$F$34,AO16) -> 8.937730555 | AQ16: =AP16*'Cad.TÉCNICO'!$K$12*12 -> 0
B17: 2036 | C17: 185626.6926 | D17: 13758.45476 | F17: =(D17+C17-$C$4)*('Cad.TÉCNICO'!$K$40/100) -> 19294.66326 | G17: 0 | H17: -15.1901925 | I17: 1146.537897 | J17: -161.901925 | K17: -16.1901925 | L17: =L16*(1-'Cad.TÉCNICO'!$K$10%) -> 8462.99008 | M17: ='Cad.TÉCNICO'!$C$18*12+'Cad.TÉCNICO'!$K$22*12 -> 8360 | N17: =N16*(1+'Cad.TÉCNICO'!$K$39%) -> 2.627969687 | O17: =O16*(1+'Cad.TÉCNICO'!$K$39%) -> 0.8217071126 | P17: =P16*(1+'Cad.TÉCNICO'!$K$39%) -> 0.893042843 | Q17: 1631.774236 | R17: 23601.60082 | S17: =IF(L17>(M17-VLOOKUP('Cad.TÉCNICO'!$S$8,'Cad.TÉCNICO'!$R$5:$T$7,3,)*12),AF17+AN17+AQ17+Q17,AF17+AN17+AQ17+Q17+(M17-VLOOKUP('Cad.TÉCNICO'!$S$8,'Cad.TÉCNICO'!$R$5:$T$7,3,)*12-L17)*N17) -> 9843.146059 | T17: 13758.45476 | U17: =M17*(1-'Cad.TÉCNICO'!$AW$2) -> 1086.8 | V17: =M17*('Cad.TÉCNICO'!$AW$2) -> 7273.2 | W17: 7376.19008 | X17: 6673.2 | Y17: 702.9900797 | Z17: -874.3001088 | AA17: 3856.197238 | AB17: =O17/(1-'Cad.TÉCNICO'!$E$33)-O17 -> 0.3356268488 | AC17: =P17/(1-'Cad.TÉCNICO'!$E$33)-P17 -> 0.3647639781 | AD17: =IF('Cad.TÉCNICO'!$E$42,AB17*X17,0) -> 2239.705088 | AE17: =IF('Cad.TÉCNICO'!$E$41,AC17*X17,0) -> 2434.142979 | AF17: 4673.848066 | AG17: =IF('Cad.TÉCNICO'!$E$40,O17*$F$34,O17) -> 1.157333961 | AH17: =IF('Cad.TÉCNICO'!$E$39,P17*$F$34,P17) -> 1.257806821 | AI17: =VLOOKUP('Cad.TÉCNICO'!$S$8,'Cad.TÉCNICO'!$R$5:$T$7,3,)*AH17*12+VLOOKUP('Cad.TÉCNICO'!$S$8,'Cad.TÉCNICO'!$R$5:$T$7,3,)*AG17*12 -> 1449.08447 | AJ17: 1 | AK17: =AK16*(1+'Cad.TÉCNICO'!$K$39%) -> 0.3975817925 | AL17: =IF('Cad.TÉCNICO'!$E$42,AK17*$E$34,AK17) -> 0.6093207548 | AM17: =AL17*AJ17*'Cad.TÉCNICO'!$AW$2*X17 -> 3537.523757 | AN17: 3537.523757 | AO17: =AO16*(1+'Cad.TÉCNICO'!$K$39%) -> 6.85345179 | AP17: =IF('Cad.TÉCNICO'!$E$38,AO17*$F$34,AO17) -> 9.652749 | AQ17: =AP17*'Cad.TÉCNICO'!$K$12*12 -> 0
B18: 2037 | C18: 218679.8106 | D18: 14859.13114 | F18: =(D18+C18-$C$4)*('Cad.TÉCNICO'!$K$40/100) -> 22368.50476 | G18: 0 | H18: -16.66023668 | I18: 1238.260928 | J18: -176.6023668 | K18: -17.66023668 | L18: =L17*(1-'Cad.TÉCNICO'!$K$10%) -> 8429.138119 | M18: ='Cad.TÉCNICO'!$C$18*12+'Cad.TÉCNICO'!$K$22*12 -> 8360 | N18: =N17*(1+'Cad.TÉCNICO'!$K$39%) -> 2.838207262 | O18: =O17*(1+'Cad.TÉCNICO'!$K$39%) -> 0.8874436816 | P18: =P17*(1+'Cad.TÉCNICO'!$K$39%) -> 0.9644862704 | Q18: 1762.316175 | R18: 25489.72888 | S18: =IF(L18>(M18-VLOOKUP('Cad.TÉCNICO'!$S$8,'Cad.TÉCNICO'!$R$5:$T$7,3,)*12),AF18+AN18+AQ18+Q18,AF18+AN18+AQ18+Q18+(M18-VLOOKUP('Cad.TÉCNICO'!$S$8,'Cad.TÉCNICO'!$R$5:$T$7,3,)*12-L18)*N18) -> 10630.59774 | T18: 14859.13114 | U18: =M18*(1-'Cad.TÉCNICO'!$AW$2) -> 1086.8 | V18: =M18*('Cad.TÉCNICO'!$AW$2) -> 7273.2 | W18: 7342.338119 | X18: 6673.2 | Y18: 669.1381194 | Z18: -839.7629083 | AA18: 3685.572449 | AB18: =O18/(1-'Cad.TÉCNICO'!$E$33)-O18 -> 0.3624769967 | AC18: =P18/(1-'Cad.TÉCNICO'!$E$33)-P18 -> 0.3939450964 | AD18: =IF('Cad.TÉCNICO'!$E$42,AB18*X18,0) -> 2418.881495 | AE18: =IF('Cad.TÉCNICO'!$E$41,AC18*X18,0) -> 2628.874417 | AF18: 5047.755912 | AG18: =IF('Cad.TÉCNICO'!$E$40,O18*$F$34,O18) -> 1.249920678 | AH18: =IF('Cad.TÉCNICO'!$E$39,P18*$F$34,P18) -> 1.358431367 | AI18: =VLOOKUP('Cad.TÉCNICO'!$S$8,'Cad.TÉCNICO'!$R$5:$T$7,3,)*AH18*12+VLOOKUP('Cad.TÉCNICO'!$S$8,'Cad.TÉCNICO'!$R$5:$T$7,3,)*AG18*12 -> 1565.011227 | AJ18: 1 | AK18: =AK17*(1+'Cad.TÉCNICO'!$K$39%) -> 0.4293883359 | AL18: =IF('Cad.TÉCNICO'!$E$42,AK18*$E$34,AK18) -> 0.6580664152 | AM18: =AL18*AJ18*'Cad.TÉCNICO'!$AW$2*X18 -> 3820.525658 | AN18: 3820.525658 | AO18: =AO17*(1+'Cad.TÉCNICO'!$K$39%) -> 7.401727933 | AP18: =IF('Cad.TÉCNICO'!$E$38,AO18*$F$34,AO18) -> 10.42496892 | AQ18: =AP18*'Cad.TÉCNICO'!$K$12*12 -> 0
B19: 2038 | C19: 255907.4465 | D19: 16047.86163 | F19: =(D19+C19-$C$4)*('Cad.TÉCNICO'!$K$40/100) -> 25825.97773 | G19: 0 | H19: -18.13581653 | I19: 1337.321803 | J19: -191.3581653 | K19: -19.13581653 | L19: =L18*(1-'Cad.TÉCNICO'!$K$10%) -> 8395.421567 | M19: ='Cad.TÉCNICO'!$C$18*12+'Cad.TÉCNICO'!$K$22*12 -> 8360 | N19: =N18*(1+'Cad.TÉCNICO'!$K$39%) -> 3.065263843 | O19: =O18*(1+'Cad.TÉCNICO'!$K$39%) -> 0.9584391762 | P19: =P18*(1+'Cad.TÉCNICO'!$K$39%) -> 1.041645172 | Q19: 1903.301469 | R19: 27528.9072 | S19: =IF(L19>(M19-VLOOKUP('Cad.TÉCNICO'!$S$8,'Cad.TÉCNICO'!$R$5:$T$7,3,)*12),AF19+AN19+AQ19+Q19,AF19+AN19+AQ19+Q19+(M19-VLOOKUP('Cad.TÉCNICO'!$S$8,'Cad.TÉCNICO'!$R$5:$T$7,3,)*12-L19)*N19) -> 11481.04556 | T19: 16047.86163 | U19: =M19*(1-'Cad.TÉCNICO'!$AW$2) -> 1086.8 | V19: =M19*('Cad.TÉCNICO'!$AW$2) -> 7273.2 | W19: 7308.621567 | X19: 6673.2 | Y19: 635.4215669 | Z19: -805.3638567 | AA19: 3515.630159 | AB19: =O19/(1-'Cad.TÉCNICO'!$E$33)-O19 -> 0.3914751565 | AC19: =P19/(1-'Cad.TÉCNICO'!$E$33)-P19 -> 0.4254607041 | AD19: =IF('Cad.TÉCNICO'!$E$42,AB19*X19,0) -> 2612.392014 | AE19: =IF('Cad.TÉCNICO'!$E$41,AC19*X19,0) -> 2839.18437 | AF19: 5451.576384 | AG19: =IF('Cad.TÉCNICO'!$E$40,O19*$F$34,O19) -> 1.349914333 | AH19: =IF('Cad.TÉCNICO'!$E$39,P19*$F$34,P19) -> 1.467105876 | AI19: =VLOOKUP('Cad.TÉCNICO'!$S$8,'Cad.TÉCNICO'!$R$5:$T$7,3,)*AH19*12+VLOOKUP('Cad.TÉCNICO'!$S$8,'Cad.TÉCNICO'!$R$5:$T$7,3,)*AG19*12 -> 1690.212125 | AJ19: 1 | AK19: =AK18*(1+'Cad.TÉCNICO'!$K$39%) -> 0.4637394028 | AL19: =IF('Cad.TÉCNICO'!$E$42,AK19*$E$34,AK19) -> 0.7107117284 | AM19: =AL19*AJ19*'Cad.TÉCNICO'!$AW$2*X19 -> 4126.16771 | AN19: 4126.16771 | AO19: =AO18*(1+'Cad.TÉCNICO'!$K$39%) -> 7.993866168 | AP19: =IF('Cad.TÉCNICO'!$E$38,AO19*$F$34,AO19) -> 11.25896643 | AQ19: =AP19*'Cad.TÉCNICO'!$K$12*12 -> 0
B20: 2039 | C20: 297781.2859 | D20: 17331.69056 | F20: =(D20+C20-$C$4)*('Cad.TÉCNICO'!$K$40/100) -> 29710.16788 | G20: 0 | H20: -19.61758152 | I20: 1444.307547 | J20: -206.1758152 | K20: -20.61758152 | L20: =L19*(1-'Cad.TÉCNICO'!$K$10%) -> 8361.839881 | M20: ='Cad.TÉCNICO'!$C$18*12+'Cad.TÉCNICO'!$K$22*12 -> 8360 | N20: =N19*(1+'Cad.TÉCNICO'!$K$39%) -> 3.31048495 | O20: =O19*(1+'Cad.TÉCNICO'!$K$39%) -> 1.03511431 | P20: =P19*(1+'Cad.TÉCNICO'!$K$39%) -> 1.124976786 | Q20: 2055.565586 | R20: 29731.21977 | S20: =IF(L20>(M20-VLOOKUP('Cad.TÉCNICO'!$S$8,'Cad.TÉCNICO'!$R$5:$T$7,3,)*12),AF20+AN20+AQ20+Q20,AF20+AN20+AQ20+Q20+(M20-VLOOKUP('Cad.TÉCNICO'!$S$8,'Cad.TÉCNICO'!$R$5:$T$7,3,)*12-L20)*N20) -> 12399.52921 | T20: 17331.69056 | U20: =M20*(1-'Cad.TÉCNICO'!$AW$2) -> 1086.8 | V20: =M20*('Cad.TÉCNICO'!$AW$2) -> 7273.2 | W20: 7275.039881 | X20: 6673.2 | Y20: 601.8398806 | Z20: -771.1024013 | AA20: 3346.367638 | AB20: =O20/(1-'Cad.TÉCNICO'!$E$33)-O20 -> 0.422793169 | AC20: =P20/(1-'Cad.TÉCNICO'!$E$33)-P20 -> 0.4594975604 | AD20: =IF('Cad.TÉCNICO'!$E$42,AB20*X20,0) -> 2821.383375 | AE20: =IF('Cad.TÉCNICO'!$E$41,AC20*X20,0) -> 3066.31912 | AF20: 5887.702495 | AG20: =IF('Cad.TÉCNICO'!$E$40,O20*$F$34,O20) -> 1.457907479 | AH20: =IF('Cad.TÉCNICO'!$E$39,P20*$F$34,P20) -> 1.584474346 | AI20: =VLOOKUP('Cad.TÉCNICO'!$S$8,'Cad.TÉCNICO'!$R$5:$T$7,3,)*AH20*12+VLOOKUP('Cad.TÉCNICO'!$S$8,'Cad.TÉCNICO'!$R$5:$T$7,3,)*AG20*12 -> 1825.429095 | AJ20: 1 | AK20: =AK19*(1+'Cad.TÉCNICO'!$K$39%) -> 0.500838555 | AL20: =IF('Cad.TÉCNICO'!$E$42,AK20*$E$34,AK20) -> 0.7675686667 | AM20: =AL20*AJ20*'Cad.TÉCNICO'!$AW$2*X20 -> 4456.261127 | AN20: 4456.261127 | AO20: =AO19*(1+'Cad.TÉCNICO'!$K$39%) -> 8.633375461 | AP20: =IF('Cad.TÉCNICO'!$E$38,AO20*$F$34,AO20) -> 12.15968375 | AQ20: =AP20*'Cad.TÉCNICO'!$K$12*12 -> 0
B21: 2040 | C21: 344823.1443 | D21: 18718.22581 | F21: =(D21+C21-$C$4)*('Cad.TÉCNICO'!$K$40/100) -> 34068.72331 | G21: 0 | H21: -21.10614283 | I21: 1559.852151 | J21: -221.0614283 | K21: -22.10614283 | L21: =L20*(1-'Cad.TÉCNICO'!$K$10%) -> 8328.392521 | M21: ='Cad.TÉCNICO'!$C$18*12+'Cad.TÉCNICO'!$K$22*12 -> 8360 | N21: =N20*(1+'Cad.TÉCNICO'!$K$39%) -> 3.575323746 | O21: =O20*(1+'Cad.TÉCNICO'!$K$39%) -> 1.117923455 | P21: =P20*(1+'Cad.TÉCNICO'!$K$39%) -> 1.214974929 | Q21: 2220.010833 | R21: 32109.71735 | S21: =IF(L21>(M21-VLOOKUP('Cad.TÉCNICO'!$S$8,'Cad.TÉCNICO'!$R$5:$T$7,3,)*12),AF21+AN21+AQ21+Q21,AF21+AN21+AQ21+Q21+(M21-VLOOKUP('Cad.TÉCNICO'!$S$8,'Cad.TÉCNICO'!$R$5:$T$7,3,)*12-L21)*N21) -> 13391.49155 | T21: 18718.22581 | U21: =M21*(1-'Cad.TÉCNICO'!$AW$2) -> 1086.8 | V21: =M21*('Cad.TÉCNICO'!$AW$2) -> 7273.2 | W21: 7241.592521 | X21: 6673.2 | Y21: 568.3925211 | Z21: -736.9779917 | AA21: 3177.782168 | AB21: =O21/(1-'Cad.TÉCNICO'!$E$33)-O21 -> 0.4566166225 | AC21: =P21/(1-'Cad.TÉCNICO'!$E$33)-P21 -> 0.4962573652 | AD21: =IF('Cad.TÉCNICO'!$E$42,AB21*X21,0) -> 3047.094045 | AE21: =IF('Cad.TÉCNICO'!$E$41,AC21*X21,0) -> 3311.62465 | AF21: 6358.718695 | AG21: =IF('Cad.TÉCNICO'!$E$40,O21*$F$34,O21) -> 1.574540078 | AH21: =IF('Cad.TÉCNICO'!$E$39,P21*$F$34,P21) -> 1.711232294 | AI21: =VLOOKUP('Cad.TÉCNICO'!$S$8,'Cad.TÉCNICO'!$R$5:$T$7,3,)*AH21*12+VLOOKUP('Cad.TÉCNICO'!$S$8,'Cad.TÉCNICO'!$R$5:$T$7,3,)*AG21*12 -> 1971.463423 | AJ21: 1 | AK21: =AK20*(1+'Cad.TÉCNICO'!$K$39%) -> 0.5409056394 | AL21: =IF('Cad.TÉCNICO'!$E$42,AK21*$E$34,AK21) -> 0.82897416 | AM21: =AL21*AJ21*'Cad.TÉCNICO'!$AW$2*X21 -> 4812.762017 | AN21: 4812.762017 | AO21: =AO20*(1+'Cad.TÉCNICO'!$K$39%) -> 9.324045498 | AP21: =IF('Cad.TÉCNICO'!$E$38,AO21*$F$34,AO21) -> 13.13245845 | AQ21: =AP21*'Cad.TÉCNICO'!$K$12*12 -> 0
B22: 2041 | C22: 397610.0935 | D22: 20215.68387 | F22: =(D22+C22-$C$4)*('Cad.TÉCNICO'!$K$40/100) -> 38954.31996 | G22: 0 | H22: -22.60207625 | I22: 1684.640323 | J22: -236.0207625 | K22: -23.60207625 | L22: =L21*(1-'Cad.TÉCNICO'!$K$10%) -> 8295.078951 | M22: ='Cad.TÉCNICO'!$C$18*12+'Cad.TÉCNICO'!$K$22*12 -> 8360 | N22: =N21*(1+'Cad.TÉCNICO'!$K$39%) -> 3.861349646 | O22: =O21*(1+'Cad.TÉCNICO'!$K$39%) -> 1.207357331 | P22: =P21*(1+'Cad.TÉCNICO'!$K$39%) -> 1.312172923 | Q22: 2397.6117 | R22: 34678.49474 | S22: =IF(L22>(M22-VLOOKUP('Cad.TÉCNICO'!$S$8,'Cad.TÉCNICO'!$R$5:$T$7,3,)*12),AF22+AN22+AQ22+Q22,AF22+AN22+AQ22+Q22+(M22-VLOOKUP('Cad.TÉCNICO'!$S$8,'Cad.TÉCNICO'!$R$5:$T$7,3,)*12-L22)*N22) -> 14462.81087 | T22: 20215.68387 | U22: =M22*(1-'Cad.TÉCNICO'!$AW$2) -> 1086.8 | V22: =M22*('Cad.TÉCNICO'!$AW$2) -> 7273.2 | W22: 7208.278951 | X22: 6673.2 | Y22: 535.078951 | Z22: -702.9900797 | AA22: =IF(AA21+Y22+Z22>0,AA21+Y22+Z22,0) -> 3009.871039 | AB22: =O22/(1-'Cad.TÉCNICO'!$E$33)-O22 -> 0.4931459523 | AC22: =P22/(1-'Cad.TÉCNICO'!$E$33)-P22 -> 0.5359579544 | AD22: =IF('Cad.TÉCNICO'!$E$42,AB22*X22,0) -> 3290.861569 | AE22: =IF('Cad.TÉCNICO'!$E$41,AC22*X22,0) -> 3576.554622 | AF22: 6867.41619 | AG22: =IF('Cad.TÉCNICO'!$E$40,O22*$F$34,O22) -> 1.700503284 | AH22: =IF('Cad.TÉCNICO'!$E$39,P22*$F$34,P22) -> 1.848130877 | AI22: =VLOOKUP('Cad.TÉCNICO'!$S$8,'Cad.TÉCNICO'!$R$5:$T$7,3,)*AH22*12+VLOOKUP('Cad.TÉCNICO'!$S$8,'Cad.TÉCNICO'!$R$5:$T$7,3,)*AG22*12 -> 2129.180497 | AJ22: 1 | AK22: =AK21*(1+'Cad.TÉCNICO'!$K$39%) -> 0.5841780906 | AL22: =IF('Cad.TÉCNICO'!$E$42,AK22*$E$34,AK22) -> 0.8952920929 | AM22: =AL22*AJ22*'Cad.TÉCNICO'!$AW$2*X22 -> 5197.782979 | AN22: 5197.782979 | AO22: =AO21*(1+'Cad.TÉCNICO'!$K$39%) -> 10.06996914 | AP22: =IF('Cad.TÉCNICO'!$E$38,AO22*$F$34,AO22) -> 14.18305512 | AQ22: =AP22*'Cad.TÉCNICO'!$K$12*12 -> 0
B23: 2042 | C23: 456780.0973 | D23: 21832.93858 | F23: =(D23+C23-$C$4)*('Cad.TÉCNICO'!$K$40/100) -> 44425.17323 | G23: 0 | H23: -24.10592492 | I23: 1819.411548 | J23: -251.0592492 | K23: -25.10592492 | L23: =L22*(1-'Cad.TÉCNICO'!$K$10%) -> 8261.898635 | M23: ='Cad.TÉCNICO'!$C$18*12+'Cad.TÉCNICO'!$K$22*12 -> 8360 | N23: =N22*(1+'Cad.TÉCNICO'!$K$39%) -> 4.170257618 | O23: =O22*(1+'Cad.TÉCNICO'!$K$39%) -> 1.303945918 | P23: =P22*(1+'Cad.TÉCNICO'!$K$39%) -> 1.417146757 | Q23: 2589.420635 | R23: 37452.77432 | S23: =IF(L23>(M23-VLOOKUP('Cad.TÉCNICO'!$S$8,'Cad.TÉCNICO'!$R$5:$T$7,3,)*12),AF23+AN23+AQ23+Q23,AF23+AN23+AQ23+Q23+(M23-VLOOKUP('Cad.TÉCNICO'!$S$8,'Cad.TÉCNICO'!$R$5:$T$7,3,)*12-L23)*N23) -> 15619.83574 | T23: 21832.93858 | U23: =M23*(1-'Cad.TÉCNICO'!$AW$2) -> 1086.8 | V23: =M23*('Cad.TÉCNICO'!$AW$2) -> 7273.2 | W23: 7175.098635 | X23: 6673.2 | Y23: 501.8986352 | Z23: -669.1381194 | AA23: =IF(AA22+Y23+Z23>0,AA22+Y23+Z23,0) -> 2842.631555 | AB23: =O23/(1-'Cad.TÉCNICO'!$E$33)-O23 -> 0.5325976285 | AC23: =P23/(1-'Cad.TÉCNICO'!$E$33)-P23 -> 0.5788345908 | AD23: =IF('Cad.TÉCNICO'!$E$42,AB23*X23,0) -> 3554.130494 | AE23: =IF('Cad.TÉCNICO'!$E$41,AC23*X23,0) -> 3862.678991 | AF23: 7416.809486 | AG23: =IF('Cad.TÉCNICO'!$E$40,O23*$F$34,O23) -> 1.836543546 | AH23: =IF('Cad.TÉCNICO'!$E$39,P23*$F$34,P23) -> 1.995981348 | AI23: =VLOOKUP('Cad.TÉCNICO'!$S$8,'Cad.TÉCNICO'!$R$5:$T$7,3,)*AH23*12+VLOOKUP('Cad.TÉCNICO'!$S$8,'Cad.TÉCNICO'!$R$5:$T$7,3,)*AG23*12 -> 2299.514936 | AJ23: 1 | AK23: =AK22*(1+'Cad.TÉCNICO'!$K$39%) -> 0.6309123378 | AL23: =IF('Cad.TÉCNICO'!$E$42,AK23*$E$34,AK23) -> 0.9669154603 | AM23: =AL23*AJ23*'Cad.TÉCNICO'!$AW$2*X23 -> 5613.605617 | AN23: 5613.605617 | AO23: =AO22*(1+'Cad.TÉCNICO'!$K$39%) -> 10.87556667 | AP23: =IF('Cad.TÉCNICO'!$E$38,AO23*$F$34,AO23) -> 15.31769953 | AQ23: =AP23*'Cad.TÉCNICO'!$K$12*12 -> 0
B24: 2043 | C24: 523038.2091 | D24: 23579.57367 | F24: =(D24+C24-$C$4)*('Cad.TÉCNICO'!$K$40/100) -> 50545.60045 | G24: 0 | H24: -25.61820183 | I24: 1964.964472 | J24: -266.1820183 | K24: -26.61820183 | L24: =L23*(1-'Cad.TÉCNICO'!$K$10%) -> 8228.851041 | M24: ='Cad.TÉCNICO'!$C$18*12+'Cad.TÉCNICO'!$K$22*12 -> 8360 | N24: =N23*(1+'Cad.TÉCNICO'!$K$39%) -> 4.503878227 | O24: =O23*(1+'Cad.TÉCNICO'!$K$39%) -> 1.408261591 | P24: =P23*(1+'Cad.TÉCNICO'!$K$39%) -> 1.530518497 | Q24: 2796.574286 | R24: 40448.99627 | S24: =IF(L24>(M24-VLOOKUP('Cad.TÉCNICO'!$S$8,'Cad.TÉCNICO'!$R$5:$T$7,3,)*12),AF24+AN24+AQ24+Q24,AF24+AN24+AQ24+Q24+(M24-VLOOKUP('Cad.TÉCNICO'!$S$8,'Cad.TÉCNICO'!$R$5:$T$7,3,)*12-L24)*N24) -> 16869.4226 | T24: 23579.57367 | U24: =M24*(1-'Cad.TÉCNICO'!$AW$2) -> 1086.8 | V24: =M24*('Cad.TÉCNICO'!$AW$2) -> 7273.2 | W24: 7142.051041 | X24: 6673.2 | Y24: 468.8510407 | Z24: -635.4215669 | AA24: =IF(AA23+Y24+Z24>0,AA23+Y24+Z24,0) -> 2676.061029 | AB24: =O24/(1-'Cad.TÉCNICO'!$E$33)-O24 -> 0.5752054388 | AC24: =P24/(1-'Cad.TÉCNICO'!$E$33)-P24 -> 0.6251413581 | AD24: =IF('Cad.TÉCNICO'!$E$42,AB24*X24,0) -> 3838.460934 | AE24: =IF('Cad.TÉCNICO'!$E$41,AC24*X24,0) -> 4171.693311 | AF24: 8010.154245 | AG24: =IF('Cad.TÉCNICO'!$E$40,O24*$F$34,O24) -> 1.98346703 | AH24: =IF('Cad.TÉCNICO'!$E$39,P24*$F$34,P24) -> 2.155659855 | AI24: =VLOOKUP('Cad.TÉCNICO'!$S$8,'Cad.TÉCNICO'!$R$5:$T$7,3,)*AH24*12+VLOOKUP('Cad.TÉCNICO'!$S$8,'Cad.TÉCNICO'!$R$5:$T$7,3,)*AG24*12 -> 2483.476131 | AJ24: 1 | AK24: =AK23*(1+'Cad.TÉCNICO'!$K$39%) -> 0.6813853249 | AL24: =IF('Cad.TÉCNICO'!$E$42,AK24*$E$34,AK24) -> 1.044268697 | AM24: =AL24*AJ24*'Cad.TÉCNICO'!$AW$2*X24 -> 6062.694066 | AN24: 6062.694066 | AO24: =AO23*(1+'Cad.TÉCNICO'!$K$39%) -> 11.745612 | AP24: =IF('Cad.TÉCNICO'!$E$38,AO24*$F$34,AO24) -> 16.5431155 | AQ24: =AP24*'Cad.TÉCNICO'!$K$12*12 -> 0
B25: 2044 | C25: 597163.3832 | D25: 25465.93956 | F25: =(D25+C25-$C$4)*('Cad.TÉCNICO'!$K$40/100) -> 57386.63905 | G25: 0 | H25: -27.13939215 | I25: 2122.16163 | J25: -281.3939215 | K25: -28.13939215 | L25: =L24*(1-'Cad.TÉCNICO'!$K$10%) -> 8195.935637 | M25: ='Cad.TÉCNICO'!$C$18*12+'Cad.TÉCNICO'!$K$22*12 -> 8360 | N25: =N24*(1+'Cad.TÉCNICO'!$K$39%) -> 4.864188485 | O25: =O24*(1+'Cad.TÉCNICO'!$K$39%) -> 1.520922519 | P25: =P24*(1+'Cad.TÉCNICO'!$K$39%) -> 1.652959977 | Q25: 3020.300229 | R25: 43684.91597 | S25: =IF(L25>(M25-VLOOKUP('Cad.TÉCNICO'!$S$8,'Cad.TÉCNICO'!$R$5:$T$7,3,)*12),AF25+AN25+AQ25+Q25,AF25+AN25+AQ25+Q25+(M25-VLOOKUP('Cad.TÉCNICO'!$S$8,'Cad.TÉCNICO'!$R$5:$T$7,3,)*12-L25)*N25) -> 18218.97641 | T25: 25465.93956 | U25: =M25*(1-'Cad.TÉCNICO'!$AW$2) -> 1086.8 | V25: =M25*('Cad.TÉCNICO'!$AW$2) -> 7273.2 | W25: 7109.135637 | X25: 6673.2 | Y25: 435.9356365 | Z25: =IF(IF(Y25>0,-Y20,-Y20-Y25)>0,0,IF(Y25>0,-Y20,-Y20-Y25)) -> -601.8398806 | AA25: =IF(AA24+Y25+Z25>0,AA24+Y25+Z25,0) -> 2510.156785 | AB25: =O25/(1-'Cad.TÉCNICO'!$E$33)-O25 -> 0.6212218739 | AC25: =P25/(1-'Cad.TÉCNICO'!$E$33)-P25 -> 0.6751526667 | AD25: =IF('Cad.TÉCNICO'!$E$42,AB25*X25,0) -> 4145.537809 | AE25: =IF('Cad.TÉCNICO'!$E$41,AC25*X25,0) -> 4505.428775 | AF25: 8650.966584 | AG25: =IF('Cad.TÉCNICO'!$E$40,O25*$F$34,O25) -> 2.142144393 | AH25: =IF('Cad.TÉCNICO'!$E$39,P25*$F$34,P25) -> 2.328112644 | AI25: =VLOOKUP('Cad.TÉCNICO'!$S$8,'Cad.TÉCNICO'!$R$5:$T$7,3,)*AH25*12+VLOOKUP('Cad.TÉCNICO'!$S$8,'Cad.TÉCNICO'!$R$5:$T$7,3,)*AG25*12 -> 2682.154222 | AJ25: 1 | AK25: =AK24*(1+'Cad.TÉCNICO'!$K$39%) -> 0.7358961508 | AL25: =IF('Cad.TÉCNICO'!$E$42,AK25*$E$34,AK25) -> 1.127810193 | AM25: =AL25*AJ25*'Cad.TÉCNICO'!$AW$2*X25 -> 6547.709592 | AN25: 6547.709592 | AO25: =AO24*(1+'Cad.TÉCNICO'!$K$39%) -> 12.68526096 | AP25: =IF('Cad.TÉCNICO'!$E$38,AO25*$F$34,AO25) -> 17.86656474 | AQ25: =AP25*'Cad.TÉCNICO'!$K$12*12 -> 0
B26: 2045 | C26: 680015.9618 | D26: 27503.21473 | F26: =(D26+C26-$C$4)*('Cad.TÉCNICO'!$K$40/100) -> 65026.72589 | G26: 0 | H26: -28.6699554 | I26: 2291.934561 | J26: -296.699554 | K26: -29.6699554 | L26: =L25*(1-'Cad.TÉCNICO'!$K$10%) -> 8163.151894 | M26: ='Cad.TÉCNICO'!$C$18*12+'Cad.TÉCNICO'!$K$22*12 -> 8360 | N26: =N25*(1+'Cad.TÉCNICO'!$K$39%) -> 5.253323564 | O26: =O25*(1+'Cad.TÉCNICO'!$K$39%) -> 1.64259632 | P26: =P25*(1+'Cad.TÉCNICO'!$K$39%) -> 1.785196775 | Q26: 3261.924248 | R26: 47179.70924 | S26: =IF(L26>(M26-VLOOKUP('Cad.TÉCNICO'!$S$8,'Cad.TÉCNICO'!$R$5:$T$7,3,)*12),AF26+AN26+AQ26+Q26,AF26+AN26+AQ26+Q26+(M26-VLOOKUP('Cad.TÉCNICO'!$S$8,'Cad.TÉCNICO'!$R$5:$T$7,3,)*12-L26)*N26) -> 19676.49452 | T26: 27503.21473 | U26: =M26*(1-'Cad.TÉCNICO'!$AW$2) -> 1086.8 | V26: =M26*('Cad.TÉCNICO'!$AW$2) -> 7273.2 | W26: 7076.351894 | X26: 6673.2 | Y26: 403.151894 | Z26: -568.3925211 | AA26: 2344.916157 | AB26: =O26/(1-'Cad.TÉCNICO'!$E$33)-O26 -> 0.6709196238 | AC26: =P26/(1-'Cad.TÉCNICO'!$E$33)-P26 -> 0.72916488 | AD26: =IF('Cad.TÉCNICO'!$E$42,AB26*X26,0) -> 4477.180833 | AE26: =IF('Cad.TÉCNICO'!$E$41,AC26*X26,0) -> 4865.863078 | AF26: 9343.043911 | AG26: =IF('Cad.TÉCNICO'!$E$40,O26*$F$34,O26) -> 2.313515944 | AH26: =IF('Cad.TÉCNICO'!$E$39,P26*$F$34,P26) -> 2.514361655 | AI26: =VLOOKUP('Cad.TÉCNICO'!$S$8,'Cad.TÉCNICO'!$R$5:$T$7,3,)*AH26*12+VLOOKUP('Cad.TÉCNICO'!$S$8,'Cad.TÉCNICO'!$R$5:$T$7,3,)*AG26*12 -> 2896.72656 | AJ26: 1 | AK26: =AK25*(1+'Cad.TÉCNICO'!$K$39%) -> 0.7947678429 | AL26: =IF('Cad.TÉCNICO'!$E$42,AK26*$E$34,AK26) -> 1.218035008 | AM26: =AL26*AJ26*'Cad.TÉCNICO'!$AW$2*X26 -> 7071.526359 | AN26: 7071.526359 | AO26: =AO25*(1+'Cad.TÉCNICO'!$K$39%) -> 13.70008184 | AP26: =IF('Cad.TÉCNICO'!$E$38,AO26*$F$34,AO26) -> 19.29588992 | AQ26: =AP26*'Cad.TÉCNICO'!$K$12*12 -> 0
B27: 2046 | C27: 772545.9024 | D27: 29703.4719 | F27: =(D27+C27-$C$4)*('Cad.TÉCNICO'!$K$40/100) -> 73552.44369 | G27: 0 | H27: -30.2103274 | I27: 2475.289325 | J27: -312.103274 | K27: -31.2103274 | L27: =L26*(1-'Cad.TÉCNICO'!$K$10%) -> 8130.499286 | M27: ='Cad.TÉCNICO'!$C$18*12+'Cad.TÉCNICO'!$K$22*12 -> 8360 | N27: =N26*(1+'Cad.TÉCNICO'!$K$39%) -> 5.673589449 | O27: =O26*(1+'Cad.TÉCNICO'!$K$39%) -> 1.774004026 | P27: =P26*(1+'Cad.TÉCNICO'!$K$39%) -> 1.928012517 | Q27: 3522.878187 | R27: 50954.08598 | S27: =IF(L27>(M27-VLOOKUP('Cad.TÉCNICO'!$S$8,'Cad.TÉCNICO'!$R$5:$T$7,3,)*12),AF27+AN27+AQ27+Q27,AF27+AN27+AQ27+Q27+(M27-VLOOKUP('Cad.TÉCNICO'!$S$8,'Cad.TÉCNICO'!$R$5:$T$7,3,)*12-L27)*N27) -> 21250.61408 | T27: 29703.4719 | U27: =M27*(1-'Cad.TÉCNICO'!$AW$2) -> 1086.8 | V27: =M27*('Cad.TÉCNICO'!$AW$2) -> 7273.2 | W27: 7043.699286 | X27: 6673.2 | Y27: 370.4992864 | Z27: -535.078951 | AA27: 2180.336493 | AB27: =O27/(1-'Cad.TÉCNICO'!$E$33)-O27 -> 0.7245931937 | AC27: =P27/(1-'Cad.TÉCNICO'!$E$33)-P27 -> 0.7874980704 | AD27: =IF('Cad.TÉCNICO'!$E$42,AB27*X27,0) -> 4835.3553 | AE27: =IF('Cad.TÉCNICO'!$E$41,AC27*X27,0) -> 5255.132124 | AF27: 10090.48742 | AG27: =IF('Cad.TÉCNICO'!$E$40,O27*$F$34,O27) -> 2.49859722 | AH27: =IF('Cad.TÉCNICO'!$E$39,P27*$F$34,P27) -> 2.715510588 | AI27: =VLOOKUP('Cad.TÉCNICO'!$S$8,'Cad.TÉCNICO'!$R$5:$T$7,3,)*AH27*12+VLOOKUP('Cad.TÉCNICO'!$S$8,'Cad.TÉCNICO'!$R$5:$T$7,3,)*AG27*12 -> 3128.464684 | AJ27: 1 | AK27: =AK26*(1+'Cad.TÉCNICO'!$K$39%) -> 0.8583492703 | AL27: =IF('Cad.TÉCNICO'!$E$42,AK27*$E$34,AK27) -> 1.315477809 | AM27: =AL27*AJ27*'Cad.TÉCNICO'!$AW$2*X27 -> 7637.248468 | AN27: 7637.248468 | AO27: =AO26*(1+'Cad.TÉCNICO'!$K$39%) -> 14.79608839 | AP27: =IF('Cad.TÉCNICO'!$E$38,AO27*$F$34,AO27) -> 20.83956111 | AQ27: =AP27*'Cad.TÉCNICO'!$K$12*12 -> 0
B28: 2047 | C28: =C27+D27+E27+F27 -> 875801.818 | D28: 32079.74966 | F28: =(D28+C28-$C$4)*('Cad.TÉCNICO'!$K$40/100) -> 83059.34109 | G28: 0 | H28: -31.76092217 | I28: 2673.312471 | J28: -327.6092217 | K28: -32.76092217 | L28: =L27*(1-'Cad.TÉCNICO'!$K$10%) -> 8097.977289 | M28: ='Cad.TÉCNICO'!$C$18*12+'Cad.TÉCNICO'!$K$22*12 -> 8360 | N28: =N27*(1+'Cad.TÉCNICO'!$K$39%) -> 6.127476605 | O28: =O27*(1+'Cad.TÉCNICO'!$K$39%) -> 1.915924348 | P28: =P27*(1+'Cad.TÉCNICO'!$K$39%) -> 2.082253519 | Q28: 3804.708442 | R28: 55030.41286 | S28: =IF(L28>(M28-VLOOKUP('Cad.TÉCNICO'!$S$8,'Cad.TÉCNICO'!$R$5:$T$7,3,)*12),AF28+AN28+AQ28+Q28,AF28+AN28+AQ28+Q28+(M28-VLOOKUP('Cad.TÉCNICO'!$S$8,'Cad.TÉCNICO'!$R$5:$T$7,3,)*12-L28)*N28) -> 22950.66321 | T28: 32079.74966 | U28: =M28*(1-'Cad.TÉCNICO'!$AW$2) -> 1086.8 | V28: =M28*('Cad.TÉCNICO'!$AW$2) -> 7273.2 | W28: 7011.177289 | X28: 6673.2 | Y28: 337.9772893 | Z28: -501.8986352 | AA28: 2016.415147 | AB28: =O28/(1-'Cad.TÉCNICO'!$E$33)-O28 -> 0.7825606492 | AC28: =P28/(1-'Cad.TÉCNICO'!$E$33)-P28 -> 0.8504979161 | AD28: =IF('Cad.TÉCNICO'!$E$42,AB28*X28,0) -> 5222.183724 | AE28: =IF('Cad.TÉCNICO'!$E$41,AC28*X28,0) -> 5675.542694 | AF28: 10897.72642 | AG28: =IF('Cad.TÉCNICO'!$E$40,O28*$F$34,O28) -> 2.698484997 | AH28: =IF('Cad.TÉCNICO'!$E$39,P28*$F$34,P28) -> 2.932751435 | AI28: =VLOOKUP('Cad.TÉCNICO'!$S$8,'Cad.TÉCNICO'!$R$5:$T$7,3,)*AH28*12+VLOOKUP('Cad.TÉCNICO'!$S$8,'Cad.TÉCNICO'!$R$5:$T$7,3,)*AG28*12 -> 3378.741859 | AJ28: 1 | AK28: =AK27*(1+'Cad.TÉCNICO'!$K$39%) -> 0.927017212 | AL28: =IF('Cad.TÉCNICO'!$E$42,AK28*$E$34,AK28) -> 1.420716034 | AM28: =AL28*AJ28*'Cad.TÉCNICO'!$AW$2*X28 -> 8248.228345 | AN28: 8248.228345 | AO28: =AO27*(1+'Cad.TÉCNICO'!$K$39%) -> 15.97977546 | AP28: =IF('Cad.TÉCNICO'!$E$38,AO28*$F$34,AO28) -> 22.506726 | AQ28: =AP28*'Cad.TÉCNICO'!$K$12*12 -> 0
B29: 2048 | C29: =C28+D28+E28+F28 -> 990940.9088 | D29: =T29 -> 34646.12963 | F29: =(D29+C29-$C$4)*('Cad.TÉCNICO'!$K$40/100) -> 93652.83346 | G29: 0 | H29: =IF(G30=0,K29+1,0) -> -33.32213362 | I29: 2887.177469 | J29: -343.2213362 | K29: -34.32213362 | L29: =L28*(1-'Cad.TÉCNICO'!$K$10%) -> 8065.58538 | M29: ='Cad.TÉCNICO'!$C$18*12+'Cad.TÉCNICO'!$K$22*12 -> 8360 | N29: =N28*(1+'Cad.TÉCNICO'!$K$39%) -> 6.617674734 | O29: =O28*(1+'Cad.TÉCNICO'!$K$39%) -> 2.069198296 | P29: =P28*(1+'Cad.TÉCNICO'!$K$39%) -> 2.2488338 | Q29: 4109.085118 | R29: 59432.84589 | S29: =IF(L29>(M29-VLOOKUP('Cad.TÉCNICO'!$S$8,'Cad.TÉCNICO'!$R$5:$T$7,3,)*12),AF29+AN29+AQ29+Q29,AF29+AN29+AQ29+Q29+(M29-VLOOKUP('Cad.TÉCNICO'!$S$8,'Cad.TÉCNICO'!$R$5:$T$7,3,)*12-L29)*N29) -> 24786.71626 | T29: 34646.12963 | U29: =M29*(1-'Cad.TÉCNICO'!$AW$2) -> 1086.8 | V29: =M29*('Cad.TÉCNICO'!$AW$2) -> 7273.2 | W29: 6978.78538 | X29: 6673.2 | Y29: 305.5853801 | Z29: -468.8510407 | AA29: 1853.149486 | AB29: =O29/(1-'Cad.TÉCNICO'!$E$33)-O29 -> 0.8451655011 | AC29: =P29/(1-'Cad.TÉCNICO'!$E$33)-P29 -> 0.9185377494 | AD29: =IF('Cad.TÉCNICO'!$E$42,AB29*X29,0) -> 5639.958422 | AE29: =IF('Cad.TÉCNICO'!$E$41,AC29*X29,0) -> 6129.586109 | AF29: 11769.54453 | AG29: =IF('Cad.TÉCNICO'!$E$40,O29*$F$34,O29) -> 2.914363797 | AH29: =IF('Cad.TÉCNICO'!$E$39,P29*$F$34,P29) -> 3.16737155 | AI29: =VLOOKUP('Cad.TÉCNICO'!$S$8,'Cad.TÉCNICO'!$R$5:$T$7,3,)*AH29*12+VLOOKUP('Cad.TÉCNICO'!$S$8,'Cad.TÉCNICO'!$R$5:$T$7,3,)*AG29*12 -> 3649.041208 | AJ29: 1 | AK29: =AK28*(1+'Cad.TÉCNICO'!$K$39%) -> 1.001178589 | AL29: =IF('Cad.TÉCNICO'!$E$42,AK29*$E$34,AK29) -> 1.534373316 | AM29: =AL29*AJ29*'Cad.TÉCNICO'!$AW$2*X29 -> 8908.086613 | AN29: =IF(AM29>AI29,AM29,AI29) -> 8908.086613 | AO29: =AO28*(1+'Cad.TÉCNICO'!$K$39%) -> 17.25815749 | AP29: =IF('Cad.TÉCNICO'!$E$38,AO29*$F$34,AO29) -> 24.30726408 | AQ29: =AP29*'Cad.TÉCNICO'!$K$12*12 -> 0
C30: =ROUND(C29,2) -> 990940.91
B33: 2023 | C33: 0.15 | E33: IMPOSTOS | F33: icms
B34: 2024 | C34: =C33+15% -> 0.3 | E34: =1/(1-SUM('Cad.TÉCNICO'!E33:E35)) -> 1.53256705 | F34: =1/(1-Financeiro!I3) -> 1.408450704
B35: 2025 | C35: =C34+15% -> 0.45
B36: 2026 | C36: 0.6 | E36: tarif min em kwh | F36: ano
B37: 2027 | C37: 0.75 | E37: =VLOOKUP('Cad.TÉCNICO'!$S$8,'Cad.TÉCNICO'!$R$5:$T$7,3,) -> 50 | F37: =E37*12 -> 600
B38: 2028 | C38: 0.9
B39: 2029
B40: 2030
B41: 2031
B42: 2032
B43: 2033
B44: 2034
B45: 2035
B46: 2036
B47: 2037
B48: 2038
B49: 2039

Sheet Planilha1 (hidden)
A1: -0.3 | B1: 580W
B4: Fluxo de caixa acumulado
B5: Ano | C5: Valor Acumulado | D5: Valor Economia | F5: Aplicação Econ. | G5: 2.949595595 | L5: Geração Ano a Ano | M5: Consumo | N5: KWH | O5: te | P5: tusd | Q5: Ilum. Pública | R5: Sem solar | S5: Com Solar | T5: ECONOMIA | U5: consumo instantaneo | V5: consumo não simultaneo | W5: Injetado | X5: Compensado | Y5: Créditos | Z5: Venc | AA5: acumulo | AB5: icms te comp | AC5: icms tusd comp | AD5: Valor ICMS te comp | AE5: Valor ICMS tusd comp | AF5: icms compensação | AG5: tarifa min TE | AH5: tarifa min TUSD | AI5: Tarifa Min | AJ5: Fio B | AK5: Fio B s/ imp | AL5: Fio B c/ imp | AM5: Fio B | AN5: Considera fio b? | AO5: Tusd-G | AP5: Tusd-G + se icms | AQ5: Tusd-G
B6: 2023 | C6: -15000 | D6: 5085.442907 | F6: 101.7088581 | G6: 1 | H6: 0 | I6: 423.7869089 | J6: 35.39514714 | K6: 3.539514714 | L6: 8008.762611 | M6: 7800 | N6: R$ 0,966299 | O6: 0.30214 | P6: 0.32837 | Q6: 600 | R6: 8137.1322 | S6: 3051.689293 | T6: 5085.442907 | U6: 2418 | V6: 5382 | W6: 5590.762611 | X6: 5382 | Y6: 208.7626107 | Z6: 0 | AA6: 208.7626107 | AB6: 0.1234092958 | AC6: 0.1341229577 | AD6: 664.1888299 | AE6: 721.8497586 | AF6: 1386.038588 | AG6: 0.4255492958 | AH6: 0.4624929577 | AI6: 1065.650704 | AJ6: 0.15 | AK6: 0.14 | AL6: 0.214559387 | AM6: 119.5175172 | AN6: 1065.650704 | AO6: 2.54 | AP6: 3.577464789 | AQ6: 0
B7: 2024 | C7: -9812.848235 | D7: 5136.297336 | F7: 206.468982 | G7: 1 | H7: 0 | I7: 428.024778 | J7: 22.92588826 | K7: 2.292588826 | L7: 7976.72756 | M7: 7800 | N7: 0.97596199 | O7: 0.3051614 | P7: 0.3316537 | Q7: 606 | R7: 8218.503522 | S7: 3082.206186 | T7: 5136.297336 | U7: 2418 | V7: 5382 | W7: 5558.72756 | X7: 5382 | Y7: 176.7275603 | Z7: 0 | AA7: 385.490171 | AB7: 0.1246433887 | AC7: 0.1354641873 | AD7: 670.8307182 | AE7: 729.0682562 | AF7: 1399.898974 | AG7: 0.4298047887 | AH7: 0.4671178873 | AI7: 1076.307211 | AJ7: 0.3 | AK7: 0.1414 | AL7: 0.2167049808 | AM7: 241.4253848 | AN7: 1076.307211 | AO7: 2.5654 | AP7: 3.613239437 | AQ7: 0
B8: 2025 | C8: -4470.081916 | D8: 5187.66031 | F8: 314.3515679 | G8: 3.068022183 | H8: 2.034011092 | I8: 432.3050258 | J8: 10.34011092 | K8: 1.034011092 | L8: 7944.82065 | M8: 7800 | N8: 0.9857216099 | O8: 0.308213014 | P8: 0.334970237 | Q8: 612.06 | R8: 8300.688557 | S8: 3113.028247 | T8: 5187.66031 | U8: 2418 | V8: 5382 | W8: 5526.82065 | X8: 5382 | Y8: 144.8206501 | Z8: 0 | AA8: 530.3108211 | AB8: 0.1258898226 | AC8: 0.1368188292 | AD8: 677.5390253 | AE8: 736.3589387 | AF8: 1413.897964 | AG8: 0.4341028366 | AH8: 0.4717890662 | AI8: 1087.070283 | AJ8: 0.45 | AK8: 0.142814 | AL8: 0.2188720307 | AM8: 365.759458 | AN8: 1087.070283 | AO8: 2.591054 | AP8: 3.649371831 | AQ8: 0
B9: 2026 | C9: 1031.929962 | D9: 5239.536913 | F9: 425.4293375 | G9: 0 | H9: 0.7636592748 | I9: 436.6280761 | J9: -2.363407252 | K9: -0.2363407252 | L9: 7913.041367 | M9: 7800 | N9: 0.995578826 | O9: 0.3112951441 | P9: 0.3383199394 | Q9: 618.1806 | R9: 8383.695443 | S9: 3144.15853 | T9: 5239.536913 | U9: 2418 | V9: 5382 | W9: 5495.041367 | X9: 5382 | Y9: 113.0413675 | Z9: 0 | AA9: 643.3521885 | AB9: 0.1271487208 | AC9: 0.1381870175 | AD9: 684.3144156 | AE9: 743.7225281 | AF9: 1428.036944 | AG9: 0.438443865 | AH9: 0.4765069569 | AI9: 1097.940986 | AJ9: 0.6 | AK9: 0.14424214 | AL9: 0.221060751 | AM9: 492.5560701 | AN9: 1097.940986 | AO9: 2.61696454 | AP9: 3.685865549 | AQ9: 0
B10: 2027 | C10: 6696.896212 | D10: 5291.932282 | F10: 539.7765699 | G10: 0 | H10: -0.5185900019 | I10: 440.9943568 | J10: -15.18590002 | K10: -1.518590002 | L10: 7881.389202 | M10: 7800 | N10: 1.005534614 | O10: 0.3144080956 | P10: 0.3417031388 | Q10: 624.362406 | R10: 8467.532397 | S10: 3175.600115 | T10: 5291.932282 | U10: 2418 | V10: 5382 | W10: 5463.389202 | X10: 5382 | Y10: 81.38920198 | Z10: 0 | AA10: 724.7413905 | AB10: 0.1284202081 | AC10: 0.1395688877 | AD10: 691.1575597 | AE10: 751.1597534 | AF10: 1442.317313 | AG10: 0.4428283036 | AH10: 0.4812720264 | AI10: 1108.920396 | AJ10: 0.75 | AK10: 0.1456845614 | AL10: 0.2232713585 | AM10: 621.8520385 | AN10: 1108.920396 | AO10: 2.643134185 | AP10: 3.722724205 | AQ10: 0
B11: 2028 | C11: 12528.60506 | D11: 5344.851605 | F11: 657.4691334 | G11: 0 | H11: -1.812861271 | I11: 445.4043004 | J11: -28.12861271 | K11: -2.812861271 | L11: 7849.863645 | M11: 7800 | N11: 1.01558996 | O11: 0.3175521765 | P11: 0.3451201702 | Q11: 630.6060301 | R11: 8552.207721 | S11: 3207.356116 | T11: 5344.851605 | U11: 2418 | V11: 5382 | W11: 5431.863645 | X11: 5382 | Y11: 49.86364517 | Z11: -208.7626107 | AA11: 565.8424249 | AB11: 0.1297044101 | AC11: 0.1409645765 | AD11: 698.0691353 | AE11: 758.6713509 | AF11: 1456.740486 | AG11: 0.4472565867 | AH11: 0.4860847467 | AI11: 1120.0096 | AJ11: 0.9 | AK11: 0.147141407 | AL11: 0.2255040721 | AM11: 753.6846707 | AN11: 1120.0096 | AO11: 2.669565527 | AP11: 3.759951447 | AQ11: 0
B12: 2029 | C12: 18530.9258 | D12: 5398.300121 | F12: 778.5845185 | G12: 0 | H12: -3.11928023 | I12: 449.8583434 | J12: -41.1928023 | K12: -4.11928023 | L12: 7818.464191 | M12: 7800 | N12: 1.02574586 | O12: 0.3207276983 | P12: 0.3485713719 | Q12: 636.9120904 | R12: 8637.729798 | S12: 3239.429678 | T12: 5398.300121 | U12: 2418 | V12: 5382 | W12: 5400.464191 | X12: 5382 | Y12: 18.46419059 | Z12: -176.7275603 | AA12: 407.5790552 | AB12: 0.1310014542 | AC12: 0.1423742223 | AD12: 705.0498267 | AE12: 766.2580645 | AF12: 1471.307891 | AG12: 0.4517291525 | AH12: 0.4909455942 | AI12: 1131.209696 | AJ12: 1 | AK12: 0.1486128211 | AL12: 0.2277591128 | AM12: 845.801686 | AN12: 1131.209696 | AO12: 2.696261183 | AP12: 3.797550961 | AQ12: 0
B13: 2030 | C13: 24707.81044 | D13: 5455.819992 | F13: 903.2726087 | G13: 0 | H13: -4.434448456 | I13: 454.651666 | J13: -54.34448456 | K13: -5.434448456 | L13: 7787.190334 | M13: 7800 | N13: 1.036003319 | O13: 0.3239349753 | P13: 0.3520570856 | Q13: 643.2812113 | R13: 8724.107096 | S13: 3268.287105 | T13: 5455.819992 | U13: 2418 | V13: 5382 | W13: 5369.190334 | X13: 5369.190334 | Y13: -12.80966617 | Z13: -132.0109839 | AA13: 262.7584052 | AB13: 0.1323114688 | AC13: 0.1437979645 | AD13: 710.4054592 | AE13: 772.0786412 | AF13: 1482.4841 | AG13: 0.4562464441 | AH13: 0.4958550501 | AI13: 1142.521793 | AJ13: 1 | AK13: 0.1500989493 | AL13: 0.2300367039 | AM13: 852.2264844 | AN13: 1142.521793 | AO13: 2.723223794 | AP13: 3.835526471 | AQ13: 0
B14: 2031 | C14: 31066.90304 | D14: 5519.064663 | F14: 1031.719354 | G14: 0 | H14: -5.754819145 | I14: 459.9220553 | J14: -67.54819145 | K14: -6.754819145 | L14: 7756.041572 | M14: 7800 | N14: 1.046363352 | O14: 0.327174325 | P14: 0.3555776564 | Q14: 649.7140234 | R14: 8811.348167 | S14: 3292.283504 | T14: 5519.064663 | U14: 2418 | V14: 5382 | W14: 5338.041572 | X14: 5338.041572 | Y14: -43.95842751 | Z14: -69.08293995 | AA14: 149.7170377 | AB14: 0.1336345835 | AC14: 0.1452359442 | AD14: 713.3469621 | AE14: 775.2755078 | AF14: 1488.62247 | AG14: 0.4608089085 | AH14: 0.5008136006 | AI14: 1153.947011 | AJ14: 1 | AK14: 0.1515999388 | AL14: 0.2323370709 | AM14: 855.755211 | AN14: 1153.947011 | AO14: 2.750456032 | AP14: 3.873881736 | AQ14: 0
B15: 2032 | C15: 37617.68706 | D15: 5582.993553 | F15: 1164.013612 | G15: 0 | H15: -7.08548748 | I15: 465.2494627 | J15: -80.8548748 | K15: -8.08548748 | L15: 7725.017406 | M15: 7800 | N15: 1.056826985 | O15: 0.3304460683 | P15: 0.359133433 | Q15: 656.2111636 | R15: 8899.461649 | S15: 3316.468096 | T15: 5582.993553 | U15: 2418 | V15: 5382 | W15: 5307.017406 | X15: 5307.017406 | Y15: -74.9825938 | Z15: -6.406608185 | AA15: 68.32783576 | AB15: 0.1349709293 | AC15: 0.1466883036 | AD15: 716.2930711 | AE15: 778.4773806 | AF15: 1494.770452 | AG15: 0.4654169976 | AH15: 0.5058217366 | AI15: 1165.486481 | AJ15: 1 | AK15: 0.1531159382 | AL15: 0.2346604416 | AM15: 859.2894634 | AN15: 1165.486481 | AO15: 2.777960593 | AP15: 3.912620553 | AQ15: 0
B16: 2033 | C16: 44364.69422 | D16: 5647.613811 | F16: 1300.246161 | G16: 0 | H16: -8.426571088 | I16: 470.6344843 | J16: -94.26571088 | K16: -9.426571088 | L16: 7694.117337 | M16: 7800 | N16: 1.067395255 | O16: 0.333750529 | P16: 0.3627247673 | Q16: 662.7732752 | R16: 8988.456266 | S16: 3340.842455 | T16: 5647.613811 | U16: 2418 | V16: 5382 | W16: 5276.117337 | X16: 5276.117337 | Y16: -105.8826634 | Z16: 0 | AA16: 0 | AB16: 0.1363206386 | AC16: 0.1481551867 | AD16: 719.2436846 | AE16: 781.6841488 | AF16: 1500.927833 | AG16: 0.4700711676 | AH16: 0.510879954 | AI16: 1177.141346 | AJ16: 1 | AK16: 0.1546470976 | AL16: 0.2370070461 | AM16: 862.8291194 | AN16: 1177.141346 | AO16: 2.805740199 | AP16: 3.951746759 | AQ16: 0
B17: 2034 | C17: 51312.5542 | D17: 5712.932662 | F17: 1440.509737 | G17: 0 | H17: -9.778188485 | I17: 476.0777219 | J17: -107.7818848 | K17: -10.77818848 | L17: 7663.340867 | M17: 7800 | N17: 1.078069208 | O17: 0.3370880343 | P17: 0.366352015 | Q17: 669.401008 | R17: 9078.340828 | S17: 3365.408166 | T17: 5712.932662 | U17: 2418 | V17: 5382 | W17: 5245.340867 | X17: 5245.340867 | Y17: -136.6591328 | Z17: 0 | AA17: 0 | AB17: 0.137683845 | AC17: 0.1496367385 | AD17: 722.1986988 | AE17: 784.8956998 | AF17: 1507.094399 | AG17: 0.4747718792 | AH17: 0.5159887535 | AI17: 1188.912759 | AJ17: 1 | AK17: 0.1561935685 | AL17: 0.2393771165 | AM17: 866.3740547 | AN17: 1188.912759 | AO17: 2.833797601 | AP17: 3.991264226 | AQ17: 0
B18: 2035 | C18: 58465.99659 | D18: 5778.957405 | F18: 1584.89908 | G18: 0 | H18: -11.14045908 | I18: 481.5797837 | J18: -121.4045908 | K18: -12.14045908 | L18: 7632.687504 | M18: 7800 | N18: 1.0888499 | O18: 0.3404589146 | P18: 0.3700155351 | Q18: 676.0950181 | R18: 9169.124236 | S18: 3390.166832 | T18: 5778.957405 | U18: 2418 | V18: 5382 | W18: 5214.687504 | X18: 5214.687504 | Y18: -167.3124962 | Z18: 0 | AA18: 0 | AB18: 0.1390606834 | AC18: 0.1511331059 | AD18: 725.1580081 | AE18: 788.1119188 | AF18: 1513.269927 | AG18: 0.479519598 | AH18: 0.521148641 | AI18: 1200.801887 | AJ18: 1 | AK18: 0.1577555042 | AL18: 0.2417708877 | AM18: 869.9241425 | AN18: 1200.801887 | AO18: 2.862135577 | AP18: 4.031176868 | AQ18: 0
B19: 2036 | C19: 65829.85308 | D19: 5845.695411 | F19: 1733.51097 | G19: 0 | H19: -12.51350321 | I19: 487.1412842 | J19: -135.1350321 | K19: -13.51350321 | L19: 7602.156754 | M19: 7800 | N19: 1.099738399 | O19: 0.3438635038 | P19: 0.3737156905 | Q19: 682.8559683 | R19: 9260.815479 | S19: 3415.120068 | T19: 5845.695411 | U19: 2418 | V19: 5382 | W19: 5184.156754 | X19: 5184.156754 | Y19: -197.8432463 | Z19: 0 | AA19: 0 | AB19: 0.1404512903 | AC19: 0.152644437 | AD19: 728.121505 | AE19: 791.3326888 | AF19: 1519.454194 | AG19: 0.484314794 | AH19: 0.5263601275 | AI19: 1212.809906 | AJ19: 1 | AK19: 0.1593330593 | AL19: 0.2441885966 | AM19: 873.4792538 | AN19: 1212.809906 | AO19: 2.890756932 | AP19: 4.071488637 | AQ19: 0
B20: 2037 | C20: 73409.05946 | D20: 5913.15413 | F20: 1886.444272 | G20: 0 | H20: -13.89744211 | I20: 492.7628442 | J20: -148.9744211 | K20: -14.89744211 | L20: 7571.748127 | M20: 7800 | N20: 1.110735783 | O20: 0.3473021388 | P20: 0.3774528474 | Q20: 689.6845279 | R20: 9353.423634 | S20: 3440.269503 | T20: 5913.15413 | U20: 2418 | V20: 5382 | W20: 5153.748127 | X20: 5153.748127 | Y20: -228.2518733 | Z20: 0 | AA20: 0 | AB20: 0.1418558032 | AC20: 0.1541708813 | AD20: 731.0890798 | AE20: 794.5578909 | AF20: 1525.646971 | AG20: 0.489157942 | AH20: 0.5316237287 | AI20: 1224.938005 | AJ20: 1 | AK20: 0.1609263899 | AL20: 0.2466304825 | AM20: 877.0392573 | AN20: 1224.938005 | AO20: 2.919664502 | AP20: 4.112203523 | AQ20: 0
B21: 2038 | C21: 81208.65786 | D21: 5981.341087 | F21: 2043.799979 | G21: 0 | H21: -15.29239798 | I21: 498.4450906 | J21: -162.9239798 | K21: -16.29239798 | L21: 7541.461134 | M21: 7800 | N21: 1.121843141 | O21: 0.3507751602 | P21: 0.3812273759 | Q21: 696.5813732 | R21: 9446.95787 | S21: 3465.616783 | T21: 5981.341087 | U21: 2418 | V21: 5382 | W21: 5123.461134 | X21: 5123.461134 | Y21: -258.5388658 | Z21: 0 | AA21: 0 | AB21: 0.1432743612 | AC21: 0.1557125901 | AD21: 734.0606211 | AE21: 797.7874037 | AF21: 1531.848025 | AG21: 0.4940495214 | AH21: 0.536939966 | AI21: 1237.187385 | AJ21: 1 | AK21: 0.1625356538 | AL21: 0.2490967874 | AM21: 880.604019 | AN21: 1237.187385 | AO21: 2.948861147 | AP21: 4.153325559 | AQ21: 0
B22: 2039 | C22: 89233.79893 | D22: 6050.263884 | F22: 2205.681256 | G22: 0 | H22: -16.69849395 | I22: 504.188657 | J22: -176.9849395 | K22: -17.69849395 | L22: 7511.29529 | M22: 7800 | N22: 1.133061572 | O22: 0.3542829118 | P22: 0.3850396496 | Q22: 703.547187 | R22: 9541.427449 | S22: 3491.163565 | T22: 6050.263884 | U22: 2418 | V22: 5382 | W22: 5093.29529 | X22: 5093.29529 | Y22: -288.7047103 | Z22: 0 | AA22: 0 | AB22: 0.1447071048 | AC22: 0.157269716 | AD22: 737.0360153 | AE22: 801.021104 | AF22: 1538.057119 | AG22: 0.4989900166 | AH22: 0.5423093657 | AI22: 1249.559259 | AJ22: 1 | AK22: 0.1641610103 | AL22: 0.2515877552 | AM22: 884.1734028 | AN22: 1249.559259 | AO22: 2.978349758 | AP22: 4.194858814 | AQ22: 0
B23: 2040 | C23: 97489.74407 | D23: 6119.9302 | F23: 2372.193485 | G23: 0 | H23: -18.11585411 | I23: 509.9941834 | J23: -191.1585411 | K23: -19.11585411 | L23: 7481.250109 | M23: 7800 | N23: 1.144392188 | O23: 0.3578257409 | P23: 0.3888900461 | Q23: 710.5826588 | R23: 9636.841723 | S23: 3516.911523 | T23: 6119.9302 | U23: 2418 | V23: 5382 | W23: 5063.250109 | X23: 5063.250109 | Y23: -318.7498915 | Z23: 0 | AA23: 0 | AB23: 0.1461541759 | AC23: 0.1588424132 | AD23: 740.0151468 | AE23: 804.2588659 | AF23: 1544.274013 | AG23: 0.5039799168 | AH23: 0.5477324593 | AI23: 1262.054851 | AJ23: 1 | AK23: 0.1658026204 | AL23: 0.2541036328 | AM23: 887.7472699 | AN23: 1262.054851 | AO23: 3.008133256 | AP23: 4.236807402 | AQ23: 0
B24: 2041 | C24: 105981.8678 | D24: 6190.347796 | F24: 2543.444311 | G24: 0 | H24: -19.54460355 | I24: 515.8623163 | J24: -205.4460355 | K24: -20.54460355 | L24: 7451.325108 | M24: 7800 | N24: 1.15583611 | O24: 0.3614039983 | P24: 0.3927789466 | Q24: 717.6884854 | R24: 9733.21014 | S24: 3542.862345 | T24: 6190.347796 | U24: 2418 | V24: 5382 | W24: 5033.325108 | X24: 5033.325108 | Y24: -348.6748919 | Z24: 0 | AA24: 0 | AB24: 0.1476157176 | AC24: 0.1604308373 | AD24: 742.9978978 | AE24: 807.5005617 | AF24: 1550.49846 | AG24: 0.5090197159 | AH24: 0.5532097839 | AI24: 1274.6754 | AJ24: 1 | AK24: 0.1674606466 | AL24: 0.2566446691 | AM24: 891.3254793 | AN24: 1274.6754 | AO24: 3.038214588 | AP24: 4.279175476 | AQ24: 0
B25: 2042 | C25: 114715.6599 | D25: 6261.524508 | F25: 2719.543687 | G25: 0 | H25: -20.98486833 | I25: 521.793709 | J25: -219.8486833 | K25: -21.98486833 | L25: 7421.519808 | M25: 7800 | N25: 1.167394471 | O25: 0.3650180383 | P25: 0.3967067361 | Q25: 724.8653703 | R25: 9830.542242 | S25: 3569.017734 | T25: 6261.524508 | U25: 2418 | V25: 5382 | W25: 5003.519808 | X25: 5003.519808 | Y25: -378.4801923 | Z25: 0 | AA25: 0 | AB25: 0.1490918748 | AC25: 0.1620351457 | AD25: 745.9841487 | AE25: 810.7460611 | AF25: 1556.73021 | AG25: 0.5141099131 | AH25: 0.5587418818 | AI25: 1287.422154 | AJ25: 1 | AK25: 0.1691352531 | AL25: 0.2592111158 | AM25: 894.9078871 | AN25: 1287.422154 | AO25: 3.068596734 | AP25: 4.321967231 | AQ25: 0
B26: 2043 | C26: 123696.7281 | D26: 6333.468256 | F26: 2900.603926 | G26: 0 | H26: -22.4367755 | I26: 527.7890213 | J26: -234.367755 | K26: -23.4367755 | L26: 7391.833728 | M26: 7800 | N26: 1.179068415 | O26: 0.3686682187 | P26: 0.4006738034 | Q26: 732.114024 | R26: 9928.847664 | S26: 3595.379408 | T26: 6333.468256 | U26: 2418 | V26: 5382 | W26: 4973.833728 | X26: 4973.833728 | Y26: -408.1662716 | Z26: 0 | AA26: 0 | AB26: 0.1505827935 | AC26: 0.1636554972 | AD26: 748.9737774 | AE26: 813.9952317 | AF26: 1562.969009 | AG26: 0.5192510122 | AH26: 0.5643293006 | AI26: 1300.296375 | AJ26: 1 | AK26: 0.1708266056 | AL26: 0.261803227 | AM26: 898.4943471 | AN26: 1300.296375 | AO26: 3.099282701 | AP26: 4.365186903 | AQ26: 0
B27: 2044 | C27: 132930.8002 | D27: 6406.187039 | F27: 3086.739746 | G27: 0 | H27: -23.90045316 | I27: 533.8489199 | J27: -249.0045316 | K27: -24.90045316 | L27: 7362.266394 | M27: 7800 | N27: 1.1908591 | O27: 0.3723549009 | P27: 0.4046805415 | Q27: 739.4351642 | R27: 10028.13614 | S27: 3621.949102 | T27: 6406.187039 | U27: 2418 | V27: 5382 | W27: 4944.266394 | X27: 4944.266394 | Y27: -437.7336065 | Z27: 0 | AA27: 0 | AB27: 0.1520886215 | AC27: 0.1652920521 | AD27: 751.96666 | AE27: 817.2479385 | AF27: 1569.214599 | AG27: 0.5244435223 | AH27: 0.5699725936 | AI27: 1313.299339 | AJ27: 1 | AK27: 0.1725348716 | AL27: 0.2644212592 | AM27: 902.0847106 | AN27: 1313.299339 | AO27: 3.130275528 | AP27: 4.408838773 | AQ27: 0
B28: 2045 | C28: 142423.727 | D28: 6479.688939 | F28: 3278.068319 | G28: 0 | H28: -25.3760304 | I28: 539.9740783 | J28: -263.760304 | K28: -26.3760304 | L28: 7332.817328 | M28: 7800 | N28: 1.202767691 | O28: 0.3760784499 | P28: 0.4087273469 | Q28: 746.8295159 | R28: 10128.4175 | S28: 3648.728563 | T28: 6479.688939 | U28: 2418 | V28: 5382 | W28: 4914.817328 | X28: 4914.817328 | Y28: -467.1826721 | Z28: 0 | AA28: 0 | AB28: 0.1536095077 | AC28: 0.1669449727 | AD28: 754.9626701 | AE28: 820.5040445 | AF28: 1575.466715 | AG28: 0.5296879576 | AH28: 0.5756723195 | AI28: 1326.432333 | AJ28: 1 | AK28: 0.1742602204 | AL28: 0.2670654718 | AM28: 905.6788259 | AN28: 1326.432333 | AO28: 3.161578284 | AP28: 4.45292716 | AQ28: 0
B29: 2046 | C29: 152181.4843 | D29: 6553.982121 | F29: 3474.709328 | G29: 0 | H29: -26.86363737 | I29: 546.1651768 | J29: -278.6363737 | K29: -27.86363737 | L29: 7303.486059 | M29: 7800 | N29: 1.214795367 | O29: 0.3798392344 | P29: 0.4128146203 | Q29: 754.297811 | R29: 10229.70168 | S29: 3675.719556 | T29: 6553.982121 | U29: 2418 | V29: 5382 | W29: 4885.486059 | X29: 4885.486059 | Y29: -496.5139414 | Z29: 0 | AA29: 0 | AB29: 0.1551456028 | AC29: 0.1686144224 | AD29: 757.9616794 | AE29: 823.7634099 | AF29: 1581.725089 | AG29: 0.5349848371 | AH29: 0.5814290427 | AI29: 1339.696656 | AJ29: 1 | AK29: 0.1760028226 | AL29: 0.2697361265 | AM29: 909.2765392 | AN29: 1339.696656 | AO29: 3.193194067 | AP29: 4.497456432 | AQ29: 0
B30: 2047 | C30: 162210.1757 | D30: 6629.074833 | F30: 3676.785011 | G30: 0 | H30: -28.36340527 | I30: 552.4229027 | J30: -293.6340527 | K30: -29.36340527 | L30: 7274.272114 | M30: 7800 | N30: 1.226943321 | O30: 0.3836376267 | P30: 0.4169427665 | Q30: 761.8407891 | R30: 10331.99869 | S30: 3702.923861 | T30: 6629.074833 | U30: 2418 | V30: 5382 | W30: 4856.272114 | X30: 4856.272114 | Y30: -525.7278856 | Z30: 0 | AA30: 0 | AB30: 0.1566970588 | AC30: 0.1703005666 | AD30: 760.963557 | AE30: 827.0258927 | AF30: 1587.98945 | AG30: 0.5403346855 | AH30: 0.5872433332 | AI30: 1353.093622 | AJ30: 1 | AK30: 0.1777628508 | AL30: 0.2724334878 | AM30: 912.8776934 | AN30: 1353.093622 | AO30: 3.225126007 | AP30: 4.542430996 | AQ30: 0
B31: 2048 | C31: 172516.0356 | D31: 6704.975407 | F31: 3884.42022 | G31: 0 | H31: -29.87546637 | I31: 558.7479506 | J31: -308.7546637 | K31: -30.87546637 | L31: 7245.175026 | M31: 7800 | N31: 1.239212754 | O31: 0.387474003 | P31: 0.4211121942 | Q31: 769.459197 | R31: 10435.31868 | S31: 3730.343274 | T31: 6704.975407 | U31: 2418 | V31: 5382 | W31: 4827.175026 | X31: 4827.175026 | Y31: -554.8249741 | Z31: 0 | AA31: 0 | AB31: 0.1582640294 | AC31: 0.1720035723 | AD31: 763.9681701 | AE31: 830.2913485 | AF31: 1594.259519 | AG31: 0.5457380324 | AH31: 0.5931157665 | AI31: 1366.624559 | AJ31: 1 | AK31: 0.1795404793 | AL31: 0.2751578227 | AM31: 916.4821292 | AN31: 1366.624559 | AO31: 3.257377267 | AP31: 4.587855306 | AQ31: 0
C32: 172516.04
A35: -0.35 | B35: 555w
B36: Fluxo de caixa acumulado
B37: Ano | C37: Valor Acumulado | D37: Valor Economia | F37: Aplicação Econ. | G37: 2.949595595 | L37: Geração Ano a Ano | M37: Consumo | N37: KWH | O37: te | P37: tusd | Q37: Ilum. Pública | R37: Sem solar | S37: Com Solar | T37: ECONOMIA | U37: consumo instantaneo | V37: consumo não simultaneo | W37: Injetado | X37: Compensado | Y37: Créditos | Z37: Venc | AA37: acumulo | AB37: icms te comp | AC37: icms tusd comp | AD37: Valor ICMS te comp | AE37: Valor ICMS tusd comp | AF37: icms compensação | AG37: tarifa min TE | AH37: tarifa min TUSD | AI37: Tarifa Min | AJ37: Fio B | AK37: Fio B s/ imp | AL37: Fio B c/ imp | AM37: Fio B | AN37: Considera fio b? | AO37: Tusd-G | AP37: Tusd-G + se icms | AQ37: Tusd-G
B38: 2023 | C38: -15000 | D38: 5085.442907 | F38: 101.7088581 | G38: 1 | H38: 0 | I38: 423.7869089 | J38: 35.39514714 | K38: 3.539514714 | L38: 7900.536089 | M38: 7800 | N38: R$ 0,966299 | O38: 0.30214 | P38: 0.32837 | Q38: 600 | R38: 8137.1322 | S38: 3051.689293 | T38: 5085.442907 | U38: 2418 | V38: 5382 | W38: 5482.536089 | X38: 5382 | Y38: 100.536089 | Z38: 0 | AA38: 100.536089 | AB38: 0.1234092958 | AC38: 0.1341229577 | AD38: 664.1888299 | AE38: 721.8497586 | AF38: 1386.038588 | AG38: 0.4255492958 | AH38: 0.4624929577 | AI38: 1065.650704 | AJ38: 0.15 | AK38: 0.14 | AL38: 0.214559387 | AM38: 119.5175172 | AN38: 1065.650704 | AO38: 2.54 | AP38: 3.577464789 | AQ38: 0
B39: 2024 | C39: -9812.848235 | D39: 5136.297336 | F39: 206.468982 | G39: 1 | H39: 0 | I39: 428.024778 | J39: 22.92588826 | K39: 2.292588826 | L39: 7868.933945 | M39: 7800 | N39: 0.97596199 | O39: 0.3051614 | P39: 0.3316537 | Q39: 606 | R39: 8218.503522 | S39: 3082.206186 | T39: 5136.297336 | U39: 2418 | V39: 5382 | W39: 5450.933945 | X39: 5382 | Y39: 68.93394461 | Z39: 0 | AA39: 169.4700336 | AB39: 0.1246433887 | AC39: 0.1354641873 | AD39: 670.8307182 | AE39: 729.0682562 | AF39: 1399.898974 | AG39: 0.4298047887 | AH39: 0.4671178873 | AI39: 1076.307211 | AJ39: 0.3 | AK39: 0.1414 | AL39: 0.2167049808 | AM39: 241.4253848 | AN39: 1076.307211 | AO39: 2.5654 | AP39: 3.613239437 | AQ39: 0
B40: 2025 | C40: -4470.081916 | D40: 5187.66031 | F40: 314.3515679 | G40: 3.068022183 | H40: 2.034011092 | I40: 432.3050258 | J40: 10.34011092 | K40: 1.034011092 | L40: 7837.458209 | M40: 7800 | N40: 0.9857216099 | O40: 0.308213014 | P40: 0.334970237 | Q40: 612.06 | R40: 8300.688557 | S40: 3113.028247 | T40: 5187.66031 | U40: 2418 | V40: 5382 | W40: 5419.458209 | X40: 5382 | Y40: 37.45820883 | Z40: 0 | AA40: 206.9282424 | AB40: 0.1258898226 | AC40: 0.1368188292 | AD40: 677.5390253 | AE40: 736.3589387 | AF40: 1413.897964 | AG40: 0.4341028366 | AH40: 0.4717890662 | AI40: 1087.070283 | AJ40: 0.45 | AK40: 0.142814 | AL40: 0.2188720307 | AM40: 365.759458 | AN40: 1087.070283 | AO40: 2.591054 | AP40: 3.649371831 | AQ40: 0
B41: 2026 | C41: 1031.929962 | D41: 5239.536913 | F41: 425.4293375 | G41: 0 | H41: 0.7636592748 | I41: 436.6280761 | J41: -2.363407252 | K41: -0.2363407252 | L41: 7806.108376 | M41: 7800 | N41: 0.995578826 | O41: 0.3112951441 | P41: 0.3383199394 | Q41: 618.1806 | R41: 8383.695443 | S41: 3144.15853 | T41: 5239.536913 | U41: 2418 | V41: 5382 | W41: 5388.108376 | X41: 5382 | Y41: 6.108375999 | Z41: 0 | AA41: 213.0366184 | AB41: 0.1271487208 | AC41: 0.1381870175 | AD41: 684.3144156 | AE41: 743.7225281 | AF41: 1428.036944 | AG41: 0.438443865 | AH41: 0.4765069569 | AI41: 1097.940986 | AJ41: 0.6 | AK41: 0.14424214 | AL41: 0.221060751 | AM41: 492.5560701 | AN41: 1097.940986 | AO41: 2.61696454 | AP41: 3.685865549 | AQ41: 0
B42: 2027 | C42: 6696.896212 | D42: 5298.663112 | F42: 539.9111865 | G42: 0 | H42: -0.5166609549 | I42: 441.5552593 | J42: -15.16660955 | K42: -1.516660955 | L42: 7774.883942 | M42: 7800 | N42: 1.005534614 | O42: 0.3144080956 | P42: 0.3417031388 | Q42: 624.362406 | R42: 8467.532397 | S42: 3168.869286 | T42: 5298.663112 | U42: 2418 | V42: 5382 | W42: 5356.883942 | X42: 5356.883942 | Y42: -25.11605751 | Z42: 0 | AA42: 187.9205609 | AB42: 0.1284202081 | AC42: 0.1395688877 | AD42: 687.9321504 | AE42: 747.6543332 | AF42: 1435.586484 | AG42: 0.4428283036 | AH42: 0.4812720264 | AI42: 1108.920396 | AJ42: 0.75 | AK42: 0.1456845614 | AL42: 0.2232713585 | AM42: 618.9500557 | AN42: 1108.920396 | AO42: 2.643134185 | AP42: 3.722724205 | AQ42: 0
B43: 2028 | C43: 12535.47051 | D43: 5360.067422 | F43: 657.9107586 | G43: 0 | H43: -1.80641332 | I43: 446.6722852 | J43: -28.0641332 | K43: -2.80641332 | L43: 7743.784407 | M43: 7800 | N43: 1.01558996 | O43: 0.3175521765 | P43: 0.3451201702 | Q43: 630.6060301 | R43: 8552.207721 | S43: 3192.140299 | T43: 5360.067422 | U43: 2418 | V43: 5382 | W43: 5325.784407 | X43: 5325.784407 | Y43: -56.21559328 | Z43: -44.32049569 | AA43: 87.38447194 | AB43: 0.1297044101 | AC43: 0.1409645765 | AD43: 690.777725 | AE43: 750.7469436 | AF43: 1441.524669 | AG43: 0.4472565867 | AH43: 0.4860847467 | AI43: 1120.0096 | AJ43: 0.9 | AK43: 0.147141407 | AL43: 0.2255040721 | AM43: 745.8123498 | AN43: 1120.0096 | AO43: 2.669565527 | AP43: 3.759951447 | AQ43: 0
B44: 2029 | C44: 18553.44869 | D44: 5422.135946 | F44: 779.5116927 | G44: 0 | H44: -3.106156439 | I44: 451.8446622 | J44: -41.06156439 | K44: -4.106156439 | L44: 7712.809269 | M44: 7800 | N44: 1.02574586 | O44: 0.3207276983 | P44: 0.3485713719 | Q44: 636.9120904 | R44: 8637.729798 | S44: 3215.593853 | T44: 5422.135946 | U44: 2418 | V44: 5382 | W44: 5294.809269 | X44: 5294.809269 | Y44: -87.1907309 | Z44: 0 | AA44: 0.1937410369 | AB44: 0.1310014542 | AC44: 0.1423742223 | AD44: 693.6277142 | AE44: 753.8443519 | AF44: 1447.472066 | AG44: 0.4517291525 | AH44: 0.4909455942 | AI44: 1131.209696 | AJ44: 1 | AK44: 0.1486128211 | AL44: 0.2277591128 | AM44: 832.0993324 | AN44: 1131.209696 | AO44: 2.696261183 | AP44: 3.797550961 | AQ44: 0
B45: 2030 | C45: 24755.09633 | D45: 5484.875623 | F45: 904.7994391 | G45: 0 | H45: -4.416005328 | I45: 457.0729686 | J45: -54.16005328 | K45: -5.416005328 | L45: 7681.958032 | M45: 7800 | N45: 1.036003319 | O45: 0.3239349753 | P45: 0.3520570856 | Q45: 643.2812113 | R45: 8724.107096 | S45: 3239.231473 | T45: 5484.875623 | U45: 2418 | V45: 5382 | W45: 5263.958032 | X45: 5263.958032 | Y45: -118.041968 | Z45: 0 | AA45: 0 | AB45: 0.1323114688 | AC45: 0.1437979645 | AD45: 696.4820188 | AE45: 756.9464504 | AF45: 1453.428469 | AG45: 0.4562464441 | AH45: 0.4958550501 | AI45: 1142.521793 | AJ45: 1 | AK45: 0.1500989493 | AL45: 0.2300367039 | AM45: 835.5234531 | AN45: 1142.521793 | AO45: 2.723223794 | AP45: 3.835526471 | AQ45: 0
B46: 2031 | C46: 31144.77139 | D46: 5548.293466 | F46: 1033.861297 | G46: 0 | H46: -5.736075858 | I46: 462.3577888 | J46: -67.36075858 | K46: -6.736075858 | L46: 7651.2302 | M46: 7800 | N46: 1.046363352 | O46: 0.327174325 | P46: 0.3555776564 | Q46: 649.7140234 | R46: 8811.348167 | S46: 3263.054701 | T46: 5548.293466 | U46: 2418 | V46: 5382 | W46: 5233.2302 | X46: 5233.2302 | Y46: -148.7698001 | Z46: 0 | AA46: 0 | AB46: 0.1336345835 | AC46: 0.1452359442 | AD46: 699.3405379 | AE46: 760.0531292 | AF46: 1459.393667 | AG46: 0.4608089085 | AH46: 0.5008136006 | AI46: 1153.947011 | AJ46: 1 | AK46: 0.1515999388 | AL46: 0.2323370709 | AM46: 838.9526296 | AN46: 1153.947011 | AO46: 2.750456032 | AP46: 3.873881736 | AQ46: 0
B47: 2032 | C47: 37726.92615 | D47: 5612.396559 | F47: 1166.786454 | G47: 0 | H47: -7.066484773 | I47: 467.6997133 | J47: -80.66484773 | K47: -8.066484773 | L47: 7620.625279 | M47: 7800 | N47: 1.056826985 | O47: 0.3304460683 | P47: 0.359133433 | Q47: 656.2111636 | R47: 8899.461649 | S47: 3287.06509 | T47: 5612.396559 | U47: 2418 | V47: 5382 | W47: 5202.625279 | X47: 5202.625279 | Y47: -179.3747209 | Z47: 0 | AA47: 0 | AB47: 0.1349709293 | AC47: 0.1466883036 | AD47: 702.2031687 | AE47: 763.1642765 | AF47: 1465.367445 | AG47: 0.4654169976 | AH47: 0.5058217366 | AI47: 1165.486481 | AJ47: 1 | AK47: 0.1531159382 | AL47: 0.2346604416 | AM47: 842.3867386 | AN47: 1165.486481 | AO47: 2.777960593 | AP47: 3.912620553 | AQ47: 0
B48: 2033 | C48: 44506.10917 | D48: 5677.192059 | F48: 1303.666025 | G48: 0 | H48: -8.407349697 | I48: 473.0993383 | J48: -94.07349697 | K48: -9.407349697 | L48: 7590.142778 | M48: 7800 | N48: 1.067395255 | O48: 0.333750529 | P48: 0.3627247673 | Q48: 662.7732752 | R48: 8988.456266 | S48: 3311.264206 | T48: 5677.192059 | U48: 2418 | V48: 5382 | W48: 5172.142778 | X48: 5172.142778 | Y48: -209.857222 | Z48: 0 | AA48: 0 | AB48: 0.1363206386 | AC48: 0.1481551867 | AD48: 705.0698064 | AE48: 766.2797787 | AF48: 1471.349585 | AG48: 0.4700711676 | AH48: 0.510879954 | AI48: 1177.141346 | AJ48: 1 | AK48: 0.1546470976 | AL48: 0.2370070461 | AM48: 845.8256543 | AN48: 1177.141346 | AO48: 2.805740199 | AP48: 3.951746759 | AQ48: 0
B49: 2034 | C49: 51486.96725 | D49: 5742.687197 | F49: 1444.593089 | G49: 0 | H49: -9.758789149 | I49: 478.5572664 | J49: -107.5878915 | K49: -10.75878915 | L49: 7559.782207 | M49: 7800 | N49: 1.078069208 | O49: 0.3370880343 | P49: 0.366352015 | Q49: 669.401008 | R49: 9078.340828 | S49: 3335.653631 | T49: 5742.687197 | U49: 2418 | V49: 5382 | W49: 5141.782207 | X49: 5141.782207 | Y49: -240.2177931 | Z49: 0 | AA49: 0 | AB49: 0.137683845 | AC49: 0.1496367385 | AD49: 707.9403443 | AE49: 769.3995196 | AF49: 1477.339864 | AG49: 0.4747718792 | AH49: 0.5159887535 | AI49: 1188.912759 | AJ49: 1 | AK49: 0.1561935685 | AL49: 0.2393771165 | AM49: 849.269249 | AN49: 1188.912759 | AO49: 2.833797601 | AP49: 3.991264226 | AQ49: 0
B50: 2035 | C50: 58674.24754 | D50: 5808.889276 | F50: 1589.662736 | G50: 0 | H50: -11.12092255 | I50: 484.0741064 | J50: -121.2092255 | K50: -12.12092255 | L50: 7529.543078 | M50: 7800 | N50: 1.0888499 | O50: 0.3404589146 | P50: 0.3700155351 | Q50: 676.0950181 | R50: 9169.124236 | S50: 3360.23496 | T50: 5808.889276 | U50: 2418 | V50: 5382 | W50: 5111.543078 | X50: 5111.543078 | Y50: -270.456922 | Z50: 0 | AA50: 0 | AB50: 0.1390606834 | AC50: 0.1511331059 | AD50: 710.8146738 | AE50: 772.5233813 | AF50: 1483.338055 | AG50: 0.479519598 | AH50: 0.521148641 | AI50: 1200.801887 | AJ50: 1 | AK50: 0.1577555042 | AL50: 0.2417708877 | AM50: 852.7173921 | AN50: 1200.801887 | AO50: 2.862135577 | AP50: 4.031176868 | AQ50: 0
B51: 2036 | C51: 66072.79955 | D51: 5875.805677 | F51: 1738.972105 | G51: 0 | H51: -12.49387026 | I51: 489.6504731 | J51: -134.9387026 | K51: -13.49387026 | L51: 7499.424906 | M51: 7800 | N51: 1.099738399 | O51: 0.3438635038 | P51: 0.3737156905 | Q51: 682.8559683 | R51: 9260.815479 | S51: 3385.009802 | T51: 5875.805677 | U51: 2418 | V51: 5382 | W51: 5081.424906 | X51: 5081.424906 | Y51: -300.5750943 | Z51: 0 | AA51: 0 | AB51: 0.1404512903 | AC51: 0.152644437 | AD51: 713.6926844 | AE51: 775.6512437 | AF51: 1489.343928 | AG51: 0.484314794 | AH51: 0.5263601275 | AI51: 1212.809906 | AJ51: 1 | AK51: 0.1593330593 | AL51: 0.2441885966 | AM51: 856.1699512 | AN51: 1212.809906 | AO51: 2.890756932 | AP51: 4.071488637 | AQ51: 0
B52: 2037 | C52: 73687.57733 | D52: 5943.443853 | F52: 1892.620424 | G52: 0 | H52: -13.87775354 | I52: 495.2869878 | J52: -148.7775354 | K52: -14.87775354 | L52: 7469.427206 | M52: 7800 | N52: 1.110735783 | O52: 0.3473021388 | P52: 0.3774528474 | Q52: 689.6845279 | R52: 9353.423634 | S52: 3409.979781 | T52: 5943.443853 | U52: 2418 | V52: 5382 | W52: 5051.427206 | X52: 5051.427206 | Y52: -330.5727939 | Z52: 0 | AA52: 0 | AB52: 0.1418558032 | AC52: 0.1541708813 | AD52: 716.5742635 | AE52: 778.7829844 | AF52: 1495.357248 | AG52: 0.489157942 | AH52: 0.5316237287 | AI52: 1224.938005 | AJ52: 1 | AK52: 0.1609263899 | AL52: 0.2466304825 | AM52: 859.6267912 | AN52: 1224.938005 | AO52: 2.919664502 | AP52: 4.112203523 | AQ52: 0
B53: 2038 | C53: 81523.64161 | D53: 6011.811337 | F53: 2050.709059 | G53: 0 | H53: -15.27269461 | I53: 500.9842781 | J53: -162.7269461 | K53: -16.27269461 | L53: 7439.549497 | M53: 7800 | N53: 1.121843141 | O53: 0.3507751602 | P53: 0.3812273759 | Q53: 696.5813732 | R53: 9446.95787 | S53: 3435.146533 | T53: 6011.811337 | U53: 2418 | V53: 5382 | W53: 5021.549497 | X53: 5021.549497 | Y53: -360.4505027 | Z53: 0 | AA53: 0 | AB53: 0.1432743612 | AC53: 0.1557125901 | AD53: 719.4592964 | AE53: 781.9184788 | AF53: 1501.377775 | AG53: 0.4940495214 | AH53: 0.536939966 | AI53: 1237.187385 | AJ53: 1 | AK53: 0.1625356538 | AL53: 0.2490967874 | AM53: 863.0877747 | AN53: 1237.187385 | AO53: 2.948861147 | AP53: 4.153325559 | AQ53: 0
B54: 2039 | C54: 89586.162 | D54: 6080.915736 | F54: 2213.341555 | G54: 0 | H54: -16.67881666 | I54: 506.742978 | J54: -176.7881666 | K54: -17.67881666 | L54: 7409.791299 | M54: 7800 | N54: 1.133061572 | O54: 0.3542829118 | P54: 0.3850396496 | Q54: 703.547187 | R54: 9541.427449 | S54: 3460.511713 | T54: 6080.915736 | U54: 2418 | V54: 5382 | W54: 4991.791299 | X54: 4991.791299 | Y54: -390.2087007 | Z54: 0 | AA54: 0 | AB54: 0.1447071048 | AC54: 0.157269716 | AD54: 722.3476667 | AE54: 785.0576002 | AF54: 1507.405267 | AG54: 0.4989900166 | AH54: 0.5423093657 | AI54: 1249.559259 | AJ54: 1 | AK54: 0.1641610103 | AL54: 0.2515877552 | AM54: 866.5527616 | AN54: 1249.559259 | AO54: 2.978349758 | AP54: 4.194858814 | AQ54: 0
B55: 2040 | C55: 97880.41929 | D55: 6150.764738 | F55: 2380.623681 | G55: 0 | H55: -18.09624383 | I55: 512.5637281 | J55: -190.9624383 | K55: -19.09624383 | L55: 7380.152134 | M55: 7800 | N55: 1.144392188 | O55: 0.3578257409 | P55: 0.3888900461 | Q55: 710.5826588 | R55: 9636.841723 | S55: 3486.076985 | T55: 6150.764738 | U55: 2418 | V55: 5382 | W55: 4962.152134 | X55: 4962.152134 | Y55: -419.8478659 | Z55: 0 | AA55: 0 | AB55: 0.1461541759 | AC55: 0.1588424132 | AD55: 725.2392556 | AE55: 788.2002197 | AF55: 1513.439475 | AG55: 0.5039799168 | AH55: 0.5477324593 | AI55: 1262.054851 | AJ55: 1 | AK55: 0.1658026204 | AL55: 0.2541036328 | AM55: 870.0216098 | AN55: 1262.054851 | AO55: 3.008133256 | AP55: 4.236807402 | AQ55: 0
B56: 2041 | C56: 106411.8077 | D56: 6221.366107 | F56: 2552.663476 | G56: 0 | H56: -19.52510125 | I56: 518.4471756 | J56: -205.2510125 | K56: -20.52510125 | L56: 7350.631526 | M56: 7800 | N56: 1.15583611 | O56: 0.3614039983 | P56: 0.3927789466 | Q56: 717.6884854 | R56: 9733.21014 | S56: 3511.844034 | T56: 6221.366107 | U56: 2418 | V56: 5382 | W56: 4932.631526 | X56: 4932.631526 | Y56: -449.3684744 | Z56: 0 | AA56: 0 | AB56: 0.1476157176 | AC56: 0.1604308373 | AD56: 728.1339424 | AE56: 791.3462059 | AF56: 1519.480148 | AG56: 0.5090197159 | AH56: 0.5532097839 | AI56: 1274.6754 | AJ56: 1 | AK56: 0.1674606466 | AL56: 0.2566446691 | AM56: 873.4941742 | AN56: 1274.6754 | AO56: 3.038214588 | AP56: 4.279175476 | AQ56: 0
B57: 2042 | C57: 115185.8373 | D57: 6292.727688 | F57: 2729.5713 | G57: 0 | H57: -20.96551505 | I57: 524.393974 | J57: -219.6551505 | K57: -21.96551505 | L57: 7321.228999 | M57: 7800 | N57: 1.167394471 | O57: 0.3650180383 | P57: 0.3967067361 | Q57: 724.8653703 | R57: 9830.542242 | S57: 3537.814554 | T57: 6292.727688 | U57: 2418 | V57: 5382 | W57: 4903.228999 | X57: 4903.228999 | Y57: -478.7710005 | Z57: 0 | AA57: 0 | AB57: 0.1490918748 | AC57: 0.1620351457 | AD57: 731.0316041 | AE57: 794.4954254 | AF57: 1525.527029 | AG57: 0.5141099131 | AH57: 0.5587418818 | AI57: 1287.422154 | AJ57: 1 | AK57: 0.1691352531 | AL57: 0.2592111158 | AM57: 876.9703074 | AN57: 1287.422154 | AO57: 3.068596734 | AP57: 4.321967231 | AQ57: 0
B58: 2043 | C58: 124208.1363 | D58: 6364.857407 | F58: 2911.459874 | G58: 0 | H58: -22.41761237 | I58: 530.4047839 | J58: -234.1761237 | K58: -23.41761237 | L58: 7291.944083 | M58: 7800 | N58: 1.179068415 | O58: 0.3686682187 | P58: 0.4006738034 | Q58: 732.114024 | R58: 9928.847664 | S58: 3563.990257 | T58: 6364.857407 | U58: 2418 | V58: 5382 | W58: 4873.944083 | X58: 4873.944083 | Y58: -508.0559165 | Z58: 0 | AA58: 0 | AB58: 0.1505827935 | AC58: 0.1636554972 | AD58: 733.9321157 | AE58: 797.6477422 | AF58: 1531.579858 | AG58: 0.5192510122 | AH58: 0.5643293006 | AI58: 1300.296375 | AJ58: 1 | AK58: 0.1708266056 | AL58: 0.261803227 | AM58: 880.4498595 | AN58: 1300.296375 | AO58: 3.099282701 | AP58: 4.365186903 | AQ58: 0
B59: 2044 | C59: 133484.4536 | D59: 6437.76327 | F59: 3098.444337 | G59: 0 | H59: -23.88152136 | I59: 536.4802725 | J59: -248.8152136 | K59: -24.88152136 | L59: 7262.776307 | M59: 7800 | N59: 1.1908591 | O59: 0.3723549009 | P59: 0.4046805415 | Q59: 739.4351642 | R59: 10028.13614 | S59: 3590.372871 | T59: 6437.76327 | U59: 2418 | V59: 5382 | W59: 4844.776307 | X59: 4844.776307 | Y59: -537.2236929 | Z59: 0 | AA59: 0 | AB59: 0.1520886215 | AC59: 0.1652920521 | AD59: 736.8353499 | AE59: 800.803018 | AF59: 1537.638368 | AG59: 0.5244435223 | AH59: 0.5699725936 | AI59: 1313.299339 | AJ59: 1 | AK59: 0.1725348716 | AL59: 0.2644212592 | AM59: 883.9326778 | AN59: 1313.299339 | AO59: 3.130275528 | AP59: 4.408838773 | AQ59: 0
B60: 2045 | C60: 143020.6612 | D60: 6511.453364 | F60: 3290.642291 | G60: 0 | H60: -25.35737121 | I60: 542.6211137 | J60: -263.5737121 | K60: -26.35737121 | L60: 7233.725202 | M60: 7800 | N60: 1.202767691 | O60: 0.3760784499 | P60: 0.4087273469 | Q60: 746.8295159 | R60: 10128.4175 | S60: 3616.964138 | T60: 6511.453364 | U60: 2418 | V60: 5382 | W60: 4815.725202 | X60: 4815.725202 | Y60: -566.2747981 | Z60: 0 | AA60: 0 | AB60: 0.1536095077 | AC60: 0.1669449727 | AD60: 739.7411774 | AE60: 803.9611122 | AF60: 1543.70229 | AG60: 0.5296879576 | AH60: 0.5756723195 | AI60: 1326.432333 | AJ60: 1 | AK60: 0.1742602204 | AL60: 0.2670654718 | AM60: 887.418607 | AN60: 1326.432333 | AO60: 3.161578284 | AP60: 4.45292716 | AQ60: 0
B61: 2046 | C61: 152822.7568 | D61: 6585.935862 | F61: 3488.173854 | G61: 0 | H61: -26.84529215 | I61: 548.8279885 | J61: -278.4529215 | K61: -27.84529215 | L61: 7204.790301 | M61: 7800 | N61: 1.214795367 | O61: 0.3798392344 | P61: 0.4128146203 | Q61: 754.297811 | R61: 10229.70168 | S61: 3643.765815 | T61: 6585.935862 | U61: 2418 | V61: 5382 | W61: 4786.790301 | X61: 4786.790301 | Y61: -595.2096989 | Z61: 0 | AA61: 0 | AB61: 0.1551456028 | AC61: 0.1686144224 | AD61: 742.6494666 | AE61: 807.1218817 | AF61: 1549.771348 | AG61: 0.5349848371 | AH61: 0.5814290427 | AI61: 1339.696656 | AJ61: 1 | AK61: 0.1760028226 | AL61: 0.2697361265 | AM61: 890.9074893 | AN61: 1339.696656 | AO61: 3.193194067 | AP61: 4.497456432 | AQ61: 0
B62: 2047 | C62: 162896.8665 | D62: 6661.219018 | F62: 3691.161711 | G62: 0 | H62: -28.3454155 | I62: 555.1015848 | J62: -293.454155 | K62: -29.3454155 | L62: 7175.97114 | M62: 7800 | N62: 1.226943321 | O62: 0.3836376267 | P62: 0.4169427665 | Q62: 761.8407891 | R62: 10331.99869 | S62: 3670.779676 | T62: 6661.219018 | U62: 2418 | V62: 5382 | W62: 4757.97114 | X62: 4757.97114 | Y62: -624.0288601 | Z62: 0 | AA62: 0 | AB62: 0.1566970588 | AC62: 0.1703005666 | AD62: 745.5600835 | AE62: 810.2851811 | AF62: 1555.845265 | AG62: 0.5403346855 | AH62: 0.5872433332 | AI62: 1353.093622 | AJ62: 1 | AK62: 0.1777628508 | AL62: 0.2724334878 | AM62: 894.399164 | AN62: 1353.093622 | AO62: 3.225126007 | AP62: 4.542430996 | AQ62: 0
B63: 2048 | C63: 173249.2473 | D63: 6737.311171 | F63: 3899.731169 | G63: 0 | H63: -29.85787363 | I63: 561.4425976 | J63: -308.5787363 | K63: -30.85787363 | L63: 7147.267255 | M63: 7800 | N63: 1.239212754 | O63: 0.387474003 | P63: 0.4211121942 | Q63: 769.459197 | R63: 10435.31868 | S63: 3698.00751 | T63: 6737.311171 | U63: 2418 | V63: 5382 | W63: 4729.267255 | X63: 4729.267255 | Y63: -652.7327447 | Z63: 0 | AA63: 0 | AB63: 0.1582640294 | AC63: 0.1720035723 | AD63: 748.4728919 | AE63: 813.4508622 | AF63: 1561.923754 | AG63: 0.5457380324 | AH63: 0.5931157665 | AI63: 1366.624559 | AJ63: 1 | AK63: 0.1795404793 | AL63: 0.2751578227 | AM63: 897.8934678 | AN63: 1366.624559 | AO63: 3.257377267 | AP63: 4.587855306 | AQ63: 0
C64: 173249.25

Sheet PEDIDO DE COMPRA
A1: ="PEDIDO DE COMPRA SITEMA "&'Cad.TÉCNICO'!I24&" kWp ESTRUTURA "&'Cad.TÉCNICO'!T18 -> PEDIDO DE COMPRA SITEMA 6,38 kWp ESTRUTURA FIBROCIMENTO | P1: =M2+M5 -> 0
A2: CÓDIGO | B2: PRODUTO | C2: UNIDADE | D2: QUANT | E2: VALOR UN. | G2: VALOR TOTAL | I2: COMISSÃO DO CREDENCIADO
B3: ="GERADOR VERTYS "&P.ECON!J141&"KWP" -> GERADOR VERTYS 6,38KWP | C3: PÇ | D3: 1 | E3: 15000 | G3: =D3*E3 -> 15000 | Q3: =M14/0.8706 -> 0
B4: ="PAINEL "&'Cad.TÉCNICO'!AJ7&"W VERTYS" -> PAINEL 580W VERTYS | C4: PÇ | D4: ='Cad.TÉCNICO'!AO14 -> 11 | G4: =D4*E4 -> 0
B5: ="INVERSOR VERTYS " &'Cad.TÉCNICO'!AG81 -> INVERSOR VERTYS 6kW | C5: PÇ | D5: ='Cad.TÉCNICO'!$U$25 -> 1 | G5: 0 | I5: GASTOS ADICIONAIS
B6: CONECTOR MC4 | C6: PAR | D6: 1 | G6: 0
B7: STRING BOX CC | C7: PÇ | D7: 1 | G7: =D7*E7 -> 0
B8: CABO SOLAR FOTOVOLTAICO VERMELHO | C8: m | D8: 25 | G8: 0 | I8: VALOR TOTAL DA NOTA A SER EMITIDA PELA VERTYS PARA O CLIENTE | M8: =O29 -> 15000
B9: CABO SOLAR FOTOVOLTAICO PRETO | C9: m | D9: 25 | G9: 0 | P9: =M8 -> 15000
B10: ="ESTRUTURA VERTYS "&'Cad.TÉCNICO'!T18 -> ESTRUTURA VERTYS FIBROCIMENTO | C10: PÇ | D10: 1 | G10: 0
B11: MÃO DE OBRA | D11: 1 | G11: 0 | I11: IMPOSTO SOBRE A DIFERENÇA DA NOTA | M11: =(M8-G42)*12.94% -> 0
G12: 0
G13: 0
G14: 0 | I14: VALOR REPASSADO AO CREDENCIADO | M14: =M2+M5 -> 0
G15: 0
G16: 0
G17: 0 | I17: VALOR TOTAL DA NOTA A SER EMITIDA PELO CREDENCIADO PARA A VERTYS | M17: =M14 -> 0
G18: 0
G19: 0 | R19: =IF(I28<=5,"500,00",IF(I28<=10,L37,IF(I28<=20,L38,IF(I28<=30,L39,IF(I28<=40,L40,IF(I28<49.9,L41,IF(I28>=50,L42)))))))+I30 -> 790.8
G20: 0 | I20: VALOR TOTAL DO PROJETO ELÉTRICO | M20: =P20 -> 0 | P20: =IF(K29=FALSE,"0",P21) -> 0
G21: 0 | P21: =R19+Q26+100 -> 1090.8 | R21: =P20/0.8706 -> 0
G22: 0
G23: 0 | I23: VALOR DO PROJETO EXECUÇÃO DE OBRA | M23: =Q26 -> 200
G24: 0
G25: 0
G26: 0 | O26: =SUM(G3:G41)+Q3 -> 15000 | Q26: =IF(Q27=FALSE,"0",Q28) -> 200
G27: 0 | Q27: TRUE
G28: 0 | I28: ='Cad.TÉCNICO'!I24 -> 6.38 | Q28: 200
G29: 0 | K29: FALSE | L29: 110 | M29: 5 | O29: =IF(K29=FALSE,O26,O26+R21) -> 15000
G30: 0 | I30: 89 | L30: 100 | M30: 10
G31: 0 | L31: 90 | M31: 20
G32: 0 | L32: 80 | M32: 30
L33: 70 | M33: 40
A34: CONDIÇÕES DE PAGAMENTO | L34: 60 | M34: 50
L36: =I28 -> 6.38
L37: =I28*L29 -> 701.8
L38: =I28*L30 -> 638
L39: =I28*L31 -> 574.2
L40: =I28*L32 -> 510.4
L41: =I28*L33 -> 446.6
A42: VALIDADE DO ORÇAMENTO (DIAS) | C42: 7 | E42: TOTAL | G42: =SUM(G3:G41) -> 15000 | L42: =I28*L34 -> 382.8
A45: =B3 -> GERADOR VERTYS 6,38KWP
A46: =B3 -> GERADOR VERTYS 6,38KWP

Sheet FINANCIAMENTO
C2: ENTRADA | F2: VALOR FINANCIADO | H2: 15000
A3: BANCO | C3: PRAZO | D3: VALOR PARCELA
A4: BB | C4: 12 | D4: 1500 | H4: =D4*C4 -> 18000
A5: Insira aqui o nome do Banco | C5: 24 | D5: 780 | H5: =D5*C5 -> 18720
C6: 36 | D6: 530 | H6: 19080
C7: 48 | D7: 400 | H7: 19200
C8: 60 | D8: 350 | H8: 21000
C9: 72 | D9: 300 | H9: 21600
D11: VALOR FINANCIADO
A12: BANCO | C12: PRAZO | D12: VALOR PARCELA | F12: VALOR FINANCIADO | H12: 15000
C13: 12 | H13: =D13*C13 -> 0
A14: Insira aqui o nome do Banco | C14: 24 | H14: =D14*C14 -> 0
C15: 36 | H15: 0
C16: 48 | H16: 0
C17: 60 | H17: 0
C18: 72 | H18: 0
C19: 84 | H19: =D19*C19 -> 0

Sheet RELATÓRIO
D1: RELATÓRIO DO PROJETO
A5: DISTRIBUIDOR VERTYS: | E5: ='Cad.CLIENTE'!C4 -> VERTYS SOLAR
A6: INTEGRADOR
A7: ='Cad.CLIENTE'!D3 -> SUA EMPRESA
A8: ='Cad.CLIENTE'!D4 -> xx.xxx.xxx/YYYY-ZZ
A10: CLIENTE
A11: ='Cad.CLIENTE'!D7 -> NOME DO CLIENTE | J11: RG: | L11: ='Cad.CLIENTE'!D12 -> 0
A12: E-MAIL | C12: ='Cad.CLIENTE'!D15 -> 0 | J12: CONTATO: | L12: ='Cad.CLIENTE'!D14 -> 0
A13: END: | C13: ='Cad.CLIENTE'!D8 -> RUA DO CLIENTE, NÚMERO 0001, BAIRRO | J13: CPF/CNPJ: | L13: ='Cad.CLIENTE'!D11 -> 0
A14: CIDADE: | C14: ='Cad.CLIENTE'!D9 -> SANTA TEREZA DO OESTE / PR | J14: CEP: | L14: ='Cad.CLIENTE'!D10 -> 511511111
A15: UNIDADE CONSUMIDORA: | D15: ='Cad.CLIENTE'!D13 -> 0
A16: DADOS DO PROJETO
A17: TIPO DE TELHADO | F17: DISJUNTOR | J17: M. CONSUMO | M17: POT. PICO SIST.
A18: =P.ECON!I55 -> FIBROCIMENTO | F18: =P.ECON!I56 -> 2x 63 | J18: =P.ECON!I57 -> 596.6666667 | M18: ='Cad.TÉCNICO'!I24 -> 6.38
A20: COD | B20: QUANT. | C20: DESCRIÇÃO DOS PRODUTOS | M20: VALOR
A21: ='PEDIDO DE COMPRA'!A3 -> 0 | B21: ='PEDIDO DE COMPRA'!D3 -> 1 | C21: ='PEDIDO DE COMPRA'!B3 -> GERADOR VERTYS 6,38KWP | M21: ='PEDIDO DE COMPRA'!G3 -> 15000
A22: ='PEDIDO DE COMPRA'!A4 -> 0 | B22: ='PEDIDO DE COMPRA'!D4 -> 11 | C22: ='PEDIDO DE COMPRA'!B4 -> PAINEL 580W VERTYS | M22: ='PEDIDO DE COMPRA'!G4 -> 0
A23: ='PEDIDO DE COMPRA'!A5 -> 0 | B23: ='PEDIDO DE COMPRA'!D5 -> 1 | C23: ='PEDIDO DE COMPRA'!B5 -> INVERSOR VERTYS 6kW | M23: ='PEDIDO DE COMPRA'!G5 -> 0
A24: ='PEDIDO DE COMPRA'!A6 -> 0 | B24: ='PEDIDO DE COMPRA'!D6 -> 1 | C24: ='PEDIDO DE COMPRA'!B6 -> CONECTOR MC4 | M24: ='PEDIDO DE COMPRA'!G6 -> 0
A25: ='PEDIDO DE COMPRA'!A7 -> 0 | B25: ='PEDIDO DE COMPRA'!D7 -> 1 | C25: ='PEDIDO DE COMPRA'!B7 -> STRING BOX CC | M25: ='PEDIDO DE COMPRA'!G7 -> 0
B26: ='PEDIDO DE COMPRA'!D8 -> 25 | C26: ='PEDIDO DE COMPRA'!B8 -> CABO SOLAR FOTOVOLTAICO VERMELHO | M26: ='PEDIDO DE COMPRA'!G8 -> 0
B27: ='PEDIDO DE COMPRA'!D9 -> 25 | C27: ='PEDIDO DE COMPRA'!B9 -> CABO SOLAR FOTOVOLTAICO PRETO | M27: ='PEDIDO DE COMPRA'!G9 -> 0
B28: ='PEDIDO DE COMPRA'!D10 -> 1 | C28: ='PEDIDO DE COMPRA'!B10 -> ESTRUTURA VERTYS FIBROCIMENTO | M28: ='PEDIDO DE COMPRA'!G10 -> 0
B29: ='PEDIDO DE COMPRA'!D11 -> 1 | C29: ='PEDIDO DE COMPRA'!B11 -> MÃO DE OBRA | M29: ='PEDIDO DE COMPRA'!G11 -> 0
A30: ='PEDIDO DE COMPRA'!A12 -> 0 | B30: ='PEDIDO DE COMPRA'!D12 -> 0 | C30: ='PEDIDO DE COMPRA'!B12 -> 0 | M30: ='PEDIDO DE COMPRA'!G12 -> 0
A31: ='PEDIDO DE COMPRA'!A13 -> 0 | B31: ='PEDIDO DE COMPRA'!D13 -> 0 | C31: ='PEDIDO DE COMPRA'!B13 -> 0 | M31: ='PEDIDO DE COMPRA'!G13 -> 0
A32: ='PEDIDO DE COMPRA'!A14 -> 0 | B32: ='PEDIDO DE COMPRA'!D14 -> 0 | C32: ='PEDIDO DE COMPRA'!B14 -> 0 | M32: ='PEDIDO DE COMPRA'!G14 -> 0
A33: ='PEDIDO DE COMPRA'!A15 -> 0 | B33: ='PEDIDO DE COMPRA'!D15 -> 0 | C33: ='PEDIDO DE COMPRA'!B15 -> 0 | M33: ='PEDIDO DE COMPRA'!G15 -> 0
A34: ='PEDIDO DE COMPRA'!A16 -> 0 | B34: ='PEDIDO DE COMPRA'!D16 -> 0 | C34: ='PEDIDO DE COMPRA'!B16 -> 0 | M34: ='PEDIDO DE COMPRA'!G16 -> 0
A35: ='PEDIDO DE COMPRA'!A17 -> 0 | B35: ='PEDIDO DE COMPRA'!D17 -> 0 | C35: ='PEDIDO DE COMPRA'!B17 -> 0 | M35: ='PEDIDO DE COMPRA'!G17 -> 0
A36: ='PEDIDO DE COMPRA'!A18 -> 0 | B36: ='PEDIDO DE COMPRA'!D18 -> 0 | C36: ='PEDIDO DE COMPRA'!B18 -> 0 | M36: ='PEDIDO DE COMPRA'!G18 -> 0
A37: CONDIÇÕES DE PAGAMENTO | E37: TOTAL DOS PRODUTOS | M37: ='PEDIDO DE COMPRA'!G42 -> 15000
A38: ='PEDIDO DE COMPRA'!A35 -> 0
E39: VALOR DA MÃO DE OBRA | M39: ='PEDIDO DE COMPRA'!P1 -> 0
E41: VALOR DA NOTA EMITIDA PELO CREDENCIADO | M41: =M39 -> 0
E43: VALOR DO PROJETO MAIS ART | M43: ='PEDIDO DE COMPRA'!P20 -> 0
A44: VALOR TOTAL DA NOTA A SER EMITIDA PELA VERTYS AO CONSUMIDOR | M44: ='PEDIDO DE COMPRA'!P9 -> 15000
A46: =TODAY() -> 2023-08-17
A48: _______________________________________________________
A49: =A7 -> SUA EMPRESA

Sheet P.ECON
D16: RELATÓRIO ECONÔMICO
D18: PROPOSTA PARA CONSTRUÇÃO DE
D19: UMA USINA FOTOVOLTAICA DE
D20: =CONCATENATE('Cad.TÉCNICO'!I24,"KWp") -> 6,38KWp
C31: ='Cad.CLIENTE'!D3 -> SUA EMPRESA
C32: ='Cad.CLIENTE'!D4 -> xx.xxx.xxx/YYYY-ZZ
C37: ='Cad.CLIENTE'!D7 -> NOME DO CLIENTE
C38: ="CPF/CNPJ:"&'Cad.CLIENTE'!D11 -> CPF/CNPJ:
C39: ='Cad.CLIENTE'!D8 -> RUA DO CLIENTE, NÚMERO 0001, BAIRRO
C40: ='Cad.CLIENTE'!D9 -> SANTA TEREZA DO OESTE / PR
C41: ="CONTATO:"&'Cad.CLIENTE'!D14 -> CONTATO:
C45: ='Cad.CLIENTE'!D45 -> TÉCNICO RESPONSÁVEL
C46: ='Cad.CLIENTE'!D46 -> Engenheiro Eletricista
C47: ='Cad.CLIENTE'!D47 -> CREA:
C50: ='Cad.CLIENTE'!$D$3 -> SUA EMPRESA
C53: 1. DADOS DA UNIDADE CONSUMIDORA
C55: Tipo de estrutura/Telhado | I55: ='Cad.TÉCNICO'!T18 -> FIBROCIMENTO
C56: Disjuntor (A) | I56: ='Cad.TÉCNICO'!Q6 -> 2x 63
C57: Média de consumo mensal (kWh) | I57: ='Cad.TÉCNICO'!C18 -> 596.6666667
C58: Média de geração mensal (kWh) | I58: ='Cad.TÉCNICO'!AN14 -> 742.96
C59: Consumo de energia da unidade consumidora anual (kWh) | I59: ='Cad.TÉCNICO'!C18*12 -> 7160
C60: Aumento de carga mensal (kWh) | I60: ='Cad.TÉCNICO'!K22 -> 100
C61: Energia produzida anual (kWh) | I61: ='Cad.TÉCNICO'!AN15 -> 8915.52
C63: 2. CARACTERÍSTICAS DOS PAINÉIS
C65: Números de módulos | J65: ='Cad.TÉCNICO'!D24 -> 11
C66: Potência dos módulos (W) | J66: ='Cad.TÉCNICO'!AD11 -> 580
C67: Área total dos módulos | J67: ='Cad.TÉCNICO'!AD5 -> 31
C68: Orientação / Inclinação | J68: =VLOOKUP('Cad.TÉCNICO'!S63,'Cad.TÉCNICO'!R51:S63,2,)&" / "&VLOOKUP('Cad.TÉCNICO'!S40,'Cad.TÉCNICO'!R27:S39,2,) -> NORTE / 10°
C69: Fator Temperatura [%/°C] & Degradação [%] | J69: ='Cad.TÉCNICO'!K8&" & "&'Cad.TÉCNICO'!K10 -> -0,3 & 0,4
C70: Observações dos painéis:
C71: ='Cad.CLIENTE'!D19 -> 0
C76: 3. CARACTERÍSTICAS DOS INVERSORES
C78: Tipo de Inversor | I78: ='Cad.TÉCNICO'!V11 -> INVERSOR ON-GRID
C79: Quantidade de Inversores | I79: ='Cad.TÉCNICO'!O52 -> 1
C80: Potência total dos Inversores (KW) | I80: ='Cad.TÉCNICO'!O53 -> 6
C81: Uso de Trafo rebaixador de tensão | I81: ='Cad.TÉCNICO'!N60 -> NÃO
C83: Observações dos inversores:
C84: ='Cad.CLIENTE'!D23 -> 0
C89: 4. MÉDIA DE GERAÇÃO MENSAL (ANO 1)
C91: ORIENTAÇÃO | I91: MÉDIA DE GERAÇÃO MENSAL
C92: Norte | I92: ='Cad.TÉCNICO'!Y51 -> 742.9698431
C93: Sul | I93: ='Cad.TÉCNICO'!Y52 -> 658.715531
C94: Leste | I94: ='Cad.TÉCNICO'!Y53 -> 681.6939797
C95: Oeste | I95: ='Cad.TÉCNICO'!Y54 -> 681.6939797
C97: ='Cad.CLIENTE'!$D$4 -> xx.xxx.xxx/YYYY-ZZ | K97: 02
C99: ='Cad.CLIENTE'!$D$3 -> SUA EMPRESA
C101: ORIENTAÇÃO CONSIDERADA NO CÁLCULO | I101: ='Cad.TÉCNICO'!T63 -> NORTE
C102: MÉDIA DE GERAÇÃO MENSAL | I102: ='Cad.TÉCNICO'!AN14 -> 742.96
C103: PERFORMANCE RATIO CONSIDERADA | I103: =I61/('Cad.TÉCNICO'!AL5*365*'Cad.TÉCNICO'!AK15*'Cad.TÉCNICO'!AJ7/1000) -> 0.7788180088
C116: O valor da potência gerada pode variar de acordo com as condições climáticas de cada mês.
C118: 5. IRRADIAÇÃO SOLAR NO LOCAL
C129: Os indices de irradiação de acordo com dados do CRESESB (Centro de Referência para as Energias Solar e Eólica Sérgio de S. Brito)
C132: 6. ANÁLISE ECONÔMICA
C133: =" Análise das condições econômicas para a instalação de um sistema de produção de eletricidade através da conversão fotovoltaica, a ser instalado na cidade de "&'Cad.CLIENTE'!D9&", para uma potência nominal de "&'Cad.TÉCNICO'!I24&" KWp e energia produzida no primeiro ano de "&'Cad.TÉCNICO'!AO44&"MW."&" O custo do kWh atual é de "&Financeiro!W16&" com impostos e "&Financeiro!W17&" sem impostos." -> Análise das condições econômicas para a instalação de um sistema de produção de eletricidade através da conversão fotovoltaica, a ser instalado na cidade de SANTA TEREZA DO OESTE / PR, para uma potência nominal de 6,38 KWp e energia produzida no primeiro ano de 8,92MW. O custo do kWh atual é de R$ 0,966299 com impostos e R$ 0,63051 sem impostos.
C138: 6.1 Análise de Custos
C139: Os custos para a construção estão listados abaixo (resumo):
C140: Custo específico por Wp | J140: ='Cad.TÉCNICO'!C53 -> 2.36
C141: Potencia nominal | J141: ='Cad.TÉCNICO'!I24 -> 6.38
C142: Valor Total do Investimento | J142: =RELATÓRIO!M44 -> 15000
C143: Valor fio B sem impostos | J143: ='Cad.TÉCNICO'!K36 -> 0.14619
C144: Economia Média Mensal | J144: ='Cad.TÉCNICO'!AK45 -> 485.5725045
C146: ='Cad.CLIENTE'!$D$4 -> xx.xxx.xxx/YYYY-ZZ | K146: 03
C148: ='Cad.CLIENTE'!$D$3 -> SUA EMPRESA
C151: 6.2 Retorno Financeiro
C152: A simulação do desempenho econômico do sistema no período de cálculo é considerando os seguintes parâmetros:
C155: Degradação anual do sistema (%) | J155: ='Cad.TÉCNICO'!K10 -> 0.4
C156: Taxa de reajuste de tarifa (%) | J156: ='Cad.TÉCNICO'!K39 -> 8
C157: Juros de aplicação anual (%) | J157: ='Cad.TÉCNICO'!K40 -> 9
C158: Custo da energia gerada em 25 anos | J158: =J142/SUM(F.CAIXA!$L$4:$L$29) -> 0.06800291808
C160: Retorno sobre o investimento feito pelo sistema fotovoltaico:
C162: Retorno do Investimento (anos) | J162: =F.CAIXA!G3 -> 2.574280851
C164: Estimativa de retorno: | F164: =F.CAIXA!C30 -> 990940.91 | J164: REAIS EM 25 ANOS
C180: 7. O QUE SÃO OS SISTEMAS CONECTADOS À REDE (ON-GRID)?
C182: Energia solar fotovoltaica é a energia obtida através da conversão da luz solar em eletricidade através de células fotovoltaicas, contidas nos módulos fotovoltaicos. No caso dos sistemas conectados à rede elétrica, a energia gerada através dos módulos solares, representa uma fonte de energia complementar à energia da distribuidora ao qual o usuário está conectado são sistemas que geralmente não utilizam armazenamento de energia, pois toda energia gerada pelos módulos solares fotovoltaicos (durante o dia), entregue à rede elétrica instantaneamente. O Inversor solar, é instalado entre o sistema gerador fotovoltaico e o ponto de fornecimento à rede, ele recebe a energia gerada pelos módulos fotovoltaicos em corrente contínua e converte em energia alternada, sincronizando e injetando na rede elétrica.
C195: ='Cad.CLIENTE'!$D$4 -> xx.xxx.xxx/YYYY-ZZ | K195: 04
C197: ='Cad.CLIENTE'!$D$3 -> SUA EMPRESA
C200: A energia solar fotovoltaica gerada não é destinada a uma carga específica, abastecendo toda a residência juntamente com a rede elétrica da distribuidora. Quando a geração solar fotovoltaica é superior à demanda, o sistema devolve a energia para rede, no sentido contrário, para ser utilizada por outros consumidores, automaticamente sem intervenção e seguindo normas de segurança.
C207: O Sistema fotovoltaico conectado à rede é sincronizado com a energia elétrica da distribuidora, assim, quando falta energia da distribuidora, por questões de segurança, o sistema fotovoltaico se desliga automaticamente. Objetivo: Redução da dependência e consumo da energia elétrica da distribuidora, substituindo-a por uma fonte de energia limpa, gratuita e inesgotável. Sistema de compensação de energia elétrica – normativa ANEEL 482/12 - A energia ativa injetada no sistema de distribuição pela unidade consumidora, será cedida a título de empréstimo gratuito para a distribuidora, passando a unidade consumidora a ter um crédito em quantidade de energia ativa. O consumo de energia elétrica ativa a ser faturado é a diferença entre a energia consumida e a injetada, por posto tarifário, devendo a distribuidora utilizar o excedente que não tenha sido compensado no ciclo de faturamento corrente para abater o consumo medido em meses subsequentes, por até 60 meses. Os montantes de energia ativa injetada não compensados na própria unidade consumidora poderão ser utilizados para compensar o consumo de outras unidades previamente cadastradas para esse fim e atendida pela mesma distribuidora, cujo titular seja o mesmo da unidade com sistema de compensação de energia, possuidor do mesmo cadastro de pessoa física (CPF) ou CNPJ. O controle da geração é realizado pelo medidor bidirecional de energia do consumidor, este mede a entrada e a saída de energia, a troca do medidor corre por conta do consumidor que fará a instalação do sistema. Para a instalação do sistema conectado, é necessário solicitar autorização da distribuidora, mediante a apresentação de um projeto elétrico, memorial descritivo, e outros documentos para aprovação, desde que sigam as normas vigentes. Este projeto deve ser desenvolvido por um engenheiro responsável que emita uma ART junto ao CREA. Sendo aceito, a distribuidora fará a troca do relógio medidor e o consumidor estará incluído no sistema de compensação de energia.
C235: 8. ETAPAS DO PROJETO:
C244: =C195 -> xx.xxx.xxx/YYYY-ZZ | K244: 05
C246: =C197 -> SUA EMPRESA
C249: 9. Equipamento:
C252: COD. | D252: PRODUTO | J252: UN. | K252: QUANT.
C253: ='PEDIDO DE COMPRA'!A3 -> 0 | D253: ='PEDIDO DE COMPRA'!B3 -> GERADOR VERTYS 6,38KWP | J253: ='PEDIDO DE COMPRA'!C3 -> PÇ | K253: ='PEDIDO DE COMPRA'!D3 -> 1
C254: ='PEDIDO DE COMPRA'!A4 -> 0 | D254: ='PEDIDO DE COMPRA'!B4 -> PAINEL 580W VERTYS | J254: ='PEDIDO DE COMPRA'!C4 -> PÇ | K254: ='PEDIDO DE COMPRA'!D4 -> 11
C255: ='PEDIDO DE COMPRA'!A5 -> 0 | D255: ='PEDIDO DE COMPRA'!B5 -> INVERSOR VERTYS 6kW | J255: ='PEDIDO DE COMPRA'!C5 -> PÇ | K255: ='PEDIDO DE COMPRA'!D5 -> 1
C256: ='PEDIDO DE COMPRA'!A6 -> 0 | D256: ='PEDIDO DE COMPRA'!B6 -> CONECTOR MC4 | J256: ='PEDIDO DE COMPRA'!C6 -> PAR | K256: ='PEDIDO DE COMPRA'!D6 -> 1
C257: ='PEDIDO DE COMPRA'!A7 -> 0 | D257: ='PEDIDO DE COMPRA'!B7 -> STRING BOX CC | J257: ='PEDIDO DE COMPRA'!C7 -> PÇ | K257: ='PEDIDO DE COMPRA'!D7 -> 1
C258: ='PEDIDO DE COMPRA'!A8 -> 0 | D258: ='PEDIDO DE COMPRA'!B8 -> CABO SOLAR FOTOVOLTAICO VERMELHO | J258: ='PEDIDO DE COMPRA'!C8 -> m | K258: ='PEDIDO DE COMPRA'!D8 -> 25
C259: ='PEDIDO DE COMPRA'!A9 -> 0 | D259: ='PEDIDO DE COMPRA'!B9 -> CABO SOLAR FOTOVOLTAICO PRETO | J259: ='PEDIDO DE COMPRA'!C9 -> m | K259: ='PEDIDO DE COMPRA'!D9 -> 25
C260: ='PEDIDO DE COMPRA'!A10 -> 0 | D260: ='PEDIDO DE COMPRA'!B10 -> ESTRUTURA VERTYS FIBROCIMENTO | J260: ='PEDIDO DE COMPRA'!C10 -> PÇ | K260: ='PEDIDO DE COMPRA'!D10 -> 1
C261: ='PEDIDO DE COMPRA'!A11 -> 0 | D261: ='PEDIDO DE COMPRA'!B11 -> MÃO DE OBRA | J261: ='PEDIDO DE COMPRA'!C11 -> 0 | K261: ='PEDIDO DE COMPRA'!D11 -> 1
C262: ='PEDIDO DE COMPRA'!A12 -> 0 | D262: ='PEDIDO DE COMPRA'!B12 -> 0 | J262: ='PEDIDO DE COMPRA'!C12 -> 0 | K262: ='PEDIDO DE COMPRA'!D12 -> 0
C263: ='PEDIDO DE COMPRA'!A13 -> 0 | D263: ='PEDIDO DE COMPRA'!B13 -> 0 | J263: ='PEDIDO DE COMPRA'!C13 -> 0 | K263: ='PEDIDO DE COMPRA'!D13 -> 0
C264: ='PEDIDO DE COMPRA'!A14 -> 0 | D264: ='PEDIDO DE COMPRA'!B14 -> 0 | J264: ='PEDIDO DE COMPRA'!C14 -> 0 | K264: ='PEDIDO DE COMPRA'!D14 -> 0
C265: ='PEDIDO DE COMPRA'!A15 -> 0 | D265: ='PEDIDO DE COMPRA'!B15 -> 0 | J265: ='PEDIDO DE COMPRA'!C15 -> 0 | K265: ='PEDIDO DE COMPRA'!D15 -> 0
C266: ='PEDIDO DE COMPRA'!A16 -> 0 | D266: ='PEDIDO DE COMPRA'!B16 -> 0 | J266: ='PEDIDO DE COMPRA'!C16 -> 0 | K266: ='PEDIDO DE COMPRA'!D16 -> 0
C267: ='PEDIDO DE COMPRA'!A17 -> 0 | D267: ='PEDIDO DE COMPRA'!B17 -> 0 | J267: ='PEDIDO DE COMPRA'!C17 -> 0 | K267: ='PEDIDO DE COMPRA'!D17 -> 0
C268: ='PEDIDO DE COMPRA'!A18 -> 0 | D268: ='PEDIDO DE COMPRA'!B18 -> 0 | J268: ='PEDIDO DE COMPRA'!C18 -> 0 | K268: ='PEDIDO DE COMPRA'!D18 -> 0
C269: ='PEDIDO DE COMPRA'!A19 -> 0 | D269: ='PEDIDO DE COMPRA'!B19 -> 0 | J269: ='PEDIDO DE COMPRA'!C19 -> 0 | K269: ='PEDIDO DE COMPRA'!D19 -> 0
C270: ='PEDIDO DE COMPRA'!A20 -> 0 | D270: ='PEDIDO DE COMPRA'!B20 -> 0 | J270: ='PEDIDO DE COMPRA'!C20 -> 0 | K270: ='PEDIDO DE COMPRA'!D20 -> 0
C271: ='PEDIDO DE COMPRA'!A21 -> 0 | D271: ='PEDIDO DE COMPRA'!B21 -> 0 | J271: ='PEDIDO DE COMPRA'!C21 -> 0 | K271: ='PEDIDO DE COMPRA'!D21 -> 0
C272: ='PEDIDO DE COMPRA'!A22 -> 0 | D272: ='PEDIDO DE COMPRA'!B22 -> 0 | J272: ='PEDIDO DE COMPRA'!C22 -> 0 | K272: ='PEDIDO DE COMPRA'!D22 -> 0
C273: ='PEDIDO DE COMPRA'!A23 -> 0 | D273: ='PEDIDO DE COMPRA'!B23 -> 0 | J273: ='PEDIDO DE COMPRA'!C23 -> 0 | K273: ='PEDIDO DE COMPRA'!D23 -> 0
C274: ='PEDIDO DE COMPRA'!A24 -> 0 | D274: ='PEDIDO DE COMPRA'!B24 -> 0 | J274: ='PEDIDO DE COMPRA'!C24 -> 0 | K274: ='PEDIDO DE COMPRA'!D24 -> 0
C275: ='PEDIDO DE COMPRA'!A25 -> 0 | D275: ='PEDIDO DE COMPRA'!B25 -> 0 | J275: ='PEDIDO DE COMPRA'!C25 -> 0 | K275: ='PEDIDO DE COMPRA'!D25 -> 0
C276: ='PEDIDO DE COMPRA'!A26 -> 0 | D276: ='PEDIDO DE COMPRA'!B26 -> 0 | J276: ='PEDIDO DE COMPRA'!C26 -> 0 | K276: ='PEDIDO DE COMPRA'!D26 -> 0
C277: ='PEDIDO DE COMPRA'!A27 -> 0 | D277: ='PEDIDO DE COMPRA'!B27 -> 0 | J277: ='PEDIDO DE COMPRA'!C27 -> 0 | K277: ='PEDIDO DE COMPRA'!D27 -> 0
C278: ='PEDIDO DE COMPRA'!A28 -> 0 | D278: ='PEDIDO DE COMPRA'!B28 -> 0 | J278: ='PEDIDO DE COMPRA'!C28 -> 0 | K278: ='PEDIDO DE COMPRA'!D28 -> 0
C279: ='PEDIDO DE COMPRA'!A29 -> 0 | D279: ='PEDIDO DE COMPRA'!B29 -> 0 | J279: ='PEDIDO DE COMPRA'!C29 -> 0 | K279: ='PEDIDO DE COMPRA'!D29 -> 0
C280: ='PEDIDO DE COMPRA'!A30 -> 0 | D280: ='PEDIDO DE COMPRA'!B30 -> 0 | J280: ='PEDIDO DE COMPRA'!C30 -> 0 | K280: ='PEDIDO DE COMPRA'!D30 -> 0
C281: ='PEDIDO DE COMPRA'!A31 -> 0 | D281: ='PEDIDO DE COMPRA'!B31 -> 0 | J281: ='PEDIDO DE COMPRA'!C31 -> 0 | K281: ='PEDIDO DE COMPRA'!D31 -> 0
C282: ='PEDIDO DE COMPRA'!A32 -> 0 | D282: ='PEDIDO DE COMPRA'!B32 -> 0 | J282: ='PEDIDO DE COMPRA'!C32 -> 0 | K282: ='PEDIDO DE COMPRA'!D32 -> 0
C283: Todos os produtos utilizados são certficados por orgãos nacionais e internacionais, o que garante o atendimento às normas do setor e dos padrões de qualidade.
C294: =C244 -> xx.xxx.xxx/YYYY-ZZ | K294: 06
C296: =C246 -> SUA EMPRESA
C299: 10. Condições de Financiamento:
E300: ENTRADA | F300: =FINANCIAMENTO!D2 -> 0 | H300: VALOR FINANCIADO | J300: =FINANCIAMENTO!H2 -> 15000
E301: PRAZO | F301: VALOR PARCELA
C302: BANCO | E302: 12x | F302: =FINANCIAMENTO!D4 -> 1500 | I302: V. FINAL | J302: =FINANCIAMENTO!H4 -> 18000
C303: =FINANCIAMENTO!A4 -> BB | E303: 24X | F303: =FINANCIAMENTO!D5 -> 780 | I303: V. FINAL | J303: =FINANCIAMENTO!H5 -> 18720
E304: 36X | F304: =FINANCIAMENTO!D6 -> 530 | I304: V. FINAL | J304: =FINANCIAMENTO!H6 -> 19080
E305: 48X | F305: =FINANCIAMENTO!D7 -> 400 | I305: V. FINAL | J305: =FINANCIAMENTO!H7 -> 19200
E306: 60X | F306: =FINANCIAMENTO!D9 -> 300 | I306: V. FINAL | J306: =FINANCIAMENTO!H8 -> 21000
E307: =FINANCIAMENTO!C9 -> 72 | F307: =FINANCIAMENTO!D9 -> 300 | I307: =FINANCIAMENTO!F9 -> 0 | J307: =FINANCIAMENTO!H9 -> 21600
F311: VALOR FINANCIADO
E312: PRAZO | F312: VALOR PARCELA
E313: 12X | F313: =FINANCIAMENTO!D13 -> 0 | I313: V.FINAL | J313: =FINANCIAMENTO!H13 -> 0
C314: BANCO | E314: 24X | F314: =FINANCIAMENTO!D14 -> 0 | I314: V.FINAL | J314: =FINANCIAMENTO!H14 -> 0
C315: =FINANCIAMENTO!A13 -> 0 | E315: 36X | F315: =FINANCIAMENTO!D15 -> 0 | I315: V.FINAL | J315: =FINANCIAMENTO!H15 -> 0
E316: 48X | F316: =FINANCIAMENTO!D16 -> 0 | I316: V.FINAL | J316: =FINANCIAMENTO!H16 -> 0
E317: 60X | F317: =FINANCIAMENTO!D17 -> 0 | I317: V.FINAL | J317: =FINANCIAMENTO!H17 -> 0
E318: 72X | F318: =FINANCIAMENTO!D18 -> 0 | I318: V.FINAL | J318: =FINANCIAMENTO!H18 -> 0
E319: 84X | F319: =FINANCIAMENTO!D19 -> 0 | I319: V.FINAL | J319: =FINANCIAMENTO!H19 -> 0
C321: Obs: Os valores podem variar e estão sujeitos à aprovação de crédito.
C323: O serviço compreende:
C328: Garantias:
C329: ='Cad.CLIENTE'!D34 -> Garantia dos Inversores: 10 anos
C330: ='Cad.CLIENTE'!D35 -> Garantia do Transformador: 1 ano.
C331: ='Cad.CLIENTE'!D36 -> Garantia dos Stringbox: 2 anos.
C332: ='Cad.CLIENTE'!D32 -> Painel fotovoltaico: 15 anos
C333: ='Cad.CLIENTE'!D33 -> Garantia contra perda de eficiência: 30 anos.
C335: Observações gerais do projeto:
C336: ='Cad.CLIENTE'!D37 -> O orçamento fotovoltaico NÃO compreende alterações no padrão de entrada/carga instalada ou sistema de medição. A estimativa de geração desconsidera sombreamentos. A distância máxima considerada do ponto de conexão ao inversor é de 30 metros. O prazo para homologação e troca do medidor é de responsabilidade da concessionária de energia.
C342: =C294 -> xx.xxx.xxx/YYYY-ZZ | K342: 07
C344: =C296 -> SUA EMPRESA
C348: Dados Bancários:
C349: ='Cad.CLIENTE'!D41 -> Banco: Agência: Conta: Titular/CPF/CNPJ:
C356: “De Acordo”
C358: ="A geração pode variar +10% ou -10%, dependendo por conta de fatores climáticos. O prazo para troca do medidor depende da concessionária de energia, não sendo responsabilidade da "&C246 -> A geração pode variar +10% ou -10%, dependendo por conta de fatores climáticos. O prazo para troca do medidor depende da concessionária de energia, não sendo responsabilidade da SUA EMPRESA
E375: ='Cad.CLIENTE'!D7 -> NOME DO CLIENTE
E376: ='Cad.CLIENTE'!C11&" "&'Cad.CLIENTE'!D11 -> CPF/CNPJ
C378: ='Cad.CLIENTE'!D49 -> SANTA TEREZA DO OESTE / PR
C379: ='Cad.CLIENTE'!D50 -> 2023-08-17
E381: ="Validade do orçamento "&'PEDIDO DE COMPRA'!C42&" dias" -> Validade do orçamento 7 dias
C383: ='Cad.TÉCNICO'!K8 -> -0.3
C384: ='Cad.TÉCNICO'!K10 -> 0.4
C385: ='Cad.TÉCNICO'!K12 -> 0
C386: ='Cad.TÉCNICO'!G18 -> 0
C387: ='Cad.TÉCNICO'!E33 -> 0.29
C388: ='Cad.TÉCNICO'!E34 -> 0.0087
C389: ='Cad.TÉCNICO'!E35 -> 0.0488
C393: =C342 -> xx.xxx.xxx/YYYY-ZZ | K393: 08

Sheet Logotipo
D1: Logotipo
G2: Insira no campo em branco o logotipo da sua empresa, ele vai ser apresentado na capa do relatório
